Workbook

Sheet Kold
B2: Bruger: | D2: =HD9 -> Bruger skal registreres | P2: FORSPÆNDT BJÆLKE, version 1.0 | T2: Betonelement-Foreningen juli 2012
B3: Sagsnavn: | D3: Betonelementhuset | M3: Sag nr.: | N3: 23 - 4545 | P3: =BP48 -> For ny bruger: Klik på knappen 'angiv nyt brugernavn' for ibrugtagning.
B4: Bygningsdel: | D4: Bjælke i modul D-E/12, stueetage | M4: Dato: | N4: 2008-03-01
B5: Emne: | D5: ="Normale lastkombinationer, spændingsanalyse ved s = "&TEXT(R31,"0,00")&" m" -> Normale lastkombinationer, spændingsanalyse ved s = 4,80 m | M5: Init: | N5: JFJ
B7: Element med hovedakser ved fagmidte | P7: Styrker | Q7: fk | R7: g | S7: fd | T7: Krybedata | V7: Lager | W7: Langtid
P8: Beton | Q8: 40 | R8: 1.4 | S8: =Q8/R8 -> 28.57142857 | T8: RH | V8: 0.8 | W8: 0.55
P9: Liner | Q9: 1600 | R9: 1.2 | S9: =Q9/R9 -> 1333.333333 | T9: to | V9: 2 | W9: 28 | AO9: Punkt | AP9: skala | AQ9: =MAX(M22,MAX(L25:M25,L27:M27)+MAX(L26:M26,L28:M28)+O22) -> 700 | AR9: normeret geometri | AW9: A | AX9: Nf | AY9: Normeret trykzone | BH9: Krybetal | BI9: F+G | BJ9: Langtid | HA9: =IF(HE9=1,0,1000000) -> 0 | HB9: 1 | HD9: Bruger skal registreres | HE9: 1
P10: Bøjler | Q10: 500 | R10: 1.2 | S10: =Q10/R10 -> 416.6666667 | T10: fo | V10: =BI21 -> 2.273098364 | W10: =BJ21 -> 1.729549154 | AP10: x | AQ10: y | AR10: x' | AS10: y' | AT10: yaks1 | AU10: yaks2 | AV10: ya | AY10: x' | AZ10: y' | BH10: to | BI10: =V9 -> 2 | BJ10: =W9 -> 28
P11: Forspændingsarmering | T11: Neutralisering ved s = | W11: 1.9 | AO11: 1 | AP11: =0.5*AQ9 -> 350 | AQ11: 0 | AR11: =AP11/$AQ$9 -> 0.5 | AS11: =AQ11/$AQ$9 -> 0 | AY11: =IF($BH$34=2,-1400,Brud!AQ17*1000/$AQ$9) -> 0.7219051324 | AZ11: =Brud!AR17*1000/$AQ$9 -> 0.2501325808 | BH11: RH | BI11: =V8*100 -> 80 | BJ11: =W8*100 -> 55
T12: Lineantal | V12: Linedata (pr. line) | AO12: 2 | AP12: =AP11+0.5*O22+MAX(L28,0.1) -> 600 | AQ12: 0 | AR12: 0.8571428571 | AS12: 0 | AY12: =IF($BH$34=2,-1400,Brud!AQ18*1000/$AQ$9) -> 0.7219051324 | AZ12: =Brud!AR18*1000/$AQ$9 -> 0.2501325808 | BH12: h | BI12: =M22 -> 700 | BJ12: =BI12 -> 700
B13: Mx | Q13: y (mm) | R13: x- (mm) | S13: x+ (mm) | T13: max. | U13: min. | V13: A (mm2) | W13: Nf (kN) | AO13: 3 | AP13: =AP11+0.5*O22+MAX(M28,0.1) -> 650 | AQ13: =MAX(N28,0.1) -> 300 | AR13: 0.9285714286 | AS13: 0.4285714286 | AY13: =IF($BH$34=2,-1400,Brud!AQ19*1000/$AQ$9) -> 0.9217572975 | AZ13: =Brud!AR19*1000/$AQ$9 -> 0.07283372196 | BH13: b | BI13: =O22+MIN(L25:M25)+MIN(L26:M26) -> 450 | BJ13: =BI13 -> 450
P14: Lag øv. | Q14: 650 | R14: 275 | S14: 85 | T14: 6 | U14: 6 | V14: 93 | W14: 100 | AO14: 4 | AP14: =AP11+0.5*O22 -> 475 | AQ14: =MAX(O28,0.1) -> 300 | AR14: 0.6785714286 | AS14: 0.4285714286 | AY14: =IF($BH$34=2,-1400,Brud!AQ20*1000/$AQ$9) -> 0.8760413021 | AZ14: =Brud!AR20*1000/$AQ$9 -> 0.1133906697 | BH14: ho | BI14: =2*BI12*BI13/(2*(BI12+BI13)) -> 273.9130435 | BJ14: =2*BJ12*BJ13/(2*(BJ12+BJ13)) -> 273.9130435
P15: Lag ml. | Q15: 250 | R15: 85 | S15: 250 | T15: 2 | U15: 2 | V15: 93 | W15: 100 | AO15: 5 | AP15: =AP11+0.5*O22 -> 475 | AQ15: =M22-O26 -> 700 | AR15: 0.6785714286 | AS15: 1 | AY15: =IF($BH$34=2,-1400,Brud!AQ21*1000/$AQ$9) -> 0.9285714286 | AZ15: =Brud!AR21*1000/$AQ$9 -> 0.4285714286 | BH15: fck | BI15: =Q8 -> 40 | BJ15: =BI15 -> 40
P16: Lag 4 | Q16: 0 | R16: 0 | S16: 0 | T16: 0 | U16: 0 | V16: 0 | W16: 0 | AO16: 6 | AP16: =AP11+0.5*O22+M26 -> 475 | AQ16: =M22-N26 -> 700 | AR16: 0.6785714286 | AS16: 1 | AY16: =IF($BH$34=2,-1400,Brud!AQ22*1000/$AQ$9) -> 0.9285714286 | AZ16: =Brud!AR22*1000/$AQ$9 -> 0.4285714286 | BH16: fcm | BI16: =BI15+8 -> 48 | BJ16: =BJ15+8 -> 48
P17: Lag 3 | Q17: 130 | R17: 85 | S17: 105 | T17: 5 | U17: 3 | V17: 93 | W17: 100 | AO17: 7 | AP17: =AP11+0.5*O22+L26 -> 475 | AQ17: =M22 -> 700 | AR17: 0.6785714286 | AS17: 1 | AY17: =IF($BH$34=2,-1400,Brud!AQ23*1000/$AQ$9) -> 0.6785714286 | AZ17: =Brud!AR23*1000/$AQ$9 -> 0.4285714286 | BH17: a1 | BI17: =IF(BI16<35,1,(35/BI16)^0.7) -> 0.8016388658 | BJ17: =IF(BJ16<35,1,(35/BJ16)^0.7) -> 0.8016388658
P18: Lag 2 | Q18: 90 | R18: 85 | S18: 105 | T18: 5 | U18: 3 | V18: 93 | W18: 100 | AO18: 8 | AP18: =AP11-0.5*O22-L25 -> 25 | AQ18: =M22 -> 700 | AR18: 0.03571428571 | AS18: 1 | AY18: =IF($BH$34=2,-1400,Brud!AQ24*1000/$AQ$9) -> 0.6785714286 | AZ18: =Brud!AR24*1000/$AQ$9 -> 0.4285714286 | BH18: a2 | BI18: =IF(BI16<35,1,(35/BI16)^0.2) -> 0.9387833131 | BJ18: =IF(BJ16<35,1,(35/BJ16)^0.2) -> 0.9387833131
P19: Lag 1 | Q19: 50 | R19: 85 | S19: 200 | T19: 7 | U19: 5 | V19: 93 | W19: 100 | AO19: 9 | AP19: =AP11-0.5*O22-M25 -> 25 | AQ19: =M22-N25 -> 550 | AR19: 0.03571428571 | AS19: 0.7857142857 | AY19: =IF($BH$34=2,-1400,Brud!AQ25*1000/$AQ$9) -> 0.6785714286 | AZ19: =Brud!AR25*1000/$AQ$9 -> 1 | BH19: a3 | BI19: =(35/BI16)^0.5 -> 0.8539125638 | BJ19: =BI19 -> 0.8539125638
P20: Bøjler | Q20: d (mm) | R20: a (mm) | S20: cotq | T20: Samlet forspændingskraft | AO20: 10 | AP20: =AP11-0.5*O22 -> 225 | AQ20: =M22-O25 -> 550 | AR20: 0.3214285714 | AS20: 0.7857142857 | AY20: =IF($BH$34=2,-1400,Brud!AQ26*1000/$AQ$9) -> 0.6785714286 | AZ20: =Brud!AR26*1000/$AQ$9 -> 1 | BH20: bH | BI20: =MIN(1.5*(1+(0.012*BI11)^18)*BI14+IF(BI16<35,250,250*BI19),1500*BI19) -> 821.4021201 | BJ20: =BI20 -> 821.4021201
B21: LODRETTE | C21: Jævnt fordelte laste | G21: Punktlaste | K21: Tværsnitsgeometri - alle mål i mm | P21: Type 1 | Q21: 10 | R21: 100 | S21: 2 | T21: Nf = | V21: =Elastisk!O28/1000 -> 2500 | W21: kN | AO21: 11 | AP21: =AP11-0.5*O22 -> 225 | AQ21: =O27 -> 0 | AR21: 0.3214285714 | AS21: 0 | AY21: =IF($BH$34=2,-1400,Brud!AQ27*1000/$AQ$9) -> 0.6785714286 | AZ21: =Brud!AR27*1000/$AQ$9 -> 1 | BH21: f | BI21: =(1/(0.1+BI10^0.2))*(16.8/BI16^0.5)*(1+10*BI17*(1-BI11/100)/BI14^(1/3))*BI18 -> 2.273098364 | BJ21: =(1/(0.1+BJ10^0.2))*(16.8/BJ16^0.5)*(1+10*BJ17*(1-BJ11/100)/BJ14^(1/3))*BJ18 -> 1.729549154
B22: LASTE | D22: p1 | E22: p2 | F22: p3 | H22: P1 | I22: P2 | J22: P3 | K22: Krop: | L22: h0 = | M22: 700 | N22: b0 = | O22: 250 | P22: Type 2 | Q22: 10 | R22: 125 | S22: =S21 -> 2 | T22: yf = | V22: =Elastisk!O29 -> 234 | W22: mm | AO22: 12 | AP22: =AP11-0.5*O22-M27 -> 225 | AQ22: =N27 -> 0 | AR22: 0.3214285714 | AS22: 0 | AY22: =IF($BH$34=2,-1400,Brud!AQ28*1000/$AQ$9) -> 0.6785714286 | AZ22: =Brud!AR28*1000/$AQ$9 -> 1
B23: Langtidslast | C23: (kN/m) | D23: 43 | E23: 0 | F23: 0 | G23: (kN) | H23: 0 | I23: 0 | J23: 0 | K23: Hjørneblokke: | P23: Forskydningskapacitet | T23: Momentkapacitet | AO23: 13 | AP23: =AP11-0.5*O22-L27 -> 225 | AQ23: 0 | AR23: 0.3214285714 | AS23: 0 | AY23: =IF($BH$34=2,-1400,Brud!AQ29*1000/$AQ$9) -> 0.6785714286 | AZ23: =Brud!AR29*1000/$AQ$9 -> 1 | BB23: Liner i endesektion | BH23: Leveringskrybetal
B24: Kar. Last | C24: (kN/m) | D24: 48 | E24: 0 | F24: 0 | G24: (kN) | H24: 0 | I24: 0 | J24: 0 | L24: b1 | M24: b2 | N24: h2 | O24: h3 | P24: v/ trykbrud i krop: | R24: VRd,0 | S24: =BJ42 -> 291.8980632 | T24: MRd | V24: =IF(OR(Brud!M7=0,BH29=2),Brud!H5*1000,"Ustabil i tværretning !") -> 901.3367747 | AO24: 14 | AP24: =AP11 -> 350 | AQ24: 0 | AR24: 0.5 | AS24: 0 | AY24: =IF($BH$34=2,-1400,Brud!AQ30*1000/$AQ$9) -> 0.6785714286 | AZ24: =Brud!AR30*1000/$AQ$9 -> 1 | BC24: x | BD24: y | BE24: A | BF24: Nf | BH24: bc | BI24: =((BJ10-BI10)/(BI20+BJ10-BI10))^0.3 -> 0.3516131756
B25: Regnm. Last | C25: (kN/m) | D25: 55 | E25: 0 | F25: 0 | G25: (kN) | H25: 0 | I25: 0 | J25: 0 | K25: Blok A | L25: 200 | M25: 200 | N25: 150 | O25: 150 | P25: v/ type 1 bøjler: | R25: VRd,1 | S25: =BJ43 -> 270.2433866 | T25: Regningsmæssigt max. moment | AO25: 1 | AP25: =$AP$11-$R$14 -> 75 | AQ25: =$Q$14 -> 650 | AR25: =IF(AW25>0,AP25,-2*$AQ$9)/$AQ$9 -> 0.1071428571 | AV25: =AQ25/$AQ$9 -> 0.9285714286 | AW25: =IF(AO25>$T$14,0,$V$14) -> 93 | AX25: =IF(AO25>$T$14,0,$W$14) -> 100 | AY25: =IF($BH$34=2,-1400,Brud!AQ31*1000/$AQ$9) -> 0.03571428571 | AZ25: =Brud!AR31*1000/$AQ$9 -> 1 | BB25: 1 | BC25: =$AP$11-$R$14 -> 75 | BD25: =$Q$14 -> 650 | BE25: =IF(BB25>$U$14,0,$V$14) -> 93 | BF25: =IF(BB25>$U$14,0,$W$14) -> 100 | BH25: f | BI25: =BI24*BI21 -> 0.7992513342
B26: Excentricitet | C26: (mm) | D26: 230 | E26: 0 | F26: 0 | G26: (mm) | H26: 0 | I26: 0 | J26: 0 | K26: Blok B | P26: v/ type 2 bøjler: | R26: VRd,2 | S26: =BJ44 -> 216.1947093 | T26: MEd | V26: =MAX(Kold2!P33:BD33) -> 633.6 | AO26: 2 | AP26: =IF(AO26>$T$14,-2*$AQ$9,AP25+($S$14+$R$14)/($T$14-1)) -> 147 | AQ26: 650 | AR26: 0.21 | AV26: =AQ26/$AQ$9 -> 0.9285714286 | AW26: 93 | AX26: 100 | AY26: =IF($BH$34=2,-1400,Brud!AQ32*1000/$AQ$9) -> 0.03571428571 | AZ26: =Brud!AR32*1000/$AQ$9 -> 0.858886827 | BB26: 2 | BC26: =IF(BB26>$U$14,-2*$AQ$9,BC25+($S$14+$R$14)/($U$14-1)) -> 147 | BD26: 650 | BE26: 93 | BF26: 100
B27: s1 | C27: (m) | D27: 0 | E27: 0 | F27: 0 | G27: (m) | H27: 0 | I27: 0 | J27: 0 | K27: Blok C | P27: Tværsnitskonstanter | T27: a kort = Es / Ecm = | W27: =195000/(22000*((Q8+8)/10)^0.3) -> 5.536554245 | AO27: 3 | AP27: =IF(AO27>$T$14,-2*$AQ$9,AP26+($S$14+$R$14)/($T$14-1)) -> 219 | AQ27: 650 | AR27: 0.3128571429 | AV27: 0.9285714286 | AW27: 93 | AX27: 100 | AY27: =IF($BH$34=2,-1400,Brud!AQ33*1000/$AQ$9) -> 0.03571428571 | AZ27: =Brud!AR33*1000/$AQ$9 -> 0.858886827 | BB27: 3 | BC27: =IF(BB27>$U$14,-2*$AQ$9,BC26+($S$14+$R$14)/($U$14-1)) -> 219 | BD27: 650 | BE27: 93 | BF27: 100
B28: s2 | C28: (m) | D28: =E33 -> 9.6 | E28: 0 | F28: 0 | G28: g = | H28: =Elastisk!O45 -> 6 | I28: kN/m, skal med i p1 | K28: Blok D | L28: 125 | M28: 175 | N28: 300 | O28: 300 | Q28: At | R28: =Elastisk!L45 -> 277900 | S28: mm2 | T28: a spændingsanalyse | W28: 12 | AO28: 4 | AP28: =IF(AO28>$T$14,-2*$AQ$9,AP27+($S$14+$R$14)/($T$14-1)) -> 291 | AQ28: 650 | AR28: 0.4157142857 | AV28: 0.9285714286 | AW28: 93 | AX28: 100 | AY28: =IF($BH$34=2,-1400,Brud!AQ34*1000/$AQ$9) -> 0.1181947422 | AZ28: =Brud!AR34*1000/$AQ$9 -> 0.7857142857 | BB28: 4 | BC28: =IF(BB28>$U$14,-2*$AQ$9,BC27+($S$14+$R$14)/($U$14-1)) -> 291 | BD28: 650 | BE28: 93 | BF28: 100
B29: TVÆRLAST | C29: v / langtidslast | E29: 0 | F29: kN/m | G29: Yderste liner i hvert lag mål- | Q29: I1,t | R29: =Elastisk!L46 -> 1.489282101e+10 | S29: mm4 | T29: Drejning af akser fra (x,y)-system: | AO29: 5 | AP29: =IF(AO29>$T$14,-2*$AQ$9,AP28+($S$14+$R$14)/($T$14-1)) -> 363 | AQ29: 650 | AR29: 0.5185714286 | AU29: 2 | AV29: 0.9285714286 | AW29: 93 | AX29: 100 | AY29: =IF($BH$34=2,-1400,Brud!AQ35*1000/$AQ$9) -> 0.3214285714 | AZ29: =Brud!AR35*1000/$AQ$9 -> 0.7857142857 | BB29: 5 | BC29: =IF(BB29>$U$14,-2*$AQ$9,BC28+($S$14+$R$14)/($U$14-1)) -> 363 | BD29: 650 | BE29: 93 | BF29: 100 | BG29: 1 | BH29: 1 | BI29: Fri vandret udbøjning v / brudmoment
C30: v / kar. last | E30: 0 | F30: kN/m | G30: sættes fra kropmidte: x- og x+ | Q30: I2,t | R30: =Elastisk!L47 -> 3292411549 | S30: mm4 | T30: v = | V30: =Elastisk!L52 -> 0.3686124512 | W30: rad | AO30: 6 | AP30: =IF(AO30>$T$14,-2*$AQ$9,AP29+($S$14+$R$14)/($T$14-1)) -> 435 | AQ30: 650 | AR30: 0.6214285714 | AV30: 0.9285714286 | AW30: 93 | AX30: 100 | AY30: =IF($BH$34=2,-1400,Brud!AQ36*1000/$AQ$9) -> 0.3214285714 | AZ30: =Brud!AR36*1000/$AQ$9 -> 0.6054153833 | BB30: 6 | BC30: =IF(BB30>$U$14,-2*$AQ$9,BC29+($S$14+$R$14)/($U$14-1)) -> 435 | BD30: 650 | BE30: 93 | BF30: 100 | BI30: Fasthold mod vandret udbøjning v / brudmoment
C31: v / brudmoment | E31: 0 | F31: kN/m | G31: Lodret målsættes hvert lag liner | P31: Snitanalyse i s = | R31: 4.8 | S31: Forsp. | T31: Egenvægt | V31: Langtidslast | W31: Kar. last | AO31: 1 | AP31: =$AP$11-$R$15 -> 265 | AQ31: =$Q$15 -> 250 | AR31: 0.3785714286 | AV31: 0.3571428571 | AW31: =IF(AO31>$T$15,0,$V$15) -> 93 | AX31: =IF(AO31>$T$15,0,$W$15) -> 100 | AY31: =IF($BH$34=2,-1400,Brud!AQ37*1000/$AQ$9) -> 0.6219790499 | AZ31: =Brud!AR37*1000/$AQ$9 -> 0.3387820103 | BB31: 1 | BC31: =$AP$11-$R$15 -> 265 | BD31: =$Q$15 -> 250 | BE31: =IF(BB31>$U$15,0,$V$15) -> 93 | BF31: =IF(BB31>$U$15,0,$W$15) -> 100 | BH31: Vandret fastholdelseskrav | BK31: =Brud!$L$10 -> 0.003038194456 | BL31: kN/m
B32: =IF($BH$29=2,BH31,"") ->  | E32: =IF($BH$29=2,BK31,"") ->  | F32: =IF($BH$29=2,BL31,"") ->  | G32: fra bjælkebund: y | Q32: Mx | R32: (kNm) | S32: =-IF(Elastisk!$F$79=1,Elastisk!L$32,Elastisk!L$86)/1000000 -> -257.5116949 | T32: =0.5*H28*R31*(E33-R31) -> 69.12 | V32: =Kold2!BI31 -> 495.36 | W32: =Kold2!BI32 -> 552.96 | AO32: 2 | AP32: =IF(AO32>$T$15,-2*$AQ$9,AP31+($S$15+$R$15)/($T$15-1)) -> 600 | AQ32: =$Q$15 -> 250 | AR32: 0.8571428571 | AV32: 0.3571428571 | AW32: =IF(AO32>$T$15,0,$V$15) -> 93 | AX32: =IF(AO32>$T$15,0,$W$15) -> 100 | AY32: =IF($BH$34=2,-1400,Brud!AQ38*1000/$AQ$9) -> 0.6219790499 | AZ32: =Brud!AR38*1000/$AQ$9 -> 0.3387820103 | BB32: 2 | BC32: =IF(BB32>$U$15,-2*$AQ$9,BC31+($S$15+$R$15)/($U$15-1)) -> 600 | BD32: =$Q$15 -> 250 | BE32: =IF(BB32>$U$15,0,$V$15) -> 93 | BF32: =IF(BB32>$U$15,0,$W$15) -> 100
B33: SPÆNDVIDDE | D33: L = | E33: 9.6 | F33: m | Q33: My | R33: (kNm) | S33: =-IF(Elastisk!$F$79=1,Elastisk!M$32,Elastisk!M$86)/1000000 -> 11.75107953 | T33: 0 | V33: =-E29*E33^2/8 -> 0 | W33: =-E30*E33^2/8 -> 0 | AO33: 3 | AP33: =IF(AO33>$T$15,-2*$AQ$9,AP32+($S$15+$R$15)/($T$15-1)) -> -1400 | AQ33: =$Q$15 -> 250 | AR33: -2 | AV33: 0.3571428571 | AW33: =IF(AO33>$T$15,0,$V$15) -> 0 | AX33: =IF(AO33>$T$15,0,$W$15) -> 0 | AY33: =IF($BH$34=2,-1400,Brud!AQ39*1000/$AQ$9) -> 0.6219790499 | AZ33: =Brud!AR39*1000/$AQ$9 -> 0.3387820103 | BB33: 3 | BC33: =IF(BB33>$U$15,-2*$AQ$9,BC32+($S$15+$R$15)/($U$15-1)) -> -1400 | BD33: =$Q$15 -> 250 | BE33: =IF(BB33>$U$15,0,$V$15) -> 0 | BF33: =IF(BB33>$U$15,0,$W$15) -> 0
Q34: M1 | R34: (kNm) | S34: =-IF(Elastisk!$F$79=1,Elastisk!N$32,Elastisk!N$86)/1000000 -> -235.9800068 | T34: =-Elastisk!N33/1000000 -> 64.47708567 | V34: =-Elastisk!N34/1000000 -> 462.0857806 | W34: =-Elastisk!N35/1000000 -> 515.8166853 | AO34: 4 | AP34: =IF(AO34>$T$15,-2*$AQ$9,AP33+($S$15+$R$15)/($T$15-1)) -> -1400 | AQ34: =$Q$15 -> 250 | AR34: -2 | AV34: 0.3571428571 | AW34: =IF(AO34>$T$15,0,$V$15) -> 0 | AX34: =IF(AO34>$T$15,0,$W$15) -> 0 | AY34: =IF($BH$34=2,-1400,Brud!AQ40*1000/$AQ$9) -> 0.6219790499 | AZ34: =Brud!AR40*1000/$AQ$9 -> 0.3387820103 | BB34: 4 | BC34: =IF(BB34>$U$15,-2*$AQ$9,BC33+($S$15+$R$15)/($U$15-1)) -> -1400 | BD34: =$Q$15 -> 250 | BE34: =IF(BB34>$U$15,0,$V$15) -> 0 | BF34: =IF(BB34>$U$15,0,$W$15) -> 0 | BH34: 1 | BI34: Trykzone v / brudmoment vist
Q35: M2 | R35: (kNm) | S35: =-IF(Elastisk!$F$79=1,Elastisk!O$32,Elastisk!O$86)/1000000 -> 103.7487218 | T35: =-Elastisk!O33/1000000 -> -24.90541756 | V35: =-Elastisk!O34/1000000 -> -178.4888258 | W35: =-Elastisk!O35/1000000 -> -199.2433405 | AO35: 1 | AP35: =$AP$11-$R$16 -> 350 | AQ35: =$Q$16 -> 0 | AR35: -2 | AV35: 0 | AW35: =IF(AO35>$T$16,0,$V$16) -> 0 | AX35: =IF(AO35>$T$16,0,$W$16) -> 0 | AY35: =IF($BH$34=2,-1400,Brud!AQ41*1000/$AQ$9) -> 0.6219790499 | AZ35: =Brud!AR41*1000/$AQ$9 -> 0.3387820103 | BB35: 1 | BC35: =$AP$11-$R$16 -> 350 | BD35: =$Q$16 -> 0 | BE35: =IF(BB35>$U$16,0,$V$16) -> 0 | BF35: =IF(BB35>$U$16,0,$W$16) -> 0 | BI35: Trykzone v / brudmoment ikke vist
P36: Max. betonspændinger (MPa) | S36: =Elastisk!L38 -> 20.96808252 | T36: =Elastisk!L39 -> 17.95418115 | V36: =Elastisk!L40 -> 18.93416246 | W36: =Elastisk!L41 -> 21.51346719 | AO36: 2 | AP36: =IF(AO36>$T$16,-2*$AQ$9,AP35+($S$16+$R$16)/($T$16-1)) -> -1400 | AQ36: 0 | AR36: -2 | AV36: 0 | AW36: 0 | AX36: 0 | AY36: =IF($BH$34=2,-1400,Brud!AQ42*1000/$AQ$9) -> 0.6219790499 | AZ36: =Brud!AR42*1000/$AQ$9 -> 0.3387820103 | BB36: 2 | BC36: =IF(BB36>$U$16,-2*$AQ$9,BC35+($S$16+$R$16)/($U$16-1)) -> -1400 | BD36: 0 | BE36: 0 | BF36: 0
Q37: - optræder ved: | S37: =Elastisk!M38 -> Blok C | T37: =Elastisk!M39 -> Blok C | V37: =Elastisk!M40 -> Blok B | W37: =Elastisk!M41 -> Blok B | AO37: 3 | AP37: -1400 | AQ37: 0 | AR37: -2 | AV37: 0 | AW37: 0 | AX37: 0 | AY37: =IF($BH$34=2,-1400,Brud!AQ43*1000/$AQ$9) -> 0.7219051324 | AZ37: =Brud!AR43*1000/$AQ$9 -> 0.2501325808 | BB37: 3 | BC37: -1400 | BD37: 0 | BE37: 0 | BF37: 0
P38: Min. betonspændinger (MPa) | S38: =Elastisk!N38 -> -3.247858173 | T38: =Elastisk!N39 -> -0.152692503 | V38: =Elastisk!N40 -> -0.631544008 | W38: =Elastisk!N41 -> -3.143128488 | AO38: 4 | AP38: -1400 | AQ38: 0 | AR38: -2 | AV38: 0 | AW38: 0 | AX38: 0 | BB38: 4 | BC38: -1400 | BD38: 0 | BE38: 0 | BF38: 0
Q39: - optræder ved: | S39: =Elastisk!O38 -> Blok B | T39: =Elastisk!O39 -> Blok B | V39: =Elastisk!O40 -> Blok C | W39: =Elastisk!O41 -> Blok C | AO39: 5 | AP39: -1400 | AQ39: 0 | AR39: -2 | AV39: 0 | AW39: 0 | AX39: 0 | BB39: 5 | BC39: -1400 | BD39: 0 | BE39: 0 | BF39: 0
P40: Nedbøjninger | T40: Levering | V40: Langtid | W40: Kar. last | AO40: 6 | AP40: -1400 | AQ40: 0 | AR40: -2 | AV40: 0 | AW40: 0 | AX40: 0 | BB40: 6 | BC40: -1400 | BD40: 0 | BE40: 0 | BF40: 0
P41: Lodret, uy | R41: (mm) | T41: =-Elastisk!L64*0.1*(1000*E33)^2 -> -11.06988656 | V41: =(-Elastisk!L66-Elastisk!L65)*0.1*(1000*E33)^2 -> 9.654841023 | W41: =-Elastisk!L67*0.1*(1000*E33)^2+V41 -> 11.12981807 | AO41: 7 | AP41: -1400 | AQ41: 0 | AR41: -2 | AV41: 0 | AW41: 0 | AX41: 0 | BB41: 7 | BC41: -1400 | BD41: 0 | BE41: 0 | BF41: 0 | BH41: FORSKYDNING | BJ41: V | BK41: v | BL41: f_cd | BM41: b | BN41: h | BO41: z | BP41: c | BQ41: b | BR41: cot0 | BS41: w | BT41: a | BU41: d | BV41: A | BW41: f_yd
P42: Vandret, ux | R42: (mm) | T42: =Elastisk!M64*0.1*(1000*E33)^2 -> -10.62187084 | V42: =(Elastisk!M66+Elastisk!M65)*0.1*(1000*E33)^2 -> 4.885706022 | W42: =Elastisk!M67*0.1*(1000*E33)^2+V42 -> 6.084222192 | AO42: 8 | AP42: -1400 | AQ42: 0 | AR42: -2 | AV42: 0 | AW42: 0 | AX42: 0 | BB42: 8 | BC42: -1400 | BD42: 0 | BE42: 0 | BF42: 0 | BH42: Betontrykbrud | BJ42: =1000*(BK42*BL42*BR42)/((1+BR42^2)*(1/(BM42*BO42)+BS42/((1.4*BQ42)*(BM42-BQ42*BM42)*(BN42-BQ42*BM42)))) -> 291.8980632 | BK42: =0.7-$L$21/200 -> 0.7 | BL42: =S8 -> 28.57142857 | BM42: =O22/1000 -> 0.25 | BN42: =M22/1000 -> 0.7 | BO42: =Brud!L5*1000/1000 -> 0.4370218849 | BP42: =50/1000 -> 0.05 | BQ42: =IF(BN42/(2*(BM42+BN42))>2*BP42/BM42,BN42/(2*(BM42+BN42)),2*BP42/BM42) -> 0.4 | BR42: =S21 -> 2 | BS42: =$CD$42/O22 -> 0.92 | CC42: exc | CD42: =MAX(Kold2!P61:BD61) -> 230 | CE42: mm
B43: Vejledning: | C43: Betonelementbyggeriers statik | G43: Polyteknisk Forlag 2010 eller www.bef.dk | P43: NB: Resultaterne skal altid kontrolleres af ansvarlig statiker | AO43: 9 | AP43: -1400 | AQ43: 0 | AR43: -2 | AV43: 0 | AW43: 0 | AX43: 0 | BB43: 9 | BC43: -1400 | BD43: 0 | BE43: 0 | BF43: 0 | BH43: Bøjler, type 1 | BJ43: =MIN($BJ$42,1000*BV43*BW43*BR43/(BT43*(1/BO43+BS43*BM43/((BM43-BQ43*BM43)*(BN43-BQ43*BM43))))) -> 270.2433866 | BM43: =BM42 -> 0.25 | BN43: =BN42 -> 0.7 | BO43: =BO42 -> 0.4370218849 | BP43: =BP42 -> 0.05 | BQ43: =IF(BN43/(2*(BM43+BN43))>2*BP43/BM43,BN43/(2*(BM43+BN43)),2*BP43/BM43) -> 0.4 | BR43: =BR42 -> 2 | BS43: =BS42 -> 0.92 | BT43: =R21/1000 -> 0.1 | BU43: =Q21 -> 10 | BV43: =2*PI()*(BU43/1000)^2/4 -> 0.0001570796327 | BW43: =S10 -> 416.6666667 | CC43: Maks V | CD43: =MAX(Kold2!P56:BD56) -> 264 | CE43: KN
AO44: 10 | AP44: -1400 | AQ44: 0 | AR44: -2 | AV44: 0 | AW44: 0 | AX44: 0 | BB44: 10 | BC44: -1400 | BD44: 0 | BE44: 0 | BF44: 0 | BH44: Bøjler, type 2 | BJ44: =MIN($BJ$42,1000*BV44*BW44*BR44/(BT44*(1/BO44+BS44*BM44/((BM44-BQ44*BM44)*(BN44-BQ44*BM44))))) -> 216.1947093 | BM44: =BM43 -> 0.25 | BN44: =BN43 -> 0.7 | BO44: =BO42 -> 0.4370218849 | BP44: =BP42 -> 0.05 | BQ44: =IF(BN44/(2*(BM44+BN44))>2*BP44/BM44,BN44/(2*(BM44+BN44)),2*BP44/BM44) -> 0.4 | BR44: =BR42 -> 2 | BS44: =BS42 -> 0.92 | BT44: =R22/1000 -> 0.125 | BU44: =Q22 -> 10 | BV44: =2*PI()*(BU44/1000)^2/4 -> 0.0001570796327 | BW44: =BW43 -> 416.6666667 | CB44: Vederlagsforankring: | CD44: =0.5*BS42*BM42*$CD$43*BR42/(MIN(BN42,BM42)*(1-BQ42))+0.5*$CD$43*BR42 -> 668.8 | CE44: KN
AO45: 1 | AP45: =$AP$11-$R$17 -> 265 | AQ45: =$Q$17 -> 130 | AR45: 0.3785714286 | AV45: 0.1857142857 | AW45: =IF(AO45>$T$17,0,$V$17) -> 93 | AX45: =IF(AO45>$T$17,0,$W$17) -> 100 | BB45: 1 | BC45: =$AP$11-$R$17 -> 265 | BD45: =$Q$17 -> 130 | BE45: =IF(BB45>$U$17,0,$V$17) -> 93 | BF45: =IF(BB45>$U$17,0,$W$17) -> 100
AO46: 2 | AP46: =IF(AO46>$T$17,-2*$AQ$9,AP45+($S$17+$R$17)/($T$17-1)) -> 312.5 | AQ46: 130 | AR46: 0.4464285714 | AV46: 0.1857142857 | AW46: 93 | AX46: 100 | BB46: 2 | BC46: =IF(BB46>$U$17,-2*$AQ$9,BC45+($S$17+$R$17)/($U$17-1)) -> 360 | BD46: 130 | BE46: 93 | BF46: 100
AO47: 3 | AP47: 360 | AQ47: 130 | AR47: 0.5142857143 | AV47: 0.1857142857 | AW47: 93 | AX47: 100 | BB47: 3 | BC47: 455 | BD47: 130 | BE47: 93 | BF47: 100
AO48: 4 | AP48: 407.5 | AQ48: 130 | AR48: 0.5821428571 | AV48: 0.1857142857 | AW48: 93 | AX48: 100 | BB48: 4 | BC48: -1400 | BD48: 130 | BE48: 0 | BF48: 0 | BH48: FEJLTABEL | BN48: inddatatest | BO48: =IF(MAX(BO49:BO74)=1,1,0) -> 1 | BP48: =BP49&BP50&BP51&BP52&BP53&BP54&BP55&BP56&BP57&BP58&BP59&BP60&BP61&BP62&BP63&BP64&BP65&BP66&BP67&BP68&BP69&BP70&BP71&BP72&BP73&BP74 -> For ny bruger: Klik på knappen 'angiv nyt brugernavn' for ibrugtagning.
AO49: 5 | AP49: 455 | AQ49: 130 | AR49: 0.65 | AV49: 0.1857142857 | AW49: 93 | AX49: 100 | BB49: 5 | BC49: -1400 | BD49: 130 | BE49: 0 | BF49: 0 | BH49: Geometri, materialeparametre og ladrette last må ikke være negative ! | BO49: =IF(MIN(D23:F28,E33,H23:J27,M22,O22,L25:O28,Q8:R10,V8:W9,W11,Q14:W19,Q21:S22,W28,R31)<0,1,0) -> 0 | BP49: =IF(BO49=1,BH49,"") -> 
AO50: 6 | AP50: -1400 | AQ50: 130 | AR50: -2 | AV50: 0.1857142857 | AW50: 0 | AX50: 0 | BB50: 6 | BC50: -1400 | BD50: 130 | BE50: 0 | BF50: 0 | BH50: Neutralisering må højst ske x = L / 5 fra elementender ! | BO50: =IF(W11>E33/5,1,0) -> 0 | BP50: =IF(BO50=1,BH50,"") -> 
AO51: 7 | AP51: -1400 | AQ51: 130 | AR51: -2 | AV51: 0.1857142857 | AW51: 0 | AX51: 0 | BB51: 7 | BC51: -1400 | BD51: 130 | BE51: 0 | BF51: 0 | BH51: Betonstyrke må højst være 50 MPa og mindst være 20 MPa ! | BO51: =IF(OR(Q8<20,Q8>50),1,0) -> 0
AO52: 8 | AP52: -1400 | AQ52: 130 | AR52: -2 | AV52: 0.1857142857 | AW52: 0 | AX52: 0 | BB52: 8 | BC52: -1400 | BD52: 130 | BE52: 0 | BF52: 0 | BH52: Placering af snitanalyse skal være x < L ! | BO52: =IF(R31>E33,1,0) -> 0
AO53: 9 | AP53: -1400 | AQ53: 130 | AR53: -2 | AV53: 0.1857142857 | AW53: 0 | AX53: 0 | BB53: 9 | BC53: -1400 | BD53: 130 | BE53: 0 | BF53: 0 | BH53: Højde af blok A og C skal tilsammen være mindre end kroppens højde ! | BO53: =IF(MAX(N25:O25)+MAX(N27:O27)>=M22,1,0) -> 0
AO54: 10 | AP54: -1400 | AQ54: 130 | AR54: -2 | AV54: 0.1857142857 | AW54: 0 | AX54: 0 | BB54: 10 | BC54: -1400 | BD54: 130 | BE54: 0 | BF54: 0 | BH54: Højde af blok B og D skal tilsammen være mindre end kroppens højde ! | BO54: =IF(MAX(N26:O26)+MAX(N28:O28)>=M22,1,0) -> 0
AO55: 1 | AP55: =$AP$11-$R$18 -> 265 | AQ55: =$Q$18 -> 90 | AR55: 0.3785714286 | AV55: 0.1285714286 | AW55: =IF(AO55>$T$18,0,$V$18) -> 93 | AX55: =IF(AO55>$T$18,0,$W$18) -> 100 | BB55: 1 | BC55: =$AP$11-$R$18 -> 265 | BD55: =$Q$18 -> 90 | BE55: =IF(BB55>$U$18,0,$V$18) -> 93 | BF55: =IF(BB55>$U$18,0,$W$18) -> 100 | BH55: For linielaste skal s1 <= s2 og x2 <= L ! | BO55: =IF(OR(E27>E28,F27>F28,E28>E33,F28>E33),1,0) -> 0
AO56: 2 | AP56: =IF(AO56>$T$18,-2*$AQ$9,AP55+($S$18+$R$18)/($T$18-1)) -> 312.5 | AQ56: 90 | AR56: 0.4464285714 | AV56: 0.1285714286 | AW56: 93 | AX56: 100 | BB56: 2 | BC56: =IF(BB56>$U$18,-2*$AQ$9,BC55+($S$18+$R$18)/($U$18-1)) -> 360 | BD56: 90 | BE56: 93 | BF56: 100 | BH56: For enkeltlaste skal s2 <= L ! | BO56: =IF(OR(H27>E33,I27>E33,J27>E33),1,0) -> 0
AO57: 3 | AP57: 360 | AQ57: 90 | AR57: =IF(AW57>0,AP57,-2*$AQ$9)/$AQ$9 -> 0.5142857143 | AV57: 0.1285714286 | AW57: 93 | AX57: 100 | BB57: 3 | BC57: 455 | BD57: 90 | BE57: 93 | BF57: 100 | BH57: Regningsmæssig momentkapacitet overskredet ! | BO57: =IF(V24<V26,1,0) -> 0
AO58: 4 | AP58: 407.5 | AQ58: 90 | AR58: 0.5821428571 | AV58: 0.1285714286 | AW58: 93 | AX58: 100 | BB58: 4 | BC58: -1400 | BD58: 90 | BE58: 0 | BF58: 0 | BH58: Grænse for forskydningstrykbrud overskredet ! | BO58: =IF(MAX(Kold2!P56:BD56)>S24,1,0) -> 0
AO59: 5 | AP59: 455 | AQ59: 90 | AR59: 0.65 | AV59: 0.1285714286 | AW59: 93 | AX59: 100 | BB59: 5 | BC59: -1400 | BD59: 90 | BE59: 0 | BF59: 0 | BH59: cot0 skal være mellem 0,5 og 2,5 ! | BO59: =IF(OR(S21<0.5,S21>2.5),1,0) -> 0
AO60: 6 | AP60: -1400 | AQ60: 90 | AR60: -2 | AV60: 0.1285714286 | AW60: 0 | AX60: 0 | BB60: 6 | BC60: -1400 | BD60: 90 | BE60: 0 | BF60: 0 | BH60: Neutralisering må ikke resultere i kun én line i lag med mere end én line ved elementmidte ! | BO60: =IF(OR(AND(U14=1,T14>1),AND(U15=1,T15>1),AND(U16=1,T16>1),AND(U17=1,T17>1),AND(U18=1,T18>1),AND(U19=1,T19>1)),1,0) -> 0
AO61: 7 | AP61: -1400 | AQ61: 90 | AR61: -2 | AV61: 0.1285714286 | AW61: 0 | AX61: 0 | BB61: 7 | BC61: -1400 | BD61: 90 | BE61: 0 | BF61: 0 | BH61: Neutralisering må ikke give flere liner ved elementende end ved elementmidte ! | BO61: =IF(OR(U14>T14,U15>T15,U16>T16,U17>T17,U18>T18,U19>T19),1,0) -> 0
AO62: 8 | AP62: -1400 | AQ62: 90 | AR62: -2 | AV62: 0.1285714286 | AW62: 0 | AX62: 0 | BB62: 8 | BC62: -1400 | BD62: 90 | BE62: 0 | BF62: 0 | BH62: Partialkoefficienter skal mindst være 1,0 ! | BO62: =IF(OR(R8<1,R9<1,R10<1),1,0) -> 0
AO63: 9 | AP63: -1400 | AQ63: 90 | AR63: -2 | AV63: 0.1285714286 | AW63: 0 | AX63: 0 | BB63: 9 | BC63: -1400 | BD63: 90 | BE63: 0 | BF63: 0 | BH63: f_yk for bøjler skal være mellem 400 og 600 MPa ! | BO63: =IF(OR(Q10<400,Q10>600),1,0) -> 0
AO64: 10 | AP64: -1400 | AQ64: 90 | AR64: -2 | AV64: 0.1285714286 | AW64: 0 | AX64: 0 | BB64: 10 | BC64: -1400 | BD64: 90 | BE64: 0 | BF64: 0 | BH64: Forskydningsarmering bør vurderes nærmere ! | BO64: =IF(Kold2!I81=1,1,0) -> 0
AO65: 1 | AP65: =$AP$11-$R$19 -> 265 | AQ65: =$Q$19 -> 50 | AR65: 0.3785714286 | AV65: 0.07142857143 | AW65: =IF(AO65>$T$19,0,$V$19) -> 93 | AX65: =IF(AO65>$T$19,0,$W$19) -> 100 | BB65: 1 | BC65: =$AP$11-$R$19 -> 265 | BD65: =$Q$19 -> 50 | BE65: =IF(BB65>$U$19,0,$V$19) -> 93 | BF65: =IF(BB65>$U$19,0,$W$19) -> 100 | BH65: Der må højst indlægges 6 liner i Lag øv. | BO65: =IF(T14>6,1,0) -> 0
AO66: 2 | AP66: =IF(AO66>$T$19,-2*$AQ$9,AP65+($S$19+$R$19)/($T$19-1)) -> 312.5 | AQ66: 50 | AR66: 0.4464285714 | AV66: 0.07142857143 | AW66: 93 | AX66: 100 | BB66: 2 | BC66: =IF(BB66>$U$19,-2*$AQ$9,BC65+($S$19+$R$19)/($U$19-1)) -> 336.25 | BD66: 50 | BE66: 93 | BF66: 100 | BH66: Der må højst indlægges 4 liner i Lag ml. | BO66: =IF(T15>4,1,0) -> 0
AO67: 3 | AP67: 360 | AQ67: 50 | AR67: 0.5142857143 | AV67: 0.07142857143 | AW67: 93 | AX67: 100 | BB67: 3 | BC67: 407.5 | BD67: 50 | BE67: 93 | BF67: 100 | BH67: Der må højst ligge 10 liner i hvert af lagene 1 - 4 | BO67: =IF(MAX(T16,T13)>10,1,0) -> 0
AO68: 4 | AP68: 407.5 | AQ68: 50 | AR68: 0.5821428571 | AV68: 0.07142857143 | AW68: 93 | AX68: 100 | BB68: 4 | BC68: 478.75 | BD68: 50 | BE68: 93 | BF68: 100
AO69: 5 | AP69: 455 | AQ69: 50 | AR69: 0.65 | AV69: 0.07142857143 | AW69: 93 | AX69: 100 | BB69: 5 | BC69: 550 | BD69: 50 | BE69: 93 | BF69: 100
AO70: 6 | AP70: 502.5 | AQ70: 50 | AR70: 0.7178571429 | AV70: 0.07142857143 | AW70: 93 | AX70: 100 | BB70: 6 | BC70: -1400 | BD70: 50 | BE70: 0 | BF70: 0
AO71: 7 | AP71: 550 | AQ71: 50 | AR71: 0.7857142857 | AV71: 0.07142857143 | AW71: 93 | AX71: 100 | BB71: 7 | BC71: -1400 | BD71: 50 | BE71: 0 | BF71: 0
AO72: 8 | AP72: -1400 | AQ72: 50 | AR72: -2 | AV72: 0.07142857143 | AW72: 0 | AX72: 0 | BB72: 8 | BC72: -1400 | BD72: 50 | BE72: 0 | BF72: 0
AO73: 9 | AP73: -1400 | AQ73: 50 | AR73: -2 | AV73: 0.07142857143 | AW73: 0 | AX73: 0 | BB73: 9 | BC73: -1400 | BD73: 50 | BE73: 0 | BF73: 0
AO74: 10 | AP74: -1400 | AQ74: 50 | AR74: -2 | AV74: 0.07142857143 | AW74: 0 | AX74: 0 | BB74: 10 | BC74: -1400 | BD74: 50 | BE74: 0 | BF74: 0 | BH74: For ny bruger: Klik på knappen 'angiv nyt brugernavn' for ibrugtagning. | BO74: =HE9 -> 1 | BP74: For ny bruger: Klik på knappen 'angiv nyt brugernavn' for ibrugtagning.
AR75: =Elastisk!W76 -> -0.1857142857 | AT75: =Elastisk!Z76 -> 0.2118201399
AR76: =Elastisk!W77 -> 1.114285714 | AT76: =Elastisk!Z77 -> 0.7139681898
AR77: =Elastisk!W78 -> 0.7755027804 | AU77: =Elastisk!AA78 -> -0.2
AR78: =Elastisk!W79 -> 0.2347279575 | AU78: =Elastisk!AA79 -> 1.2

Sheet Elastisk
V2: Normeret geometri til graf | AB2: Geometri | AI2: Tværsnitskonstanter | AO2: Forspænding | AR2: Akseafstande | AT2: Maksimal- og minimalspændinger med angivelse af de punkter hvor de forekommer
C3: hjørner | E3: armering | K3: E_s / E_b = | L3: =Kold!W28 -> 12 | R3: Punkt | S3: Blok
B4: nr | C4: x | D4: y | E4: A_a | F4: N_f | G4: x | H4: y | V4: =MAX(linier) -> 700 | W4: x_1 | X4: y_1 | Y4: y_a | Z4: 1-akse | AA4: 2-akse | AB4: x_1 | AC4: y_1 | AD4: y_a | AE4: 1-akse | AF4: 2-akse | AG4: x_2 | AH4: y_2 | AI4: A | AJ4: Sx | AK4: Sy | AL4: Ix | AM4: Iy | AN4: Zxy | AR4: Dist 1 | AS4: Dist 2 | AT4: Mf | AU4: =MAX(AT5:AT24) -> 20.96808252 | AV4: =MIN(AT5:AT24) -> -3.247858173 | AW4: Mg | AX4: =MAX(AW5:AW24) -> 17.95418115 | AY4: =MIN(AW5:AW24) -> -0.152692503 | AZ4: ML | BA4: =MAX(AZ5:AZ24) -> 18.93416246 | BB4: =MIN(AZ5:AZ24) -> -0.631544008 | BC4: Mk | BD4: =MAX(BC5:BC24) -> 21.51346719 | BE4: =MIN(BC5:BC24) -> -3.143128488
B5: 1 | C5: =Kold!AP11 -> 350 | D5: =Kold!AQ11 -> 0 | E5: =Kold!AW25 -> 93 | F5: =1000*Kold!AX25 -> 100000 | G5: =Kold!AP25 -> 75 | H5: =Kold!AQ25 -> 650 | R5: 1 | S5: BUND | V5: 1 | W5: =AB5/$V$4 -> 0.5 | X5: =AC5/$V$4 -> 0 | AB5: =IF(C5="",0,C5) -> 350 | AC5: =IF(D5="",0,D5) -> 0 | AG5: =AB6 -> 600 | AH5: =AC6 -> 0 | AI5: =0.5*(AG5+AB5)*(AH5-AC5) -> 0 | AJ5: =(2*AG5*AH5+AG5*AC5+AB5*AH5+2*AB5*AC5)*(AH5-AC5)/6 -> 0 | AK5: =(AG5^2+AB5^2+AB5*AG5)*(AH5-AC5)/6 -> 0 | AL5: =(AG5*AC5^2+3*AG5*AH5^2+2*AG5*AC5*AH5+2*AB5*AC5*AH5+3*AB5*AC5^2+AB5*AH5^2)*(AH5-AC5)/12 -> 0 | AM5: =(AG5^3+AG5^2*AB5+AG5*AB5^2+AB5^3)*(AH5-AC5)/12 -> 0 | AN5: =(AG5^2*AC5+3*AG5^2*AH5+2*AB5*AG5*AC5+2*AB5*AG5*AH5+3*AB5^2*AC5+AB5^2*AH5)*(AH5-AC5)/24 -> 0 | AR5: =(-(AB5-$L$54)*TAN($L$52)+(AC5-$L$53))/SQRT(1+TAN($L$52)^2) -> -311.2685495 | AS5: =((AB5-$L$54)+(AC5-$L$53)*TAN($L$52))/SQRT(1+TAN($L$52)^2) -> -129.4527344 | AT5: =IF($F$79=1,$O$28/$L$45-$N$32*AR5/$L$46+$O$32*AS5/$L$47,$O$82/$L$89-$N$86*AR5/$L$90+$O$86*AS5/$L$91) -> 18.00740572 | AU5: =IF($AT5=AU$4,$V5,0) -> 0 | AV5: =IF($AT5=AV$4,$V5,0) -> 0 | AW5: =AT5-$N$33*AR5/$L$46+$O$33*AS5/$L$47 -> 15.68055339 | AX5: =IF($AW5=AX$4,$V5,0) -> 0 | AY5: =IF($AW5=AY$4,$V5,0) -> 0 | AZ5: =AT5-$N$34*AR5/$L$46+$O$34*AS5/$L$47 -> 1.331630708 | BA5: =IF($AZ5=BA$4,$V5,0) -> 0 | BB5: =IF($AZ5=BB$4,$V5,0) -> 0 | BC5: =AT5-$N$35*AR5/$L$46+$O$35*AS5/$L$47 -> -0.6074128983 | BD5: =IF($BC5=BD$4,$V5,0) -> 0 | BE5: =IF($BC5=BE$4,$V5,0) -> 0
B6: 2 | C6: =Kold!AP12 -> 600 | D6: =Kold!AQ12 -> 0 | E6: =Kold!AW26 -> 93 | F6: =1000*Kold!AX26 -> 100000 | G6: =Kold!AP26 -> 147 | H6: =Kold!AQ26 -> 650 | R6: 2 | S6: Blok D | V6: 2 | W6: 0.8571428571 | X6: 0 | AB6: =IF(C6="",AB5,C6) -> 600 | AC6: =IF(D6="",AC5,D6) -> 0 | AG6: 650 | AH6: 300 | AI6: 187500 | AJ6: 28500000 | AK6: 58625000 | AL6: 5737500000 | AM6: 24453125000 | AN6: 9028125000 | AR6: -401.3489082 | AS6: 103.7543173 | AT6: =IF($F$79=1,$O$28/$L$45-$N$32*AR6/$L$46+$O$32*AS6/$L$47,$O$82/$L$89-$N$86*AR6/$L$90+$O$86*AS6/$L$91) -> 12.08605212 | AU6: =IF(AND($AT6=AU$4,AU5=0),$V6,AU5) -> 0 | AV6: =IF(AND($AT6=AV$4,AV5=0),$V6,AV5) -> 0 | AW6: =AT6-$N$33*AR6/$L$46+$O$33*AS6/$L$47 -> 11.13329789 | AX6: =IF(AND($AW6=AX$4,AX5=0),$V6,AX5) -> 0 | AY6: =IF(AND($AW6=AY$4,AY5=0),$V6,AY5) -> 0 | AZ6: =AT6-$N$34*AR6/$L$46+$O$34*AS6/$L$47 -> 5.25798014 | BA6: =IF(AND($AZ6=BA$4,BA5=0),$V6,BA5) -> 0 | BB6: =IF(AND($AZ6=BB$4,BB5=0),$V6,BB5) -> 0 | BC6: 4.464018281 | BD6: =IF(AND($BC6=BD$4,BD5=0),$V6,BD5) -> 0 | BE6: =IF(AND($BC6=BE$4,BE5=0),$V6,BE5) -> 0
B7: 3 | C7: =Kold!AP13 -> 650 | D7: =Kold!AQ13 -> 300 | E7: =Kold!AW27 -> 93 | F7: =1000*Kold!AX27 -> 100000 | G7: =Kold!AP27 -> 219 | H7: =Kold!AQ27 -> 650 | R7: 3 | S7: Blok D | V7: 3 | W7: 0.9285714286 | X7: 0.4285714286 | AB7: 650 | AC7: 300 | AG7: 475 | AH7: 300 | AI7: 0 | AJ7: 0 | AK7: 0 | AL7: 0 | AM7: 0 | AN7: 0 | AR7: -139.5165178 | AS7: 258.4921581 | AT7: 3.061244074 | AU7: =IF(AND($AT7=AU$4,AU6=0),$V7,AU6) -> 0 | AV7: =IF(AND($AT7=AV$4,AV6=0),$V7,AV6) -> 0 | AW7: 4.41258187 | AX7: =IF(AND($AW7=AX$4,AX6=0),$V7,AX6) -> 0 | AY7: =IF(AND($AW7=AY$4,AY6=0),$V7,AY6) -> 0 | AZ7: 12.74583161 | BA7: =IF(AND($AZ7=BA$4,BA6=0),$V7,BA6) -> 0 | BB7: =IF(AND($AZ7=BB$4,BB6=0),$V7,BB6) -> 0 | BC7: 13.87194644 | BD7: =IF(AND($BC7=BD$4,BD6=0),$V7,BD6) -> 0 | BE7: =IF(AND($BC7=BE$4,BE6=0),$V7,BE6) -> 0
B8: 4 | C8: =Kold!AP14 -> 475 | D8: =Kold!AQ14 -> 300 | E8: =Kold!AW28 -> 93 | F8: =1000*Kold!AX28 -> 100000 | G8: =Kold!AP28 -> 291 | H8: =Kold!AQ28 -> 650 | R8: 4 | S8: Blok D | V8: 4 | W8: 0.6785714286 | X8: 0.4285714286 | AB8: 475 | AC8: 300 | AG8: 475 | AH8: 700 | AI8: 190000 | AJ8: 95000000 | AK8: 45125000 | AL8: 5.003333333e+10 | AM8: 1.428958333e+10 | AN8: 22562500000 | AR8: -76.46026677 | AS8: 95.24722185 | AT8: 7.206191595 | AU8: 0 | AV8: 0 | AW8: 7.595660723 | AX8: 0 | AY8: 0 | AZ8: 9.997387012 | BA8: 0 | BB8: 0 | BC8: 10.32194462 | BD8: 0 | BE8: 0
B9: 5 | C9: =Kold!AP15 -> 475 | D9: =Kold!AQ15 -> 700 | E9: =Kold!AW29 -> 93 | F9: =1000*Kold!AX29 -> 100000 | G9: =Kold!AP29 -> 363 | H9: =Kold!AQ29 -> 650 | R9: 5 | S9: Blok B | V9: 5 | W9: 0.6785714286 | X9: 1 | AB9: 475 | AC9: 700 | AG9: 475 | AH9: 700 | AI9: 0 | AJ9: 0 | AK9: 0 | AL9: 0 | AM9: 0 | AN9: 0 | AR9: 296.671016 | AS9: 239.3757957 | AT9: -3.247858173 | AU9: 0 | AV9: 5 | AW9: -0.152692503 | AX9: 0 | AY9: 5 | AZ9: 18.93416246 | BA9: 5 | BB9: 0 | BC9: 21.51346719 | BD9: 5 | BE9: 0
B10: 6 | C10: =Kold!AP16 -> 475 | D10: =Kold!AQ16 -> 700 | E10: =Kold!AW30 -> 93 | F10: =1000*Kold!AX30 -> 100000 | G10: =Kold!AP30 -> 435 | H10: =Kold!AQ30 -> 650 | R10: 6 | S10: Blok B | V10: 6 | W10: 0.6785714286 | X10: 1 | AB10: 475 | AC10: 700 | AG10: 475 | AH10: 700 | AI10: 0 | AJ10: 0 | AK10: 0 | AL10: 0 | AM10: 0 | AN10: 0 | AR10: 296.671016 | AS10: 239.3757957 | AT10: -3.247858173 | AU10: 0 | AV10: 5 | AW10: -0.152692503 | AX10: 0 | AY10: 5 | AZ10: 18.93416246 | BA10: 5 | BB10: 0 | BC10: 21.51346719 | BD10: 5 | BE10: 0
B11: 7 | C11: =Kold!AP17 -> 475 | D11: =Kold!AQ17 -> 700 | E11: =Kold!AW31 -> 93 | F11: =1000*Kold!AX31 -> 100000 | G11: =Kold!AP31 -> 265 | H11: =Kold!AQ31 -> 250 | R11: 7 | S11: Blok B | V11: 7 | W11: 0.6785714286 | X11: 1 | AB11: 475 | AC11: 700 | AG11: 25 | AH11: 700 | AI11: 0 | AJ11: 0 | AK11: 0 | AL11: 0 | AM11: 0 | AN11: 0 | AR11: 296.671016 | AS11: 239.3757957 | AT11: -3.247858173 | AU11: 0 | AV11: 5 | AW11: -0.152692503 | AX11: 0 | AY11: 5 | AZ11: 18.93416246 | BA11: 5 | BB11: 0 | BC11: 21.51346719 | BD11: 5 | BE11: 0
B12: 8 | C12: =Kold!AP18 -> 25 | D12: =Kold!AQ18 -> 700 | E12: =Kold!AW32 -> 93 | F12: =1000*Kold!AX32 -> 100000 | G12: =Kold!AP32 -> 600 | H12: =Kold!AQ32 -> 250 | R12: 8 | S12: Blok A | V12: 8 | W12: 0.03571428571 | X12: 1 | AB12: 25 | AC12: 700 | AG12: 25 | AH12: 550 | AI12: -3750 | AJ12: -2343750 | AK12: -46875 | AL12: -1471875000 | AM12: -781250 | AN12: -29296875 | AR12: 458.8156616 | AS12: -180.3968975 | AT12: 7.410578308 | AU12: 0 | AV12: 5 | AW12: 8.032367403 | AX12: 0 | AY12: 5 | AZ12: 11.86673349 | BA12: 5 | BB12: 0 | BC12: 12.38489106 | BD12: 5 | BE12: 0
B13: 9 | C13: =Kold!AP19 -> 25 | D13: =Kold!AQ19 -> 550 | E13: =Kold!AW33 -> 0 | F13: =1000*Kold!AX33 -> 0 | G13: =Kold!AP33 -> -1400 | H13: =Kold!AQ33 -> 250 | R13: 9 | S13: Blok A | V13: 9 | W13: 0.03571428571 | X13: 0.7857142857 | AB13: 25 | AC13: 550 | AG13: 225 | AH13: 550 | AI13: 0 | AJ13: 0 | AK13: 0 | AL13: 0 | AM13: 0 | AN13: 0 | AR13: 318.8914305 | AS13: -234.4451127 | AT13: 11.33084697 | AU13: 0 | AV13: 5 | AW13: 10.93799986 | AX13: 0 | AY13: 5 | AZ13: 8.515442691 | BA13: 5 | BB13: 0 | BC13: 8.188070101 | BD13: 5 | BE13: 0
B14: 10 | C14: =Kold!AP20 -> 225 | D14: =Kold!AQ20 -> 550 | E14: =Kold!AW34 -> 0 | F14: =1000*Kold!AX34 -> 0 | G14: =Kold!AP34 -> -1400 | H14: =Kold!AQ34 -> 250 | R14: 10 | S14: Blok A | V14: 10 | W14: 0.3214285714 | X14: 0.7857142857 | AB14: 225 | AC14: 550 | AG14: 225 | AH14: 0 | AI14: -123750 | AJ14: -34031250 | AK14: -13921875 | AL14: -12478125000 | AM14: -2088281250 | AN14: -3828515625 | AR14: 246.8271436 | AS14: -47.87947126 | AT14: 6.593764091 | AU14: 0 | AV14: 5 | AW14: 7.30019546 | AX14: 0 | AY14: 5 | AZ14: 11.65652224 | BA14: 5 | BB14: 0 | BC14: 12.24521504 | BD14: 5 | BE14: 0
B15: 11 | C15: =Kold!AP21 -> 225 | D15: =Kold!AQ21 -> 0 | E15: =Kold!AW35 -> 0 | F15: =1000*Kold!AX35 -> 0 | G15: =Kold!AP35 -> 350 | H15: =Kold!AQ35 -> 0 | R15: 11 | S15: Blok C | V15: 11 | W15: 0.3214285714 | X15: 0 | AB15: 225 | AC15: 0 | AG15: 225 | AH15: 0 | AI15: 0 | AJ15: 0 | AK15: 0 | AL15: 0 | AM15: 0 | AN15: 0 | AR15: -266.2283702 | AS15: -246.0562603 | AT15: 20.96808252 | AU15: 11 | AV15: 5 | AW15: 17.95418115 | AX15: 11 | AY15: 5 | AZ15: -0.631544008 | BA15: 5 | BB15: 11 | BC15: -3.143128488 | BD15: 5 | BE15: 11
B16: 12 | C16: =Kold!AP22 -> 225 | D16: =Kold!AQ22 -> 0 | E16: =Kold!AW36 -> 0 | F16: =1000*Kold!AX36 -> 0 | G16: =Kold!AP36 -> -1400 | H16: =Kold!AQ36 -> 0 | R16: 12 | S16: Blok C | V16: 12 | W16: 0.3214285714 | X16: 0 | AB16: 225 | AC16: 0 | AG16: 225 | AH16: 0 | AI16: 0 | AJ16: 0 | AK16: 0 | AL16: 0 | AM16: 0 | AN16: 0 | AR16: -266.2283702 | AS16: -246.0562603 | AT16: 20.96808252 | AU16: 11 | AV16: 5 | AW16: 17.95418115 | AX16: 11 | AY16: 5 | AZ16: -0.631544008 | BA16: 5 | BB16: 11 | BC16: -3.143128488 | BD16: 5 | BE16: 11
B17: 13 | C17: =Kold!AP23 -> 225 | D17: =Kold!AQ23 -> 0 | E17: =Kold!AW37 -> 0 | F17: =1000*Kold!AX37 -> 0 | G17: =Kold!AP37 -> -1400 | H17: =Kold!AQ37 -> 0 | R17: 13 | S17: Blok C | V17: 13 | W17: 0.3214285714 | X17: 0 | AB17: 225 | AC17: 0 | AG17: 350 | AH17: 0 | AI17: 0 | AJ17: 0 | AK17: 0 | AL17: 0 | AM17: 0 | AN17: 0 | AR17: -266.2283702 | AS17: -246.0562603 | AT17: 20.96808252 | AU17: 11 | AV17: 5 | AW17: 17.95418115 | AX17: 11 | AY17: 5 | AZ17: -0.631544008 | BA17: 5 | BB17: 11 | BC17: -3.143128488 | BD17: 5 | BE17: 11
B18: 14 | C18: =Kold!AP24 -> 350 | D18: =Kold!AQ24 -> 0 | E18: =Kold!AW38 -> 0 | F18: =1000*Kold!AX38 -> 0 | G18: =Kold!AP38 -> -1400 | H18: =Kold!AQ38 -> 0 | R18: 14 | V18: 14 | W18: 0.5 | X18: 0 | AB18: 350 | AC18: 0 | AG18: 350 | AH18: 0 | AI18: 0 | AJ18: 0 | AK18: 0 | AL18: 0 | AM18: 0 | AN18: 0 | AR18: -311.2685495 | AS18: -129.4527344 | AT18: 18.00740572 | AU18: 11 | AV18: 5 | AW18: 15.68055339 | AX18: 11 | AY18: 5 | AZ18: 1.331630708 | BA18: 5 | BB18: 11 | BC18: -0.6074128983 | BD18: 5 | BE18: 11
B19: 15 | E19: =Kold!AW39 -> 0 | F19: =1000*Kold!AX39 -> 0 | G19: =Kold!AP39 -> -1400 | H19: =Kold!AQ39 -> 0 | V19: 15 | W19: 0.5 | X19: 0 | AB19: 350 | AC19: 0 | AG19: 350 | AH19: 0 | AI19: 0 | AJ19: 0 | AK19: 0 | AL19: 0 | AM19: 0 | AN19: 0 | AR19: -311.2685495 | AS19: -129.4527344 | AT19: 18.00740572 | AU19: 11 | AV19: 5 | AW19: 15.68055339 | AX19: 11 | AY19: 5 | AZ19: 1.331630708 | BA19: 5 | BB19: 11 | BC19: -0.6074128983 | BD19: 5 | BE19: 11
B20: 16 | E20: =Kold!AW40 -> 0 | F20: =1000*Kold!AX40 -> 0 | G20: =Kold!AP40 -> -1400 | H20: =Kold!AQ40 -> 0 | V20: 16 | W20: 0.5 | X20: 0 | AB20: 350 | AC20: 0 | AG20: 350 | AH20: 0 | AI20: 0 | AJ20: 0 | AK20: 0 | AL20: 0 | AM20: 0 | AN20: 0 | AR20: -311.2685495 | AS20: -129.4527344 | AT20: 18.00740572 | AU20: 11 | AV20: 5 | AW20: 15.68055339 | AX20: 11 | AY20: 5 | AZ20: 1.331630708 | BA20: 5 | BB20: 11 | BC20: -0.6074128983 | BD20: 5 | BE20: 11
B21: 17 | E21: =Kold!AW41 -> 0 | F21: =1000*Kold!AX41 -> 0 | G21: =Kold!AP41 -> -1400 | H21: =Kold!AQ41 -> 0 | V21: 17 | W21: 0.5 | X21: 0 | AB21: 350 | AC21: 0 | AG21: 350 | AH21: 0 | AI21: 0 | AJ21: 0 | AK21: 0 | AL21: 0 | AM21: 0 | AN21: 0 | AR21: -311.2685495 | AS21: -129.4527344 | AT21: 18.00740572 | AU21: 11 | AV21: 5 | AW21: 15.68055339 | AX21: 11 | AY21: 5 | AZ21: 1.331630708 | BA21: 5 | BB21: 11 | BC21: -0.6074128983 | BD21: 5 | BE21: 11
B22: 18 | E22: =Kold!AW42 -> 0 | F22: =1000*Kold!AX42 -> 0 | G22: =Kold!AP42 -> -1400 | H22: =Kold!AQ42 -> 0 | V22: 18 | W22: 0.5 | X22: 0 | AB22: 350 | AC22: 0 | AG22: 350 | AH22: 0 | AI22: 0 | AJ22: 0 | AK22: 0 | AL22: 0 | AM22: 0 | AN22: 0 | AR22: -311.2685495 | AS22: -129.4527344 | AT22: 18.00740572 | AU22: 11 | AV22: 5 | AW22: 15.68055339 | AX22: 11 | AY22: 5 | AZ22: 1.331630708 | BA22: 5 | BB22: 11 | BC22: -0.6074128983 | BD22: 5 | BE22: 11
B23: 19 | E23: =Kold!AW43 -> 0 | F23: =1000*Kold!AX43 -> 0 | G23: =Kold!AP43 -> -1400 | H23: =Kold!AQ43 -> 0 | V23: 19 | W23: 0.5 | X23: 0 | AB23: 350 | AC23: 0 | AG23: 350 | AH23: 0 | AI23: 0 | AJ23: 0 | AK23: 0 | AL23: 0 | AM23: 0 | AN23: 0 | AR23: -311.2685495 | AS23: -129.4527344 | AT23: 18.00740572 | AU23: 11 | AV23: 5 | AW23: 15.68055339 | AX23: 11 | AY23: 5 | AZ23: 1.331630708 | BA23: 5 | BB23: 11 | BC23: -0.6074128983 | BD23: 5 | BE23: 11
B24: 20 | E24: =Kold!AW44 -> 0 | F24: =1000*Kold!AX44 -> 0 | G24: =Kold!AP44 -> -1400 | H24: =Kold!AQ44 -> 0 | V24: 20 | W24: 0.5 | X24: 0 | AB24: 350 | AC24: 0 | AG24: 350 | AH24: 0 | AI24: 0 | AJ24: 0 | AK24: 0 | AL24: 0 | AM24: 0 | AN24: 0 | AR24: -311.2685495 | AS24: -129.4527344 | AT24: 18.00740572 | AU24: 11 | AV24: 5 | AW24: 15.68055339 | AX24: 11 | AY24: 5 | AZ24: 1.331630708 | BA24: 5 | BB24: 11 | BC24: -0.6074128983 | BD24: 5 | BE24: 11
B25: 21 | E25: =Kold!AW45 -> 93 | F25: =1000*Kold!AX45 -> 100000 | G25: =Kold!AP45 -> 265 | H25: =Kold!AQ45 -> 130 | V25: 21 | W25: 0.5 | X25: 0 | AB25: =AB5 -> 350 | AC25: =AC5 -> 0
B26: 22 | E26: =Kold!AW46 -> 93 | F26: =1000*Kold!AX46 -> 100000 | G26: =Kold!AP46 -> 312.5 | H26: =Kold!AQ46 -> 130 | V26: 1 | W26: =AB26/$V$4 -> 0.1071428571 | Y26: =IF(AI26=0,-$V$4,AD26/$V$4) -> 0.9285714286 | AB26: =G5 -> 75 | AD26: =H5 -> 650 | AI26: =E5*$L$3 -> 1116 | AJ26: =AI26*AD26 -> 725400 | AK26: =AI26*AB26 -> 83700 | AL26: =AI26*AD26^2 -> 471510000 | AM26: =AI26*AB26^2 -> 6277500 | AN26: =AI26*AB26*AD26 -> 54405000 | AO26: =F5 -> 100000 | AP26: =-AO26*(AD26-$L$53) -> -31299532.21 | AQ26: =AO26*(AB26-$L$54) -> -28360043.18 | AR26: =(-(AB26-$L$54)*TAN($L$52)+(AD26-$L$53))/SQRT(1+TAN($L$52)^2) -> 394.1581795 | AS26: =((AB26-$L$54)+(AD26-$L$53)*TAN($L$52))/SQRT(1+TAN($L$52)^2) -> -151.7715588 | AT26: =IF(E5=0,0,F5/E5-$L$3*($O$28/$L$45-$N$32*AR26/$L$46+$O$32*AS26/$L$47)) -> 984.8720515 | AW26: =IF(E5=0,0,AT26-$L$3*(-$N$33*AR26/$L$46+$O$33*AS26/$L$47)) -> 978.1712917 | AZ26: =IF(E5=0,0,AT26-$L$3*(-$N$34*AR26/$L$46+$O$34*AS26/$L$47)) -> 936.8499399 | BC26: =IF(E5=0,0,AT26-$L$3*(-$N$35*AR26/$L$46+$O$35*AS26/$L$47)) -> 931.2659735
B27: 23 | E27: =Kold!AW47 -> 93 | F27: =1000*Kold!AX47 -> 100000 | G27: =Kold!AP47 -> 360 | H27: =Kold!AQ47 -> 130 | V27: 2 | W27: 0.21 | Y27: =IF(AI27=0,-$V$4,AD27/$V$4) -> 0.9285714286 | AB27: 147 | AD27: 650 | AI27: 1116 | AJ27: =AI27*AD27 -> 725400 | AK27: =AI27*AB27 -> 164052 | AL27: =AI27*AD27^2 -> 471510000 | AM27: =AI27*AB27^2 -> 24115644 | AN27: =AI27*AB27*AD27 -> 106633800 | AO27: 100000 | AP27: =-AO27*(AD27-$L$53) -> -31299532.21 | AQ27: -21160043.18 | AR27: =(-(AB27-$L$54)*TAN($L$52)+(AD27-$L$53))/SQRT(1+TAN($L$52)^2) -> 368.2150362 | AS27: =((AB27-$L$54)+(AD27-$L$53)*TAN($L$52))/SQRT(1+TAN($L$52)^2) -> -84.60792794 | AT27: =IF(E6=0,0,F6/E6-$L$3*($O$28/$L$45-$N$32*AR27/$L$46+$O$32*AS27/$L$47)) -> 1005.33625 | AW27: =IF(E6=0,0,AT27-$L$3*(-$N$33*AR27/$L$46+$O$33*AS27/$L$47)) -> 993.8866068 | AZ27: =IF(E6=0,0,AT27-$L$3*(-$N$34*AR27/$L$46+$O$34*AS27/$L$47)) -> 923.2804763 | BC27: =IF(E6=0,0,AT27-$L$3*(-$N$35*AR27/$L$46+$O$35*AS27/$L$47)) -> 913.7391073
B28: 24 | E28: =Kold!AW48 -> 93 | F28: =1000*Kold!AX48 -> 100000 | G28: =Kold!AP48 -> 407.5 | H28: =Kold!AQ48 -> 130 | K28: Samlet forspændingskraft (N) | N28: N_f | O28: =AO76 -> 2500000 | V28: 3 | W28: 0.3128571429 | Y28: 0.9285714286 | AB28: 219 | AD28: 650 | AI28: 1116 | AJ28: 725400 | AK28: 244404 | AL28: 471510000 | AM28: 53524476 | AN28: 158862600 | AO28: 100000 | AP28: -31299532.21 | AQ28: -13960043.18 | AR28: =(-(AB28-$L$54)*TAN($L$52)+(AD28-$L$53))/SQRT(1+TAN($L$52)^2) -> 342.2718929 | AS28: -17.44429704 | AT28: 1025.800448 | AW28: 1009.601922 | AZ28: 909.7110126 | BC28: 896.2122411
B29: 25 | E29: =Kold!AW49 -> 93 | F29: =1000*Kold!AX49 -> 100000 | G29: =Kold!AP49 -> 455 | H29: =Kold!AQ49 -> 130 | N29: y_f | O29: =L53-AP76/O28 -> 234 | V29: 4 | W29: 0.4157142857 | Y29: 0.9285714286 | AB29: 291 | AD29: 650 | AI29: 1116 | AJ29: 725400 | AK29: 324756 | AL29: 471510000 | AM29: 94503996 | AN29: 211091400 | AO29: 100000 | AP29: -31299532.21 | AQ29: -6760043.181 | AR29: 316.3287496 | AS29: 49.71933387 | AT29: 1046.264646 | AW29: 1025.317237 | AZ29: 896.141549 | BC29: 878.685375
B30: 26 | E30: =Kold!AW50 -> 0 | F30: =1000*Kold!AX50 -> 0 | G30: =Kold!AP50 -> -1400 | H30: =Kold!AQ50 -> 130 | K30: Momenter (Nmm) | V30: 5 | W30: 0.5185714286 | Y30: 0.9285714286 | AB30: 363 | AD30: 650 | AI30: 1116 | AJ30: 725400 | AK30: 405108 | AL30: 471510000 | AM30: 147054204 | AN30: 263320200 | AO30: 100000 | AP30: -31299532.21 | AQ30: 439956.819 | AR30: 290.3856064 | AS30: 116.8829648 | AT30: 1066.728844 | AW30: 1041.032552 | AZ30: 882.5720854 | BC30: 861.1585088
B31: 27 | E31: =Kold!AW51 -> 0 | F31: =1000*Kold!AX51 -> 0 | G31: =Kold!AP51 -> -1400 | H31: =Kold!AQ51 -> 130 | L31: Mx | M31: My | N31: M1 | O31: M2 | V31: 6 | W31: 0.6214285714 | Y31: 0.9285714286 | AB31: 435 | AD31: 650 | AI31: 1116 | AJ31: 725400 | AK31: 485460 | AL31: 471510000 | AM31: 211175100 | AN31: 315549000 | AO31: 100000 | AP31: -31299532.21 | AQ31: 7639956.819 | AR31: 264.4424631 | AS31: 184.0465957 | AT31: 1087.193042 | AW31: 1056.747867 | AZ31: 869.0026217 | BC31: 843.6316427
B32: 28 | E32: =Kold!AW52 -> 0 | F32: =1000*Kold!AX52 -> 0 | G32: =Kold!AP52 -> -1400 | H32: =Kold!AQ52 -> 130 | K32: M_f | L32: =AP76 -> 257511694.9 | M32: =AQ76 -> -11751079.53 | N32: =L32*COS($L$52)+M32*SIN($L$52) -> 235980006.8 | O32: =-L32*SIN($L$52)+M32*COS($L$52) -> -103748721.8 | V32: 7 | W32: 0.3785714286 | Y32: 0.3571428571 | AB32: 265 | AD32: 250 | AI32: 1116 | AJ32: 279000 | AK32: 295740 | AL32: 69750000 | AM32: 78371100 | AN32: 73935000 | AO32: 100000 | AP32: 8700467.794 | AQ32: -9360043.181 | AR32: -47.43417586 | AS32: -118.6627734 | AT32: 913.4261991 | AW32: 926.6620232 | AZ32: 1008.282939 | BC32: 1019.312792
B33: 29 | E33: =Kold!AW53 -> 0 | F33: =1000*Kold!AX53 -> 0 | G33: =Kold!AP53 -> -1400 | H33: =Kold!AQ53 -> 130 | K33: M_g | L33: =-Kold!T32*1000000 -> -69120000 | M33: =-Kold!T33*1000000 -> 0 | N33: =L33*COS($L$52)+M33*SIN($L$52) -> -64477085.67 | O33: =-L33*SIN($L$52)+M33*COS($L$52) -> 24905417.56 | V33: 8 | W33: 0.8571428571 | Y33: 0.3571428571 | AB33: 600 | AD33: 250 | AI33: 1116 | AJ33: 279000 | AK33: 669600 | AL33: 69750000 | AM33: 401760000 | AN33: 167400000 | AO33: 100000 | AP33: 8700467.794 | AQ33: 24139956.82 | AR33: -168.1418564 | AS33: 193.834676 | AT33: 1008.641565 | AW33: 999.7818917 | AZ33: 945.1472396 | BC33: 937.7641786
B34: 30 | E34: =Kold!AW54 -> 0 | F34: =1000*Kold!AX54 -> 0 | G34: =Kold!AP54 -> -1400 | H34: =Kold!AQ54 -> 130 | K34: M_L | L34: =-Kold!V32*1000000 -> -495360000 | M34: =-Kold!V33*1000000 -> 0 | N34: =L34*COS($L$52)+M34*SIN($L$52) -> -462085780.6 | O34: =-L34*SIN($L$52)+M34*COS($L$52) -> 178488825.8 | V34: 9 | W34: -2 | Y34: -700 | AB34: -1400 | AD34: 250 | AI34: 0 | AJ34: 0 | AK34: 0 | AL34: 0 | AM34: 0 | AN34: 0 | AO34: 0 | AP34: 0 | AQ34: 0 | AR34: 552.5010127 | AS34: -1671.821738 | AT34: 0 | AW34: 0 | AZ34: 0 | BC34: 0
B35: 31 | E35: =Kold!AW55 -> 93 | F35: =1000*Kold!AX55 -> 100000 | G35: =Kold!AP55 -> 265 | H35: =Kold!AQ55 -> 90 | K35: M_k | L35: =-Kold!W32*1000000 -> -552960000 | M35: =-Kold!W33*1000000 -> 0 | N35: =L35*COS($L$52)+M35*SIN($L$52) -> -515816685.3 | O35: =-L35*SIN($L$52)+M35*COS($L$52) -> 199243340.5 | V35: 10 | W35: -2 | Y35: -700 | AB35: -1400 | AD35: 250 | AI35: 0 | AJ35: 0 | AK35: 0 | AL35: 0 | AM35: 0 | AN35: 0 | AO35: 0 | AP35: 0 | AQ35: 0 | AR35: 552.5010127 | AS35: -1671.821738 | AT35: 0 | AW35: 0 | AZ35: 0 | BC35: 0
B36: 32 | E36: =Kold!AW56 -> 93 | F36: =1000*Kold!AX56 -> 100000 | G36: =Kold!AP56 -> 312.5 | H36: =Kold!AQ56 -> 90 | K36: Resulterende betonspændinger (MPa) | V36: 11 | W36: 0.5 | Y36: -700 | AB36: 350 | AD36: 0 | AI36: 0 | AJ36: 0 | AK36: 0 | AL36: 0 | AM36: 0 | AN36: 0 | AO36: 0 | AP36: 0 | AQ36: 0 | AR36: -311.2685495 | AS36: -129.4527344 | AT36: 0 | AW36: 0 | AZ36: 0 | BC36: 0
B37: 33 | E37: =Kold!AW57 -> 93 | F37: =1000*Kold!AX57 -> 100000 | G37: =Kold!AP57 -> 360 | H37: =Kold!AQ57 -> 90 | L37: smax | M37: pkt | N37: smin | O37: pkt | V37: 12 | W37: -2 | Y37: -700 | AB37: -1400 | AD37: 0 | AI37: 0 | AJ37: 0 | AK37: 0 | AL37: 0 | AM37: 0 | AN37: 0 | AO37: 0 | AP37: 0 | AQ37: 0 | AR37: 319.293961 | AS37: -1761.902097 | AT37: 0 | AW37: 0 | AZ37: 0 | BC37: 0
B38: 34 | E38: =Kold!AW58 -> 93 | F38: =1000*Kold!AX58 -> 100000 | G38: =Kold!AP58 -> 407.5 | H38: =Kold!AQ58 -> 90 | K38: M_f | L38: =MAX(AT5:AT24) -> 20.96808252 | M38: =INDEX(Blokke,MAX(AU5:AU24),2) -> Blok C | N38: =MIN(AT5:AT24) -> -3.247858173 | O38: =INDEX(Blokke,MAX(AV5:AV24),2) -> Blok B | V38: 13 | W38: -2 | Y38: -700 | AB38: -1400 | AD38: 0 | AI38: 0 | AJ38: 0 | AK38: 0 | AL38: 0 | AM38: 0 | AN38: 0 | AO38: 0 | AP38: 0 | AQ38: 0 | AR38: 319.293961 | AS38: -1761.902097 | AT38: 0 | AW38: 0 | AZ38: 0 | BC38: 0
B39: 35 | E39: =Kold!AW59 -> 93 | F39: =1000*Kold!AX59 -> 100000 | G39: =Kold!AP59 -> 455 | H39: =Kold!AQ59 -> 90 | K39: M_g | L39: =MAX(AW5:AW24) -> 17.95418115 | M39: =INDEX(Blokke,MAX(AX5:AX24),2) -> Blok C | N39: =MIN(AW5:AW24) -> -0.152692503 | O39: =INDEX(Blokke,MAX(AY5:AY24),2) -> Blok B | V39: 14 | W39: -2 | Y39: -700 | AB39: -1400 | AD39: 0 | AI39: 0 | AJ39: 0 | AK39: 0 | AL39: 0 | AM39: 0 | AN39: 0 | AO39: 0 | AP39: 0 | AQ39: 0 | AR39: 319.293961 | AS39: -1761.902097 | AT39: 0 | AW39: 0 | AZ39: 0 | BC39: 0
B40: 36 | E40: =Kold!AW60 -> 0 | F40: =1000*Kold!AX60 -> 0 | G40: =Kold!AP60 -> -1400 | H40: =Kold!AQ60 -> 90 | K40: M_L | L40: =MAX(AZ5:AZ24) -> 18.93416246 | M40: =INDEX(Blokke,MAX(BA5:BA24),2) -> Blok B | N40: =MIN(AZ5:AZ24) -> -0.631544008 | O40: =INDEX(Blokke,MAX(BB5:BB24),2) -> Blok C | V40: 15 | W40: -2 | Y40: -700 | AB40: -1400 | AD40: 0 | AI40: 0 | AJ40: 0 | AK40: 0 | AL40: 0 | AM40: 0 | AN40: 0 | AO40: 0 | AP40: 0 | AQ40: 0 | AR40: 319.293961 | AS40: -1761.902097 | AT40: 0 | AW40: 0 | AZ40: 0 | BC40: 0
B41: 37 | E41: =Kold!AW61 -> 0 | F41: =1000*Kold!AX61 -> 0 | G41: =Kold!AP61 -> -1400 | H41: =Kold!AQ61 -> 90 | K41: M_k | L41: =MAX(BC5:BC24) -> 21.51346719 | M41: =INDEX(Blokke,MAX(BD5:BD24),2) -> Blok B | N41: =MIN(BC5:BC24) -> -3.143128488 | O41: =INDEX(Blokke,MAX(BE5:BE24),2) -> Blok C | V41: 16 | W41: -2 | Y41: -700 | AB41: -1400 | AD41: 0 | AI41: 0 | AJ41: 0 | AK41: 0 | AL41: 0 | AM41: 0 | AN41: 0 | AO41: 0 | AP41: 0 | AQ41: 0 | AR41: 319.293961 | AS41: -1761.902097 | AT41: 0 | AW41: 0 | AZ41: 0 | BC41: 0
B42: 38 | E42: =Kold!AW62 -> 0 | F42: =1000*Kold!AX62 -> 0 | G42: =Kold!AP62 -> -1400 | H42: =Kold!AQ62 -> 90 | V42: 17 | W42: -2 | Y42: -700 | AB42: -1400 | AD42: 0 | AI42: 0 | AJ42: 0 | AK42: 0 | AL42: 0 | AM42: 0 | AN42: 0 | AO42: 0 | AP42: 0 | AQ42: 0 | AR42: 319.293961 | AS42: -1761.902097 | AT42: 0 | AW42: 0 | AZ42: 0 | BC42: 0
B43: 39 | E43: =Kold!AW63 -> 0 | F43: =1000*Kold!AX63 -> 0 | G43: =Kold!AP63 -> -1400 | H43: =Kold!AQ63 -> 90 | V43: 18 | W43: -2 | Y43: -700 | AB43: -1400 | AD43: 0 | AI43: 0 | AJ43: 0 | AK43: 0 | AL43: 0 | AM43: 0 | AN43: 0 | AO43: 0 | AP43: 0 | AQ43: 0 | AR43: 319.293961 | AS43: -1761.902097 | AT43: 0 | AW43: 0 | AZ43: 0 | BC43: 0
B44: 40 | E44: =Kold!AW64 -> 0 | F44: =1000*Kold!AX64 -> 0 | G44: =Kold!AP64 -> -1400 | H44: =Kold!AQ64 -> 90 | K44: Tværsnitskonstanter | V44: 19 | W44: -2 | Y44: -700 | AB44: -1400 | AD44: 0 | AI44: 0 | AJ44: 0 | AK44: 0 | AL44: 0 | AM44: 0 | AN44: 0 | AO44: 0 | AP44: 0 | AQ44: 0 | AR44: 319.293961 | AS44: -1761.902097 | AT44: 0 | AW44: 0 | AZ44: 0 | BC44: 0
B45: 41 | E45: =Kold!AW65 -> 93 | F45: =1000*Kold!AX65 -> 100000 | G45: =Kold!AP65 -> 265 | H45: =Kold!AQ65 -> 50 | K45: A | L45: =AI76 -> 277900 | M45: mm^2 | N45: g (kN/m) | O45: =24*SUM(AI5:AI24)/1000000 -> 6 | V45: 20 | W45: -2 | Y45: -700 | AB45: -1400 | AD45: 0 | AI45: 0 | AJ45: 0 | AK45: 0 | AL45: 0 | AM45: 0 | AN45: 0 | AO45: 0 | AP45: 0 | AQ45: 0 | AR45: 319.293961 | AS45: -1761.902097 | AT45: 0 | AW45: 0 | AZ45: 0 | BC45: 0
B46: 42 | E46: =Kold!AW66 -> 93 | F46: =1000*Kold!AX66 -> 100000 | G46: =Kold!AP66 -> 312.5 | H46: =Kold!AQ66 -> 50 | K46: I1 | L46: =(L49+L50)/2+SQRT(((L49-L50)/2)^2+L51^2) -> 1.489282101e+10 | M46: mm^4 | V46: 21 | W46: 0.3785714286 | Y46: 0.1857142857 | AB46: 265 | AD46: 130 | AI46: 1116 | AJ46: 145080 | AK46: 295740 | AL46: 18860400 | AM46: 78371100 | AN46: 38446200 | AO46: 100000 | AP46: 20700467.79 | AQ46: -9360043.181 | AR46: -159.3735607 | AS46: -161.9013455 | AT46: 875.79162 | AW46: 898.7679516 | AZ46: 1040.45533 | BC46: 1059.602273
B47: 43 | E47: =Kold!AW67 -> 93 | F47: =1000*Kold!AX67 -> 100000 | G47: =Kold!AP67 -> 360 | H47: =Kold!AQ67 -> 50 | K47: I2 | L47: =(L49+L50)/2-SQRT(((L49-L50)/2)^2+L51^2) -> 3292411549 | M47: mm^4 | V47: 22 | W47: 0.4464285714 | Y47: 0.1857142857 | AB47: 312.5 | AD47: 130 | AI47: 1116 | AJ47: 145080 | AK47: 348750 | AL47: 18860400 | AM47: 108984375 | AN47: 45337500 | AO47: 100000 | AP47: 20700467.79 | AQ47: -4610043.181 | AR47: -176.4888288 | AS47: -117.5920057 | AT47: 889.2923062 | AW47: 909.1356942 | AZ47: 1031.503253 | BC47: 1048.03941
B48: 44 | E48: =Kold!AW68 -> 93 | F48: =1000*Kold!AX68 -> 100000 | G48: =Kold!AP68 -> 407.5 | H48: =Kold!AQ68 -> 50 | V48: 23 | W48: 0.5142857143 | Y48: 0.1857142857 | AB48: 360 | AD48: 130 | AI48: 1116 | AJ48: 145080 | AK48: 401760 | AL48: 18860400 | AM48: 144633600 | AN48: 52228800 | AO48: 100000 | AP48: 20700467.79 | AQ48: 139956.819 | AR48: -193.604097 | AS48: -73.28266584 | AT48: 902.7929924 | AW48: 919.5034367 | AZ48: 1022.551177 | BC48: 1036.476547
B49: 45 | E49: =Kold!AW69 -> 93 | F49: =1000*Kold!AX69 -> 100000 | G49: =Kold!AP69 -> 455 | H49: =Kold!AQ69 -> 50 | K49: Ix0 | L49: =AL76-AI76*L53^2 -> 1.338672203e+10 | M49: mm^4 | V49: 24 | W49: 0.5821428571 | Y49: 0.1857142857 | AB49: 407.5 | AD49: 130 | AI49: 1116 | AJ49: 145080 | AK49: 454770 | AL49: 18860400 | AM49: 185318775 | AN49: 59120100 | AO49: 100000 | AP49: 20700467.79 | AQ49: 4889956.819 | AR49: -210.7193651 | AS49: -28.973326 | AT49: 916.2936786 | AW49: 929.8711792 | AZ49: 1013.5991 | BC49: 1024.913684
B50: 46 | E50: =Kold!AW70 -> 93 | F50: =1000*Kold!AX70 -> 100000 | G50: =Kold!AP70 -> 502.5 | H50: =Kold!AQ70 -> 50 | K50: Iy0 | L50: =AM76-AI76*L54^2 -> 4798510530 | M50: mm^4 | V50: 25 | W50: 0.65 | Y50: 0.1857142857 | AB50: 455 | AD50: 130 | AI50: 1116 | AJ50: 145080 | AK50: 507780 | AL50: 18860400 | AM50: 231039900 | AN50: 66011400 | AO50: 100000 | AP50: 20700467.79 | AQ50: 9639956.819 | AR50: -227.8346333 | AS50: 15.33601383 | AT50: 929.7943648 | AW50: 940.2389218 | AZ50: 1004.647023 | BC50: 1013.350821
B51: 47 | E51: =Kold!AW71 -> 93 | F51: =1000*Kold!AX71 -> 100000 | G51: =Kold!AP71 -> 550 | H51: =Kold!AQ71 -> 50 | K51: Zxy0 | L51: =AN76-AI76*L53*L54 -> -3899106401 | M51: mm^4 | V51: 26 | W51: -2 | Y51: -700 | AB51: -1400 | AD51: 130 | AI51: 0 | AJ51: 0 | AK51: 0 | AL51: 0 | AM51: 0 | AN51: 0 | AO51: 0 | AP51: 0 | AQ51: 0 | AR51: 440.5616279 | AS51: -1715.06031 | AT51: 0 | AW51: 0 | AZ51: 0 | BC51: 0
B52: 48 | E52: =Kold!AW72 -> 0 | F52: =1000*Kold!AX72 -> 0 | G52: =Kold!AP72 -> -1400 | H52: =Kold!AQ72 -> 50 | K52: v | L52: =IF(L51=0,IF(L49>L50,0,PI()/2),-0.5*ATAN(2*L51/(L49-L50))) -> 0.3686124512 | M52: rad | V52: 27 | W52: -2 | Y52: -700 | AB52: -1400 | AD52: 130 | AI52: 0 | AJ52: 0 | AK52: 0 | AL52: 0 | AM52: 0 | AN52: 0 | AO52: 0 | AP52: 0 | AQ52: 0 | AR52: 440.5616279 | AS52: -1715.06031 | AT52: 0 | AW52: 0 | AZ52: 0 | BC52: 0
B53: 49 | E53: =Kold!AW73 -> 0 | F53: =1000*Kold!AX73 -> 0 | G53: =Kold!AP73 -> -1400 | H53: =Kold!AQ73 -> 50 | K53: z | L53: =AJ76/AI76 -> 337.0046779 | M53: mm | V53: 28 | W53: -2 | Y53: -700 | AB53: -1400 | AD53: 130 | AI53: 0 | AJ53: 0 | AK53: 0 | AL53: 0 | AM53: 0 | AN53: 0 | AO53: 0 | AP53: 0 | AQ53: 0 | AR53: 440.5616279 | AS53: -1715.06031 | AT53: 0 | AW53: 0 | AZ53: 0 | BC53: 0
B54: 50 | E54: =Kold!AW74 -> 0 | F54: =1000*Kold!AX74 -> 0 | G54: =Kold!AP74 -> -1400 | H54: =Kold!AQ74 -> 50 | K54: h | L54: =AK76/AI76 -> 358.6004318 | M54: mm | V54: 29 | W54: -2 | Y54: -700 | AB54: -1400 | AD54: 130 | AI54: 0 | AJ54: 0 | AK54: 0 | AL54: 0 | AM54: 0 | AN54: 0 | AO54: 0 | AP54: 0 | AQ54: 0 | AR54: 440.5616279 | AS54: -1715.06031 | AT54: 0 | AW54: 0 | AZ54: 0 | BC54: 0
V55: 30 | W55: -2 | Y55: -700 | AB55: -1400 | AD55: 130 | AI55: 0 | AJ55: 0 | AK55: 0 | AL55: 0 | AM55: 0 | AN55: 0 | AO55: 0 | AP55: 0 | AQ55: 0 | AR55: 440.5616279 | AS55: -1715.06031 | AT55: 0 | AW55: 0 | AZ55: 0 | BC55: 0
V56: 31 | W56: 0.3785714286 | Y56: 0.1285714286 | AB56: 265 | AD56: 90 | AI56: 1116 | AJ56: 100440 | AK56: 295740 | AL56: 9039600 | AM56: 78371100 | AN56: 26616600 | AO56: 100000 | AP56: 24700467.79 | AQ56: -9360043.181 | AR56: -196.686689 | AS56: -176.3142029 | AT56: 863.2467602 | AW56: 889.4699277 | AZ56: 1051.179461 | BC56: 1073.0321
K57: Momenter i nedbøjningsberegning (Nmm) | V57: 32 | W57: 0.4464285714 | Y57: 0.1285714286 | AB57: 312.5 | AD57: 90 | AI57: 1116 | AJ57: 100440 | AK57: 348750 | AL57: 9039600 | AM57: 108984375 | AN57: 31387500 | AO57: 100000 | AP57: 24700467.79 | AQ57: -4610043.181 | AR57: -213.8019571 | AS57: -132.0048631 | AT57: 876.7474464 | AW57: 899.8376703 | AZ57: 1042.227384 | BC57: 1061.469237
L58: Mx | M58: My | N58: M1 | O58: M2 | V58: 33 | W58: =AB58/$V$4 -> 0.5142857143 | Y58: 0.1285714286 | AB58: =G37 -> 360 | AD58: =H37 -> 90 | AI58: =E37*$L$3 -> 1116 | AJ58: =AI58*AD58 -> 100440 | AK58: 401760 | AL58: =AI58*AD58^2 -> 9039600 | AM58: 144633600 | AN58: 36158400 | AO58: =F37 -> 100000 | AP58: =-AO58*(AD58-$L$53) -> 24700467.79 | AQ58: =AO58*(AB58-$L$54) -> 139956.819 | AR58: -230.9172253 | AS58: -87.69552322 | AT58: 890.2481327 | AW58: 910.2054128 | AZ58: 1033.275307 | BC58: 1049.906374
K59: M_f+g | L59: =1.25*L105*L32-0.125*Kold!H28*Kold!E33^2*1000000 -> 226790575.5 | M59: =1.25*M105*M32 -> -16581230.53 | N59: =L59*COS($L$52)+M59*SIN($L$52) -> 205582073.2 | O59: =-L59*SIN($L$52)+M59*COS($L$52) -> -97184945.06 | V59: 34 | W59: 0.5821428571 | Y59: 0.1285714286 | AB59: 407.5 | AD59: 90 | AI59: 1116 | AJ59: 100440 | AK59: 454770 | AL59: 9039600 | AM59: 185318775 | AN59: 40929300 | AO59: 100000 | AP59: 24700467.79 | AQ59: 4889956.819 | AR59: -248.0324934 | AS59: -43.38618339 | AT59: 903.7488189 | AW59: 920.5731554 | AZ59: 1024.323231 | BC59: 1038.343511
K60: M_L-g | L60: =(-MAX(Kold2!P31:BD31)+0.125*Kold!H28*Kold!E33^2)*1000000 -> -426240000 | M60: =M34-M33 -> 0 | N60: =L60*COS($L$52)+M60*SIN($L$52) -> -397608695 | O60: =-L60*SIN($L$52)+M60*COS($L$52) -> 153583408.3 | V60: 35 | W60: 0.65 | Y60: 0.1285714286 | AB60: 455 | AD60: 90 | AI60: 1116 | AJ60: 100440 | AK60: 507780 | AL60: 9039600 | AM60: 231039900 | AN60: 45700200 | AO60: 100000 | AP60: 24700467.79 | AQ60: 9639956.819 | AR60: -265.1477615 | AS60: 0.9231564444 | AT60: 917.2495051 | AW60: 930.9408979 | AZ60: 1015.371154 | BC60: 1026.780648
K61: M_kort | L61: =(-MAX(Kold2!P32:BD32)+MAX(Kold2!P31:BD31))*1000000 -> -57600000 | M61: =M35-M34 -> 0 | N61: =L61*COS($L$52)+M61*SIN($L$52) -> -53730904.72 | O61: =-L61*SIN($L$52)+M61*COS($L$52) -> 20754514.63 | V61: 36 | W61: -2 | Y61: -700 | AB61: -1400 | AD61: 90 | AI61: 0 | AJ61: 0 | AK61: 0 | AL61: 0 | AM61: 0 | AN61: 0 | AO61: 0 | AP61: 0 | AQ61: 0 | AR61: 403.2484996 | AS61: -1729.473168 | AT61: 0 | AW61: 0 | AZ61: 0 | BC61: 0
K62: Krumninger | V62: 37 | W62: -2 | Y62: -700 | AB62: -1400 | AD62: 90 | AI62: 0 | AJ62: 0 | AK62: 0 | AL62: 0 | AM62: 0 | AN62: 0 | AO62: 0 | AP62: 0 | AQ62: 0 | AR62: 403.2484996 | AS62: -1729.473168 | AT62: 0 | AW62: 0 | AZ62: 0 | BC62: 0
L63: kx | M63: ky | N63: k1 | O63: k2 | V63: 38 | W63: -2 | Y63: -700 | AB63: -1400 | AD63: 90 | AI63: 0 | AJ63: 0 | AK63: 0 | AL63: 0 | AM63: 0 | AN63: 0 | AO63: 0 | AP63: 0 | AQ63: 0 | AR63: 403.2484996 | AS63: -1729.473168 | AT63: 0 | AW63: 0 | AZ63: 0 | BC63: 0
K64: M_lev | L64: =N64*COS($L$52)-O64*SIN($L$52) -> 1.201159566e-06 | M64: =N64*SIN($L$52)+O64*COS($L$52) -> -1.152546749e-06 | N64: =N59/N69 -> 7.051882263e-07 | O64: =O59/O69 -> -1.507931656e-06 | V64: 39 | W64: -2 | Y64: -700 | AB64: -1400 | AD64: 90 | AI64: 0 | AJ64: 0 | AK64: 0 | AL64: 0 | AM64: 0 | AN64: 0 | AO64: 0 | AP64: 0 | AQ64: 0 | AR64: 403.2484996 | AS64: -1729.473168 | AT64: 0 | AW64: 0 | AZ64: 0 | BC64: 0
K65: M_f+g | L65: =N65*COS($L$52)-O65*SIN($L$52) -> 2.185082949e-06 | M65: =N65*SIN($L$52)+O65*COS($L$52) -> -2.096649205e-06 | N65: =N64*N69/N70 -> 1.28283936e-06 | O65: =O64*O69/O70 -> -2.743145742e-06 | V65: 40 | W65: -2 | Y65: -700 | AB65: -1400 | AD65: 90 | AI65: 0 | AJ65: 0 | AK65: 0 | AL65: 0 | AM65: 0 | AN65: 0 | AO65: 0 | AP65: 0 | AQ65: 0 | AR65: 403.2484996 | AS65: -1729.473168 | AT65: 0 | AW65: 0 | AZ65: 0 | BC65: 0
K66: M_L-g | L66: =N66*COS($L$52)-O66*SIN($L$52) -> -3.232700247e-06 | M66: =N66*SIN($L$52)+O66*COS($L$52) -> 2.626782237e-06 | N66: =N60/N71 -> -2.069068031e-06 | O66: =O60/O71 -> 3.615147755e-06 | V66: 41 | W66: 0.3785714286 | Y66: 0.07142857143 | AB66: 265 | AD66: 50 | AI66: 1116 | AJ66: 55800 | AK66: 295740 | AL66: 2790000 | AM66: 78371100 | AN66: 14787000 | AO66: 100000 | AP66: 28700467.79 | AQ66: -9360043.181 | AR66: -233.9998173 | AS66: -190.7270603 | AT66: 850.7019005 | AW66: 880.1719039 | AZ66: 1061.903591 | BC66: 1086.461927
K67: M_kort | L67: =N67*COS($L$52)-O67*SIN($L$52) -> -1.60045253e-07 | M67: =N67*SIN($L$52)+O67*COS($L$52) -> 1.300473274e-07 | N67: =N61/N72 -> -1.024358868e-07 | O67: =O61/O72 -> 1.789795504e-07 | V67: 42 | W67: 0.4464285714 | Y67: 0.07142857143 | AB67: 312.5 | AD67: 50 | AI67: 1116 | AJ67: 55800 | AK67: 348750 | AL67: 2790000 | AM67: 108984375 | AN67: 17437500 | AO67: 100000 | AP67: 28700467.79 | AQ67: -4610043.181 | AR67: -251.1150854 | AS67: -146.4177204 | AT67: 864.2025867 | AW67: 890.5396464 | AZ67: 1052.951515 | BC67: 1074.899064
K68: Stivheder | L68: a | N68: E*I1 | O68: E*I2 | V68: 43 | W68: 0.5142857143 | Y68: 0.07142857143 | AB68: 360 | AD68: 50 | AI68: 1116 | AJ68: 55800 | AK68: 401760 | AL68: 2790000 | AM68: 144633600 | AN68: 20088000 | AO68: 100000 | AP68: 28700467.79 | AQ68: 139956.819 | AR68: -268.2303535 | AS68: -102.1083806 | AT68: 877.7032729 | AW68: 900.907389 | AZ68: 1043.999438 | BC68: 1063.336201
K69: M_lev | L69: =Kold!W27*(1+Kold!BI25) -> 9.961652612 | N69: =$L$46*195000/L69 -> 2.915279432e+14 | O69: =$L$47*195000/L69 -> 6.444917095e+13 | V69: 44 | W69: 0.5821428571 | Y69: 0.07142857143 | AB69: 407.5 | AD69: 50 | AI69: 1116 | AJ69: 55800 | AK69: 454770 | AL69: 2790000 | AM69: 185318775 | AN69: 22738500 | AO69: 100000 | AP69: 28700467.79 | AQ69: 4889956.819 | AR69: -285.3456217 | AS69: -57.79904077 | AT69: 891.2039591 | AW69: 911.2751315 | AZ69: 1035.047361 | BC69: 1051.773338
K70: M_f+g | L70: =Kold!W27*(1+Kold!BI21) -> 18.12168664 | N70: =$L$46*195000/L70 -> 160255507892957 | O70: =$L$47*195000/L70 -> 3.542828352e+13 | V70: 45 | W70: 0.65 | Y70: 0.07142857143 | AB70: 455 | AD70: 50 | AI70: 1116 | AJ70: 55800 | AK70: 507780 | AL70: 2790000 | AM70: 231039900 | AN70: 25389000 | AO70: 100000 | AP70: 28700467.79 | AQ70: 9639956.819 | AR70: -302.4608898 | AS70: -13.48970094 | AT70: 904.7046454 | AW70: 921.6428741 | AZ70: 1026.095284 | BC70: 1040.210475
K71: M_L-g | L71: =Kold!W27*(1+Kold!W10) -> 15.11229696 | N71: =$L$46*195000/L71 -> 1.921680142e+14 | O71: =$L$47*195000/L71 -> 4.248330046e+13 | V71: 46 | W71: 0.7178571429 | Y71: 0.07142857143 | AB71: 502.5 | AD71: 50 | AI71: 1116 | AJ71: 55800 | AK71: 560790 | AL71: 2790000 | AM71: 281796975 | AN71: 28039500 | AO71: 100000 | AP71: 28700467.79 | AQ71: 14389956.82 | AR71: -319.576158 | AS71: 30.81963889 | AT71: 918.2053316 | AW71: 932.0106166 | AZ71: 1017.143208 | BC71: 1028.647612
K72: M_kort | L72: =Kold!W27 -> 5.536554245 | N72: =$L$46*195000/L72 -> 5.245320407e+14 | O72: =$L$47*195000/L72 -> 1.159602568e+14 | V72: 47 | W72: 0.7857142857 | Y72: 0.07142857143 | AB72: 550 | AD72: 50 | AI72: 1116 | AJ72: 55800 | AK72: 613800 | AL72: 2790000 | AM72: 337590000 | AN72: 30690000 | AO72: 100000 | AP72: 28700467.79 | AQ72: 19139956.82 | AR72: -336.6914261 | AS72: 75.12897873 | AT72: 931.7060178 | AW72: 942.3783592 | AZ72: 1008.191131 | BC72: 1017.084749
V73: 48 | W73: -2 | Y73: -700 | AB73: -1400 | AD73: 50 | AI73: 0 | AJ73: 0 | AK73: 0 | AL73: 0 | AM73: 0 | AN73: 0 | AO73: 0 | AP73: 0 | AQ73: 0 | AR73: 365.9353713 | AS73: -1743.886025 | AT73: 0 | AW73: 0 | AZ73: 0 | BC73: 0
V74: 49 | W74: -2 | Y74: -700 | AB74: -1400 | AD74: 50 | AI74: 0 | AJ74: 0 | AK74: 0 | AL74: 0 | AM74: 0 | AN74: 0 | AO74: 0 | AP74: 0 | AQ74: 0 | AR74: 365.9353713 | AS74: -1743.886025 | AT74: 0 | AW74: 0 | AZ74: 0 | BC74: 0
V75: 50 | W75: -2 | Y75: -700 | AB75: -1400 | AD75: 50 | AI75: 0 | AJ75: 0 | AK75: 0 | AL75: 0 | AM75: 0 | AN75: 0 | AO75: 0 | AP75: 0 | AQ75: 0 | AR75: 365.9353713 | AS75: -1743.886025 | AT75: 0 | AW75: 0 | AZ75: 0 | BC75: 0
E76: Neutralisering | W76: -0.1857142857 | Z76: =AE76/$V$4 -> 0.2118201399 | AB76: =-0.2*MAX(AB5:AB25) -> -130 | AE76: =$L$53+TAN($L$52)*(AB76-$L$54) -> 148.274098 | AI76: =SUM(AI5:AI75) -> 277900 | AJ76: 93653600 | AK76: 99655060 | AL76: 4.494842333e+10 | AM76: 4.053485808e+10 | AN76: 29685115000 | AO76: 2500000 | AP76: 257511694.9 | AQ76: -11751079.53
E77: x > | F77: =Kold!W11 -> 1.9 | G77: m | W77: 1.114285714 | Z77: =AE77/$V$4 -> 0.7139681898 | AB77: =1.2*MAX(AB5:AB25) -> 780 | AE77: =$L$53+TAN($L$52)*(AB77-$L$54) -> 499.7777328
E78: x < | F78: =Kold!E33-Kold!W11 -> 7.7 | G78: m | W78: 0.7755027804 | AA78: =AF78/$V$4 -> -0.2 | AB78: =$L$54-(AF78-$L$53)*TAN($L$52) -> 542.8519463 | AF78: =-0.2*MAX(AC5:AC25) -> -140
E79: Test | F79: =IF(OR(Kold!R31<=Elastisk!F77,Kold!R31>=Elastisk!F78),0,1) -> 1 | W79: 0.2347279575 | AA79: =AF79/$V$4 -> 1.2 | AB79: =$L$54-(AF79-$L$53)*TAN($L$52) -> 164.3095702 | AF79: =1.2*MAX(AC5:AC25) -> 840
AB81: =G84 -> 75 | AD81: =H84 -> 650 | AI81: =E84*$L$3 -> 1116 | AJ81: =AI81*AD81 -> 725400 | AK81: =AI81*AB81 -> 83700 | AL81: =AI81*AD81^2 -> 471510000 | AM81: =AI81*AB81^2 -> 6277500 | AN81: =AI81*AB81*AD81 -> 54405000 | AO81: =F84 -> 100000 | AP81: =-AO81*(AD81-$L$97) -> -30689680.09 | AQ81: =AO81*(AB81-$L$98) -> -28317495.32
E82: armering i endesektion | K82: Samlet forspændingskraft (N) | N82: N_f | O82: =AO131 -> 1900000 | AB82: 147 | AD82: 650 | AI82: 1116 | AJ82: =AI82*AD82 -> 725400 | AK82: =AI82*AB82 -> 164052 | AL82: =AI82*AD82^2 -> 471510000 | AM82: =AI82*AB82^2 -> 24115644 | AN82: =AI82*AB82*AD82 -> 106633800 | AO82: 100000 | AP82: =-AO82*(AD82-$L$97) -> -30689680.09 | AQ82: =AO82*(AB82-$L$98) -> -21117495.32
E83: A_a | F83: N_f | G83: x | H83: y | AB83: 219 | AD83: 650 | AI83: 1116 | AJ83: 725400 | AK83: 244404 | AL83: 471510000 | AM83: 53524476 | AN83: 158862600 | AO83: 100000 | AP83: -30689680.09 | AQ83: -13917495.32
E84: =Kold!BE25 -> 93 | F84: =Kold!BF25*1000 -> 100000 | G84: =Kold!BC25 -> 75 | H84: =Kold!BD25 -> 650 | K84: Momenter (Nmm) | AB84: 291 | AD84: 650 | AI84: 1116 | AJ84: 725400 | AK84: 324756 | AL84: 471510000 | AM84: 94503996 | AN84: 211091400 | AO84: 100000 | AP84: -30689680.09 | AQ84: -6717495.317
E85: =Kold!BE26 -> 93 | F85: =Kold!BF26*1000 -> 100000 | G85: =Kold!BC26 -> 147 | H85: =Kold!BD26 -> 650 | L85: Mx | M85: My | N85: M1 | O85: M2 | AB85: 363 | AD85: 650 | AI85: 1116 | AJ85: 725400 | AK85: 405108 | AL85: 471510000 | AM85: 147054204 | AN85: 263320200 | AO85: 100000 | AP85: -30689680.09 | AQ85: 482504.6828
E86: =Kold!BE27 -> 93 | F86: =Kold!BF27*1000 -> 100000 | G86: =Kold!BC27 -> 219 | H86: =Kold!BD27 -> 650 | K86: M_f | L86: =AP131 -> 120896078.2 | M86: =AQ131 -> -21282411.03 | N86: =L86*COS($L$96)+M86*SIN($L$96) -> 104491078.8 | O86: =-L86*SIN($L$96)+M86*COS($L$96) -> -64423731.62 | AB86: 435 | AD86: 650 | AI86: 1116 | AJ86: 725400 | AK86: 485460 | AL86: 471510000 | AM86: 211175100 | AN86: 315549000 | AO86: 100000 | AP86: -30689680.09 | AQ86: 7682504.683
E87: =Kold!BE28 -> 93 | F87: =Kold!BF28*1000 -> 100000 | G87: =Kold!BC28 -> 291 | H87: =Kold!BD28 -> 650 | AB87: 265 | AD87: 250 | AI87: 1116 | AJ87: 279000 | AK87: 295740 | AL87: 69750000 | AM87: 78371100 | AN87: 73935000 | AO87: 100000 | AP87: 9310319.907 | AQ87: -9317495.317
E88: =Kold!BE29 -> 93 | F88: =Kold!BF29*1000 -> 100000 | G88: =Kold!BC29 -> 363 | H88: =Kold!BD29 -> 650 | K88: Tværsnitskonstanter | AB88: 600 | AD88: 250 | AI88: 1116 | AJ88: 279000 | AK88: 669600 | AL88: 69750000 | AM88: 401760000 | AN88: 167400000 | AO88: 100000 | AP88: 9310319.907 | AQ88: 24182504.68
E89: =Kold!BE30 -> 93 | F89: =Kold!BF30*1000 -> 100000 | G89: =Kold!BC30 -> 435 | H89: =Kold!BD30 -> 650 | K89: A | L89: =AI131 -> 271204 | M89: mm^2 | N89: g (kN/m) | O89: =24*SUM(AI60:AI79)/1000000 -> 6.883872 | AB89: -1400 | AD89: 250 | AI89: 0 | AJ89: 0 | AK89: 0 | AL89: 0 | AM89: 0 | AN89: 0 | AO89: 0 | AP89: 0 | AQ89: 0
E90: =Kold!BE31 -> 93 | F90: =Kold!BF31*1000 -> 100000 | G90: =Kold!BC31 -> 265 | H90: =Kold!BD31 -> 250 | K90: I1 | L90: =(L93+L94)/2+SQRT(((L93-L94)/2)^2+L95^2) -> 1.449709225e+10 | M90: mm^4 | AB90: -1400 | AD90: 250 | AI90: 0 | AJ90: 0 | AK90: 0 | AL90: 0 | AM90: 0 | AN90: 0 | AO90: 0 | AP90: 0 | AQ90: 0
E91: =Kold!BE32 -> 93 | F91: =Kold!BF32*1000 -> 100000 | G91: =Kold!BC32 -> 600 | H91: =Kold!BD32 -> 250 | K91: I2 | L91: =(L93+L94)/2-SQRT(((L93-L94)/2)^2+L95^2) -> 3233063873 | M91: mm^4 | AB91: 350 | AD91: 0 | AI91: 0 | AJ91: 0 | AK91: 0 | AL91: 0 | AM91: 0 | AN91: 0 | AO91: 0 | AP91: 0 | AQ91: 0
E92: =Kold!BE33 -> 0 | F92: =Kold!BF33*1000 -> 0 | G92: =Kold!BC33 -> -1400 | H92: =Kold!BD33 -> 250 | AB92: -1400 | AD92: 0 | AI92: 0 | AJ92: 0 | AK92: 0 | AL92: 0 | AM92: 0 | AN92: 0 | AO92: 0 | AP92: 0 | AQ92: 0
E93: =Kold!BE34 -> 0 | F93: =Kold!BF34*1000 -> 0 | G93: =Kold!BC34 -> -1400 | H93: =Kold!BD34 -> 250 | K93: Ix0 | L93: =AL131-AI131*L97^2 -> 1.296096128e+10 | M93: mm^4 | AB93: -1400 | AD93: 0 | AI93: 0 | AJ93: 0 | AK93: 0 | AL93: 0 | AM93: 0 | AN93: 0 | AO93: 0 | AP93: 0 | AQ93: 0
E94: =Kold!BE35 -> 0 | F94: =Kold!BF35*1000 -> 0 | G94: =Kold!BC35 -> 350 | H94: =Kold!BD35 -> 0 | K94: Iy0 | L94: =AM131-AI131*L98^2 -> 4769194841 | M94: mm^4 | AB94: -1400 | AD94: 0 | AI94: 0 | AJ94: 0 | AK94: 0 | AL94: 0 | AM94: 0 | AN94: 0 | AO94: 0 | AP94: 0 | AQ94: 0
E95: =Kold!BE36 -> 0 | F95: =Kold!BF36*1000 -> 0 | G95: =Kold!BC36 -> -1400 | H95: =Kold!BD36 -> 0 | K95: Zxy0 | L95: =AN131-AI131*L97*L98 -> -3865659641 | M95: mm^4 | AB95: -1400 | AD95: 0 | AI95: 0 | AJ95: 0 | AK95: 0 | AL95: 0 | AM95: 0 | AN95: 0 | AO95: 0 | AP95: 0 | AQ95: 0
E96: =Kold!BE37 -> 0 | F96: =Kold!BF37*1000 -> 0 | G96: =Kold!BC37 -> -1400 | H96: =Kold!BD37 -> 0 | K96: v | L96: =IF(L95=0,IF(L93>L94,0,PI()/2),-0.5*ATAN(2*L95/(L93-L94))) -> 0.378244632 | M96: rad | AB96: -1400 | AD96: 0 | AI96: 0 | AJ96: 0 | AK96: 0 | AL96: 0 | AM96: 0 | AN96: 0 | AO96: 0 | AP96: 0 | AQ96: 0
E97: =Kold!BE38 -> 0 | F97: =Kold!BF38*1000 -> 0 | G97: =Kold!BC38 -> -1400 | H97: =Kold!BD38 -> 0 | K97: z | L97: =AJ131/AI131 -> 343.1031991 | M97: mm | AB97: -1400 | AD97: 0 | AI97: 0 | AJ97: 0 | AK97: 0 | AL97: 0 | AM97: 0 | AN97: 0 | AO97: 0 | AP97: 0 | AQ97: 0
E98: =Kold!BE39 -> 0 | F98: =Kold!BF39*1000 -> 0 | G98: =Kold!BC39 -> -1400 | H98: =Kold!BD39 -> 0 | K98: h | L98: =AK131/AI131 -> 358.1749532 | M98: mm | AB98: -1400 | AD98: 0 | AI98: 0 | AJ98: 0 | AK98: 0 | AL98: 0 | AM98: 0 | AN98: 0 | AO98: 0 | AP98: 0 | AQ98: 0
E99: =Kold!BE40 -> 0 | F99: =Kold!BF40*1000 -> 0 | G99: =Kold!BC40 -> -1400 | H99: =Kold!BD40 -> 0 | AB99: -1400 | AD99: 0 | AI99: 0 | AJ99: 0 | AK99: 0 | AL99: 0 | AM99: 0 | AN99: 0 | AO99: 0 | AP99: 0 | AQ99: 0
E100: =Kold!BE41 -> 0 | F100: =Kold!BF41*1000 -> 0 | G100: =Kold!BC41 -> -1400 | H100: =Kold!BD41 -> 0 | K100: Forøgselsefaktor, udbøjning fra forspænding | AB100: -1400 | AD100: 0 | AI100: 0 | AJ100: 0 | AK100: 0 | AL100: 0 | AM100: 0 | AN100: 0 | AO100: 0 | AP100: 0 | AQ100: 0
E101: =Kold!BE42 -> 0 | F101: =Kold!BF42*1000 -> 0 | G101: =Kold!BC42 -> -1400 | H101: =Kold!BD42 -> 0 | L101: Mx | M101: My | AB101: 265 | AD101: 130 | AI101: 1116 | AJ101: 145080 | AK101: 295740 | AL101: 18860400 | AM101: 78371100 | AN101: 38446200 | AO101: 100000 | AP101: 21310319.91 | AQ101: -9317495.317
E102: =Kold!BE43 -> 0 | F102: =Kold!BF43*1000 -> 0 | G102: =Kold!BC43 -> -1400 | H102: =Kold!BD43 -> 0 | K102: a | L102: =(L49*L86)/(L93*L32) -> 0.4849001159 | M102: =(L50*M86)/(L94*M32) -> 1.822235268 | AB102: 360 | AD102: 130 | AI102: 1116 | AJ102: 145080 | AK102: 401760 | AL102: 18860400 | AM102: 144633600 | AN102: 52228800 | AO102: 100000 | AP102: 21310319.91 | AQ102: 182504.6828
E103: =Kold!BE44 -> 0 | F103: =Kold!BF44*1000 -> 0 | G103: =Kold!BC44 -> -1400 | H103: =Kold!BD44 -> 0 | K103: L | L103: =Kold!E33 -> 9.6 | M103: =L103 -> 9.6 | AB103: 455 | AD103: 130 | AI103: 1116 | AJ103: 145080 | AK103: 507780 | AL103: 18860400 | AM103: 231039900 | AN103: 66011400 | AO103: 100000 | AP103: 21310319.91 | AQ103: 9682504.683
E104: =Kold!BE45 -> 93 | F104: =Kold!BF45*1000 -> 100000 | G104: =Kold!BC45 -> 265 | H104: =Kold!BD45 -> 130 | K104: a' | L104: =0.5*L103-F77 -> 2.9 | M104: =L104 -> 2.9 | AB104: -1400 | AD104: 130 | AI104: 0 | AJ104: 0 | AK104: 0 | AL104: 0 | AM104: 0 | AN104: 0 | AO104: 0 | AP104: 0 | AQ104: 0
E105: =Kold!BE46 -> 93 | F105: =Kold!BF46*1000 -> 100000 | G105: =Kold!BC46 -> 360 | H105: =Kold!BD46 -> 130 | K105: faktor | L105: =(0.125*L102*L103^2+0.5*(1-L102)*L104*L103-0.5*(1-L102)*L104^2)/(0.125*L103^2) -> 0.9192920754 | M105: =(0.125*M102*M103^2+0.5*(1-M102)*M104*M103-0.5*(1-M102)*M104^2)/(0.125*M103^2) -> 1.128831134 | AB105: -1400 | AD105: 130 | AI105: 0 | AJ105: 0 | AK105: 0 | AL105: 0 | AM105: 0 | AN105: 0 | AO105: 0 | AP105: 0 | AQ105: 0
E106: =Kold!BE47 -> 93 | F106: =Kold!BF47*1000 -> 100000 | G106: =Kold!BC47 -> 455 | H106: =Kold!BD47 -> 130 | AB106: -1400 | AD106: 130 | AI106: 0 | AJ106: 0 | AK106: 0 | AL106: 0 | AM106: 0 | AN106: 0 | AO106: 0 | AP106: 0 | AQ106: 0
E107: =Kold!BE48 -> 0 | F107: =Kold!BF48*1000 -> 0 | G107: =Kold!BC48 -> -1400 | H107: =Kold!BD48 -> 130 | AB107: -1400 | AD107: 130 | AI107: 0 | AJ107: 0 | AK107: 0 | AL107: 0 | AM107: 0 | AN107: 0 | AO107: 0 | AP107: 0 | AQ107: 0
E108: =Kold!BE49 -> 0 | F108: =Kold!BF49*1000 -> 0 | G108: =Kold!BC49 -> -1400 | H108: =Kold!BD49 -> 130 | AB108: -1400 | AD108: 130 | AI108: 0 | AJ108: 0 | AK108: 0 | AL108: 0 | AM108: 0 | AN108: 0 | AO108: 0 | AP108: 0 | AQ108: 0
E109: =Kold!BE50 -> 0 | F109: =Kold!BF50*1000 -> 0 | G109: =Kold!BC50 -> -1400 | H109: =Kold!BD50 -> 130 | AB109: -1400 | AD109: 130 | AI109: 0 | AJ109: 0 | AK109: 0 | AL109: 0 | AM109: 0 | AN109: 0 | AO109: 0 | AP109: 0 | AQ109: 0
E110: =Kold!BE51 -> 0 | F110: =Kold!BF51*1000 -> 0 | G110: =Kold!BC51 -> -1400 | H110: =Kold!BD51 -> 130 | AB110: -1400 | AD110: 130 | AI110: 0 | AJ110: 0 | AK110: 0 | AL110: 0 | AM110: 0 | AN110: 0 | AO110: 0 | AP110: 0 | AQ110: 0
E111: =Kold!BE52 -> 0 | F111: =Kold!BF52*1000 -> 0 | G111: =Kold!BC52 -> -1400 | H111: =Kold!BD52 -> 130 | AB111: 265 | AD111: 90 | AI111: 1116 | AJ111: 100440 | AK111: 295740 | AL111: 9039600 | AM111: 78371100 | AN111: 26616600 | AO111: 100000 | AP111: 25310319.91 | AQ111: -9317495.317
E112: =Kold!BE53 -> 0 | F112: =Kold!BF53*1000 -> 0 | G112: =Kold!BC53 -> -1400 | H112: =Kold!BD53 -> 130 | AB112: 360 | AD112: 90 | AI112: 1116 | AJ112: 100440 | AK112: 401760 | AL112: 9039600 | AM112: 144633600 | AN112: 36158400 | AO112: 100000 | AP112: 25310319.91 | AQ112: 182504.6828
E113: =Kold!BE54 -> 0 | F113: =Kold!BF54*1000 -> 0 | G113: =Kold!BC54 -> -1400 | H113: =Kold!BD54 -> 130 | AB113: 455 | AD113: 90 | AI113: 1116 | AJ113: 100440 | AK113: 507780 | AL113: 9039600 | AM113: 231039900 | AN113: 45700200 | AO113: 100000 | AP113: 25310319.91 | AQ113: 9682504.683
E114: =Kold!BE55 -> 93 | F114: =Kold!BF55*1000 -> 100000 | G114: =Kold!BC55 -> 265 | H114: =Kold!BD55 -> 90 | AB114: -1400 | AD114: 90 | AI114: 0 | AJ114: 0 | AK114: 0 | AL114: 0 | AM114: 0 | AN114: 0 | AO114: 0 | AP114: 0 | AQ114: 0
E115: =Kold!BE56 -> 93 | F115: =Kold!BF56*1000 -> 100000 | G115: =Kold!BC56 -> 360 | H115: =Kold!BD56 -> 90 | AB115: -1400 | AD115: 90 | AI115: 0 | AJ115: 0 | AK115: 0 | AL115: 0 | AM115: 0 | AN115: 0 | AO115: 0 | AP115: 0 | AQ115: 0
E116: =Kold!BE57 -> 93 | F116: =Kold!BF57*1000 -> 100000 | G116: =Kold!BC57 -> 455 | H116: =Kold!BD57 -> 90 | AB116: -1400 | AD116: 90 | AI116: 0 | AJ116: 0 | AK116: 0 | AL116: 0 | AM116: 0 | AN116: 0 | AO116: 0 | AP116: 0 | AQ116: 0
E117: =Kold!BE58 -> 0 | F117: =Kold!BF58*1000 -> 0 | G117: =Kold!BC58 -> -1400 | H117: =Kold!BD58 -> 90 | AB117: -1400 | AD117: 90 | AI117: 0 | AJ117: 0 | AK117: 0 | AL117: 0 | AM117: 0 | AN117: 0 | AO117: 0 | AP117: 0 | AQ117: 0
E118: =Kold!BE59 -> 0 | F118: =Kold!BF59*1000 -> 0 | G118: =Kold!BC59 -> -1400 | H118: =Kold!BD59 -> 90 | AB118: -1400 | AD118: 90 | AI118: 0 | AJ118: 0 | AK118: 0 | AL118: 0 | AM118: 0 | AN118: 0 | AO118: 0 | AP118: 0 | AQ118: 0
E119: =Kold!BE60 -> 0 | F119: =Kold!BF60*1000 -> 0 | G119: =Kold!BC60 -> -1400 | H119: =Kold!BD60 -> 90 | AB119: -1400 | AD119: 90 | AI119: 0 | AJ119: 0 | AK119: 0 | AL119: 0 | AM119: 0 | AN119: 0 | AO119: 0 | AP119: 0 | AQ119: 0
E120: =Kold!BE61 -> 0 | F120: =Kold!BF61*1000 -> 0 | G120: =Kold!BC61 -> -1400 | H120: =Kold!BD61 -> 90 | AB120: -1400 | AD120: 90 | AI120: 0 | AJ120: 0 | AK120: 0 | AL120: 0 | AM120: 0 | AN120: 0 | AO120: 0 | AP120: 0 | AQ120: 0
E121: =Kold!BE62 -> 0 | F121: =Kold!BF62*1000 -> 0 | G121: =Kold!BC62 -> -1400 | H121: =Kold!BD62 -> 90 | AB121: 265 | AD121: 50 | AI121: 1116 | AJ121: 55800 | AK121: 295740 | AL121: 2790000 | AM121: 78371100 | AN121: 14787000 | AO121: 100000 | AP121: 29310319.91 | AQ121: -9317495.317
E122: =Kold!BE63 -> 0 | F122: =Kold!BF63*1000 -> 0 | G122: =Kold!BC63 -> -1400 | H122: =Kold!BD63 -> 90 | AB122: 336.25 | AD122: 50 | AI122: 1116 | AJ122: 55800 | AK122: 375255 | AL122: 2790000 | AM122: 126179493.8 | AN122: 18762750 | AO122: 100000 | AP122: 29310319.91 | AQ122: -2192495.317
E123: =Kold!BE64 -> 0 | F123: =Kold!BF64*1000 -> 0 | G123: =Kold!BC64 -> -1400 | H123: =Kold!BD64 -> 90 | AB123: 407.5 | AD123: 50 | AI123: 1116 | AJ123: 55800 | AK123: 454770 | AL123: 2790000 | AM123: 185318775 | AN123: 22738500 | AO123: 100000 | AP123: 29310319.91 | AQ123: 4932504.683
E124: =Kold!BE65 -> 93 | F124: =Kold!BF65*1000 -> 100000 | G124: =Kold!BC65 -> 265 | H124: =Kold!BD65 -> 50 | AB124: 478.75 | AD124: 50 | AI124: 1116 | AJ124: 55800 | AK124: 534285 | AL124: 2790000 | AM124: 255788943.8 | AN124: 26714250 | AO124: 100000 | AP124: 29310319.91 | AQ124: 12057504.68
E125: =Kold!BE66 -> 93 | F125: =Kold!BF66*1000 -> 100000 | G125: =Kold!BC66 -> 336.25 | H125: =Kold!BD66 -> 50 | AB125: 550 | AD125: 50 | AI125: 1116 | AJ125: 55800 | AK125: 613800 | AL125: 2790000 | AM125: 337590000 | AN125: 30690000 | AO125: 100000 | AP125: 29310319.91 | AQ125: 19182504.68
E126: =Kold!BE67 -> 93 | F126: =Kold!BF67*1000 -> 100000 | G126: =Kold!BC67 -> 407.5 | H126: =Kold!BD67 -> 50 | AB126: -1400 | AD126: 50 | AI126: 0 | AJ126: 0 | AK126: 0 | AL126: 0 | AM126: 0 | AN126: 0 | AO126: 0 | AP126: 0 | AQ126: 0
E127: =Kold!BE68 -> 93 | F127: =Kold!BF68*1000 -> 100000 | G127: =Kold!BC68 -> 478.75 | H127: =Kold!BD68 -> 50 | AB127: -1400 | AD127: 50 | AI127: 0 | AJ127: 0 | AK127: 0 | AL127: 0 | AM127: 0 | AN127: 0 | AO127: 0 | AP127: 0 | AQ127: 0
E128: =Kold!BE69 -> 93 | F128: =Kold!BF69*1000 -> 100000 | G128: =Kold!BC69 -> 550 | H128: =Kold!BD69 -> 50 | AB128: -1400 | AD128: 50 | AI128: 0 | AJ128: 0 | AK128: 0 | AL128: 0 | AM128: 0 | AN128: 0 | AO128: 0 | AP128: 0 | AQ128: 0
E129: =Kold!BE70 -> 0 | F129: =Kold!BF70*1000 -> 0 | G129: =Kold!BC70 -> -1400 | H129: =Kold!BD70 -> 50 | AB129: -1400 | AD129: 50 | AI129: 0 | AJ129: 0 | AK129: 0 | AL129: 0 | AM129: 0 | AN129: 0 | AO129: 0 | AP129: 0 | AQ129: 0
E130: =Kold!BE71 -> 0 | F130: =Kold!BF71*1000 -> 0 | G130: =Kold!BC71 -> -1400 | H130: =Kold!BD71 -> 50 | AB130: -1400 | AD130: 50 | AI130: 0 | AJ130: 0 | AK130: 0 | AL130: 0 | AM130: 0 | AN130: 0 | AO130: 0 | AP130: 0 | AQ130: 0
E131: =Kold!BE72 -> 0 | F131: =Kold!BF72*1000 -> 0 | G131: =Kold!BC72 -> -1400 | H131: =Kold!BD72 -> 50 | AB131: =-0.2*MAX(AB60:AB80) -> -156 | AE131: =$L$53+TAN($L$52)*(AB131-$L$54) -> 138.231137 | AI131: =SUM(AI5:AI24)+SUM(AI81:AI130) -> 271204 | AJ131: 93050960 | AK131: 97138480 | AL131: 4.488704333e+10 | AM131: 3.956176537e+10 | AN131: 29462863600 | AO131: =SUM(AO81:AO130) -> 1900000 | AP131: =SUM(AP81:AP130) -> 120896078.2 | AQ131: =SUM(AQ81:AQ130) -> -21282411.03
E132: =Kold!BE73 -> 0 | F132: =Kold!BF73*1000 -> 0 | G132: =Kold!BC73 -> -1400 | H132: =Kold!BD73 -> 50
E133: =Kold!BE74 -> 0 | F133: =Kold!BF74*1000 -> 0 | G133: =Kold!BC74 -> -1400 | H133: =Kold!BD74 -> 50

Sheet Kold2
B3: Nedbøjninger | K3: p/P | L3: x1 | M3: x2 | N3: R1 | O3: R2 | P3: 0 | Q3: 1 | R3: 2 | S3: 3 | T3: 4 | U3: 5 | V3: 6 | W3: 7 | X3: 8 | Y3: 9 | Z3: 10 | AA3: 11 | AB3: 12 | AC3: 13 | AD3: 14 | AE3: 15 | AF3: 16 | AG3: 17 | AH3: 18 | AI3: 19 | AJ3: 20 | AK3: 21 | AL3: 22 | AM3: 23 | AN3: 24 | AO3: 25 | AP3: 26 | AQ3: 27 | AR3: 28 | AS3: 29 | AT3: 30 | AU3: 31 | AV3: 32 | AW3: 33 | AX3: 34 | AY3: 35 | AZ3: 36 | BA3: 37 | BB3: 38 | BC3: 39 | BD3: 40 | BI3: Snitpunkt
B4: L | C4: (m) | D4: =Kold!E33 -> 9.6 | P4: 0 | Q4: =Q3*($BD$4-$P$4)/40 -> 0.24 | R4: 0.48 | S4: 0.72 | T4: 0.96 | U4: 1.2 | V4: 1.44 | W4: 1.68 | X4: 1.92 | Y4: 2.16 | Z4: 2.4 | AA4: 2.64 | AB4: 2.88 | AC4: 3.12 | AD4: 3.36 | AE4: 3.6 | AF4: 3.84 | AG4: 4.08 | AH4: 4.32 | AI4: 4.56 | AJ4: 4.8 | AK4: 5.04 | AL4: 5.28 | AM4: 5.52 | AN4: 5.76 | AO4: 6 | AP4: 6.24 | AQ4: 6.48 | AR4: 6.72 | AS4: 6.96 | AT4: 7.2 | AU4: 7.44 | AV4: 7.68 | AW4: 7.92 | AX4: 8.16 | AY4: 8.4 | AZ4: 8.64 | BA4: 8.88 | BB4: 9.12 | BC4: 9.36 | BD4: =$D$4 -> 9.6 | BE4: =L18 -> 0 | BF4: =L22 -> 0 | BG4: =L26 -> 0 | BI4: =Kold!R31 -> 4.8
B5: EI_L | C5: (kNm2) | D5: =Kold!R29*200000/((1+Kold!W10)*Kold!W27) -> 1.970953992e+14
B6: EI_k | C6: (kNm2) | D6: =Kold!R29*200000/(Kold!W27) -> 5.379815802e+14 | I6: p1 | J6: L | K6: =D12 -> 43 | L6: =D16 -> 0 | M6: =D17 -> 9.6 | N6: =(M6-L6)*K6-O6 -> 206.4 | O6: =0.5*K6*(M6^2-L6^2)/$D$4 -> 206.4 | P6: =$N6*P$4-IF(P$4>$L6,0.5*($L6-P$4)^2*$K6)+IF(P$4>$M6,0.5*(P$4-$M6)^2*$K6) -> 0 | Q6: 48.2976 | R6: 94.1184 | S6: 137.4624 | T6: 178.3296 | U6: 216.72 | V6: 252.6336 | W6: 286.0704 | X6: 317.0304 | Y6: 345.5136 | Z6: =$N6*Z$4-IF(Z$4>$L6,0.5*($L6-Z$4)^2*$K6)+IF(Z$4>$M6,0.5*(Z$4-$M6)^2*$K6) -> 371.52 | AA6: 395.0496 | AB6: 416.1024 | AC6: 434.6784 | AD6: 450.7776 | AE6: 464.4 | AF6: 475.5456 | AG6: 484.2144 | AH6: 490.4064 | AI6: 494.1216 | AJ6: =$N6*AJ$4-IF(AJ$4>$L6,0.5*($L6-AJ$4)^2*$K6)+IF(AJ$4>$M6,0.5*(AJ$4-$M6)^2*$K6) -> 495.36 | AK6: 494.1216 | AL6: 490.4064 | AM6: 484.2144 | AN6: 475.5456 | AO6: 464.4 | AP6: 450.7776 | AQ6: 434.6784 | AR6: 416.1024 | AS6: 395.0496 | AT6: =$N6*AT$4-IF(AT$4>$L6,0.5*($L6-AT$4)^2*$K6)+IF(AT$4>$M6,0.5*(AT$4-$M6)^2*$K6) -> 371.52 | AU6: 345.5136 | AV6: 317.0304 | AW6: 286.0704 | AX6: 252.6336 | AY6: 216.72 | AZ6: 178.3296 | BA6: 137.4624 | BB6: 94.1184 | BC6: 48.2976 | BD6: 4.547473509e-13 | BE6: 0 | BF6: 0 | BG6: 0 | BI6: 495.36
B7: u_L | C7: (mm) | D7: =1000*MAX(P70:BD70) -> 2.41035588e-08 | I7: p1 | J7: K | K7: =D13 -> 48 | L7: =D16 -> 0 | M7: =D17 -> 9.6 | N7: =(M7-L7)*K7-O7 -> 230.4 | O7: =0.5*K7*(M7^2-L7^2)/$D$4 -> 230.4 | P7: 0 | Q7: 53.9136 | R7: 105.0624 | S7: 153.4464 | T7: 199.0656 | U7: 241.92 | V7: 282.0096 | W7: 319.3344 | X7: 353.8944 | Y7: 385.6896 | Z7: 414.72 | AA7: 440.9856 | AB7: 464.4864 | AC7: 485.2224 | AD7: 503.1936 | AE7: 518.4 | AF7: 530.8416 | AG7: 540.5184 | AH7: 547.4304 | AI7: 551.5776 | AJ7: 552.96 | AK7: 551.5776 | AL7: 547.4304 | AM7: 540.5184 | AN7: 530.8416 | AO7: 518.4 | AP7: 503.1936 | AQ7: 485.2224 | AR7: 464.4864 | AS7: 440.9856 | AT7: 414.72 | AU7: 385.6896 | AV7: 353.8944 | AW7: 319.3344 | AX7: 282.0096 | AY7: 241.92 | AZ7: 199.0656 | BA7: 153.4464 | BB7: 105.0624 | BC7: 53.9136 | BD7: -9.094947018e-13 | BE7: 0 | BF7: 0 | BG7: 0 | BI7: 552.96
B8: u_k | C8: (mm) | D8: =1000*MAX(P74:BD74) -> 2.513037284e-08 | I8: p1 | J8: d | K8: =D14 -> 55 | L8: =D16 -> 0 | M8: =D17 -> 9.6 | N8: =(M8-L8)*K8-O8 -> 264 | O8: =0.5*K8*(M8^2-L8^2)/$D$4 -> 264 | P8: 0 | Q8: 61.776 | R8: 120.384 | S8: 175.824 | T8: 228.096 | U8: 277.2 | V8: 323.136 | W8: 365.904 | X8: 405.504 | Y8: 441.936 | Z8: 475.2 | AA8: 505.296 | AB8: 532.224 | AC8: 555.984 | AD8: 576.576 | AE8: 594 | AF8: 608.256 | AG8: 619.344 | AH8: 627.264 | AI8: 632.016 | AJ8: 633.6 | AK8: 632.016 | AL8: 627.264 | AM8: 619.344 | AN8: 608.256 | AO8: 594 | AP8: 576.576 | AQ8: 555.984 | AR8: 532.224 | AS8: 505.296 | AT8: 475.2 | AU8: 441.936 | AV8: 405.504 | AW8: 365.904 | AX8: 323.136 | AY8: 277.2 | AZ8: 228.096 | BA8: 175.824 | BB8: 120.384 | BC8: 61.776 | BD8: 0 | BE8: 0 | BF8: 0 | BG8: 0 | BI8: 633.6
I10: p2 | J10: L | K10: =E12 -> 0 | L10: =E16 -> 0 | M10: =E17 -> 0 | N10: =(M10-L10)*K10-O10 -> 0 | O10: =0.5*K10*(M10^2-L10^2)/$D$4 -> 0 | P10: =$N10*P$4-IF(P$4>$L10,0.5*($L10-P$4)^2*$K10)+IF(P$4>$M10,0.5*(P$4-$M10)^2*$K10)+IF(P$4>$D$4,(P$4-$D$4)*$O10) -> 0 | Q10: =$N10*Q$4-IF(Q$4>$L10,0.5*($L10-Q$4)^2*$K10)+IF(Q$4>$M10,0.5*(Q$4-$M10)^2*$K10) -> 0 | R10: 0 | S10: 0 | T10: 0 | U10: 0 | V10: 0 | W10: 0 | X10: 0 | Y10: 0 | Z10: 0 | AA10: =$N10*AA$4-IF(AA$4>$L10,0.5*($L10-AA$4)^2*$K10)+IF(AA$4>$M10,0.5*(AA$4-$M10)^2*$K10) -> 0 | AB10: 0 | AC10: 0 | AD10: 0 | AE10: 0 | AF10: 0 | AG10: 0 | AH10: 0 | AI10: 0 | AJ10: 0 | AK10: =$N10*AK$4-IF(AK$4>$L10,0.5*($L10-AK$4)^2*$K10)+IF(AK$4>$M10,0.5*(AK$4-$M10)^2*$K10) -> 0 | AL10: 0 | AM10: 0 | AN10: 0 | AO10: 0 | AP10: 0 | AQ10: 0 | AR10: 0 | AS10: 0 | AT10: 0 | AU10: =$N10*AU$4-IF(AU$4>$L10,0.5*($L10-AU$4)^2*$K10)+IF(AU$4>$M10,0.5*(AU$4-$M10)^2*$K10) -> 0 | AV10: 0 | AW10: 0 | AX10: 0 | AY10: 0 | AZ10: 0 | BA10: 0 | BB10: 0 | BC10: 0 | BD10: 0 | BE10: 0 | BF10: 0 | BG10: 0 | BI10: 0
B11: Jævnt fordelte laste | D11: p1 | E11: p2 | F11: p3 | I11: p2 | J11: K | K11: =E13 -> 0 | L11: =E16 -> 0 | M11: =E17 -> 0 | N11: =(M11-L11)*K11-O11 -> 0 | O11: =0.5*K11*(M11^2-L11^2)/$D$4 -> 0 | P11: =$N11*P$4-IF(P$4>$L11,0.5*($L11-P$4)^2*$K11)+IF(P$4>$M11,0.5*(P$4-$M11)^2*$K11)+IF(P$4>$D$4,(P$4-$D$4)*$O11) -> 0 | Q11: 0 | R11: 0 | S11: 0 | T11: 0 | U11: 0 | V11: 0 | W11: 0 | X11: 0 | Y11: 0 | Z11: 0 | AA11: 0 | AB11: 0 | AC11: 0 | AD11: 0 | AE11: 0 | AF11: 0 | AG11: 0 | AH11: 0 | AI11: 0 | AJ11: 0 | AK11: 0 | AL11: 0 | AM11: 0 | AN11: 0 | AO11: 0 | AP11: 0 | AQ11: 0 | AR11: 0 | AS11: 0 | AT11: 0 | AU11: 0 | AV11: 0 | AW11: 0 | AX11: 0 | AY11: 0 | AZ11: 0 | BA11: 0 | BB11: 0 | BC11: 0 | BD11: 0 | BE11: 0 | BF11: 0 | BG11: 0 | BI11: 0
B12: Langtidsværdi | C12: (kN/m) | D12: =Kold!D23 -> 43 | E12: =Kold!E23 -> 0 | F12: =Kold!F23 -> 0 | I12: p2 | J12: d | K12: =E14 -> 0 | L12: =E16 -> 0 | M12: =E17 -> 0 | N12: =(M12-L12)*K12-O12 -> 0 | O12: =0.5*K12*(M12^2-L12^2)/$D$4 -> 0 | P12: =$N12*P$4-IF(P$4>$L12,0.5*($L12-P$4)^2*$K12)+IF(P$4>$M12,0.5*(P$4-$M12)^2*$K12)+IF(P$4>$D$4,(P$4-$D$4)*$O12) -> 0 | Q12: 0 | R12: 0 | S12: 0 | T12: 0 | U12: 0 | V12: 0 | W12: 0 | X12: 0 | Y12: 0 | Z12: 0 | AA12: 0 | AB12: 0 | AC12: 0 | AD12: 0 | AE12: 0 | AF12: 0 | AG12: 0 | AH12: 0 | AI12: 0 | AJ12: 0 | AK12: 0 | AL12: 0 | AM12: 0 | AN12: 0 | AO12: 0 | AP12: 0 | AQ12: 0 | AR12: 0 | AS12: 0 | AT12: 0 | AU12: 0 | AV12: 0 | AW12: 0 | AX12: 0 | AY12: 0 | AZ12: 0 | BA12: 0 | BB12: 0 | BC12: 0 | BD12: 0 | BE12: 0 | BF12: 0 | BG12: 0 | BI12: 0
B13: Kar. Værdi | C13: (kN/m) | D13: =Kold!D24 -> 48 | E13: =Kold!E24 -> 0 | F13: =Kold!F24 -> 0
B14: Regnm. Værdi | C14: (kN/m) | D14: =Kold!D25 -> 55 | E14: =Kold!E25 -> 0 | F14: =Kold!F25 -> 0 | I14: p3 | J14: L | K14: =F12 -> 0 | L14: =F16 -> 0 | M14: =F17 -> 0 | N14: =(M14-L14)*K14-O14 -> 0 | O14: =0.5*K14*(M14^2-L14^2)/$D$4 -> 0 | P14: =$N14*P$4-IF(P$4>$L14,0.5*($L14-P$4)^2*$K14)+IF(P$4>$M14,0.5*(P$4-$M14)^2*$K14)+IF(P$4>$D$4,(P$4-$D$4)*$O14) -> 0 | Q14: =$N14*Q$4-IF(Q$4>$L14,0.5*($L14-Q$4)^2*$K14)+IF(Q$4>$M14,0.5*(Q$4-$M14)^2*$K14) -> 0 | R14: 0 | S14: 0 | T14: 0 | U14: 0 | V14: 0 | W14: 0 | X14: 0 | Y14: 0 | Z14: 0 | AA14: =$N14*AA$4-IF(AA$4>$L14,0.5*($L14-AA$4)^2*$K14)+IF(AA$4>$M14,0.5*(AA$4-$M14)^2*$K14) -> 0 | AB14: 0 | AC14: 0 | AD14: 0 | AE14: 0 | AF14: 0 | AG14: 0 | AH14: 0 | AI14: 0 | AJ14: 0 | AK14: =$N14*AK$4-IF(AK$4>$L14,0.5*($L14-AK$4)^2*$K14)+IF(AK$4>$M14,0.5*(AK$4-$M14)^2*$K14) -> 0 | AL14: 0 | AM14: 0 | AN14: 0 | AO14: 0 | AP14: 0 | AQ14: 0 | AR14: 0 | AS14: 0 | AT14: 0 | AU14: =$N14*AU$4-IF(AU$4>$L14,0.5*($L14-AU$4)^2*$K14)+IF(AU$4>$M14,0.5*(AU$4-$M14)^2*$K14) -> 0 | AV14: 0 | AW14: 0 | AX14: 0 | AY14: 0 | AZ14: 0 | BA14: 0 | BB14: 0 | BC14: 0 | BD14: 0 | BE14: 0 | BF14: 0 | BG14: 0 | BI14: 0
B15: exc | C15: (m) | D15: =Kold!D26 -> 230 | E15: =Kold!E26 -> 0 | F15: =Kold!F26 -> 0 | I15: p3 | J15: K | K15: =F13 -> 0 | L15: =F16 -> 0 | M15: =F17 -> 0 | N15: =(M15-L15)*K15-O15 -> 0 | O15: =0.5*K15*(M15^2-L15^2)/$D$4 -> 0 | P15: =$N15*P$4-IF(P$4>$L15,0.5*($L15-P$4)^2*$K15)+IF(P$4>$M15,0.5*(P$4-$M15)^2*$K15)+IF(P$4>$D$4,(P$4-$D$4)*$O15) -> 0 | Q15: 0 | R15: 0 | S15: 0 | T15: 0 | U15: 0 | V15: 0 | W15: 0 | X15: 0 | Y15: 0 | Z15: 0 | AA15: 0 | AB15: 0 | AC15: 0 | AD15: 0 | AE15: 0 | AF15: 0 | AG15: 0 | AH15: 0 | AI15: 0 | AJ15: 0 | AK15: 0 | AL15: 0 | AM15: 0 | AN15: 0 | AO15: 0 | AP15: 0 | AQ15: 0 | AR15: 0 | AS15: 0 | AT15: 0 | AU15: 0 | AV15: 0 | AW15: 0 | AX15: 0 | AY15: 0 | AZ15: 0 | BA15: 0 | BB15: 0 | BC15: 0 | BD15: 0 | BE15: 0 | BF15: 0 | BG15: 0 | BI15: 0
B16: x1 | C16: (m) | D16: =Kold!D27 -> 0 | E16: =Kold!E27 -> 0 | F16: =Kold!F27 -> 0 | I16: p3 | J16: d | K16: =F14 -> 0 | L16: =F16 -> 0 | M16: =F17 -> 0 | N16: =(M16-L16)*K16-O16 -> 0 | O16: =0.5*K16*(M16^2-L16^2)/$D$4 -> 0 | P16: =$N16*P$4-IF(P$4>$L16,0.5*($L16-P$4)^2*$K16)+IF(P$4>$M16,0.5*(P$4-$M16)^2*$K16)+IF(P$4>$D$4,(P$4-$D$4)*$O16) -> 0 | Q16: 0 | R16: 0 | S16: 0 | T16: 0 | U16: 0 | V16: 0 | W16: 0 | X16: 0 | Y16: 0 | Z16: 0 | AA16: 0 | AB16: 0 | AC16: 0 | AD16: 0 | AE16: 0 | AF16: 0 | AG16: 0 | AH16: 0 | AI16: 0 | AJ16: 0 | AK16: 0 | AL16: 0 | AM16: 0 | AN16: 0 | AO16: 0 | AP16: 0 | AQ16: 0 | AR16: 0 | AS16: 0 | AT16: 0 | AU16: 0 | AV16: 0 | AW16: 0 | AX16: 0 | AY16: 0 | AZ16: 0 | BA16: 0 | BB16: 0 | BC16: 0 | BD16: 0 | BE16: 0 | BF16: 0 | BG16: 0 | BI16: 0
B17: x2 | C17: (m) | D17: =Kold!D28 -> 9.6 | E17: =Kold!E28 -> 0 | F17: =Kold!F28 -> 0
I18: P1 | J18: L | K18: =D20 -> 0 | L18: =D24 -> 0 | N18: =K18-O18 -> 0 | O18: =K18*L18/$D$4 -> 0 | P18: =$N18*P$4-IF(P$4>$L18,(P$4-$L18)*$K18) -> 0 | Q18: 0 | R18: 0 | S18: 0 | T18: 0 | U18: 0 | V18: 0 | W18: 0 | X18: 0 | Y18: 0 | Z18: =$N18*Z$4-IF(Z$4>$L18,(Z$4-$L18)*$K18) -> 0 | AA18: 0 | AB18: 0 | AC18: 0 | AD18: 0 | AE18: 0 | AF18: 0 | AG18: 0 | AH18: 0 | AI18: 0 | AJ18: =$N18*AJ$4-IF(AJ$4>$L18,(AJ$4-$L18)*$K18) -> 0 | AK18: 0 | AL18: 0 | AM18: 0 | AN18: 0 | AO18: 0 | AP18: 0 | AQ18: 0 | AR18: 0 | AS18: 0 | AT18: =$N18*AT$4-IF(AT$4>$L18,(AT$4-$L18)*$K18) -> 0 | AU18: 0 | AV18: 0 | AW18: 0 | AX18: 0 | AY18: 0 | AZ18: 0 | BA18: 0 | BB18: 0 | BC18: 0 | BD18: 0 | BE18: 0 | BF18: 0 | BG18: 0 | BI18: 0
B19: Punktlaste | D19: P1 | E19: P2 | F19: P3 | I19: P1 | J19: K | K19: =D21 -> 0 | L19: =D24 -> 0 | N19: =K19-O19 -> 0 | O19: =K19*L19/$D$4 -> 0 | P19: 0 | Q19: 0 | R19: 0 | S19: 0 | T19: 0 | U19: 0 | V19: 0 | W19: 0 | X19: 0 | Y19: 0 | Z19: 0 | AA19: 0 | AB19: 0 | AC19: 0 | AD19: 0 | AE19: 0 | AF19: 0 | AG19: 0 | AH19: 0 | AI19: 0 | AJ19: 0 | AK19: 0 | AL19: 0 | AM19: 0 | AN19: 0 | AO19: 0 | AP19: 0 | AQ19: 0 | AR19: 0 | AS19: 0 | AT19: 0 | AU19: 0 | AV19: 0 | AW19: 0 | AX19: 0 | AY19: 0 | AZ19: 0 | BA19: 0 | BB19: 0 | BC19: 0 | BD19: 0 | BE19: 0 | BF19: 0 | BG19: 0 | BI19: 0
B20: Langtidsværdi | C20: (kN) | D20: =Kold!H23 -> 0 | E20: =Kold!I23 -> 0 | F20: =Kold!J23 -> 0 | I20: P1 | J20: d | K20: =D22 -> 0 | L20: =D24 -> 0 | N20: =K20-O20 -> 0 | O20: =K20*L20/$D$4 -> 0 | P20: 0 | Q20: 0 | R20: 0 | S20: 0 | T20: 0 | U20: 0 | V20: 0 | W20: 0 | X20: 0 | Y20: 0 | Z20: 0 | AA20: 0 | AB20: 0 | AC20: 0 | AD20: 0 | AE20: 0 | AF20: 0 | AG20: 0 | AH20: 0 | AI20: 0 | AJ20: 0 | AK20: 0 | AL20: 0 | AM20: 0 | AN20: 0 | AO20: 0 | AP20: 0 | AQ20: 0 | AR20: 0 | AS20: 0 | AT20: 0 | AU20: 0 | AV20: 0 | AW20: 0 | AX20: 0 | AY20: 0 | AZ20: 0 | BA20: 0 | BB20: 0 | BC20: 0 | BD20: 0 | BE20: 0 | BF20: 0 | BG20: 0 | BI20: 0
B21: Kar. værdi | C21: (kN) | D21: =Kold!H24 -> 0 | E21: =Kold!I24 -> 0 | F21: =Kold!J24 -> 0
B22: Regnm. værdi | C22: (kN) | D22: =Kold!H25 -> 0 | E22: =Kold!I25 -> 0 | F22: =Kold!J25 -> 0 | I22: P2 | J22: L | K22: =E20 -> 0 | L22: =E24 -> 0 | N22: =K22-O22 -> 0 | O22: =K22*L22/$D$4 -> 0 | P22: =$N22*P$4-IF(P$4>$L22,(P$4-$L22)*$K22) -> 0 | Q22: 0 | R22: 0 | S22: 0 | T22: 0 | U22: 0 | V22: 0 | W22: 0 | X22: 0 | Y22: 0 | Z22: =$N22*Z$4-IF(Z$4>$L22,(Z$4-$L22)*$K22) -> 0 | AA22: 0 | AB22: 0 | AC22: 0 | AD22: 0 | AE22: 0 | AF22: 0 | AG22: 0 | AH22: 0 | AI22: 0 | AJ22: =$N22*AJ$4-IF(AJ$4>$L22,(AJ$4-$L22)*$K22) -> 0 | AK22: 0 | AL22: 0 | AM22: 0 | AN22: 0 | AO22: 0 | AP22: 0 | AQ22: 0 | AR22: 0 | AS22: 0 | AT22: =$N22*AT$4-IF(AT$4>$L22,(AT$4-$L22)*$K22) -> 0 | AU22: 0 | AV22: 0 | AW22: 0 | AX22: 0 | AY22: 0 | AZ22: 0 | BA22: 0 | BB22: 0 | BC22: 0 | BD22: 0 | BE22: 0 | BF22: 0 | BG22: 0 | BI22: 0
B23: exc | C23: (m) | D23: =Kold!H26 -> 0 | E23: =Kold!I26 -> 0 | F23: =Kold!J26 -> 0 | I23: P2 | J23: K | K23: =E21 -> 0 | L23: =E24 -> 0 | N23: =K23-O23 -> 0 | O23: =K23*L23/$D$4 -> 0 | P23: 0 | Q23: 0 | R23: 0 | S23: 0 | T23: 0 | U23: 0 | V23: 0 | W23: 0 | X23: 0 | Y23: 0 | Z23: 0 | AA23: 0 | AB23: 0 | AC23: 0 | AD23: 0 | AE23: 0 | AF23: 0 | AG23: 0 | AH23: 0 | AI23: 0 | AJ23: 0 | AK23: 0 | AL23: 0 | AM23: 0 | AN23: 0 | AO23: 0 | AP23: 0 | AQ23: 0 | AR23: 0 | AS23: 0 | AT23: 0 | AU23: 0 | AV23: 0 | AW23: 0 | AX23: 0 | AY23: 0 | AZ23: 0 | BA23: 0 | BB23: 0 | BC23: 0 | BD23: 0 | BE23: 0 | BF23: 0 | BG23: 0 | BI23: 0
B24: x | C24: (m) | D24: =Kold!H27 -> 0 | E24: =Kold!I27 -> 0 | F24: =Kold!J27 -> 0 | I24: P2 | J24: d | K24: =E22 -> 0 | L24: =E24 -> 0 | N24: =K24-O24 -> 0 | O24: =K24*L24/$D$4 -> 0 | P24: 0 | Q24: 0 | R24: 0 | S24: 0 | T24: 0 | U24: 0 | V24: 0 | W24: 0 | X24: 0 | Y24: 0 | Z24: 0 | AA24: 0 | AB24: 0 | AC24: 0 | AD24: 0 | AE24: 0 | AF24: 0 | AG24: 0 | AH24: 0 | AI24: 0 | AJ24: 0 | AK24: 0 | AL24: 0 | AM24: 0 | AN24: 0 | AO24: 0 | AP24: 0 | AQ24: 0 | AR24: 0 | AS24: 0 | AT24: 0 | AU24: 0 | AV24: 0 | AW24: 0 | AX24: 0 | AY24: 0 | AZ24: 0 | BA24: 0 | BB24: 0 | BC24: =$N24*BC$4-IF(BC$4>$L24,(BC$4-$L24)*$K24) -> 0 | BD24: 0 | BE24: 0 | BF24: 0 | BG24: 0 | BI24: 0
B26: Inddatatest | C26: =Kold!BO48 -> 1 | D26: =IF(C26=1,0,1) -> 0 | I26: P3 | J26: L | K26: =F20 -> 0 | L26: =F24 -> 0 | N26: =K26-O26 -> 0 | O26: =K26*L26/$D$4 -> 0 | P26: =$N26*P$4-IF(P$4>$L26,(P$4-$L26)*$K26) -> 0 | Q26: 0 | R26: 0 | S26: 0 | T26: 0 | U26: 0 | V26: 0 | W26: 0 | X26: 0 | Y26: 0 | Z26: =$N26*Z$4-IF(Z$4>$L26,(Z$4-$L26)*$K26) -> 0 | AA26: 0 | AB26: 0 | AC26: 0 | AD26: 0 | AE26: 0 | AF26: 0 | AG26: 0 | AH26: 0 | AI26: 0 | AJ26: =$N26*AJ$4-IF(AJ$4>$L26,(AJ$4-$L26)*$K26) -> 0 | AK26: 0 | AL26: 0 | AM26: 0 | AN26: 0 | AO26: 0 | AP26: 0 | AQ26: 0 | AR26: 0 | AS26: 0 | AT26: =$N26*AT$4-IF(AT$4>$L26,(AT$4-$L26)*$K26) -> 0 | AU26: 0 | AV26: 0 | AW26: 0 | AX26: 0 | AY26: 0 | AZ26: 0 | BA26: 0 | BB26: 0 | BC26: 0 | BD26: 0 | BE26: 0 | BF26: 0 | BG26: 0 | BI26: 0
I27: P3 | J27: K | K27: =F21 -> 0 | L27: =F24 -> 0 | N27: =K27-O27 -> 0 | O27: =K27*L27/$D$4 -> 0 | P27: 0 | Q27: 0 | R27: 0 | S27: 0 | T27: 0 | U27: 0 | V27: 0 | W27: 0 | X27: 0 | Y27: 0 | Z27: 0 | AA27: 0 | AB27: 0 | AC27: 0 | AD27: 0 | AE27: 0 | AF27: 0 | AG27: 0 | AH27: 0 | AI27: 0 | AJ27: 0 | AK27: 0 | AL27: 0 | AM27: 0 | AN27: 0 | AO27: 0 | AP27: 0 | AQ27: 0 | AR27: 0 | AS27: 0 | AT27: 0 | AU27: 0 | AV27: 0 | AW27: 0 | AX27: 0 | AY27: 0 | AZ27: 0 | BA27: 0 | BB27: 0 | BC27: 0 | BD27: 0 | BE27: 0 | BF27: 0 | BG27: 0 | BI27: 0
I28: P3 | J28: d | K28: =F22 -> 0 | L28: =F24 -> 0 | N28: =K28-O28 -> 0 | O28: =K28*L28/$D$4 -> 0 | P28: 0 | Q28: 0 | R28: 0 | S28: 0 | T28: 0 | U28: 0 | V28: 0 | W28: 0 | X28: 0 | Y28: 0 | Z28: 0 | AA28: 0 | AB28: 0 | AC28: 0 | AD28: 0 | AE28: 0 | AF28: 0 | AG28: 0 | AH28: 0 | AI28: 0 | AJ28: 0 | AK28: 0 | AL28: 0 | AM28: 0 | AN28: 0 | AO28: 0 | AP28: 0 | AQ28: 0 | AR28: 0 | AS28: 0 | AT28: 0 | AU28: 0 | AV28: 0 | AW28: 0 | AX28: 0 | AY28: 0 | AZ28: 0 | BA28: 0 | BB28: 0 | BC28: 0 | BD28: 0 | BE28: 0 | BF28: 0 | BG28: 0 | BI28: 0
I30: MOMENTER | O30: punkt | P30: =P3 -> 0 | Q30: 1 | R30: 2 | S30: 3 | T30: 4 | U30: 5 | V30: 6 | W30: 7 | X30: 8 | Y30: 9 | Z30: 10 | AA30: 11 | AB30: 12 | AC30: 13 | AD30: 14 | AE30: 15 | AF30: 16 | AG30: 17 | AH30: 18 | AI30: 19 | AJ30: 20 | AK30: 21 | AL30: 22 | AM30: 23 | AN30: 24 | AO30: 25 | AP30: 26 | AQ30: 27 | AR30: 28 | AS30: 29 | AT30: 30 | AU30: 31 | AV30: 32 | AW30: 33 | AX30: 34 | AY30: 35 | AZ30: 36 | BA30: 37 | BB30: 38 | BC30: 39 | BD30: 40 | BE30: =BE4*40/$D$4 -> 0 | BF30: =BF4*40/$D$4 -> 0 | BG30: =BG4*40/$D$4 -> 0 | BI30: =BI3 -> Snitpunkt
O31: : | P31: =P6+P10+P14+P18+P22+P26 -> 0 | Q31: =Q6+Q10+Q14+Q18+Q22+Q26 -> 48.2976 | R31: 94.1184 | S31: 137.4624 | T31: 178.3296 | U31: 216.72 | V31: 252.6336 | W31: 286.0704 | X31: 317.0304 | Y31: 345.5136 | Z31: 371.52 | AA31: 395.0496 | AB31: 416.1024 | AC31: 434.6784 | AD31: 450.7776 | AE31: 464.4 | AF31: 475.5456 | AG31: 484.2144 | AH31: 490.4064 | AI31: 494.1216 | AJ31: 495.36 | AK31: 494.1216 | AL31: 490.4064 | AM31: 484.2144 | AN31: 475.5456 | AO31: 464.4 | AP31: 450.7776 | AQ31: 434.6784 | AR31: 416.1024 | AS31: 395.0496 | AT31: 371.52 | AU31: 345.5136 | AV31: 317.0304 | AW31: 286.0704 | AX31: 252.6336 | AY31: 216.72 | AZ31: 178.3296 | BA31: 137.4624 | BB31: 94.1184 | BC31: 48.2976 | BD31: 4.547473509e-13 | BE31: 0 | BF31: 0 | BG31: 0 | BI31: =BI6+BI10+BI14+BI18+BI22+BI26 -> 495.36
O32: : | P32: =P7+P11+P15+P19+P23+P27 -> 0 | Q32: 53.9136 | R32: 105.0624 | S32: 153.4464 | T32: 199.0656 | U32: 241.92 | V32: 282.0096 | W32: 319.3344 | X32: 353.8944 | Y32: 385.6896 | Z32: 414.72 | AA32: 440.9856 | AB32: 464.4864 | AC32: 485.2224 | AD32: 503.1936 | AE32: 518.4 | AF32: 530.8416 | AG32: 540.5184 | AH32: 547.4304 | AI32: 551.5776 | AJ32: 552.96 | AK32: 551.5776 | AL32: 547.4304 | AM32: 540.5184 | AN32: 530.8416 | AO32: 518.4 | AP32: 503.1936 | AQ32: 485.2224 | AR32: 464.4864 | AS32: 440.9856 | AT32: 414.72 | AU32: 385.6896 | AV32: 353.8944 | AW32: 319.3344 | AX32: 282.0096 | AY32: 241.92 | AZ32: 199.0656 | BA32: 153.4464 | BB32: 105.0624 | BC32: 53.9136 | BD32: -9.094947018e-13 | BE32: 0 | BF32: 0 | BG32: 0 | BI32: =BI7+BI11+BI15+BI19+BI23+BI27 -> 552.96
O33: : | P33: =P8+P12+P16+P20+P24+P28 -> 0 | Q33: 61.776 | R33: 120.384 | S33: 175.824 | T33: 228.096 | U33: 277.2 | V33: 323.136 | W33: 365.904 | X33: 405.504 | Y33: 441.936 | Z33: 475.2 | AA33: 505.296 | AB33: 532.224 | AC33: 555.984 | AD33: 576.576 | AE33: 594 | AF33: 608.256 | AG33: 619.344 | AH33: 627.264 | AI33: 632.016 | AJ33: 633.6 | AK33: 632.016 | AL33: 627.264 | AM33: 619.344 | AN33: 608.256 | AO33: 594 | AP33: 576.576 | AQ33: 555.984 | AR33: 532.224 | AS33: 505.296 | AT33: 475.2 | AU33: 441.936 | AV33: 405.504 | AW33: 365.904 | AX33: 323.136 | AY33: 277.2 | AZ33: 228.096 | BA33: 175.824 | BB33: 120.384 | BC33: 61.776 | BD33: 0 | BE33: 0 | BF33: 0 | BG33: 0 | BI33: =BI8+BI12+BI16+BI20+BI24+BI28 -> 633.6
K35: p/P | L35: x1 | M35: x2 | P35: 0 | Q35: 1 | R35: 2 | S35: 3 | T35: 4 | U35: 5 | V35: 6 | W35: 7 | X35: 8 | Y35: 9 | Z35: 10 | AA35: 11 | AB35: 12 | AC35: 13 | AD35: 14 | AE35: 15 | AF35: 16 | AG35: 17 | AH35: 18 | AI35: 19 | AJ35: 20 | AK35: 21 | AL35: 22 | AM35: 23 | AN35: 24 | AO35: 25 | AP35: 26 | AQ35: 27 | AR35: 28 | AS35: 29 | AT35: 30 | AU35: 31 | AV35: 32 | AW35: 33 | AX35: 34 | AY35: 35 | AZ35: 36 | BA35: 37 | BB35: 38 | BC35: 39 | BD35: 40 | BJ35: hi cot 0 | BK35: L-hi cot 0 | BM35: ½hi cot 0 | BN35: L-½hi cot 0
P36: 0 | Q36: =Q35*($BD$4-$P$4)/40 -> 0.24 | R36: 0.48 | S36: 0.72 | T36: 0.96 | U36: 1.2 | V36: 1.44 | W36: 1.68 | X36: 1.92 | Y36: 2.16 | Z36: 2.4 | AA36: 2.64 | AB36: 2.88 | AC36: 3.12 | AD36: 3.36 | AE36: 3.6 | AF36: 3.84 | AG36: 4.08 | AH36: 4.32 | AI36: 4.56 | AJ36: 4.8 | AK36: 5.04 | AL36: 5.28 | AM36: 5.52 | AN36: 5.76 | AO36: 6 | AP36: 6.24 | AQ36: 6.48 | AR36: 6.72 | AS36: 6.96 | AT36: 7.2 | AU36: 7.44 | AV36: 7.68 | AW36: 7.92 | AX36: 8.16 | AY36: 8.4 | AZ36: 8.64 | BA36: 8.88 | BB36: 9.12 | BC36: 9.36 | BD36: =$D$4 -> 9.6 | BE36: 0 | BF36: =Kold!BO42*Kold!S21 -> 0.8740437699 | BG36: =BH36-Kold!BO42*Kold!S21 -> 8.72595623 | BH36: =D4 -> 9.6 | BJ36: =BF36 -> 0.8740437699 | BK36: =BG36 -> 8.72595623 | BM36: =0.5*BJ36 -> 0.4370218849 | BN36: =BH36-BM36 -> 9.162978115
B37: Excentriciteter | I37: Venstresidig forskydning
B38: exc. p_1 | C38: (mm) | D38: =D15 -> 230 | I38: =I8 -> p1 | J38: =J8 -> d | K38: =K8 -> 55 | L38: =L8 -> 0 | M38: =M8 -> 9.6 | P38: =IF(P$36<=$L38,$K38*($M38-$L38)*($D$4-0.5*($L38+$M38))/$D$4,IF(P$36<=$M38,$K38*($M38-P$36)*($D$4-0.5*(P$36+$M38))/$D$4,0)) -> 264 | Q38: 250.965 | R38: 238.26 | S38: 225.885 | T38: 213.84 | U38: 202.125 | V38: 190.74 | W38: 179.685 | X38: 168.96 | Y38: 158.565 | Z38: =IF(Z$36<=$L38,$K38*($M38-$L38)*($D$4-0.5*($L38+$M38))/$D$4,IF(Z$36<=$M38,$K38*($M38-Z$36)*($D$4-0.5*(Z$36+$M38))/$D$4,0)) -> 148.5 | AA38: 138.765 | AB38: 129.36 | AC38: 120.285 | AD38: 111.54 | AE38: 103.125 | AF38: 95.04 | AG38: 87.285 | AH38: 79.86 | AI38: 72.765 | AJ38: =IF(AJ$36<=$L38,$K38*($M38-$L38)*($D$4-0.5*($L38+$M38))/$D$4,IF(AJ$36<=$M38,$K38*($M38-AJ$36)*($D$4-0.5*(AJ$36+$M38))/$D$4,0)) -> 66 | AK38: 59.565 | AL38: 53.46 | AM38: 47.685 | AN38: 42.24 | AO38: 37.125 | AP38: 32.34 | AQ38: 27.885 | AR38: 23.76 | AS38: 19.965 | AT38: =IF(AT$36<=$L38,$K38*($M38-$L38)*($D$4-0.5*($L38+$M38))/$D$4,IF(AT$36<=$M38,$K38*($M38-AT$36)*($D$4-0.5*(AT$36+$M38))/$D$4,0)) -> 16.5 | AU38: 13.365 | AV38: 10.56 | AW38: 8.085 | AX38: 5.94 | AY38: 4.125 | AZ38: 2.64 | BA38: 1.485 | BB38: 0.66 | BC38: 0.165 | BD38: 0 | BJ38: =IF(BJ$36<=$L38,$K38*($M38-$L38)*($D$4-0.5*($L38+$M38))/$D$4,IF(BJ$36<=$M38,$K38*($M38-BJ$36)*($D$4-0.5*(BJ$36+$M38))/$D$4,0)) -> 218.1159983 | BK38: 2.188405632 | BM38: =IF(BM$36<=$L38,$K38*($M38-$L38)*($D$4-0.5*($L38+$M38))/$D$4,IF(BM$36<=$M38,$K38*($M38-BM$36)*($D$4-0.5*(BM$36+$M38))/$D$4,0)) -> 240.5108977 | BN38: 0.5471014081
B39: exc. p_2 | C39: (mm) | D39: =E15 -> 0 | I39: =I12 -> p2 | J39: =J12 -> d | K39: =K12 -> 0 | L39: =L12 -> 0 | M39: =M12 -> 0 | P39: 0 | Q39: 0 | R39: 0 | S39: 0 | T39: 0 | U39: 0 | V39: 0 | W39: 0 | X39: 0 | Y39: 0 | Z39: 0 | AA39: 0 | AB39: 0 | AC39: 0 | AD39: 0 | AE39: 0 | AF39: 0 | AG39: 0 | AH39: 0 | AI39: 0 | AJ39: 0 | AK39: 0 | AL39: 0 | AM39: 0 | AN39: 0 | AO39: 0 | AP39: 0 | AQ39: 0 | AR39: 0 | AS39: 0 | AT39: 0 | AU39: 0 | AV39: 0 | AW39: 0 | AX39: 0 | AY39: 0 | AZ39: 0 | BA39: 0 | BB39: 0 | BC39: 0 | BD39: 0 | BJ39: 0 | BK39: 0 | BM39: 0 | BN39: 0
B40: exc. p_3 | C40: (mm) | D40: =F15 -> 0 | I40: =I16 -> p3 | J40: =J16 -> d | K40: =K16 -> 0 | L40: =L16 -> 0 | M40: =M16 -> 0 | P40: 0 | Q40: 0 | R40: 0 | S40: 0 | T40: 0 | U40: 0 | V40: 0 | W40: 0 | X40: 0 | Y40: 0 | Z40: 0 | AA40: 0 | AB40: 0 | AC40: 0 | AD40: 0 | AE40: 0 | AF40: 0 | AG40: 0 | AH40: 0 | AI40: 0 | AJ40: 0 | AK40: 0 | AL40: 0 | AM40: 0 | AN40: 0 | AO40: 0 | AP40: 0 | AQ40: 0 | AR40: 0 | AS40: 0 | AT40: 0 | AU40: 0 | AV40: 0 | AW40: 0 | AX40: 0 | AY40: 0 | AZ40: 0 | BA40: 0 | BB40: 0 | BC40: 0 | BD40: 0 | BJ40: 0 | BK40: 0 | BM40: 0 | BN40: 0
B41: exc. P_1 | C41: (mm) | D41: =D23 -> 0 | I41: =I20 -> P1 | J41: =J20 -> d | K41: =K20 -> 0 | L41: =L20 -> 0 | M41: =M20 -> 0 | P41: =IF(P$36<=$L41,$K41*($D$4-$L41)/$D$4,0) -> 0 | Q41: 0 | R41: 0 | S41: 0 | T41: 0 | U41: 0 | V41: 0 | W41: 0 | X41: 0 | Y41: 0 | Z41: =IF(Z$36<=$L41,$K41*($D$4-$L41)/$D$4,0) -> 0 | AA41: 0 | AB41: 0 | AC41: 0 | AD41: 0 | AE41: 0 | AF41: 0 | AG41: 0 | AH41: 0 | AI41: 0 | AJ41: =IF(AJ$36<=$L41,$K41*($D$4-$L41)/$D$4,0) -> 0 | AK41: 0 | AL41: 0 | AM41: 0 | AN41: 0 | AO41: 0 | AP41: 0 | AQ41: 0 | AR41: 0 | AS41: 0 | AT41: =IF(AT$36<=$L41,$K41*($D$4-$L41)/$D$4,0) -> 0 | AU41: 0 | AV41: 0 | AW41: 0 | AX41: 0 | AY41: 0 | AZ41: 0 | BA41: 0 | BB41: 0 | BC41: 0 | BD41: 0 | BJ41: =IF(BJ$36<=$L41,$K41*($D$4-$L41)/$D$4,0) -> 0 | BK41: 0 | BM41: =IF(BM$36<=$L41,$K41*($D$4-$L41)/$D$4,0) -> 0 | BN41: 0
B42: exc. P_2 | C42: (mm) | D42: =E23 -> 0 | I42: =I24 -> P2 | J42: =J24 -> d | K42: =K24 -> 0 | L42: =L24 -> 0 | M42: =M24 -> 0 | P42: 0 | Q42: 0 | R42: 0 | S42: 0 | T42: 0 | U42: 0 | V42: 0 | W42: 0 | X42: 0 | Y42: 0 | Z42: 0 | AA42: 0 | AB42: 0 | AC42: 0 | AD42: 0 | AE42: 0 | AF42: 0 | AG42: 0 | AH42: 0 | AI42: 0 | AJ42: 0 | AK42: 0 | AL42: 0 | AM42: 0 | AN42: 0 | AO42: 0 | AP42: 0 | AQ42: 0 | AR42: 0 | AS42: 0 | AT42: 0 | AU42: 0 | AV42: 0 | AW42: 0 | AX42: 0 | AY42: 0 | AZ42: 0 | BA42: 0 | BB42: 0 | BC42: 0 | BD42: 0 | BJ42: 0 | BK42: 0 | BM42: 0 | BN42: 0
B43: exc. P_3 | C43: (mm) | D43: =F23 -> 0 | I43: =I28 -> P3 | J43: =J28 -> d | K43: =K28 -> 0 | L43: =L28 -> 0 | M43: =M28 -> 0 | P43: 0 | Q43: 0 | R43: 0 | S43: 0 | T43: 0 | U43: 0 | V43: 0 | W43: 0 | X43: 0 | Y43: 0 | Z43: 0 | AA43: 0 | AB43: 0 | AC43: 0 | AD43: 0 | AE43: 0 | AF43: 0 | AG43: 0 | AH43: 0 | AI43: 0 | AJ43: 0 | AK43: 0 | AL43: 0 | AM43: 0 | AN43: 0 | AO43: 0 | AP43: 0 | AQ43: 0 | AR43: 0 | AS43: 0 | AT43: 0 | AU43: 0 | AV43: 0 | AW43: 0 | AX43: 0 | AY43: 0 | AZ43: 0 | BA43: 0 | BB43: 0 | BC43: 0 | BD43: 0 | BJ43: 0 | BK43: 0 | BM43: 0 | BN43: 0
I44: Højresidig forskydning
I45: =I38 -> p1 | J45: d | K45: 55 | L45: 0 | M45: 9.6 | P45: =IF(P$36<$L45,0,IF(P$36<$M45,$K45*(P$36-$L45)*0.5*($L45+P$36)/$D$4,$K45*($M45-$L45)*0.5*($L45+$M45)/$D$4)) -> 0 | Q45: 0.165 | R45: 0.66 | S45: 1.485 | T45: 2.64 | U45: 4.125 | V45: 5.94 | W45: 8.085 | X45: 10.56 | Y45: 13.365 | Z45: =IF(Z$36<$L45,0,IF(Z$36<$M45,$K45*(Z$36-$L45)*0.5*($L45+Z$36)/$D$4,$K45*($M45-$L45)*0.5*($L45+$M45)/$D$4)) -> 16.5 | AA45: 19.965 | AB45: 23.76 | AC45: 27.885 | AD45: 32.34 | AE45: 37.125 | AF45: 42.24 | AG45: 47.685 | AH45: 53.46 | AI45: 59.565 | AJ45: =IF(AJ$36<$L45,0,IF(AJ$36<$M45,$K45*(AJ$36-$L45)*0.5*($L45+AJ$36)/$D$4,$K45*($M45-$L45)*0.5*($L45+$M45)/$D$4)) -> 66 | AK45: 72.765 | AL45: 79.86 | AM45: 87.285 | AN45: 95.04 | AO45: 103.125 | AP45: 111.54 | AQ45: 120.285 | AR45: 129.36 | AS45: 138.765 | AT45: =IF(AT$36<$L45,0,IF(AT$36<$M45,$K45*(AT$36-$L45)*0.5*($L45+AT$36)/$D$4,$K45*($M45-$L45)*0.5*($L45+$M45)/$D$4)) -> 148.5 | AU45: 158.565 | AV45: 168.96 | AW45: 179.685 | AX45: 190.74 | AY45: 202.125 | AZ45: 213.84 | BA45: 225.885 | BB45: 238.26 | BC45: 250.965 | BD45: 264 | BJ45: =IF(BJ$36<$L45,0,IF(BJ$36<$M45,$K45*(BJ$36-$L45)*0.5*($L45+BJ$36)/$D$4,$K45*($M45-$L45)*0.5*($L45+$M45)/$D$4)) -> 2.188405632 | BK45: 218.1159983 | BM45: =IF(BM$36<$L45,0,IF(BM$36<$M45,$K45*(BM$36-$L45)*0.5*($L45+BM$36)/$D$4,$K45*($M45-$L45)*0.5*($L45+$M45)/$D$4)) -> 0.5471014081 | BN45: 240.5108977
I46: p2 | J46: d | K46: 0 | L46: 0 | M46: 0 | P46: 0 | Q46: 0 | R46: 0 | S46: 0 | T46: 0 | U46: 0 | V46: 0 | W46: 0 | X46: 0 | Y46: 0 | Z46: 0 | AA46: 0 | AB46: 0 | AC46: 0 | AD46: 0 | AE46: 0 | AF46: 0 | AG46: 0 | AH46: 0 | AI46: 0 | AJ46: 0 | AK46: 0 | AL46: 0 | AM46: 0 | AN46: 0 | AO46: 0 | AP46: 0 | AQ46: 0 | AR46: 0 | AS46: 0 | AT46: 0 | AU46: 0 | AV46: 0 | AW46: 0 | AX46: 0 | AY46: 0 | AZ46: 0 | BA46: 0 | BB46: 0 | BC46: 0 | BD46: 0 | BJ46: 0 | BK46: 0 | BM46: 0 | BN46: 0
I47: p3 | J47: d | K47: 0 | L47: 0 | M47: 0 | P47: 0 | Q47: 0 | R47: 0 | S47: 0 | T47: 0 | U47: 0 | V47: 0 | W47: 0 | X47: 0 | Y47: 0 | Z47: 0 | AA47: 0 | AB47: 0 | AC47: 0 | AD47: 0 | AE47: 0 | AF47: 0 | AG47: 0 | AH47: 0 | AI47: 0 | AJ47: 0 | AK47: 0 | AL47: 0 | AM47: 0 | AN47: 0 | AO47: 0 | AP47: 0 | AQ47: 0 | AR47: 0 | AS47: 0 | AT47: 0 | AU47: 0 | AV47: 0 | AW47: 0 | AX47: 0 | AY47: 0 | AZ47: 0 | BA47: 0 | BB47: 0 | BC47: 0 | BD47: 0 | BJ47: 0 | BK47: 0 | BM47: 0 | BN47: 0
I48: P1 | J48: d | K48: 0 | L48: 0 | M48: 0 | P48: =IF(P$36<$L48,0,$K48*$L48/$D$4) -> 0 | Q48: 0 | R48: 0 | S48: 0 | T48: 0 | U48: 0 | V48: 0 | W48: 0 | X48: 0 | Y48: 0 | Z48: =IF(Z$36<$L48,0,$K48*$L48/$D$4) -> 0 | AA48: 0 | AB48: 0 | AC48: 0 | AD48: 0 | AE48: 0 | AF48: 0 | AG48: 0 | AH48: 0 | AI48: 0 | AJ48: =IF(AJ$36<$L48,0,$K48*$L48/$D$4) -> 0 | AK48: 0 | AL48: 0 | AM48: 0 | AN48: 0 | AO48: 0 | AP48: 0 | AQ48: 0 | AR48: 0 | AS48: 0 | AT48: =IF(AT$36<$L48,0,$K48*$L48/$D$4) -> 0 | AU48: 0 | AV48: 0 | AW48: 0 | AX48: 0 | AY48: 0 | AZ48: 0 | BA48: 0 | BB48: 0 | BC48: 0 | BD48: 0 | BJ48: =IF(BJ$36<$L48,0,$K48*$L48/$D$4) -> 0 | BK48: 0 | BM48: =IF(BM$36<$L48,0,$K48*$L48/$D$4) -> 0 | BN48: 0
I49: P2 | J49: d | K49: 0 | L49: 0 | M49: 0 | P49: 0 | Q49: 0 | R49: 0 | S49: 0 | T49: 0 | U49: 0 | V49: 0 | W49: 0 | X49: 0 | Y49: 0 | Z49: 0 | AA49: 0 | AB49: 0 | AC49: 0 | AD49: 0 | AE49: 0 | AF49: 0 | AG49: 0 | AH49: 0 | AI49: 0 | AJ49: 0 | AK49: 0 | AL49: 0 | AM49: 0 | AN49: 0 | AO49: 0 | AP49: 0 | AQ49: 0 | AR49: 0 | AS49: 0 | AT49: 0 | AU49: 0 | AV49: 0 | AW49: 0 | AX49: 0 | AY49: 0 | AZ49: 0 | BA49: 0 | BB49: 0 | BC49: 0 | BD49: 0 | BJ49: 0 | BK49: 0 | BM49: 0 | BN49: 0
I50: P3 | J50: d | K50: 0 | L50: 0 | M50: 0 | P50: 0 | Q50: 0 | R50: 0 | S50: 0 | T50: 0 | U50: 0 | V50: 0 | W50: 0 | X50: 0 | Y50: 0 | Z50: 0 | AA50: 0 | AB50: 0 | AC50: 0 | AD50: 0 | AE50: 0 | AF50: 0 | AG50: 0 | AH50: 0 | AI50: 0 | AJ50: 0 | AK50: 0 | AL50: 0 | AM50: 0 | AN50: 0 | AO50: 0 | AP50: 0 | AQ50: 0 | AR50: 0 | AS50: 0 | AT50: 0 | AU50: 0 | AV50: 0 | AW50: 0 | AX50: 0 | AY50: 0 | AZ50: 0 | BA50: 0 | BB50: 0 | BC50: 0 | BD50: 0 | BJ50: 0 | BK50: 0 | BM50: 0 | BN50: 0
I52: V_d - venstre | P52: =SUM(P38:P43) -> 264 | Q52: 250.965 | R52: 238.26 | S52: 225.885 | T52: 213.84 | U52: 202.125 | V52: 190.74 | W52: 179.685 | X52: 168.96 | Y52: 158.565 | Z52: 148.5 | AA52: 138.765 | AB52: 129.36 | AC52: 120.285 | AD52: 111.54 | AE52: 103.125 | AF52: 95.04 | AG52: 87.285 | AH52: 79.86 | AI52: 72.765 | AJ52: 66 | AK52: 59.565 | AL52: 53.46 | AM52: 47.685 | AN52: 42.24 | AO52: 37.125 | AP52: 32.34 | AQ52: 27.885 | AR52: 23.76 | AS52: 19.965 | AT52: 16.5 | AU52: 13.365 | AV52: 10.56 | AW52: 8.085 | AX52: 5.94 | AY52: 4.125 | AZ52: 2.64 | BA52: 1.485 | BB52: 0.66 | BC52: 0.165 | BD52: 0 | BJ52: =SUM(BJ38:BJ43) -> 218.1159983 | BK52: =SUM(BK38:BK43) -> 2.188405632 | BM52: =SUM(BM38:BM43) -> 240.5108977 | BN52: =SUM(BN38:BN43) -> 0.5471014081
I53: V_d - højre | P53: =SUM(P45:P50) -> 0 | Q53: 0.165 | R53: 0.66 | S53: 1.485 | T53: 2.64 | U53: 4.125 | V53: 5.94 | W53: 8.085 | X53: 10.56 | Y53: 13.365 | Z53: 16.5 | AA53: 19.965 | AB53: 23.76 | AC53: 27.885 | AD53: 32.34 | AE53: 37.125 | AF53: 42.24 | AG53: 47.685 | AH53: 53.46 | AI53: 59.565 | AJ53: 66 | AK53: 72.765 | AL53: 79.86 | AM53: 87.285 | AN53: 95.04 | AO53: 103.125 | AP53: 111.54 | AQ53: 120.285 | AR53: 129.36 | AS53: 138.765 | AT53: 148.5 | AU53: 158.565 | AV53: 168.96 | AW53: 179.685 | AX53: 190.74 | AY53: 202.125 | AZ53: 213.84 | BA53: 225.885 | BB53: 238.26 | BC53: 250.965 | BD53: 264 | BJ53: =SUM(BJ45:BJ50) -> 2.188405632 | BK53: =SUM(BK45:BK50) -> 218.1159983 | BM53: =SUM(BM45:BM50) -> 0.5471014081 | BN53: =SUM(BN45:BN50) -> 240.5108977
I55: FORSKYDNING | P55: =P35 -> 0 | Q55: 1 | R55: 2 | S55: 3 | T55: 4 | U55: 5 | V55: 6 | W55: 7 | X55: 8 | Y55: 9 | Z55: 10 | AA55: 11 | AB55: 12 | AC55: 13 | AD55: 14 | AE55: 15 | AF55: 16 | AG55: 17 | AH55: 18 | AI55: 19 | AJ55: 20 | AK55: 21 | AL55: 22 | AM55: 23 | AN55: 24 | AO55: 25 | AP55: 26 | AQ55: 27 | AR55: 28 | AS55: 29 | AT55: 30 | AU55: 31 | AV55: 32 | AW55: 33 | AX55: 34 | AY55: 35 | AZ55: 36 | BA55: 37 | BB55: 38 | BC55: 39 | BD55: 40 | BE55: =BF55 -> 3.641849041 | BF55: =40*BF36/D4 -> 3.641849041 | BG55: =40*BG36/D4 -> 36.35815096 | BH55: =BG55 -> 36.35815096
K56: fyd | L56: d | M56: a | N56: hicot | O56: : | P56: =MAX(P53,P52) -> 264 | Q56: =MAX(Q53,Q52) -> 250.965 | R56: 238.26 | S56: 225.885 | T56: 213.84 | U56: 202.125 | V56: 190.74 | W56: 179.685 | X56: 168.96 | Y56: 158.565 | Z56: 148.5 | AA56: 138.765 | AB56: 129.36 | AC56: 120.285 | AD56: 111.54 | AE56: 103.125 | AF56: 95.04 | AG56: 87.285 | AH56: 79.86 | AI56: 72.765 | AJ56: 66 | AK56: 72.765 | AL56: 79.86 | AM56: 87.285 | AN56: 95.04 | AO56: 103.125 | AP56: 111.54 | AQ56: 120.285 | AR56: 129.36 | AS56: 138.765 | AT56: 148.5 | AU56: 158.565 | AV56: 168.96 | AW56: 179.685 | AX56: 190.74 | AY56: 202.125 | AZ56: 213.84 | BA56: 225.885 | BB56: 238.26 | BC56: 250.965 | BD56: 264
K57: =550/1.3 -> 423.0769231 | L57: 12 | M57: 150 | N57: 900 | O57: : | P57: =Kold!$S$25 -> 270.2433866 | Q57: =Kold!$S$25 -> 270.2433866 | R57: =Kold!$S$25 -> 270.2433866 | S57: =Kold!$S$25 -> 270.2433866 | T57: =Kold!$S$25 -> 270.2433866 | U57: =Kold!$S$25 -> 270.2433866 | V57: =Kold!$S$25 -> 270.2433866 | W57: =Kold!$S$25 -> 270.2433866 | X57: =Kold!$S$25 -> 270.2433866 | Y57: =Kold!$S$25 -> 270.2433866 | Z57: =Kold!$S$25 -> 270.2433866 | AA57: =Kold!$S$25 -> 270.2433866 | AB57: =Kold!$S$25 -> 270.2433866 | AC57: =Kold!$S$25 -> 270.2433866 | AD57: =Kold!$S$25 -> 270.2433866 | AE57: =Kold!$S$25 -> 270.2433866 | AF57: =Kold!$S$25 -> 270.2433866 | AG57: =Kold!$S$25 -> 270.2433866 | AH57: =Kold!$S$25 -> 270.2433866 | AI57: =Kold!$S$25 -> 270.2433866 | AJ57: =Kold!$S$25 -> 270.2433866 | AK57: =Kold!$S$25 -> 270.2433866 | AL57: =Kold!$S$25 -> 270.2433866 | AM57: =Kold!$S$25 -> 270.2433866 | AN57: =Kold!$S$25 -> 270.2433866 | AO57: =Kold!$S$25 -> 270.2433866 | AP57: =Kold!$S$25 -> 270.2433866 | AQ57: =Kold!$S$25 -> 270.2433866 | AR57: =Kold!$S$25 -> 270.2433866 | AS57: =Kold!$S$25 -> 270.2433866 | AT57: =Kold!$S$25 -> 270.2433866 | AU57: =Kold!$S$25 -> 270.2433866 | AV57: =Kold!$S$25 -> 270.2433866 | AW57: =Kold!$S$25 -> 270.2433866 | AX57: =Kold!$S$25 -> 270.2433866 | AY57: =Kold!$S$25 -> 270.2433866 | AZ57: =Kold!$S$25 -> 270.2433866 | BA57: =Kold!$S$25 -> 270.2433866 | BB57: =Kold!$S$25 -> 270.2433866 | BC57: =Kold!$S$25 -> 270.2433866 | BD57: =Kold!$S$25 -> 270.2433866
K58: =550/1.3 -> 423.0769231 | L58: 12 | M58: 100 | N58: 900 | O58: : | P58: =Kold!$S$26 -> 216.1947093 | Q58: =Kold!$S$26 -> 216.1947093 | R58: =Kold!$S$26 -> 216.1947093 | S58: =Kold!$S$26 -> 216.1947093 | T58: =Kold!$S$26 -> 216.1947093 | U58: =Kold!$S$26 -> 216.1947093 | V58: =Kold!$S$26 -> 216.1947093 | W58: =Kold!$S$26 -> 216.1947093 | X58: =Kold!$S$26 -> 216.1947093 | Y58: =Kold!$S$26 -> 216.1947093 | Z58: =Kold!$S$26 -> 216.1947093 | AA58: =Kold!$S$26 -> 216.1947093 | AB58: =Kold!$S$26 -> 216.1947093 | AC58: =Kold!$S$26 -> 216.1947093 | AD58: =Kold!$S$26 -> 216.1947093 | AE58: =Kold!$S$26 -> 216.1947093 | AF58: =Kold!$S$26 -> 216.1947093 | AG58: =Kold!$S$26 -> 216.1947093 | AH58: =Kold!$S$26 -> 216.1947093 | AI58: =Kold!$S$26 -> 216.1947093 | AJ58: =Kold!$S$26 -> 216.1947093 | AK58: =Kold!$S$26 -> 216.1947093 | AL58: =Kold!$S$26 -> 216.1947093 | AM58: =Kold!$S$26 -> 216.1947093 | AN58: =Kold!$S$26 -> 216.1947093 | AO58: =Kold!$S$26 -> 216.1947093 | AP58: =Kold!$S$26 -> 216.1947093 | AQ58: =Kold!$S$26 -> 216.1947093 | AR58: =Kold!$S$26 -> 216.1947093 | AS58: =Kold!$S$26 -> 216.1947093 | AT58: =Kold!$S$26 -> 216.1947093 | AU58: =Kold!$S$26 -> 216.1947093 | AV58: =Kold!$S$26 -> 216.1947093 | AW58: =Kold!$S$26 -> 216.1947093 | AX58: =Kold!$S$26 -> 216.1947093 | AY58: =Kold!$S$26 -> 216.1947093 | AZ58: =Kold!$S$26 -> 216.1947093 | BA58: =Kold!$S$26 -> 216.1947093 | BB58: =Kold!$S$26 -> 216.1947093 | BC58: =Kold!$S$26 -> 216.1947093 | BD58: =Kold!$S$26 -> 216.1947093
K59: =550/1.3 -> 423.0769231 | L59: 12 | M59: 65 | N59: 900 | O59: : | BE59: =1.1*MAX(P56:BD56) -> 290.4 | BF59: 0 | BG59: 0 | BH59: =1.1*MAX(P56:BD56) -> 290.4
T60: 0 | X60: =$T$60 -> 0 | AB60: =$T$60 -> 0 | AF60: =$T$60 -> 0 | AJ60: =$T$60 -> 0 | AN60: =$T$60 -> 0 | AR60: =$T$60 -> 0 | AV60: =$T$60 -> 0 | AZ60: =$T$60 -> 0
I61: EXCENTRICITET | P61: =IF(P52>=P53,IF(P52=0,0,SUMPRODUCT($D$38:$D$43,P38:P43)/P52),IF(P53=0,0,SUMPRODUCT($D$38:$D$43,P45:P50)/P53)) -> 230 | Q61: 230 | R61: 230 | S61: 230 | T61: 230 | U61: 230 | V61: 230 | W61: 230 | X61: 230 | Y61: 230 | Z61: 230 | AA61: 230 | AB61: 230 | AC61: 230 | AD61: 230 | AE61: 230 | AF61: 230 | AG61: 230 | AH61: 230 | AI61: 230 | AJ61: 230 | AK61: 230 | AL61: 230 | AM61: 230 | AN61: 230 | AO61: 230 | AP61: 230 | AQ61: 230 | AR61: 230 | AS61: 230 | AT61: 230 | AU61: 230 | AV61: 230 | AW61: 230 | AX61: 230 | AY61: 230 | AZ61: 230 | BA61: 230 | BB61: 230 | BC61: 230 | BD61: 230
P65: 0 | Q65: 1 | R65: 2 | S65: 3 | T65: 4 | U65: 5 | V65: 6 | W65: 7 | X65: 8 | Y65: 9 | Z65: 10 | AA65: 11 | AB65: 12 | AC65: 13 | AD65: 14 | AE65: 15 | AF65: 16 | AG65: 17 | AH65: 18 | AI65: 19 | AJ65: 20 | AK65: 21 | AL65: 22 | AM65: 23 | AN65: 24 | AO65: 25 | AP65: 26 | AQ65: 27 | AR65: 28 | AS65: 29 | AT65: 30 | AU65: 31 | AV65: 32 | AW65: 33 | AX65: 34 | AY65: 35 | AZ65: 36 | BA65: 37 | BB65: 38 | BC65: 39 | BD65: 40
I66: UDBØJNINGER | P66: 0 | Q66: =Q65*($BD$4-$P$4)/40 -> 0.24 | R66: 0.48 | S66: 0.72 | T66: 0.96 | U66: 1.2 | V66: 1.44 | W66: 1.68 | X66: 1.92 | Y66: 2.16 | Z66: 2.4 | AA66: 2.64 | AB66: 2.88 | AC66: 3.12 | AD66: 3.36 | AE66: 3.6 | AF66: 3.84 | AG66: 4.08 | AH66: 4.32 | AI66: 4.56 | AJ66: 4.8 | AK66: 5.04 | AL66: 5.28 | AM66: 5.52 | AN66: 5.76 | AO66: 6 | AP66: 6.24 | AQ66: 6.48 | AR66: 6.72 | AS66: 6.96 | AT66: 7.2 | AU66: 7.44 | AV66: 7.68 | AW66: 7.92 | AX66: 8.16 | AY66: 8.4 | AZ66: 8.64 | BA66: 8.88 | BB66: 9.12 | BC66: 9.36 | BD66: =$D$4 -> 9.6
J68: L | O68: a1 | P68: 0 | Q68: =P68+(0.5*(Q31+P31)/$D$5)*(Q66-P66) -> 2.94056179e-14 | R68: 1.161144912e-13 | S68: 2.571106591e-13 | T68: 4.493781608e-13 | U68: 6.899010354e-13 | V68: 9.756633222e-13 | W68: 1.30364906e-12 | X68: 1.670842289e-12 | Y68: 2.074227047e-12 | Z68: 2.510787375e-12 | AA68: 2.97750731e-12 | AB68: 3.471370893e-12 | AC68: 3.989362162e-12 | AD68: 4.528465157e-12 | AE68: 5.085663917e-12 | AF68: 5.65794248e-12 | AG68: 6.242284888e-12 | AH68: 6.835675177e-12 | AI68: 7.435097388e-12 | AJ68: 8.03753556e-12 | AK68: 8.639973732e-12 | AL68: 9.239395943e-12 | AM68: 9.832786232e-12 | AN68: 1.041712864e-11 | AO68: 1.09894072e-11 | AP68: 1.154660596e-11 | AQ68: 1.208570896e-11 | AR68: 1.260370023e-11 | AS68: 1.309756381e-11 | AT68: 1.356428375e-11 | AU68: 1.400084407e-11 | AV68: 1.440422883e-11 | AW68: 1.477142206e-11 | AX68: 1.50994078e-11 | AY68: 1.538517008e-11 | AZ68: 1.562569296e-11 | BA68: 1.581796046e-11 | BB68: 1.595895663e-11 | BC68: 1.60456655e-11 | BD68: 1.607507112e-11
O69: u1 | P69: 0 | Q69: =P69+P68*(Q66-P66)+0.5*(0.5*(Q31+P31)/$D$5)*(Q66-P66)^2 -> 3.528674148e-15 | R69: 2.099108724e-14 | S69: 6.577810528e-14 | T69: 1.505567637e-13 | U69: 2.872702672e-13 | V69: 4.871379901e-13 | W69: 7.60655476e-13 | X69: 1.117594438e-12 | Y69: 1.567002758e-12 | Z69: 2.117204489e-12 | AA69: 2.775799851e-12 | AB69: 3.549665236e-12 | AC69: 4.444953202e-12 | AD69: 5.46709248e-12 | AE69: 6.620787969e-12 | AF69: 7.910020737e-12 | AG69: 9.338048021e-12 | AH69: 1.090740323e-11 | AI69: 1.261989594e-11 | AJ69: 1.447661189e-11 | AK69: 1.647791301e-11 | AL69: 1.862343737e-11 | AM69: 2.091209923e-11 | AN69: 2.334208901e-11 | AO69: 2.591087331e-11 | AP69: 2.861519489e-11 | AQ69: 3.145107268e-11 | AR69: 3.441380179e-11 | AS69: 3.749795347e-11 | AT69: 4.069737518e-11 | AU69: 4.400519051e-11 | AV69: 4.741379926e-11 | AW69: 5.091487737e-11 | AX69: 5.449937695e-11 | AY69: 5.81575263e-11 | AZ69: 6.187882986e-11 | BA69: 6.565206827e-11 | BB69: 6.946529833e-11 | BC69: 7.330585298e-11 | BD69: 7.716034138e-11
O70: u2 | P70: 0 | Q70: =-(Q69-Q65*$BD$69/40) -> 1.92547986e-12 | R70: 3.837025982e-12 | S70: 5.721247498e-12 | T70: 7.565477374e-12 | U70: 9.357772405e-12 | V70: 1.108691322e-11 | W70: 1.274240426e-11 | X70: 1.431447384e-11 | Y70: 1.579407405e-11 | Z70: 1.717288085e-11 | AA70: 1.844329403e-11 | AB70: 1.959843718e-11 | AC70: 2.063215774e-11 | AD70: 2.1539027e-11 | AE70: 2.231434005e-11 | AF70: 2.295411581e-11 | AG70: 2.345509706e-11 | AH70: 2.381475039e-11 | AI70: 2.403126622e-11 | AJ70: 2.41035588e-11 | AK70: 2.403126622e-11 | AL70: 2.381475039e-11 | AM70: 2.345509706e-11 | AN70: 2.295411581e-11 | AO70: 2.231434005e-11 | AP70: 2.1539027e-11 | AQ70: 2.063215774e-11 | AR70: 1.959843718e-11 | AS70: 1.844329403e-11 | AT70: 1.717288085e-11 | AU70: 1.579407405e-11 | AV70: 1.431447384e-11 | AW70: 1.274240426e-11 | AX70: 1.108691322e-11 | AY70: 9.357772405e-12 | AZ70: 7.565477374e-12 | BA70: 5.721247498e-12 | BB70: 3.837025982e-12 | BC70: 1.92547986e-12 | BD70: 0
J72: K | O72: a1 | P72: 0 | Q72: =P72+(0.5*(Q32-Q31+P32-P31)/$D$6)*(Q66-P66) -> 1.252682294e-15 | R72: 4.946489058e-15 | S72: 1.095294006e-14 | T72: 1.914355506e-14 | U72: 2.938985382e-14 | V72: 4.156335611e-14 | W72: 5.55355817e-14 | X72: 7.117805035e-14 | Y72: 8.836228181e-14 | Z72: 1.069597959e-13 | AA72: 1.268421123e-13 | AB72: 1.478807508e-13 | AC72: 1.699472312e-13 | AD72: 1.929130733e-13 | AE72: 2.166497967e-13 | AF72: 2.410289214e-13 | AG72: 2.65921967e-13 | AH72: 2.912004533e-13 | AI72: 3.167359e-13 | AJ72: 3.42399827e-13 | AK72: 3.68063754e-13 | AL72: 3.935992008e-13 | AM72: 4.188776871e-13 | AN72: 4.437707327e-13 | AO72: 4.681498573e-13 | AP72: 4.918865808e-13 | AQ72: 5.148524228e-13 | AR72: 5.369189032e-13 | AS72: 5.579575418e-13 | AT72: 5.778398582e-13 | AU72: 5.964373722e-13 | AV72: 6.136216037e-13 | AW72: 6.292640723e-13 | AX72: 6.432362979e-13 | AY72: 6.554098002e-13 | AZ72: 6.65656099e-13 | BA72: 6.73846714e-13 | BB72: 6.79853165e-13 | BC72: 6.835469717e-13 | BD72: 6.84799654e-13
O73: u1 | P73: 0 | Q73: =P73+P72*(Q66-P66)+0.5*(0.5*(Q32-Q31+P32-P31)/$D$6)*(Q66-P66)^2 -> 1.503218753e-16 | R73: 8.942224375e-16 | S73: 2.802153931e-15 | T73: 6.413733345e-15 | U73: 1.223774241e-14 | V73: 2.07521276e-14 | W73: 3.240400014e-14 | X73: 4.760963599e-14 | Y73: 6.675447584e-14 | Z73: 9.019312517e-14 | AA73: 1.182493541e-13 | AB73: 1.512160977e-13 | AC73: 1.893554556e-13 | AD73: 2.328986921e-13 | AE73: 2.820462365e-13 | AF73: 3.369676827e-13 | AG73: 3.978017893e-13 | AH73: 4.646564797e-13 | AI73: 5.376088421e-13 | AJ73: 6.167051293e-13 | AK73: 7.019607591e-13 | AL73: 7.933603136e-13 | AM73: 8.908575402e-13 | AN73: 9.943753506e-13 | AO73: 1.103805821e-12 | AP73: 1.219010194e-12 | AQ73: 1.339818874e-12 | AR73: 1.466031433e-12 | AS73: 1.597416607e-12 | AT73: 1.733712295e-12 | AU73: 1.874625563e-12 | AV73: 2.01983264e-12 | AW73: 2.168978921e-12 | AX73: 2.321678965e-12 | AY73: 2.477516497e-12 | AZ73: 2.636044405e-12 | BA73: 2.796784742e-12 | BB73: 2.959228728e-12 | BC73: 3.122836744e-12 | BD73: 3.287038339e-12
O74: u2 | P74: 0 | Q74: =-(Q73-Q65*$BD$73/40)+Q70 -> 2.007505497e-12 | R74: 4.000483676e-12 | S74: 5.964973219e-12 | T74: 7.887767474e-12 | U74: 9.756414455e-12 | V74: 1.155921684e-11 | W74: 1.328523197e-11 | X74: 1.492427187e-11 | Y74: 1.64669032e-11 | Z74: 1.790444731e-11 | AA74: 1.922898022e-11 | AB74: 2.043333258e-11 | AC74: 2.151108975e-11 | AD74: 2.245659173e-11 | AE74: 2.326493319e-11 | AF74: 2.393196347e-11 | AG74: 2.445428657e-11 | AH74: 2.482926116e-11 | AI74: 2.505500059e-11 | AJ74: 2.513037284e-11 | AK74: 2.505500059e-11 | AL74: 2.482926116e-11 | AM74: 2.445428657e-11 | AN74: 2.393196347e-11 | AO74: 2.326493319e-11 | AP74: 2.245659173e-11 | AQ74: 2.151108975e-11 | AR74: 2.043333258e-11 | AS74: 1.922898022e-11 | AT74: 1.790444731e-11 | AU74: 1.64669032e-11 | AV74: 1.492427187e-11 | AW74: 1.328523197e-11 | AX74: 1.155921684e-11 | AY74: 9.756414455e-12 | AZ74: 7.887767474e-12 | BA74: 5.964973219e-12 | BB74: 4.000483676e-12 | BC74: 2.007505497e-12 | BD74: 4.038967835e-28
I78: Bøjlekapacitet
K79: =2*MAX(Kold!S25,Kold!S26)*D4/(D4-Kold!S21*Kold!BO42/1000)^2 -> 56.31095888 | L79: 0 | M79: =D4 -> 9.6 | P79: =IF(P$36<=$L79,$K79*($M79-$L79)*($D$4-0.5*($L79+$M79))/$D$4,IF(P$36<=$M79,$K79*($M79-P$36)*($D$4-0.5*(P$36+$M79))/$D$4,0)) -> 270.2926026 | Q79: 256.9469054 | R79: 243.9390739 | S79: 231.2691081 | T79: 218.9370081 | U79: 206.9427739 | V79: 195.2864054 | W79: 183.9679027 | X79: 172.9872657 | Y79: 162.3444945 | Z79: 152.039589 | AA79: 142.0725493 | AB79: 132.4433753 | AC79: 123.1520671 | AD79: 114.1986246 | AE79: 105.5830479 | AF79: 97.30533695 | AG79: 89.36549175 | AH79: 81.7635123 | AI79: 74.4993986 | AJ79: 67.57315066 | AK79: 60.98476847 | AL79: 54.73425204 | AM79: 48.82160135 | AN79: 43.24681642 | AO79: 38.00989725 | AP79: 33.11084382 | AQ79: 28.54965615 | AR79: 24.32633424 | AS79: 20.44087807 | AT79: 16.89328767 | AU79: 13.68356301 | AV79: 10.81170411 | AW79: 8.277710956 | AX79: 6.081583559 | AY79: 4.223321916 | AZ79: 2.702926026 | BA79: 1.52039589 | BB79: 0.6757315066 | BC79: 0.1689328767 | BD79: 0
K80: =K79 -> 56.31095888 | L80: 0 | M80: =D4 -> 9.6 | P80: =IF(P$36<$L80,0,IF(P$36<$M80,$K80*(P$36-$L80)*0.5*($L80+P$36)/$D$4,$K80*($M80-$L80)*0.5*($L80+$M80)/$D$4)) -> 0 | Q80: 0.1689328767 | R80: 0.6757315066 | S80: 1.52039589 | T80: 2.702926026 | U80: 4.223321916 | V80: 6.081583559 | W80: 8.277710956 | X80: 10.81170411 | Y80: 13.68356301 | Z80: 16.89328767 | AA80: 20.44087807 | AB80: 24.32633424 | AC80: 28.54965615 | AD80: 33.11084382 | AE80: 38.00989725 | AF80: 43.24681642 | AG80: 48.82160135 | AH80: 54.73425204 | AI80: 60.98476847 | AJ80: 67.57315066 | AK80: 74.4993986 | AL80: 81.7635123 | AM80: 89.36549175 | AN80: 97.30533695 | AO80: 105.5830479 | AP80: 114.1986246 | AQ80: 123.1520671 | AR80: 132.4433753 | AS80: 142.0725493 | AT80: 152.039589 | AU80: 162.3444945 | AV80: 172.9872657 | AW80: 183.9679027 | AX80: 195.2864054 | AY80: 206.9427739 | AZ80: 218.9370081 | BA80: 231.2691081 | BB80: 243.9390739 | BC80: 256.9469054 | BD80: 270.2926026
I81: =MAX(Q81:BC81) -> 0 | Q81: =IF(Q56>MAX(Q79:Q80),1,0) -> 0 | R81: 0 | S81: 0 | T81: 0 | U81: 0 | V81: 0 | W81: 0 | X81: 0 | Y81: 0 | Z81: 0 | AA81: 0 | AB81: 0 | AC81: 0 | AD81: 0 | AE81: 0 | AF81: 0 | AG81: 0 | AH81: 0 | AI81: 0 | AJ81: 0 | AK81: 0 | AL81: 0 | AM81: 0 | AN81: 0 | AO81: 0 | AP81: 0 | AQ81: 0 | AR81: 0 | AS81: 0 | AT81: 0 | AU81: 0 | AV81: 0 | AW81: 0 | AX81: 0 | AY81: 0 | AZ81: 0 | BA81: 0 | BB81: 0 | BC81: 0

Sheet Brud
B2: INDDATA
B3: fck | C3: =Kold!Q8 -> 40 | D3: MPA | F3: UDDATA | Q3: LINER
B4: fcm | C4: =C3+8 -> 48 | D4: MPA | F4: N | G4: My | H4: Mx | I4: y0 | J4: xres | K4: yres | L4: z | M4: v | Q4: fyd | S4: =Kold!S9 -> 1333.333333 | T4: MPa
B5: fcd | C5: =Kold!S8 -> 28.57142857 | D5: MPA | F5: =N781 -> 0.0001000000001 | G5: =I783 -> 3.500000013e-05 | H5: =P781 -> 0.9013367747 | I5: =F781 -> 0.3128970116 | J5: =J783 -> 0.3561758787 | K5: =K783 -> 0.5221988518 | L5: =K783-Z783 -> 0.4370218849 | M5: =D781 -> -0.725670152 | Q5: E | S5: 195000 | T5: MPa
B6: ec1 | C6: =0.7*C4^0.31/1000 -> 0.002324249914 | Q6: ey | S6: =S4/S5 -> 0.006837606838
B7: Ecm | C7: =22000*(C4/10)^0.3 -> 35220.46229 | D7: MPA | F7: Check af overbelastning for Nf og My: | M7: =IF(OR(ISERROR(F5),ISERROR(G5)),1,IF(OR(ABS(F5-C9)/(C11*F15*C3)>0.002,ABS(G5-I10)/(C11^2*F15*C3)>0.002),1,0)) -> 0 | Q7: fud | S7: =S4/0.9 -> 1481.481481 | T7: MPa
B8: k | C8: =1.05*C7*C6/C4 -> 1.790712797 | Q8: eud | S8: 0.02
B9: N | C9: 0.0001 | D9: MN | Q9: (fud-fyd)/(eud-ey) = | S9: =(S7-S4)/(S8-S6) -> 11255.41126 | T9: MPa
B10: My | C10: =Kold!E31*Kold!E33^2/8000 -> 0 | D10: MNm | F10: xkrop | G10: =C17 -> 0.35 | H10: My+Mf | I10: =C10-C9*(Kold!BA28/1000-G10) -> 3.5e-05 | J10: Tværstabilisering | L10: =8000*I783/Kold!E33^2 -> 0.003038194456 | M10: =Kold!BH29-1 -> 0
B11: xmax-xmin | C11: =MAX(C17:C43)-MIN(C17:C43) -> 0.625 | D11: m
B12: STEP 0 | C12: e0 | D12: v (rad) | E12: x0 | F12: y0 | G12: z0 | N12: Nc-Na
C13: =0.0035 -> 0.0035 | D13: 0 | E13: =C17 -> 0.35 | F13: =0.5*(MAX(D17:D43)-MIN(D17:D43)) -> 0.35 | G13: =F13 -> 0.35 | N13: =SUM(N17:N43)-R15 -> -0.05221507462 | AQ13: Optimeret trykzone
B14: Beton | C14: A | D14: B | E14: D | F14: tmax | G14: cosv | H14: sinv | I14: My | J14: xres | K14: yres | L14: sres | M14: tres | N14: Nc | O14: sNc | P14: tNc | Q14: Armering | R14: Na | S14: x_a | T14: y_a
C15: =$C$13/($C$8*$C$6*F15) -> 2.40265403 | D15: =(2-$C$8)*$C$13/($C$6*F15) -> 0.9004505122 | E15: =$C$8*$C$13*$C$5/($C$6*F15) -> 220.1278893 | F15: =MAX(H17:H43) -> 0.35 | G15: =COS(D13) -> 1 | H15: =SIN(D13) -> 0 | I15: =(J15-$G$10)*N15-(S15-$G$10)*R15 -> -0.2310140331 | J15: =E13+L15*G15-M15*H15 -> 0.2826497573 | K15: =F13+L15*H15+M15*G15 -> 0.5737992025 | L15: =O15/N15 -> -0.06735024272 | M15: =P15/N15 -> 0.2237992025 | N15: =SUM(N17:N43) -> 2.589179038 | O15: =SUM(O17:O43) -> -0.1743818366 | P15: =SUM(P17:P43) -> 0.5794562037 | R15: =SUM(S21:AB21)+SUM(S26:AB26)+SUM(S31:AB31)+SUM(S36:AB36)+SUM(S41:AB41) -> 2.641394113 | S15: =(SUMPRODUCT(S19:AB19,S21:AB21)+SUMPRODUCT(S24:AB24*S26:AB26)+SUMPRODUCT(S29:AB29,S31:AB31)+SUMPRODUCT(S34:AB34,S36:AB36)+SUMPRODUCT(S39:AB39,S41:AB41))/R15 -> 0.3714402675 | T15: =(SUMPRODUCT(S20:AB20,S21:AB21)+SUMPRODUCT(S25:AB25*S26:AB26)+SUMPRODUCT(S30:AB30,S31:AB31)+SUMPRODUCT(S35:AB35,S36:AB36)+SUMPRODUCT(S40:AB40,S41:AB41))/R15 -> 0.1584390566
B16: pkt. | C16: x | D16: y | E16: s1 | F16: t1 | G16: s | H16: t | I16: s' | J16: s'' | K16: I1 | L16: I2 | M16: I3 | N16: DNc | O16: DsNc | P16: DtNc | Q16: lag | R16: line: | S16: 1 | T16: 2 | U16: 3 | V16: 4 | W16: 5 | X16: 6 | Y16: 7 | Z16: 8 | AA16: 9 | AB16: 10 | AQ16: x | AR16: y
B17: 1 | C17: =Kold!AP11/1000 -> 0.35 | D17: =Kold!AQ11/1000 -> 0 | E17: =G15*(C17-E13)+H15*(D17-F13) -> 0 | F17: =-H15*(C17-E13)+G15*(D17-F13) -> -0.35 | G17: =E17 -> 0 | H17: =MAX(F17,0) -> 0 | I17: =IF(ABS((H18-H17)/F15)<0.001,0,(G17*H18-G18*H17)/(H18-H17)) -> 0 | J17: =IF(ABS((H18-H17)/F15)<0.001,0,(G18-G17)/(H18-H17)) -> 0 | K17: =IF(H18=H17,0,-((C15-D15)*E15/(2*D15^3))*(2*D15*(H18-H17)+D15^2*(H18^2-H17^2)+2*LN((1-D15*H18)/(1-D15*H17)))) -> 0 | L17: =-(C15-D15)*E15*(H18^3-H17^3)/(3*D15)+K17/D15 -> 0 | M17: =-(C15-D15)*E15*(H18^4-H17^4)/(4*D15)+L17/D15 -> 0 | N17: =IF(ABS((H18-H17)/F15)<0.001,0,0.5*E15*I17*(H18^2-H17^2)+E15*J17*(H18^3-H17^3)/3-I17*K17-J17*L17) -> 0 | O17: =IF(ABS((H18-H17)/F15)<0.001,0,0.5*E15*(I17^2*(H18^2-H17^2)/2+2*I17*J17*(H18^3-H17^3)/3+J17^2*(H18^4-H17^4)/4)-0.5*I17^2*K17-I17*J17*L17-0.5*J17^2*M17) -> 0 | P17: =IF(ABS((H18-H17)/F15)<0.001,0,E15*(I17*(H18^3-H17^3)/3+J17*(H18^4-H17^4)/4)-I17*L17-J17*M17) -> 0 | Q17: 1 | R17: A | S17: =INDEX(Liner,S16+(Q17-1)*10,9)/1000000 -> 9.3e-05 | T17: =INDEX(Liner,T16+(Q17-1)*10,9)/1000000 -> 9.3e-05 | U17: =INDEX(Liner,U16+(Q17-1)*10,9)/1000000 -> 9.3e-05 | V17: =INDEX(Liner,V16+(Q17-1)*10,9)/1000000 -> 9.3e-05 | W17: =INDEX(Liner,W16+(Q17-1)*10,9)/1000000 -> 9.3e-05 | X17: =INDEX(Liner,X16+(Q17-1)*10,9)/1000000 -> 9.3e-05 | Y17: =INDEX(Liner,Y16+(Q17-1)*10,9)/1000000 -> 9.3e-05 | Z17: =INDEX(Liner,Z16+(Q17-1)*10,9)/1000000 -> 9.3e-05 | AA17: =INDEX(Liner,AA16+(Q17-1)*10,9)/1000000 -> 0 | AB17: =INDEX(Liner,AB16+(Q17-1)*10,9)/1000000 -> 0 | AQ17: =$E$781+G785*$G$783-H785*$H$783 -> 0.5053335927 | AR17: =$F$781+G785*$H$783+H785*$G$783 -> 0.1750928066
B18: 1' | E18: =IF(F19*F17<0,E17-(E19-E17)*F17/(F19-F17),E17) -> 0 | F18: =IF(E19=E17,F17,F17+(F19-F17)*(E18-E17)/(E19-E17)) -> -0.35 | G18: 0 | H18: =MAX(F18,0) -> 0 | I18: =IF(ABS((H19-H18)/F15)<0.001,0,(G18*H19-G19*H18)/(H19-H18)) -> 0 | J18: =IF(ABS((H19-H18)/F15)<0.001,0,(G19-G18)/(H19-H18)) -> 0 | K18: =-((C15-D15)*E15/(2*D15^3))*(2*D15*(H19-H18)+D15^2*(H19^2-H18^2)+2*LN((1-D15*H19)/(1-D15*H18))) -> 0 | L18: =-(C15-D15)*E15*(H19^3-H18^3)/(3*D15)+K18/D15 -> 0 | M18: =-(C15-D15)*E15*(H19^4-H18^4)/(4*D15)+L18/D15 -> 0 | N18: =IF(ABS((H19-H18)/F15)<0.001,0,0.5*E15*I18*(H19^2-H18^2)+E15*J18*(H19^3-H18^3)/3-I18*K18-J18*L18) -> 0 | O18: =IF(ABS((H19-H18)/F15)<0.001,0,0.5*E15*(I18^2*(H19^2-H18^2)/2+2*I18*J18*(H19^3-H18^3)/3+J18^2*(H19^4-H18^4)/4)-0.5*I18^2*K18-I18*J18*L18-0.5*J18^2*M18) -> 0 | P18: =IF(ABS((H19-H18)/F15)<0.001,0,E15*(I18*(H19^3-H18^3)/3+J18*(H19^4-H18^4)/4)-I18*L18-J18*M18) -> 0 | Q18: 1 | R18: Nf | S18: =INDEX(Liner,S16+(Q18-1)*10,10)/1000 -> 0.1 | T18: =INDEX(Liner,T16+(Q18-1)*10,10)/1000 -> 0.1 | U18: =INDEX(Liner,U16+(Q18-1)*10,10)/1000 -> 0.1 | V18: =INDEX(Liner,V16+(Q18-1)*10,10)/1000 -> 0.1 | W18: =INDEX(Liner,W16+(Q18-1)*10,10)/1000 -> 0.1 | X18: =INDEX(Liner,X16+(Q18-1)*10,10)/1000 -> 0.1 | Y18: =INDEX(Liner,Y16+(Q18-1)*10,10)/1000 -> 0.1 | Z18: =INDEX(Liner,Z16+(Q18-1)*10,10)/1000 -> 0.1 | AA18: =INDEX(Liner,AA16+(Q18-1)*10,10)/1000 -> 0 | AB18: =INDEX(Liner,AB16+(Q18-1)*10,10)/1000 -> 0 | AQ18: =IF(AND(H785=0,H786=0,H787=0),AQ17,$E$781+G786*$G$783-H786*$H$783) -> 0.5053335927 | AR18: =IF(AND(H785=0,H786=0,H787=0),AR17,$F$781+G786*$H$783+H786*$G$783) -> 0.1750928066
B19: 2 | C19: =Kold!AP12/1000 -> 0.6 | D19: =Kold!AQ12/1000 -> 0 | E19: =G15*(C19-E13)+H15*(D19-F13) -> 0.25 | F19: =-H15*(C19-E13)+G15*(D19-F13) -> -0.35 | G19: 0.25 | H19: 0 | I19: =IF(ABS((H20-H19)/F15)<0.001,0,(G19*H20-G20*H19)/(H20-H19)) -> 0 | J19: =IF(ABS((H20-H19)/F15)<0.001,0,(G20-G19)/(H20-H19)) -> 0 | K19: =-((C15-D15)*E15/(2*D15^3))*(2*D15*(H20-H19)+D15^2*(H20^2-H19^2)+2*LN((1-D15*H20)/(1-D15*H19))) -> 0 | L19: =-(C15-D15)*E15*(H20^3-H19^3)/(3*D15)+K19/D15 -> 0 | M19: =-(C15-D15)*E15*(H20^4-H19^4)/(4*D15)+L19/D15 -> 0 | N19: =IF(ABS((H20-H19)/F15)<0.001,0,0.5*E15*I19*(H20^2-H19^2)+E15*J19*(H20^3-H19^3)/3-I19*K19-J19*L19) -> 0 | O19: =IF(ABS((H20-H19)/F15)<0.001,0,0.5*E15*(I19^2*(H20^2-H19^2)/2+2*I19*J19*(H20^3-H19^3)/3+J19^2*(H20^4-H19^4)/4)-0.5*I19^2*K19-I19*J19*L19-0.5*J19^2*M19) -> 0 | P19: =IF(ABS((H20-H19)/F15)<0.001,0,E15*(I19*(H20^3-H19^3)/3+J19*(H20^4-H19^4)/4)-I19*L19-J19*M19) -> 0 | Q19: 1 | R19: x | S19: =INDEX(Liner,S16+(Q19-1)*10,2)/1000 -> 0.075 | T19: =INDEX(Liner,T16+(Q19-1)*10,2)/1000 -> 0.147 | U19: =INDEX(Liner,U16+(Q19-1)*10,2)/1000 -> 0.219 | V19: =INDEX(Liner,V16+(Q19-1)*10,2)/1000 -> 0.291 | W19: =INDEX(Liner,W16+(Q19-1)*10,2)/1000 -> 0.363 | X19: =INDEX(Liner,X16+(Q19-1)*10,2)/1000 -> 0.435 | Y19: =INDEX(Liner,Y16+(Q19-1)*10,2)/1000 -> 0.265 | Z19: =INDEX(Liner,Z16+(Q19-1)*10,2)/1000 -> 0.6 | AA19: =INDEX(Liner,AA16+(Q19-1)*10,2)/1000 -> -1.4 | AB19: =INDEX(Liner,AB16+(Q19-1)*10,2)/1000 -> -1.4 | AQ19: =IF(AND(H786=0,H787=0,H788=0),AQ18,$E$781+G787*$G$783-H787*$H$783) -> 0.6452301082 | AR19: =IF(AND(H786=0,H787=0,H788=0),AR18,$F$781+G787*$H$783+H787*$G$783) -> 0.05098360538
B20: 2' | E20: =IF(F21*F19<0,E19-(E21-E19)*F19/(F21-F19),E19) -> 0.25 | F20: =IF(E21=E19,F19,F19+(F21-F19)*(E20-E19)/(E21-E19)) -> -0.35 | G20: 0.25 | H20: 0 | I20: =IF(ABS((H21-H20)/F15)<0.001,0,(G20*H21-G21*H20)/(H21-H20)) -> 0 | J20: =IF(ABS((H21-H20)/F15)<0.001,0,(G21-G20)/(H21-H20)) -> 0 | K20: =-((C15-D15)*E15/(2*D15^3))*(2*D15*(H21-H20)+D15^2*(H21^2-H20^2)+2*LN((1-D15*H21)/(1-D15*H20))) -> 0 | L20: =-(C15-D15)*E15*(H21^3-H20^3)/(3*D15)+K20/D15 -> 0 | M20: =-(C15-D15)*E15*(H21^4-H20^4)/(4*D15)+L20/D15 -> 0 | N20: =IF(ABS((H21-H20)/F15)<0.001,0,0.5*E15*I20*(H21^2-H20^2)+E15*J20*(H21^3-H20^3)/3-I20*K20-J20*L20) -> 0 | O20: =IF(ABS((H21-H20)/F15)<0.001,0,0.5*E15*(I20^2*(H21^2-H20^2)/2+2*I20*J20*(H21^3-H20^3)/3+J20^2*(H21^4-H20^4)/4)-0.5*I20^2*K20-I20*J20*L20-0.5*J20^2*M20) -> 0 | P20: =IF(ABS((H21-H20)/F15)<0.001,0,E15*(I20*(H21^3-H20^3)/3+J20*(H21^4-H20^4)/4)-I20*L20-J20*M20) -> 0 | Q20: 1 | R20: y | S20: =INDEX(Liner,S16+(Q20-1)*10,3)/1000 -> 0.65 | T20: =INDEX(Liner,T16+(Q20-1)*10,3)/1000 -> 0.65 | U20: =INDEX(Liner,U16+(Q20-1)*10,3)/1000 -> 0.65 | V20: =INDEX(Liner,V16+(Q20-1)*10,3)/1000 -> 0.65 | W20: =INDEX(Liner,W16+(Q20-1)*10,3)/1000 -> 0.65 | X20: =INDEX(Liner,X16+(Q20-1)*10,3)/1000 -> 0.65 | Y20: =INDEX(Liner,Y16+(Q20-1)*10,3)/1000 -> 0.25 | Z20: =INDEX(Liner,Z16+(Q20-1)*10,3)/1000 -> 0.25 | AA20: =INDEX(Liner,AA16+(Q20-1)*10,3)/1000 -> 0.25 | AB20: =INDEX(Liner,AB16+(Q20-1)*10,3)/1000 -> 0.25 | AQ20: 0.6132289115 | AR20: 0.07937346879
B21: 3 | C21: =Kold!AP13/1000 -> 0.65 | D21: =Kold!AQ13/1000 -> 0.3 | E21: =G15*(C21-E13)+H15*(D21-F13) -> 0.3 | F21: =-H15*(C21-E13)+G15*(D21-F13) -> -0.05 | G21: 0.3 | H21: 0 | I21: =IF(ABS((H22-H21)/F15)<0.001,0,(G21*H22-G22*H21)/(H22-H21)) -> 0 | J21: =IF(ABS((H22-H21)/F15)<0.001,0,(G22-G21)/(H22-H21)) -> 0 | K21: =-((C15-D15)*E15/(2*D15^3))*(2*D15*(H22-H21)+D15^2*(H22^2-H21^2)+2*LN((1-D15*H22)/(1-D15*H21))) -> 0 | L21: =-(C15-D15)*E15*(H22^3-H21^3)/(3*D15)+K21/D15 -> 0 | M21: =-(C15-D15)*E15*(H22^4-H21^4)/(4*D15)+L21/D15 -> 0 | N21: =IF(ABS((H22-H21)/F15)<0.001,0,0.5*E15*I21*(H22^2-H21^2)+E15*J21*(H22^3-H21^3)/3-I21*K21-J21*L21) -> 0 | O21: =IF(ABS((H22-H21)/F15)<0.001,0,0.5*E15*(I21^2*(H22^2-H21^2)/2+2*I21*J21*(H22^3-H21^3)/3+J21^2*(H22^4-H21^4)/4)-0.5*I21^2*K21-I21*J21*L21-0.5*J21^2*M21) -> 0 | P21: =IF(ABS((H22-H21)/F15)<0.001,0,E15*(I21*(H22^3-H21^3)/3+J21*(H22^4-H21^4)/4)-I21*L21-J21*M21) -> 0 | Q21: 1 | R21: Na | S21: =IF(-(-H15*(S19-E13)+G15*(S20-F13))*C13/F15+IF(S17>0,S18/(S17*$S$5),0)>$S$6,IF(-(-H15*(S19-E13)+G15*(S20-F13))*C13/F15+IF(S17>0,S18/(S17*$S$5),0)>$S$8,0,$S$4+$S$9*(-(-H15*(S19-E13)+G15*(S20-F13))*C13/F15+IF(S17>0,S18/(S17*$S$5),0)-$S$6)),$S$5*(-(-H15*(S19-E13)+G15*(S20-F13))*C13/F15+IF(S17>0,S18/(S17*$S$5),0)))*S17 -> 0.045595 | T21: =IF(-(-H15*(T19-E13)+G15*(T20-F13))*C13/F15+IF(T17>0,T18/(T17*$S$5),0)>$S$6,IF(-(-H15*(T19-E13)+G15*(T20-F13))*C13/F15+IF(T17>0,T18/(T17*$S$5),0)>$S$8,0,$S$4+$S$9*(-(-H15*(T19-E13)+G15*(T20-F13))*C13/F15+IF(T17>0,T18/(T17*$S$5),0)-$S$6)),$S$5*(-(-H15*(T19-E13)+G15*(T20-F13))*C13/F15+IF(T17>0,T18/(T17*$S$5),0)))*T17 -> 0.045595 | U21: =IF(-(-H15*(U19-E13)+G15*(U20-F13))*C13/F15+IF(U17>0,U18/(U17*$S$5),0)>$S$6,IF(-(-H15*(U19-E13)+G15*(U20-F13))*C13/F15+IF(U17>0,U18/(U17*$S$5),0)>$S$8,0,$S$4+$S$9*(-(-H15*(U19-E13)+G15*(U20-F13))*C13/F15+IF(U17>0,U18/(U17*$S$5),0)-$S$6)),$S$5*(-(-H15*(U19-E13)+G15*(U20-F13))*C13/F15+IF(U17>0,U18/(U17*$S$5),0)))*U17 -> 0.045595 | V21: =IF(-(-H15*(V19-E13)+G15*(V20-F13))*C13/F15+IF(V17>0,V18/(V17*$S$5),0)>$S$6,IF(-(-H15*(V19-E13)+G15*(V20-F13))*C13/F15+IF(V17>0,V18/(V17*$S$5),0)>$S$8,0,$S$4+$S$9*(-(-H15*(V19-E13)+G15*(V20-F13))*C13/F15+IF(V17>0,V18/(V17*$S$5),0)-$S$6)),$S$5*(-(-H15*(V19-E13)+G15*(V20-F13))*C13/F15+IF(V17>0,V18/(V17*$S$5),0)))*V17 -> 0.045595 | W21: =IF(-(-H15*(W19-E13)+G15*(W20-F13))*C13/F15+IF(W17>0,W18/(W17*$S$5),0)>$S$6,IF(-(-H15*(W19-E13)+G15*(W20-F13))*C13/F15+IF(W17>0,W18/(W17*$S$5),0)>$S$8,0,$S$4+$S$9*(-(-H15*(W19-E13)+G15*(W20-F13))*C13/F15+IF(W17>0,W18/(W17*$S$5),0)-$S$6)),$S$5*(-(-H15*(W19-E13)+G15*(W20-F13))*C13/F15+IF(W17>0,W18/(W17*$S$5),0)))*W17 -> 0.045595 | X21: =IF(-(-H15*(X19-E13)+G15*(X20-F13))*C13/F15+IF(X17>0,X18/(X17*$S$5),0)>$S$6,IF(-(-H15*(X19-E13)+G15*(X20-F13))*C13/F15+IF(X17>0,X18/(X17*$S$5),0)>$S$8,0,$S$4+$S$9*(-(-H15*(X19-E13)+G15*(X20-F13))*C13/F15+IF(X17>0,X18/(X17*$S$5),0)-$S$6)),$S$5*(-(-H15*(X19-E13)+G15*(X20-F13))*C13/F15+IF(X17>0,X18/(X17*$S$5),0)))*X17 -> 0.045595 | Y21: =IF(-(-H15*(Y19-E13)+G15*(Y20-F13))*C13/F15+IF(Y17>0,Y18/(Y17*$S$5),0)>$S$6,IF(-(-H15*(Y19-E13)+G15*(Y20-F13))*C13/F15+IF(Y17>0,Y18/(Y17*$S$5),0)>$S$8,0,$S$4+$S$9*(-(-H15*(Y19-E13)+G15*(Y20-F13))*C13/F15+IF(Y17>0,Y18/(Y17*$S$5),0)-$S$6)),$S$5*(-(-H15*(Y19-E13)+G15*(Y20-F13))*C13/F15+IF(Y17>0,Y18/(Y17*$S$5),0)))*Y17 -> 0.118135 | Z21: =IF(-(-H15*(Z19-E13)+G15*(Z20-F13))*C13/F15+IF(Z17>0,Z18/(Z17*$S$5),0)>$S$6,IF(-(-H15*(Z19-E13)+G15*(Z20-F13))*C13/F15+IF(Z17>0,Z18/(Z17*$S$5),0)>$S$8,0,$S$4+$S$9*(-(-H15*(Z19-E13)+G15*(Z20-F13))*C13/F15+IF(Z17>0,Z18/(Z17*$S$5),0)-$S$6)),$S$5*(-(-H15*(Z19-E13)+G15*(Z20-F13))*C13/F15+IF(Z17>0,Z18/(Z17*$S$5),0)))*Z17 -> 0.118135 | AA21: =IF(-(-H15*(AA19-E13)+G15*(AA20-F13))*C13/F15+IF(AA17>0,AA18/(AA17*$S$5),0)>$S$6,IF(-(-H15*(AA19-E13)+G15*(AA20-F13))*C13/F15+IF(AA17>0,AA18/(AA17*$S$5),0)>$S$8,0,$S$4+$S$9*(-(-H15*(AA19-E13)+G15*(AA20-F13))*C13/F15+IF(AA17>0,AA18/(AA17*$S$5),0)-$S$6)),$S$5*(-(-H15*(AA19-E13)+G15*(AA20-F13))*C13/F15+IF(AA17>0,AA18/(AA17*$S$5),0)))*AA17 -> 0 | AB21: =IF(-(-H15*(AB19-E13)+G15*(AB20-F13))*C13/F15+IF(AB17>0,AB18/(AB17*$S$5),0)>$S$6,IF(-(-H15*(AB19-E13)+G15*(AB20-F13))*C13/F15+IF(AB17>0,AB18/(AB17*$S$5),0)>$S$8,0,$S$4+$S$9*(-(-H15*(AB19-E13)+G15*(AB20-F13))*C13/F15+IF(AB17>0,AB18/(AB17*$S$5),0)-$S$6)),$S$5*(-(-H15*(AB19-E13)+G15*(AB20-F13))*C13/F15+IF(AB17>0,AB18/(AB17*$S$5),0)))*AB17 -> 0 | AQ21: 0.65 | AR21: 0.3
B22: 3' | E22: =IF(F23*F21<0,E21-(E23-E21)*F21/(F23-F21),E21) -> 0.3 | F22: =IF(E23=E21,F21,F21+(F23-F21)*(E22-E21)/(E23-E21)) -> -0.05 | G22: 0.3 | H22: 0 | I22: =IF(ABS((H23-H22)/F15)<0.001,0,(G22*H23-G23*H22)/(H23-H22)) -> 0 | J22: =IF(ABS((H23-H22)/F15)<0.001,0,(G23-G22)/(H23-H22)) -> 0 | K22: =-((C15-D15)*E15/(2*D15^3))*(2*D15*(H23-H22)+D15^2*(H23^2-H22^2)+2*LN((1-D15*H23)/(1-D15*H22))) -> 0 | L22: =-(C15-D15)*E15*(H23^3-H22^3)/(3*D15)+K22/D15 -> 0 | M22: =-(C15-D15)*E15*(H23^4-H22^4)/(4*D15)+L22/D15 -> 0 | N22: =IF(ABS((H23-H22)/F15)<0.001,0,0.5*E15*I22*(H23^2-H22^2)+E15*J22*(H23^3-H22^3)/3-I22*K22-J22*L22) -> 0 | O22: =IF(ABS((H23-H22)/F15)<0.001,0,0.5*E15*(I22^2*(H23^2-H22^2)/2+2*I22*J22*(H23^3-H22^3)/3+J22^2*(H23^4-H22^4)/4)-0.5*I22^2*K22-I22*J22*L22-0.5*J22^2*M22) -> 0 | P22: =IF(ABS((H23-H22)/F15)<0.001,0,E15*(I22*(H23^3-H22^3)/3+J22*(H23^4-H22^4)/4)-I22*L22-J22*M22) -> 0 | Q22: 2 | R22: A | S22: =INDEX(Liner,S16+(Q22-1)*10,9)/1000000 -> 0 | T22: =INDEX(Liner,T16+(Q22-1)*10,9)/1000000 -> 0 | U22: =INDEX(Liner,U16+(Q22-1)*10,9)/1000000 -> 0 | V22: =INDEX(Liner,V16+(Q22-1)*10,9)/1000000 -> 0 | W22: =INDEX(Liner,W16+(Q22-1)*10,9)/1000000 -> 0 | X22: =INDEX(Liner,X16+(Q22-1)*10,9)/1000000 -> 0 | Y22: =INDEX(Liner,Y16+(Q22-1)*10,9)/1000000 -> 0 | Z22: =INDEX(Liner,Z16+(Q22-1)*10,9)/1000000 -> 0 | AA22: =INDEX(Liner,AA16+(Q22-1)*10,9)/1000000 -> 0 | AB22: =INDEX(Liner,AB16+(Q22-1)*10,9)/1000000 -> 0 | AQ22: 0.65 | AR22: 0.3
B23: 4 | C23: =Kold!AP14/1000 -> 0.475 | D23: =Kold!AQ14/1000 -> 0.3 | E23: =G15*(C23-E13)+H15*(D23-F13) -> 0.125 | F23: =-H15*(C23-E13)+G15*(D23-F13) -> -0.05 | G23: 0.125 | H23: 0 | I23: =IF(ABS((H24-H23)/F15)<0.001,0,(G23*H24-G24*H23)/(H24-H23)) -> 0 | J23: =IF(ABS((H24-H23)/F15)<0.001,0,(G24-G23)/(H24-H23)) -> 0 | K23: =-((C15-D15)*E15/(2*D15^3))*(2*D15*(H24-H23)+D15^2*(H24^2-H23^2)+2*LN((1-D15*H24)/(1-D15*H23))) -> 0 | L23: =-(C15-D15)*E15*(H24^3-H23^3)/(3*D15)+K23/D15 -> 0 | M23: =-(C15-D15)*E15*(H24^4-H23^4)/(4*D15)+L23/D15 -> 0 | N23: =IF(ABS((H24-H23)/F15)<0.001,0,0.5*E15*I23*(H24^2-H23^2)+E15*J23*(H24^3-H23^3)/3-I23*K23-J23*L23) -> 0 | O23: =IF(ABS((H24-H23)/F15)<0.001,0,0.5*E15*(I23^2*(H24^2-H23^2)/2+2*I23*J23*(H24^3-H23^3)/3+J23^2*(H24^4-H23^4)/4)-0.5*I23^2*K23-I23*J23*L23-0.5*J23^2*M23) -> 0 | P23: =IF(ABS((H24-H23)/F15)<0.001,0,E15*(I23*(H24^3-H23^3)/3+J23*(H24^4-H23^4)/4)-I23*L23-J23*M23) -> 0 | Q23: 2 | R23: Nf | S23: =INDEX(Liner,S16+(Q23-1)*10,10)/1000 -> 0 | T23: =INDEX(Liner,T16+(Q23-1)*10,10)/1000 -> 0 | U23: =INDEX(Liner,U16+(Q23-1)*10,10)/1000 -> 0 | V23: =INDEX(Liner,V16+(Q23-1)*10,10)/1000 -> 0 | W23: =INDEX(Liner,W16+(Q23-1)*10,10)/1000 -> 0 | X23: =INDEX(Liner,X16+(Q23-1)*10,10)/1000 -> 0 | Y23: =INDEX(Liner,Y16+(Q23-1)*10,10)/1000 -> 0 | Z23: =INDEX(Liner,Z16+(Q23-1)*10,10)/1000 -> 0 | AA23: =INDEX(Liner,AA16+(Q23-1)*10,10)/1000 -> 0 | AB23: =INDEX(Liner,AB16+(Q23-1)*10,10)/1000 -> 0 | AQ23: 0.475 | AR23: 0.3
B24: 4' | E24: =IF(F25*F23<0,E23-(E25-E23)*F23/(F25-F23),E23) -> 0.125 | F24: =IF(E25=E23,F23,F23+(F25-F23)*(E24-E23)/(E25-E23)) -> -0.05 | G24: 0.125 | H24: 0 | I24: =IF(ABS((H25-H24)/F15)<0.001,0,(G24*H25-G25*H24)/(H25-H24)) -> 0.125 | J24: =IF(ABS((H25-H24)/F15)<0.001,0,(G25-G24)/(H25-H24)) -> 0 | K24: =-((C15-D15)*E15/(2*D15^3))*(2*D15*(H25-H24)+D15^2*(H25^2-H24^2)+2*LN((1-D15*H25)/(1-D15*H24))) -> 6.226238609 | L24: =-(C15-D15)*E15*(H25^3-H24^3)/(3*D15)+K24/D15 -> 1.666182324 | M24: =-(C15-D15)*E15*(H25^4-H24^4)/(4*D15)+L24/D15 -> 0.4726826181 | N24: =IF(ABS((H25-H24)/F15)<0.001,0,0.5*E15*I24*(H25^2-H24^2)+E15*J24*(H25^3-H24^3)/3-I24*K24-J24*L24) -> 0.9070743264 | O24: =IF(ABS((H25-H24)/F15)<0.001,0,0.5*E15*(I24^2*(H25^2-H24^2)/2+2*I24*J24*(H25^3-H24^3)/3+J24^2*(H25^4-H24^4)/4)-0.5*I24^2*K24-I24*J24*L24-0.5*J24^2*M24) -> 0.0566921454 | P24: =IF(ABS((H25-H24)/F15)<0.001,0,E15*(I24*(H25^3-H24^3)/3+J24*(H25^4-H24^4)/4)-I24*L24-J24*M24) -> 0.1849765117 | Q24: 2 | R24: x | S24: =INDEX(Liner,S16+(Q24-1)*10,2)/1000 -> 0.35 | T24: =INDEX(Liner,T16+(Q24-1)*10,2)/1000 -> -1.4 | U24: =INDEX(Liner,U16+(Q24-1)*10,2)/1000 -> -1.4 | V24: =INDEX(Liner,V16+(Q24-1)*10,2)/1000 -> -1.4 | W24: =INDEX(Liner,W16+(Q24-1)*10,2)/1000 -> -1.4 | X24: =INDEX(Liner,X16+(Q24-1)*10,2)/1000 -> -1.4 | Y24: =INDEX(Liner,Y16+(Q24-1)*10,2)/1000 -> -1.4 | Z24: =INDEX(Liner,Z16+(Q24-1)*10,2)/1000 -> -1.4 | AA24: =INDEX(Liner,AA16+(Q24-1)*10,2)/1000 -> -1.4 | AB24: =INDEX(Liner,AB16+(Q24-1)*10,2)/1000 -> -1.4 | AQ24: 0.475 | AR24: 0.3
B25: 5 | C25: =Kold!AP15/1000 -> 0.475 | D25: =Kold!AQ15/1000 -> 0.7 | E25: =G15*(C25-E13)+H15*(D25-F13) -> 0.125 | F25: =-H15*(C25-E13)+G15*(D25-F13) -> 0.35 | G25: 0.125 | H25: 0.35 | I25: =IF(ABS((H26-H25)/F15)<0.001,0,(G25*H26-G26*H25)/(H26-H25)) -> 0 | J25: =IF(ABS((H26-H25)/F15)<0.001,0,(G26-G25)/(H26-H25)) -> 0 | K25: =-((C15-D15)*E15/(2*D15^3))*(2*D15*(H26-H25)+D15^2*(H26^2-H25^2)+2*LN((1-D15*H26)/(1-D15*H25))) -> 0 | L25: =-(C15-D15)*E15*(H26^3-H25^3)/(3*D15)+K25/D15 -> 0 | M25: =-(C15-D15)*E15*(H26^4-H25^4)/(4*D15)+L25/D15 -> 0 | N25: =IF(ABS((H26-H25)/F15)<0.001,0,0.5*E15*I25*(H26^2-H25^2)+E15*J25*(H26^3-H25^3)/3-I25*K25-J25*L25) -> 0 | O25: =IF(ABS((H26-H25)/F15)<0.001,0,0.5*E15*(I25^2*(H26^2-H25^2)/2+2*I25*J25*(H26^3-H25^3)/3+J25^2*(H26^4-H25^4)/4)-0.5*I25^2*K25-I25*J25*L25-0.5*J25^2*M25) -> 0 | P25: =IF(ABS((H26-H25)/F15)<0.001,0,E15*(I25*(H26^3-H25^3)/3+J25*(H26^4-H25^4)/4)-I25*L25-J25*M25) -> 0 | Q25: 2 | R25: y | S25: =INDEX(Liner,S16+(Q25-1)*10,3)/1000 -> 0 | T25: =INDEX(Liner,T16+(Q25-1)*10,3)/1000 -> 0 | U25: =INDEX(Liner,U16+(Q25-1)*10,3)/1000 -> 0 | V25: =INDEX(Liner,V16+(Q25-1)*10,3)/1000 -> 0 | W25: =INDEX(Liner,W16+(Q25-1)*10,3)/1000 -> 0 | X25: =INDEX(Liner,X16+(Q25-1)*10,3)/1000 -> 0 | Y25: =INDEX(Liner,Y16+(Q25-1)*10,3)/1000 -> 0 | Z25: =INDEX(Liner,Z16+(Q25-1)*10,3)/1000 -> 0 | AA25: =INDEX(Liner,AA16+(Q25-1)*10,3)/1000 -> 0 | AB25: =INDEX(Liner,AB16+(Q25-1)*10,3)/1000 -> 0 | AQ25: 0.475 | AR25: 0.7
B26: 5' | E26: =IF(F27*F25<0,E25-(E27-E25)*F25/(F27-F25),E25) -> 0.125 | F26: =IF(E27=E25,F25,F25+(F27-F25)*(E26-E25)/(E27-E25)) -> 0.35 | G26: 0.125 | H26: 0.35 | I26: =IF(ABS((H27-H26)/F15)<0.001,0,(G26*H27-G27*H26)/(H27-H26)) -> 0 | J26: =IF(ABS((H27-H26)/F15)<0.001,0,(G27-G26)/(H27-H26)) -> 0 | K26: =-((C15-D15)*E15/(2*D15^3))*(2*D15*(H27-H26)+D15^2*(H27^2-H26^2)+2*LN((1-D15*H27)/(1-D15*H26))) -> 0 | L26: =-(C15-D15)*E15*(H27^3-H26^3)/(3*D15)+K26/D15 -> 0 | M26: =-(C15-D15)*E15*(H27^4-H26^4)/(4*D15)+L26/D15 -> 0 | N26: =IF(ABS((H27-H26)/F15)<0.001,0,0.5*E15*I26*(H27^2-H26^2)+E15*J26*(H27^3-H26^3)/3-I26*K26-J26*L26) -> 0 | O26: =IF(ABS((H27-H26)/F15)<0.001,0,0.5*E15*(I26^2*(H27^2-H26^2)/2+2*I26*J26*(H27^3-H26^3)/3+J26^2*(H27^4-H26^4)/4)-0.5*I26^2*K26-I26*J26*L26-0.5*J26^2*M26) -> 0 | P26: =IF(ABS((H27-H26)/F15)<0.001,0,E15*(I26*(H27^3-H26^3)/3+J26*(H27^4-H26^4)/4)-I26*L26-J26*M26) -> 0 | Q26: 2 | R26: Na | S26: =IF(-(-H15*(S24-E13)+G15*(S25-F13))*C13/F15+IF(S22>0,S23/(S22*$S$5),0)>$S$6,IF(-(-H15*(S24-E13)+G15*(S25-F13))*C13/F15+IF(S22>0,S23/(S22*$S$5),0)>$S$8,0,$S$4+$S$9*(-(-H15*(S24-E13)+G15*(S25-F13))*C13/F15+IF(S22>0,S23/(S22*$S$5),0)-$S$6)),$S$5*(-(-H15*(S24-E13)+G15*(S25-F13))*C13/F15+IF(S22>0,S23/(S22*$S$5),0)))*S22 -> 0 | T26: =IF(-(-H15*(T24-E13)+G15*(T25-F13))*C13/F15+IF(T22>0,T23/(T22*$S$5),0)>$S$6,IF(-(-H15*(T24-E13)+G15*(T25-F13))*C13/F15+IF(T22>0,T23/(T22*$S$5),0)>$S$8,0,$S$4+$S$9*(-(-H15*(T24-E13)+G15*(T25-F13))*C13/F15+IF(T22>0,T23/(T22*$S$5),0)-$S$6)),$S$5*(-(-H15*(T24-E13)+G15*(T25-F13))*C13/F15+IF(T22>0,T23/(T22*$S$5),0)))*T22 -> 0 | U26: =IF(-(-H15*(U24-E13)+G15*(U25-F13))*C13/F15+IF(U22>0,U23/(U22*$S$5),0)>$S$6,IF(-(-H15*(U24-E13)+G15*(U25-F13))*C13/F15+IF(U22>0,U23/(U22*$S$5),0)>$S$8,0,$S$4+$S$9*(-(-H15*(U24-E13)+G15*(U25-F13))*C13/F15+IF(U22>0,U23/(U22*$S$5),0)-$S$6)),$S$5*(-(-H15*(U24-E13)+G15*(U25-F13))*C13/F15+IF(U22>0,U23/(U22*$S$5),0)))*U22 -> 0 | V26: =IF(-(-H15*(V24-E13)+G15*(V25-F13))*C13/F15+IF(V22>0,V23/(V22*$S$5),0)>$S$6,IF(-(-H15*(V24-E13)+G15*(V25-F13))*C13/F15+IF(V22>0,V23/(V22*$S$5),0)>$S$8,0,$S$4+$S$9*(-(-H15*(V24-E13)+G15*(V25-F13))*C13/F15+IF(V22>0,V23/(V22*$S$5),0)-$S$6)),$S$5*(-(-H15*(V24-E13)+G15*(V25-F13))*C13/F15+IF(V22>0,V23/(V22*$S$5),0)))*V22 -> 0 | W26: =IF(-(-H15*(W24-E13)+G15*(W25-F13))*C13/F15+IF(W22>0,W23/(W22*$S$5),0)>$S$6,IF(-(-H15*(W24-E13)+G15*(W25-F13))*C13/F15+IF(W22>0,W23/(W22*$S$5),0)>$S$8,0,$S$4+$S$9*(-(-H15*(W24-E13)+G15*(W25-F13))*C13/F15+IF(W22>0,W23/(W22*$S$5),0)-$S$6)),$S$5*(-(-H15*(W24-E13)+G15*(W25-F13))*C13/F15+IF(W22>0,W23/(W22*$S$5),0)))*W22 -> 0 | X26: =IF(-(-H15*(X24-E13)+G15*(X25-F13))*C13/F15+IF(X22>0,X23/(X22*$S$5),0)>$S$6,IF(-(-H15*(X24-E13)+G15*(X25-F13))*C13/F15+IF(X22>0,X23/(X22*$S$5),0)>$S$8,0,$S$4+$S$9*(-(-H15*(X24-E13)+G15*(X25-F13))*C13/F15+IF(X22>0,X23/(X22*$S$5),0)-$S$6)),$S$5*(-(-H15*(X24-E13)+G15*(X25-F13))*C13/F15+IF(X22>0,X23/(X22*$S$5),0)))*X22 -> 0 | Y26: =IF(-(-H15*(Y24-E13)+G15*(Y25-F13))*C13/F15+IF(Y22>0,Y23/(Y22*$S$5),0)>$S$6,IF(-(-H15*(Y24-E13)+G15*(Y25-F13))*C13/F15+IF(Y22>0,Y23/(Y22*$S$5),0)>$S$8,0,$S$4+$S$9*(-(-H15*(Y24-E13)+G15*(Y25-F13))*C13/F15+IF(Y22>0,Y23/(Y22*$S$5),0)-$S$6)),$S$5*(-(-H15*(Y24-E13)+G15*(Y25-F13))*C13/F15+IF(Y22>0,Y23/(Y22*$S$5),0)))*Y22 -> 0 | Z26: =IF(-(-H15*(Z24-E13)+G15*(Z25-F13))*C13/F15+IF(Z22>0,Z23/(Z22*$S$5),0)>$S$6,IF(-(-H15*(Z24-E13)+G15*(Z25-F13))*C13/F15+IF(Z22>0,Z23/(Z22*$S$5),0)>$S$8,0,$S$4+$S$9*(-(-H15*(Z24-E13)+G15*(Z25-F13))*C13/F15+IF(Z22>0,Z23/(Z22*$S$5),0)-$S$6)),$S$5*(-(-H15*(Z24-E13)+G15*(Z25-F13))*C13/F15+IF(Z22>0,Z23/(Z22*$S$5),0)))*Z22 -> 0 | AA26: =IF(-(-H15*(AA24-E13)+G15*(AA25-F13))*C13/F15+IF(AA22>0,AA23/(AA22*$S$5),0)>$S$6,IF(-(-H15*(AA24-E13)+G15*(AA25-F13))*C13/F15+IF(AA22>0,AA23/(AA22*$S$5),0)>$S$8,0,$S$4+$S$9*(-(-H15*(AA24-E13)+G15*(AA25-F13))*C13/F15+IF(AA22>0,AA23/(AA22*$S$5),0)-$S$6)),$S$5*(-(-H15*(AA24-E13)+G15*(AA25-F13))*C13/F15+IF(AA22>0,AA23/(AA22*$S$5),0)))*AA22 -> 0 | AB26: =IF(-(-H15*(AB24-E13)+G15*(AB25-F13))*C13/F15+IF(AB22>0,AB23/(AB22*$S$5),0)>$S$6,IF(-(-H15*(AB24-E13)+G15*(AB25-F13))*C13/F15+IF(AB22>0,AB23/(AB22*$S$5),0)>$S$8,0,$S$4+$S$9*(-(-H15*(AB24-E13)+G15*(AB25-F13))*C13/F15+IF(AB22>0,AB23/(AB22*$S$5),0)-$S$6)),$S$5*(-(-H15*(AB24-E13)+G15*(AB25-F13))*C13/F15+IF(AB22>0,AB23/(AB22*$S$5),0)))*AB22 -> 0 | AQ26: 0.475 | AR26: 0.7
B27: 6 | C27: =Kold!AP16/1000 -> 0.475 | D27: =Kold!AQ16/1000 -> 0.7 | E27: =G15*(C27-E13)+H15*(D27-F13) -> 0.125 | F27: =-H15*(C27-E13)+G15*(D27-F13) -> 0.35 | G27: 0.125 | H27: 0.35 | I27: =IF(ABS((H28-H27)/F15)<0.001,0,(G27*H28-G28*H27)/(H28-H27)) -> 0 | J27: =IF(ABS((H28-H27)/F15)<0.001,0,(G28-G27)/(H28-H27)) -> 0 | K27: =-((C15-D15)*E15/(2*D15^3))*(2*D15*(H28-H27)+D15^2*(H28^2-H27^2)+2*LN((1-D15*H28)/(1-D15*H27))) -> 0 | L27: =-(C15-D15)*E15*(H28^3-H27^3)/(3*D15)+K27/D15 -> 0 | M27: =-(C15-D15)*E15*(H28^4-H27^4)/(4*D15)+L27/D15 -> 0 | N27: =IF(ABS((H28-H27)/F15)<0.001,0,0.5*E15*I27*(H28^2-H27^2)+E15*J27*(H28^3-H27^3)/3-I27*K27-J27*L27) -> 0 | O27: =IF(ABS((H28-H27)/F15)<0.001,0,0.5*E15*(I27^2*(H28^2-H27^2)/2+2*I27*J27*(H28^3-H27^3)/3+J27^2*(H28^4-H27^4)/4)-0.5*I27^2*K27-I27*J27*L27-0.5*J27^2*M27) -> 0 | P27: =IF(ABS((H28-H27)/F15)<0.001,0,E15*(I27*(H28^3-H27^3)/3+J27*(H28^4-H27^4)/4)-I27*L27-J27*M27) -> 0 | Q27: 3 | R27: A | S27: =INDEX(Liner,S16+(Q27-1)*10,9)/1000000 -> 9.3e-05 | T27: =INDEX(Liner,T16+(Q27-1)*10,9)/1000000 -> 9.3e-05 | U27: =INDEX(Liner,U16+(Q27-1)*10,9)/1000000 -> 9.3e-05 | V27: =INDEX(Liner,V16+(Q27-1)*10,9)/1000000 -> 9.3e-05 | W27: =INDEX(Liner,W16+(Q27-1)*10,9)/1000000 -> 9.3e-05 | X27: =INDEX(Liner,X16+(Q27-1)*10,9)/1000000 -> 0 | Y27: =INDEX(Liner,Y16+(Q27-1)*10,9)/1000000 -> 0 | Z27: =INDEX(Liner,Z16+(Q27-1)*10,9)/1000000 -> 0 | AA27: =INDEX(Liner,AA16+(Q27-1)*10,9)/1000000 -> 0 | AB27: =INDEX(Liner,AB16+(Q27-1)*10,9)/1000000 -> 0 | AQ27: 0.475 | AR27: 0.7
B28: 6' | E28: =IF(F29*F27<0,E27-(E29-E27)*F27/(F29-F27),E27) -> 0.125 | F28: =IF(E29=E27,F27,F27+(F29-F27)*(E28-E27)/(E29-E27)) -> 0.35 | G28: 0.125 | H28: 0.35 | I28: =IF(ABS((H29-H28)/F15)<0.001,0,(G28*H29-G29*H28)/(H29-H28)) -> 0 | J28: =IF(ABS((H29-H28)/F15)<0.001,0,(G29-G28)/(H29-H28)) -> 0 | K28: =-((C15-D15)*E15/(2*D15^3))*(2*D15*(H29-H28)+D15^2*(H29^2-H28^2)+2*LN((1-D15*H29)/(1-D15*H28))) -> 0 | L28: =-(C15-D15)*E15*(H29^3-H28^3)/(3*D15)+K28/D15 -> 0 | M28: =-(C15-D15)*E15*(H29^4-H28^4)/(4*D15)+L28/D15 -> 0 | N28: =IF(ABS((H29-H28)/F15)<0.001,0,0.5*E15*I28*(H29^2-H28^2)+E15*J28*(H29^3-H28^3)/3-I28*K28-J28*L28) -> 0 | O28: =IF(ABS((H29-H28)/F15)<0.001,0,0.5*E15*(I28^2*(H29^2-H28^2)/2+2*I28*J28*(H29^3-H28^3)/3+J28^2*(H29^4-H28^4)/4)-0.5*I28^2*K28-I28*J28*L28-0.5*J28^2*M28) -> 0 | P28: =IF(ABS((H29-H28)/F15)<0.001,0,E15*(I28*(H29^3-H28^3)/3+J28*(H29^4-H28^4)/4)-I28*L28-J28*M28) -> 0 | Q28: 3 | R28: Nf | S28: =INDEX(Liner,S16+(Q28-1)*10,10)/1000 -> 0.1 | T28: =INDEX(Liner,T16+(Q28-1)*10,10)/1000 -> 0.1 | U28: =INDEX(Liner,U16+(Q28-1)*10,10)/1000 -> 0.1 | V28: =INDEX(Liner,V16+(Q28-1)*10,10)/1000 -> 0.1 | W28: =INDEX(Liner,W16+(Q28-1)*10,10)/1000 -> 0.1 | X28: =INDEX(Liner,X16+(Q28-1)*10,10)/1000 -> 0 | Y28: =INDEX(Liner,Y16+(Q28-1)*10,10)/1000 -> 0 | Z28: =INDEX(Liner,Z16+(Q28-1)*10,10)/1000 -> 0 | AA28: =INDEX(Liner,AA16+(Q28-1)*10,10)/1000 -> 0 | AB28: =INDEX(Liner,AB16+(Q28-1)*10,10)/1000 -> 0 | AQ28: 0.475 | AR28: 0.7
B29: 7 | C29: =Kold!AP17/1000 -> 0.475 | D29: =Kold!AQ17/1000 -> 0.7 | E29: =G15*(C29-E13)+H15*(D29-F13) -> 0.125 | F29: =-H15*(C29-E13)+G15*(D29-F13) -> 0.35 | G29: 0.125 | H29: 0.35 | I29: =IF(ABS((H30-H29)/F15)<0.001,0,(G29*H30-G30*H29)/(H30-H29)) -> 0 | J29: =IF(ABS((H30-H29)/F15)<0.001,0,(G30-G29)/(H30-H29)) -> 0 | K29: =-((C15-D15)*E15/(2*D15^3))*(2*D15*(H30-H29)+D15^2*(H30^2-H29^2)+2*LN((1-D15*H30)/(1-D15*H29))) -> 0 | L29: =-(C15-D15)*E15*(H30^3-H29^3)/(3*D15)+K29/D15 -> 0 | M29: =-(C15-D15)*E15*(H30^4-H29^4)/(4*D15)+L29/D15 -> 0 | N29: =IF(ABS((H30-H29)/F15)<0.001,0,0.5*E15*I29*(H30^2-H29^2)+E15*J29*(H30^3-H29^3)/3-I29*K29-J29*L29) -> 0 | O29: =IF(ABS((H30-H29)/F15)<0.001,0,0.5*E15*(I29^2*(H30^2-H29^2)/2+2*I29*J29*(H30^3-H29^3)/3+J29^2*(H30^4-H29^4)/4)-0.5*I29^2*K29-I29*J29*L29-0.5*J29^2*M29) -> 0 | P29: =IF(ABS((H30-H29)/F15)<0.001,0,E15*(I29*(H30^3-H29^3)/3+J29*(H30^4-H29^4)/4)-I29*L29-J29*M29) -> 0 | Q29: 3 | R29: x | S29: =INDEX(Liner,S16+(Q29-1)*10,2)/1000 -> 0.265 | T29: =INDEX(Liner,T16+(Q29-1)*10,2)/1000 -> 0.3125 | U29: =INDEX(Liner,U16+(Q29-1)*10,2)/1000 -> 0.36 | V29: =INDEX(Liner,V16+(Q29-1)*10,2)/1000 -> 0.4075 | W29: =INDEX(Liner,W16+(Q29-1)*10,2)/1000 -> 0.455 | X29: =INDEX(Liner,X16+(Q29-1)*10,2)/1000 -> -1.4 | Y29: =INDEX(Liner,Y16+(Q29-1)*10,2)/1000 -> -1.4 | Z29: =INDEX(Liner,Z16+(Q29-1)*10,2)/1000 -> -1.4 | AA29: =INDEX(Liner,AA16+(Q29-1)*10,2)/1000 -> -1.4 | AB29: =INDEX(Liner,AB16+(Q29-1)*10,2)/1000 -> -1.4 | AQ29: 0.475 | AR29: 0.7
B30: 7' | E30: =IF(F31*F29<0,E29-(E31-E29)*F29/(F31-F29),E29) -> 0.125 | F30: =IF(E31=E29,F29,F29+(F31-F29)*(E30-E29)/(E31-E29)) -> 0.35 | G30: 0.125 | H30: 0.35 | I30: =IF(ABS((H31-H30)/F15)<0.001,0,(G30*H31-G31*H30)/(H31-H30)) -> 0 | J30: =IF(ABS((H31-H30)/F15)<0.001,0,(G31-G30)/(H31-H30)) -> 0 | K30: =-((C15-D15)*E15/(2*D15^3))*(2*D15*(H31-H30)+D15^2*(H31^2-H30^2)+2*LN((1-D15*H31)/(1-D15*H30))) -> 0 | L30: =-(C15-D15)*E15*(H31^3-H30^3)/(3*D15)+K30/D15 -> 0 | M30: =-(C15-D15)*E15*(H31^4-H30^4)/(4*D15)+L30/D15 -> 0 | N30: =IF(ABS((H31-H30)/F15)<0.001,0,0.5*E15*I30*(H31^2-H30^2)+E15*J30*(H31^3-H30^3)/3-I30*K30-J30*L30) -> 0 | O30: =IF(ABS((H31-H30)/F15)<0.001,0,0.5*E15*(I30^2*(H31^2-H30^2)/2+2*I30*J30*(H31^3-H30^3)/3+J30^2*(H31^4-H30^4)/4)-0.5*I30^2*K30-I30*J30*L30-0.5*J30^2*M30) -> 0 | P30: =IF(ABS((H31-H30)/F15)<0.001,0,E15*(I30*(H31^3-H30^3)/3+J30*(H31^4-H30^4)/4)-I30*L30-J30*M30) -> 0 | Q30: 3 | R30: y | S30: =INDEX(Liner,S16+(Q30-1)*10,3)/1000 -> 0.13 | T30: =INDEX(Liner,T16+(Q30-1)*10,3)/1000 -> 0.13 | U30: =INDEX(Liner,U16+(Q30-1)*10,3)/1000 -> 0.13 | V30: =INDEX(Liner,V16+(Q30-1)*10,3)/1000 -> 0.13 | W30: =INDEX(Liner,W16+(Q30-1)*10,3)/1000 -> 0.13 | X30: =INDEX(Liner,X16+(Q30-1)*10,3)/1000 -> 0.13 | Y30: =INDEX(Liner,Y16+(Q30-1)*10,3)/1000 -> 0.13 | Z30: =INDEX(Liner,Z16+(Q30-1)*10,3)/1000 -> 0.13 | AA30: =INDEX(Liner,AA16+(Q30-1)*10,3)/1000 -> 0.13 | AB30: =INDEX(Liner,AB16+(Q30-1)*10,3)/1000 -> 0.13 | AQ30: 0.475 | AR30: 0.7
B31: 8 | C31: =Kold!AP18/1000 -> 0.025 | D31: =Kold!AQ18/1000 -> 0.7 | E31: =G15*(C31-E13)+H15*(D31-F13) -> -0.325 | F31: =-H15*(C31-E13)+G15*(D31-F13) -> 0.35 | G31: -0.325 | H31: 0.35 | I31: =IF(ABS((H32-H31)/F15)<0.001,0,(G31*H32-G32*H31)/(H32-H31)) -> 0 | J31: =IF(ABS((H32-H31)/F15)<0.001,0,(G32-G31)/(H32-H31)) -> 0 | K31: =-((C15-D15)*E15/(2*D15^3))*(2*D15*(H32-H31)+D15^2*(H32^2-H31^2)+2*LN((1-D15*H32)/(1-D15*H31))) -> 0 | L31: =-(C15-D15)*E15*(H32^3-H31^3)/(3*D15)+K31/D15 -> 0 | M31: =-(C15-D15)*E15*(H32^4-H31^4)/(4*D15)+L31/D15 -> 0 | N31: =IF(ABS((H32-H31)/F15)<0.001,0,0.5*E15*I31*(H32^2-H31^2)+E15*J31*(H32^3-H31^3)/3-I31*K31-J31*L31) -> 0 | O31: =IF(ABS((H32-H31)/F15)<0.001,0,0.5*E15*(I31^2*(H32^2-H31^2)/2+2*I31*J31*(H32^3-H31^3)/3+J31^2*(H32^4-H31^4)/4)-0.5*I31^2*K31-I31*J31*L31-0.5*J31^2*M31) -> 0 | P31: =IF(ABS((H32-H31)/F15)<0.001,0,E15*(I31*(H32^3-H31^3)/3+J31*(H32^4-H31^4)/4)-I31*L31-J31*M31) -> 0 | Q31: 3 | R31: Na | S31: =IF(-(-H15*(S29-E13)+G15*(S30-F13))*C13/F15+IF(S27>0,S28/(S27*$S$5),0)>$S$6,IF(-(-H15*(S29-E13)+G15*(S30-F13))*C13/F15+IF(S27>0,S28/(S27*$S$5),0)>$S$8,0,$S$4+$S$9*(-(-H15*(S29-E13)+G15*(S30-F13))*C13/F15+IF(S27>0,S28/(S27*$S$5),0)-$S$6)),$S$5*(-(-H15*(S29-E13)+G15*(S30-F13))*C13/F15+IF(S27>0,S28/(S27*$S$5),0)))*S27 -> 0.1249175758 | T31: =IF(-(-H15*(T29-E13)+G15*(T30-F13))*C13/F15+IF(T27>0,T28/(T27*$S$5),0)>$S$6,IF(-(-H15*(T29-E13)+G15*(T30-F13))*C13/F15+IF(T27>0,T28/(T27*$S$5),0)>$S$8,0,$S$4+$S$9*(-(-H15*(T29-E13)+G15*(T30-F13))*C13/F15+IF(T27>0,T28/(T27*$S$5),0)-$S$6)),$S$5*(-(-H15*(T29-E13)+G15*(T30-F13))*C13/F15+IF(T27>0,T28/(T27*$S$5),0)))*T27 -> 0.1249175758 | U31: =IF(-(-H15*(U29-E13)+G15*(U30-F13))*C13/F15+IF(U27>0,U28/(U27*$S$5),0)>$S$6,IF(-(-H15*(U29-E13)+G15*(U30-F13))*C13/F15+IF(U27>0,U28/(U27*$S$5),0)>$S$8,0,$S$4+$S$9*(-(-H15*(U29-E13)+G15*(U30-F13))*C13/F15+IF(U27>0,U28/(U27*$S$5),0)-$S$6)),$S$5*(-(-H15*(U29-E13)+G15*(U30-F13))*C13/F15+IF(U27>0,U28/(U27*$S$5),0)))*U27 -> 0.1249175758 | V31: =IF(-(-H15*(V29-E13)+G15*(V30-F13))*C13/F15+IF(V27>0,V28/(V27*$S$5),0)>$S$6,IF(-(-H15*(V29-E13)+G15*(V30-F13))*C13/F15+IF(V27>0,V28/(V27*$S$5),0)>$S$8,0,$S$4+$S$9*(-(-H15*(V29-E13)+G15*(V30-F13))*C13/F15+IF(V27>0,V28/(V27*$S$5),0)-$S$6)),$S$5*(-(-H15*(V29-E13)+G15*(V30-F13))*C13/F15+IF(V27>0,V28/(V27*$S$5),0)))*V27 -> 0.1249175758 | W31: =IF(-(-H15*(W29-E13)+G15*(W30-F13))*C13/F15+IF(W27>0,W28/(W27*$S$5),0)>$S$6,IF(-(-H15*(W29-E13)+G15*(W30-F13))*C13/F15+IF(W27>0,W28/(W27*$S$5),0)>$S$8,0,$S$4+$S$9*(-(-H15*(W29-E13)+G15*(W30-F13))*C13/F15+IF(W27>0,W28/(W27*$S$5),0)-$S$6)),$S$5*(-(-H15*(W29-E13)+G15*(W30-F13))*C13/F15+IF(W27>0,W28/(W27*$S$5),0)))*W27 -> 0.1249175758 | X31: =IF(-(-H15*(X29-E13)+G15*(X30-F13))*C13/F15+IF(X27>0,X28/(X27*$S$5),0)>$S$6,IF(-(-H15*(X29-E13)+G15*(X30-F13))*C13/F15+IF(X27>0,X28/(X27*$S$5),0)>$S$8,0,$S$4+$S$9*(-(-H15*(X29-E13)+G15*(X30-F13))*C13/F15+IF(X27>0,X28/(X27*$S$5),0)-$S$6)),$S$5*(-(-H15*(X29-E13)+G15*(X30-F13))*C13/F15+IF(X27>0,X28/(X27*$S$5),0)))*X27 -> 0 | Y31: =IF(-(-H15*(Y29-E13)+G15*(Y30-F13))*C13/F15+IF(Y27>0,Y28/(Y27*$S$5),0)>$S$6,IF(-(-H15*(Y29-E13)+G15*(Y30-F13))*C13/F15+IF(Y27>0,Y28/(Y27*$S$5),0)>$S$8,0,$S$4+$S$9*(-(-H15*(Y29-E13)+G15*(Y30-F13))*C13/F15+IF(Y27>0,Y28/(Y27*$S$5),0)-$S$6)),$S$5*(-(-H15*(Y29-E13)+G15*(Y30-F13))*C13/F15+IF(Y27>0,Y28/(Y27*$S$5),0)))*Y27 -> 0 | Z31: =IF(-(-H15*(Z29-E13)+G15*(Z30-F13))*C13/F15+IF(Z27>0,Z28/(Z27*$S$5),0)>$S$6,IF(-(-H15*(Z29-E13)+G15*(Z30-F13))*C13/F15+IF(Z27>0,Z28/(Z27*$S$5),0)>$S$8,0,$S$4+$S$9*(-(-H15*(Z29-E13)+G15*(Z30-F13))*C13/F15+IF(Z27>0,Z28/(Z27*$S$5),0)-$S$6)),$S$5*(-(-H15*(Z29-E13)+G15*(Z30-F13))*C13/F15+IF(Z27>0,Z28/(Z27*$S$5),0)))*Z27 -> 0 | AA31: =IF(-(-H15*(AA29-E13)+G15*(AA30-F13))*C13/F15+IF(AA27>0,AA28/(AA27*$S$5),0)>$S$6,IF(-(-H15*(AA29-E13)+G15*(AA30-F13))*C13/F15+IF(AA27>0,AA28/(AA27*$S$5),0)>$S$8,0,$S$4+$S$9*(-(-H15*(AA29-E13)+G15*(AA30-F13))*C13/F15+IF(AA27>0,AA28/(AA27*$S$5),0)-$S$6)),$S$5*(-(-H15*(AA29-E13)+G15*(AA30-F13))*C13/F15+IF(AA27>0,AA28/(AA27*$S$5),0)))*AA27 -> 0 | AB31: =IF(-(-H15*(AB29-E13)+G15*(AB30-F13))*C13/F15+IF(AB27>0,AB28/(AB27*$S$5),0)>$S$6,IF(-(-H15*(AB29-E13)+G15*(AB30-F13))*C13/F15+IF(AB27>0,AB28/(AB27*$S$5),0)>$S$8,0,$S$4+$S$9*(-(-H15*(AB29-E13)+G15*(AB30-F13))*C13/F15+IF(AB27>0,AB28/(AB27*$S$5),0)-$S$6)),$S$5*(-(-H15*(AB29-E13)+G15*(AB30-F13))*C13/F15+IF(AB27>0,AB28/(AB27*$S$5),0)))*AB27 -> 0 | AQ31: 0.025 | AR31: 0.7
B32: 8' | E32: =IF(F33*F31<0,E31-(E33-E31)*F31/(F33-F31),E31) -> -0.325 | F32: =IF(E33=E31,F31,F31+(F33-F31)*(E32-E31)/(E33-E31)) -> 0.35 | G32: -0.325 | H32: 0.35 | I32: =IF(ABS((H33-H32)/F15)<0.001,0,(G32*H33-G33*H32)/(H33-H32)) -> -0.325 | J32: =IF(ABS((H33-H32)/F15)<0.001,0,(G33-G32)/(H33-H32)) -> 0 | K32: =-((C15-D15)*E15/(2*D15^3))*(2*D15*(H33-H32)+D15^2*(H33^2-H32^2)+2*LN((1-D15*H33)/(1-D15*H32))) -> -5.205123509 | L32: =-(C15-D15)*E15*(H33^3-H32^3)/(3*D15)+K32/D15 -> -1.511470812 | M32: =-(C15-D15)*E15*(H33^4-H32^4)/(4*D15)+L32/D15 -> -0.4477609188 | N32: =IF(ABS((H33-H32)/F15)<0.001,0,0.5*E15*I32*(H33^2-H32^2)+E15*J32*(H33^3-H32^3)/3-I32*K32-J32*L32) -> 1.259424376 | O32: =IF(ABS((H33-H32)/F15)<0.001,0,0.5*E15*(I32^2*(H33^2-H32^2)/2+2*I32*J32*(H33^3-H32^3)/3+J32^2*(H33^4-H32^4)/4)-0.5*I32^2*K32-I32*J32*L32-0.5*J32^2*M32) -> -0.2046564611 | P32: =IF(ABS((H33-H32)/F15)<0.001,0,E15*(I32*(H33^3-H32^3)/3+J32*(H33^4-H32^4)/4)-I32*L32-J32*M32) -> 0.340442668 | Q32: 4 | R32: A | S32: =INDEX(Liner,S16+(Q32-1)*10,9)/1000000 -> 9.3e-05 | T32: =INDEX(Liner,T16+(Q32-1)*10,9)/1000000 -> 9.3e-05 | U32: =INDEX(Liner,U16+(Q32-1)*10,9)/1000000 -> 9.3e-05 | V32: =INDEX(Liner,V16+(Q32-1)*10,9)/1000000 -> 9.3e-05 | W32: =INDEX(Liner,W16+(Q32-1)*10,9)/1000000 -> 9.3e-05 | X32: =INDEX(Liner,X16+(Q32-1)*10,9)/1000000 -> 0 | Y32: =INDEX(Liner,Y16+(Q32-1)*10,9)/1000000 -> 0 | Z32: =INDEX(Liner,Z16+(Q32-1)*10,9)/1000000 -> 0 | AA32: =INDEX(Liner,AA16+(Q32-1)*10,9)/1000000 -> 0 | AB32: =INDEX(Liner,AB16+(Q32-1)*10,9)/1000000 -> 0 | AQ32: 0.025 | AR32: 0.6012207789
B33: 9 | C33: =Kold!AP19/1000 -> 0.025 | D33: =Kold!AQ19/1000 -> 0.55 | E33: =G15*(C33-E13)+H15*(D33-F13) -> -0.325 | F33: =-H15*(C33-E13)+G15*(D33-F13) -> 0.2 | G33: -0.325 | H33: 0.2 | I33: =IF(ABS((H34-H33)/F15)<0.001,0,(G33*H34-G34*H33)/(H34-H33)) -> 0 | J33: =IF(ABS((H34-H33)/F15)<0.001,0,(G34-G33)/(H34-H33)) -> 0 | K33: =-((C15-D15)*E15/(2*D15^3))*(2*D15*(H34-H33)+D15^2*(H34^2-H33^2)+2*LN((1-D15*H34)/(1-D15*H33))) -> 0 | L33: =-(C15-D15)*E15*(H34^3-H33^3)/(3*D15)+K33/D15 -> 0 | M33: =-(C15-D15)*E15*(H34^4-H33^4)/(4*D15)+L33/D15 -> 0 | N33: =IF(ABS((H34-H33)/F15)<0.001,0,0.5*E15*I33*(H34^2-H33^2)+E15*J33*(H34^3-H33^3)/3-I33*K33-J33*L33) -> 0 | O33: =IF(ABS((H34-H33)/F15)<0.001,0,0.5*E15*(I33^2*(H34^2-H33^2)/2+2*I33*J33*(H34^3-H33^3)/3+J33^2*(H34^4-H33^4)/4)-0.5*I33^2*K33-I33*J33*L33-0.5*J33^2*M33) -> 0 | P33: =IF(ABS((H34-H33)/F15)<0.001,0,E15*(I33*(H34^3-H33^3)/3+J33*(H34^4-H33^4)/4)-I33*L33-J33*M33) -> 0 | Q33: 4 | R33: Nf | S33: =INDEX(Liner,S16+(Q33-1)*10,10)/1000 -> 0.1 | T33: =INDEX(Liner,T16+(Q33-1)*10,10)/1000 -> 0.1 | U33: =INDEX(Liner,U16+(Q33-1)*10,10)/1000 -> 0.1 | V33: =INDEX(Liner,V16+(Q33-1)*10,10)/1000 -> 0.1 | W33: =INDEX(Liner,W16+(Q33-1)*10,10)/1000 -> 0.1 | X33: =INDEX(Liner,X16+(Q33-1)*10,10)/1000 -> 0 | Y33: =INDEX(Liner,Y16+(Q33-1)*10,10)/1000 -> 0 | Z33: =INDEX(Liner,Z16+(Q33-1)*10,10)/1000 -> 0 | AA33: =INDEX(Liner,AA16+(Q33-1)*10,10)/1000 -> 0 | AB33: =INDEX(Liner,AB16+(Q33-1)*10,10)/1000 -> 0 | AQ33: 0.025 | AR33: 0.6012207789
B34: 9' | E34: =IF(F35*F33<0,E33-(E35-E33)*F33/(F35-F33),E33) -> -0.325 | F34: =IF(E35=E33,F33,F33+(F35-F33)*(E34-E33)/(E35-E33)) -> 0.2 | G34: -0.325 | H34: 0.2 | I34: =IF(ABS((H35-H34)/F15)<0.001,0,(G34*H35-G35*H34)/(H35-H34)) -> 0 | J34: =IF(ABS((H35-H34)/F15)<0.001,0,(G35-G34)/(H35-H34)) -> 0 | K34: =-((C15-D15)*E15/(2*D15^3))*(2*D15*(H35-H34)+D15^2*(H35^2-H34^2)+2*LN((1-D15*H35)/(1-D15*H34))) -> 0 | L34: =-(C15-D15)*E15*(H35^3-H34^3)/(3*D15)+K34/D15 -> 0 | M34: =-(C15-D15)*E15*(H35^4-H34^4)/(4*D15)+L34/D15 -> 0 | N34: =IF(ABS((H35-H34)/F15)<0.001,0,0.5*E15*I34*(H35^2-H34^2)+E15*J34*(H35^3-H34^3)/3-I34*K34-J34*L34) -> 0 | O34: =IF(ABS((H35-H34)/F15)<0.001,0,0.5*E15*(I34^2*(H35^2-H34^2)/2+2*I34*J34*(H35^3-H34^3)/3+J34^2*(H35^4-H34^4)/4)-0.5*I34^2*K34-I34*J34*L34-0.5*J34^2*M34) -> 0 | P34: =IF(ABS((H35-H34)/F15)<0.001,0,E15*(I34*(H35^3-H34^3)/3+J34*(H35^4-H34^4)/4)-I34*L34-J34*M34) -> 0 | Q34: 4 | R34: x | S34: =INDEX(Liner,S16+(Q34-1)*10,2)/1000 -> 0.265 | T34: =INDEX(Liner,T16+(Q34-1)*10,2)/1000 -> 0.3125 | U34: =INDEX(Liner,U16+(Q34-1)*10,2)/1000 -> 0.36 | V34: =INDEX(Liner,V16+(Q34-1)*10,2)/1000 -> 0.4075 | W34: =INDEX(Liner,W16+(Q34-1)*10,2)/1000 -> 0.455 | X34: =INDEX(Liner,X16+(Q34-1)*10,2)/1000 -> -1.4 | Y34: =INDEX(Liner,Y16+(Q34-1)*10,2)/1000 -> -1.4 | Z34: =INDEX(Liner,Z16+(Q34-1)*10,2)/1000 -> -1.4 | AA34: =INDEX(Liner,AA16+(Q34-1)*10,2)/1000 -> -1.4 | AB34: =INDEX(Liner,AB16+(Q34-1)*10,2)/1000 -> -1.4 | AQ34: 0.08273631951 | AR34: 0.55
B35: 10 | C35: =Kold!AP20/1000 -> 0.225 | D35: =Kold!AQ20/1000 -> 0.55 | E35: =G15*(C35-E13)+H15*(D35-F13) -> -0.125 | F35: =-H15*(C35-E13)+G15*(D35-F13) -> 0.2 | G35: -0.125 | H35: 0.2 | I35: =IF(ABS((H36-H35)/F15)<0.001,0,(G35*H36-G36*H35)/(H36-H35)) -> 0 | J35: =IF(ABS((H36-H35)/F15)<0.001,0,(G36-G35)/(H36-H35)) -> 0 | K35: =-((C15-D15)*E15/(2*D15^3))*(2*D15*(H36-H35)+D15^2*(H36^2-H35^2)+2*LN((1-D15*H36)/(1-D15*H35))) -> 0 | L35: =-(C15-D15)*E15*(H36^3-H35^3)/(3*D15)+K35/D15 -> 0 | M35: =-(C15-D15)*E15*(H36^4-H35^4)/(4*D15)+L35/D15 -> 0 | N35: =IF(ABS((H36-H35)/F15)<0.001,0,0.5*E15*I35*(H36^2-H35^2)+E15*J35*(H36^3-H35^3)/3-I35*K35-J35*L35) -> 0 | O35: =IF(ABS((H36-H35)/F15)<0.001,0,0.5*E15*(I35^2*(H36^2-H35^2)/2+2*I35*J35*(H36^3-H35^3)/3+J35^2*(H36^4-H35^4)/4)-0.5*I35^2*K35-I35*J35*L35-0.5*J35^2*M35) -> 0 | P35: =IF(ABS((H36-H35)/F15)<0.001,0,E15*(I35*(H36^3-H35^3)/3+J35*(H36^4-H35^4)/4)-I35*L35-J35*M35) -> 0 | Q35: 4 | R35: y | S35: =INDEX(Liner,S16+(Q35-1)*10,3)/1000 -> 0.09 | T35: =INDEX(Liner,T16+(Q35-1)*10,3)/1000 -> 0.09 | U35: =INDEX(Liner,U16+(Q35-1)*10,3)/1000 -> 0.09 | V35: =INDEX(Liner,V16+(Q35-1)*10,3)/1000 -> 0.09 | W35: =INDEX(Liner,W16+(Q35-1)*10,3)/1000 -> 0.09 | X35: =INDEX(Liner,X16+(Q35-1)*10,3)/1000 -> 0.09 | Y35: =INDEX(Liner,Y16+(Q35-1)*10,3)/1000 -> 0.09 | Z35: =INDEX(Liner,Z16+(Q35-1)*10,3)/1000 -> 0.09 | AA35: =INDEX(Liner,AA16+(Q35-1)*10,3)/1000 -> 0.09 | AB35: =INDEX(Liner,AB16+(Q35-1)*10,3)/1000 -> 0.09 | AQ35: 0.225 | AR35: 0.55
B36: 10' | E36: =IF(F37*F35<0,E35-(E37-E35)*F35/(F37-F35),E35) -> -0.125 | F36: =IF(E37=E35,F35,F35+(F37-F35)*(E36-E35)/(E37-E35)) -> 0.2 | G36: -0.125 | H36: 0.2 | I36: =IF(ABS((H37-H36)/F15)<0.001,0,(G36*H37-G37*H36)/(H37-H36)) -> -0.125 | J36: =IF(ABS((H37-H36)/F15)<0.001,0,(G37-G36)/(H37-H36)) -> 0 | K36: =-((C15-D15)*E15/(2*D15^3))*(2*D15*(H37-H36)+D15^2*(H37^2-H36^2)+2*LN((1-D15*H37)/(1-D15*H36))) -> -1.0211151 | L36: =-(C15-D15)*E15*(H37^3-H36^3)/(3*D15)+K36/D15 -> -0.1547115128 | M36: =-(C15-D15)*E15*(H37^4-H36^4)/(4*D15)+L36/D15 -> -0.02492169934 | N36: =IF(ABS((H37-H36)/F15)<0.001,0,0.5*E15*I36*(H37^2-H36^2)+E15*J36*(H37^3-H36^3)/3-I36*K36-J36*L36) -> 0.4226803358 | O36: =IF(ABS((H37-H36)/F15)<0.001,0,0.5*E15*(I36^2*(H37^2-H36^2)/2+2*I36*J36*(H37^3-H36^3)/3+J36^2*(H37^4-H36^4)/4)-0.5*I36^2*K36-I36*J36*L36-0.5*J36^2*M36) -> -0.02641752099 | P36: =IF(ABS((H37-H36)/F15)<0.001,0,E15*(I36*(H37^3-H36^3)/3+J36*(H37^4-H36^4)/4)-I36*L36-J36*M36) -> 0.054037024 | Q36: 4 | R36: Na | S36: =IF(-(-H15*(S34-E13)+G15*(S35-F13))*C13/F15+IF(S32>0,S33/(S32*$S$5),0)>$S$6,IF(-(-H15*(S34-E13)+G15*(S35-F13))*C13/F15+IF(S32>0,S33/(S32*$S$5),0)>$S$8,0,$S$4+$S$9*(-(-H15*(S34-E13)+G15*(S35-F13))*C13/F15+IF(S32>0,S33/(S32*$S$5),0)-$S$6)),$S$5*(-(-H15*(S34-E13)+G15*(S35-F13))*C13/F15+IF(S32>0,S33/(S32*$S$5),0)))*S32 -> 0.1253362771 | T36: =IF(-(-H15*(T34-E13)+G15*(T35-F13))*C13/F15+IF(T32>0,T33/(T32*$S$5),0)>$S$6,IF(-(-H15*(T34-E13)+G15*(T35-F13))*C13/F15+IF(T32>0,T33/(T32*$S$5),0)>$S$8,0,$S$4+$S$9*(-(-H15*(T34-E13)+G15*(T35-F13))*C13/F15+IF(T32>0,T33/(T32*$S$5),0)-$S$6)),$S$5*(-(-H15*(T34-E13)+G15*(T35-F13))*C13/F15+IF(T32>0,T33/(T32*$S$5),0)))*T32 -> 0.1253362771 | U36: =IF(-(-H15*(U34-E13)+G15*(U35-F13))*C13/F15+IF(U32>0,U33/(U32*$S$5),0)>$S$6,IF(-(-H15*(U34-E13)+G15*(U35-F13))*C13/F15+IF(U32>0,U33/(U32*$S$5),0)>$S$8,0,$S$4+$S$9*(-(-H15*(U34-E13)+G15*(U35-F13))*C13/F15+IF(U32>0,U33/(U32*$S$5),0)-$S$6)),$S$5*(-(-H15*(U34-E13)+G15*(U35-F13))*C13/F15+IF(U32>0,U33/(U32*$S$5),0)))*U32 -> 0.1253362771 | V36: =IF(-(-H15*(V34-E13)+G15*(V35-F13))*C13/F15+IF(V32>0,V33/(V32*$S$5),0)>$S$6,IF(-(-H15*(V34-E13)+G15*(V35-F13))*C13/F15+IF(V32>0,V33/(V32*$S$5),0)>$S$8,0,$S$4+$S$9*(-(-H15*(V34-E13)+G15*(V35-F13))*C13/F15+IF(V32>0,V33/(V32*$S$5),0)-$S$6)),$S$5*(-(-H15*(V34-E13)+G15*(V35-F13))*C13/F15+IF(V32>0,V33/(V32*$S$5),0)))*V32 -> 0.1253362771 | W36: =IF(-(-H15*(W34-E13)+G15*(W35-F13))*C13/F15+IF(W32>0,W33/(W32*$S$5),0)>$S$6,IF(-(-H15*(W34-E13)+G15*(W35-F13))*C13/F15+IF(W32>0,W33/(W32*$S$5),0)>$S$8,0,$S$4+$S$9*(-(-H15*(W34-E13)+G15*(W35-F13))*C13/F15+IF(W32>0,W33/(W32*$S$5),0)-$S$6)),$S$5*(-(-H15*(W34-E13)+G15*(W35-F13))*C13/F15+IF(W32>0,W33/(W32*$S$5),0)))*W32 -> 0.1253362771 | X36: =IF(-(-H15*(X34-E13)+G15*(X35-F13))*C13/F15+IF(X32>0,X33/(X32*$S$5),0)>$S$6,IF(-(-H15*(X34-E13)+G15*(X35-F13))*C13/F15+IF(X32>0,X33/(X32*$S$5),0)>$S$8,0,$S$4+$S$9*(-(-H15*(X34-E13)+G15*(X35-F13))*C13/F15+IF(X32>0,X33/(X32*$S$5),0)-$S$6)),$S$5*(-(-H15*(X34-E13)+G15*(X35-F13))*C13/F15+IF(X32>0,X33/(X32*$S$5),0)))*X32 -> 0 | Y36: =IF(-(-H15*(Y34-E13)+G15*(Y35-F13))*C13/F15+IF(Y32>0,Y33/(Y32*$S$5),0)>$S$6,IF(-(-H15*(Y34-E13)+G15*(Y35-F13))*C13/F15+IF(Y32>0,Y33/(Y32*$S$5),0)>$S$8,0,$S$4+$S$9*(-(-H15*(Y34-E13)+G15*(Y35-F13))*C13/F15+IF(Y32>0,Y33/(Y32*$S$5),0)-$S$6)),$S$5*(-(-H15*(Y34-E13)+G15*(Y35-F13))*C13/F15+IF(Y32>0,Y33/(Y32*$S$5),0)))*Y32 -> 0 | Z36: =IF(-(-H15*(Z34-E13)+G15*(Z35-F13))*C13/F15+IF(Z32>0,Z33/(Z32*$S$5),0)>$S$6,IF(-(-H15*(Z34-E13)+G15*(Z35-F13))*C13/F15+IF(Z32>0,Z33/(Z32*$S$5),0)>$S$8,0,$S$4+$S$9*(-(-H15*(Z34-E13)+G15*(Z35-F13))*C13/F15+IF(Z32>0,Z33/(Z32*$S$5),0)-$S$6)),$S$5*(-(-H15*(Z34-E13)+G15*(Z35-F13))*C13/F15+IF(Z32>0,Z33/(Z32*$S$5),0)))*Z32 -> 0 | AA36: =IF(-(-H15*(AA34-E13)+G15*(AA35-F13))*C13/F15+IF(AA32>0,AA33/(AA32*$S$5),0)>$S$6,IF(-(-H15*(AA34-E13)+G15*(AA35-F13))*C13/F15+IF(AA32>0,AA33/(AA32*$S$5),0)>$S$8,0,$S$4+$S$9*(-(-H15*(AA34-E13)+G15*(AA35-F13))*C13/F15+IF(AA32>0,AA33/(AA32*$S$5),0)-$S$6)),$S$5*(-(-H15*(AA34-E13)+G15*(AA35-F13))*C13/F15+IF(AA32>0,AA33/(AA32*$S$5),0)))*AA32 -> 0 | AB36: =IF(-(-H15*(AB34-E13)+G15*(AB35-F13))*C13/F15+IF(AB32>0,AB33/(AB32*$S$5),0)>$S$6,IF(-(-H15*(AB34-E13)+G15*(AB35-F13))*C13/F15+IF(AB32>0,AB33/(AB32*$S$5),0)>$S$8,0,$S$4+$S$9*(-(-H15*(AB34-E13)+G15*(AB35-F13))*C13/F15+IF(AB32>0,AB33/(AB32*$S$5),0)-$S$6)),$S$5*(-(-H15*(AB34-E13)+G15*(AB35-F13))*C13/F15+IF(AB32>0,AB33/(AB32*$S$5),0)))*AB32 -> 0 | AQ36: 0.225 | AR36: 0.4237907683
B37: 11 | C37: =Kold!AP21/1000 -> 0.225 | D37: =Kold!AQ21/1000 -> 0 | E37: =G15*(C37-E13)+H15*(D37-F13) -> -0.125 | F37: =-H15*(C37-E13)+G15*(D37-F13) -> -0.35 | G37: -0.125 | H37: 0 | I37: =IF(ABS((H38-H37)/F15)<0.001,0,(G37*H38-G38*H37)/(H38-H37)) -> 0 | J37: =IF(ABS((H38-H37)/F15)<0.001,0,(G38-G37)/(H38-H37)) -> 0 | K37: =-((C15-D15)*E15/(2*D15^3))*(2*D15*(H38-H37)+D15^2*(H38^2-H37^2)+2*LN((1-D15*H38)/(1-D15*H37))) -> 0 | L37: =-(C15-D15)*E15*(H38^3-H37^3)/(3*D15)+K37/D15 -> 0 | M37: =-(C15-D15)*E15*(H38^4-H37^4)/(4*D15)+L37/D15 -> 0 | N37: =IF(ABS((H38-H37)/F15)<0.001,0,0.5*E15*I37*(H38^2-H37^2)+E15*J37*(H38^3-H37^3)/3-I37*K37-J37*L37) -> 0 | O37: =IF(ABS((H38-H37)/F15)<0.001,0,0.5*E15*(I37^2*(H38^2-H37^2)/2+2*I37*J37*(H38^3-H37^3)/3+J37^2*(H38^4-H37^4)/4)-0.5*I37^2*K37-I37*J37*L37-0.5*J37^2*M37) -> 0 | P37: =IF(ABS((H38-H37)/F15)<0.001,0,E15*(I37*(H38^3-H37^3)/3+J37*(H38^4-H37^4)/4)-I37*L37-J37*M37) -> 0 | Q37: 5 | R37: A | S37: =INDEX(Liner,S16+(Q37-1)*10,9)/1000000 -> 9.3e-05 | T37: =INDEX(Liner,T16+(Q37-1)*10,9)/1000000 -> 9.3e-05 | U37: =INDEX(Liner,U16+(Q37-1)*10,9)/1000000 -> 9.3e-05 | V37: =INDEX(Liner,V16+(Q37-1)*10,9)/1000000 -> 9.3e-05 | W37: =INDEX(Liner,W16+(Q37-1)*10,9)/1000000 -> 9.3e-05 | X37: =INDEX(Liner,X16+(Q37-1)*10,9)/1000000 -> 9.3e-05 | Y37: =INDEX(Liner,Y16+(Q37-1)*10,9)/1000000 -> 9.3e-05 | Z37: =INDEX(Liner,Z16+(Q37-1)*10,9)/1000000 -> 0 | AA37: =INDEX(Liner,AA16+(Q37-1)*10,9)/1000000 -> 0 | AB37: =INDEX(Liner,AB16+(Q37-1)*10,9)/1000000 -> 0 | AQ37: 0.4353853349 | AR37: 0.2371474072
B38: 11' | E38: =IF(F39*F37<0,E37-(E39-E37)*F37/(F39-F37),E37) -> -0.125 | F38: =IF(E39=E37,F37,F37+(F39-F37)*(E38-E37)/(E39-E37)) -> -0.35 | G38: -0.125 | H38: 0 | I38: =IF(ABS((H39-H38)/F15)<0.001,0,(G38*H39-G39*H38)/(H39-H38)) -> 0 | J38: =IF(ABS((H39-H38)/F15)<0.001,0,(G39-G38)/(H39-H38)) -> 0 | K38: =-((C15-D15)*E15/(2*D15^3))*(2*D15*(H39-H38)+D15^2*(H39^2-H38^2)+2*LN((1-D15*H39)/(1-D15*H38))) -> 0 | L38: =-(C15-D15)*E15*(H39^3-H38^3)/(3*D15)+K38/D15 -> 0 | M38: =-(C15-D15)*E15*(H39^4-H38^4)/(4*D15)+L38/D15 -> 0 | N38: =IF(ABS((H39-H38)/F15)<0.001,0,0.5*E15*I38*(H39^2-H38^2)+E15*J38*(H39^3-H38^3)/3-I38*K38-J38*L38) -> 0 | O38: =IF(ABS((H39-H38)/F15)<0.001,0,0.5*E15*(I38^2*(H39^2-H38^2)/2+2*I38*J38*(H39^3-H38^3)/3+J38^2*(H39^4-H38^4)/4)-0.5*I38^2*K38-I38*J38*L38-0.5*J38^2*M38) -> 0 | P38: =IF(ABS((H39-H38)/F15)<0.001,0,E15*(I38*(H39^3-H38^3)/3+J38*(H39^4-H38^4)/4)-I38*L38-J38*M38) -> 0 | Q38: 5 | R38: Nf | S38: =INDEX(Liner,S16+(Q38-1)*10,10)/1000 -> 0.1 | T38: =INDEX(Liner,T16+(Q38-1)*10,10)/1000 -> 0.1 | U38: =INDEX(Liner,U16+(Q38-1)*10,10)/1000 -> 0.1 | V38: =INDEX(Liner,V16+(Q38-1)*10,10)/1000 -> 0.1 | W38: =INDEX(Liner,W16+(Q38-1)*10,10)/1000 -> 0.1 | X38: =INDEX(Liner,X16+(Q38-1)*10,10)/1000 -> 0.1 | Y38: =INDEX(Liner,Y16+(Q38-1)*10,10)/1000 -> 0.1 | Z38: =INDEX(Liner,Z16+(Q38-1)*10,10)/1000 -> 0 | AA38: =INDEX(Liner,AA16+(Q38-1)*10,10)/1000 -> 0 | AB38: =INDEX(Liner,AB16+(Q38-1)*10,10)/1000 -> 0 | AQ38: 0.4353853349 | AR38: 0.2371474072
B39: 12 | C39: =Kold!AP22/1000 -> 0.225 | D39: =Kold!AQ22/1000 -> 0 | E39: =G15*(C39-E13)+H15*(D39-F13) -> -0.125 | F39: =-H15*(C39-E13)+G15*(D39-F13) -> -0.35 | G39: -0.125 | H39: 0 | I39: =IF(ABS((H40-H39)/F15)<0.001,0,(G39*H40-G40*H39)/(H40-H39)) -> 0 | J39: =IF(ABS((H40-H39)/F15)<0.001,0,(G40-G39)/(H40-H39)) -> 0 | K39: =-((C15-D15)*E15/(2*D15^3))*(2*D15*(H40-H39)+D15^2*(H40^2-H39^2)+2*LN((1-D15*H40)/(1-D15*H39))) -> 0 | L39: =-(C15-D15)*E15*(H40^3-H39^3)/(3*D15)+K39/D15 -> 0 | M39: =-(C15-D15)*E15*(H40^4-H39^4)/(4*D15)+L39/D15 -> 0 | N39: =IF(ABS((H40-H39)/F15)<0.001,0,0.5*E15*I39*(H40^2-H39^2)+E15*J39*(H40^3-H39^3)/3-I39*K39-J39*L39) -> 0 | O39: =IF(ABS((H40-H39)/F15)<0.001,0,0.5*E15*(I39^2*(H40^2-H39^2)/2+2*I39*J39*(H40^3-H39^3)/3+J39^2*(H40^4-H39^4)/4)-0.5*I39^2*K39-I39*J39*L39-0.5*J39^2*M39) -> 0 | P39: =IF(ABS((H40-H39)/F15)<0.001,0,E15*(I39*(H40^3-H39^3)/3+J39*(H40^4-H39^4)/4)-I39*L39-J39*M39) -> 0 | Q39: 5 | R39: x | S39: =INDEX(Liner,S16+(Q39-1)*10,2)/1000 -> 0.265 | T39: =INDEX(Liner,T16+(Q39-1)*10,2)/1000 -> 0.3125 | U39: =INDEX(Liner,U16+(Q39-1)*10,2)/1000 -> 0.36 | V39: =INDEX(Liner,V16+(Q39-1)*10,2)/1000 -> 0.4075 | W39: =INDEX(Liner,W16+(Q39-1)*10,2)/1000 -> 0.455 | X39: =INDEX(Liner,X16+(Q39-1)*10,2)/1000 -> 0.5025 | Y39: =INDEX(Liner,Y16+(Q39-1)*10,2)/1000 -> 0.55 | Z39: =INDEX(Liner,Z16+(Q39-1)*10,2)/1000 -> -1.4 | AA39: =INDEX(Liner,AA16+(Q39-1)*10,2)/1000 -> -1.4 | AB39: =INDEX(Liner,AB16+(Q39-1)*10,2)/1000 -> -1.4 | AQ39: 0.4353853349 | AR39: 0.2371474072
B40: 12' | E40: =IF(F41*F39<0,E39-(E41-E39)*F39/(F41-F39),E39) -> -0.125 | F40: =IF(E41=E39,F39,F39+(F41-F39)*(E40-E39)/(E41-E39)) -> -0.35 | G40: -0.125 | H40: 0 | I40: =IF(ABS((H41-H40)/F15)<0.001,0,(G40*H41-G41*H40)/(H41-H40)) -> 0 | J40: =IF(ABS((H41-H40)/F15)<0.001,0,(G41-G40)/(H41-H40)) -> 0 | K40: =-((C15-D15)*E15/(2*D15^3))*(2*D15*(H41-H40)+D15^2*(H41^2-H40^2)+2*LN((1-D15*H41)/(1-D15*H40))) -> 0 | L40: =-(C15-D15)*E15*(H41^3-H40^3)/(3*D15)+K40/D15 -> 0 | M40: =-(C15-D15)*E15*(H41^4-H40^4)/(4*D15)+L40/D15 -> 0 | N40: =IF(ABS((H41-H40)/F15)<0.001,0,0.5*E15*I40*(H41^2-H40^2)+E15*J40*(H41^3-H40^3)/3-I40*K40-J40*L40) -> 0 | O40: =IF(ABS((H41-H40)/F15)<0.001,0,0.5*E15*(I40^2*(H41^2-H40^2)/2+2*I40*J40*(H41^3-H40^3)/3+J40^2*(H41^4-H40^4)/4)-0.5*I40^2*K40-I40*J40*L40-0.5*J40^2*M40) -> 0 | P40: =IF(ABS((H41-H40)/F15)<0.001,0,E15*(I40*(H41^3-H40^3)/3+J40*(H41^4-H40^4)/4)-I40*L40-J40*M40) -> 0 | Q40: 5 | R40: y | S40: =INDEX(Liner,S16+(Q40-1)*10,3)/1000 -> 0.05 | T40: =INDEX(Liner,T16+(Q40-1)*10,3)/1000 -> 0.05 | U40: =INDEX(Liner,U16+(Q40-1)*10,3)/1000 -> 0.05 | V40: =INDEX(Liner,V16+(Q40-1)*10,3)/1000 -> 0.05 | W40: =INDEX(Liner,W16+(Q40-1)*10,3)/1000 -> 0.05 | X40: =INDEX(Liner,X16+(Q40-1)*10,3)/1000 -> 0.05 | Y40: =INDEX(Liner,Y16+(Q40-1)*10,3)/1000 -> 0.05 | Z40: =INDEX(Liner,Z16+(Q40-1)*10,3)/1000 -> 0.05 | AA40: =INDEX(Liner,AA16+(Q40-1)*10,3)/1000 -> 0.05 | AB40: =INDEX(Liner,AB16+(Q40-1)*10,3)/1000 -> 0.05 | AQ40: 0.4353853349 | AR40: 0.2371474072
B41: 13 | C41: =Kold!AP23/1000 -> 0.225 | D41: =Kold!AQ23/1000 -> 0 | E41: =G15*(C41-E13)+H15*(D41-F13) -> -0.125 | F41: =-H15*(C41-E13)+G15*(D41-F13) -> -0.35 | G41: -0.125 | H41: 0 | I41: =IF(ABS((H42-H41)/F15)<0.001,0,(G41*H42-G42*H41)/(H42-H41)) -> 0 | J41: =IF(ABS((H42-H41)/F15)<0.001,0,(G42-G41)/(H42-H41)) -> 0 | K41: =-((C15-D15)*E15/(2*D15^3))*(2*D15*(H42-H41)+D15^2*(H42^2-H41^2)+2*LN((1-D15*H42)/(1-D15*H41))) -> 0 | L41: =-(C15-D15)*E15*(H42^3-H41^3)/(3*D15)+K41/D15 -> 0 | M41: =-(C15-D15)*E15*(H42^4-H41^4)/(4*D15)+L41/D15 -> 0 | N41: =IF(ABS((H42-H41)/F15)<0.001,0,0.5*E15*I41*(H42^2-H41^2)+E15*J41*(H42^3-H41^3)/3-I41*K41-J41*L41) -> 0 | O41: =IF(ABS((H42-H41)/F15)<0.001,0,0.5*E15*(I41^2*(H42^2-H41^2)/2+2*I41*J41*(H42^3-H41^3)/3+J41^2*(H42^4-H41^4)/4)-0.5*I41^2*K41-I41*J41*L41-0.5*J41^2*M41) -> 0 | P41: =IF(ABS((H42-H41)/F15)<0.001,0,E15*(I41*(H42^3-H41^3)/3+J41*(H42^4-H41^4)/4)-I41*L41-J41*M41) -> 0 | Q41: 5 | R41: Na | S41: =IF(-(-H15*(S39-E13)+G15*(S40-F13))*C13/F15+IF(S37>0,S38/(S37*$S$5),0)>$S$6,IF(-(-H15*(S39-E13)+G15*(S40-F13))*C13/F15+IF(S37>0,S38/(S37*$S$5),0)>$S$8,0,$S$4+$S$9*(-(-H15*(S39-E13)+G15*(S40-F13))*C13/F15+IF(S37>0,S38/(S37*$S$5),0)-$S$6)),$S$5*(-(-H15*(S39-E13)+G15*(S40-F13))*C13/F15+IF(S37>0,S38/(S37*$S$5),0)))*S37 -> 0.1257549784 | T41: =IF(-(-H15*(T39-E13)+G15*(T40-F13))*C13/F15+IF(T37>0,T38/(T37*$S$5),0)>$S$6,IF(-(-H15*(T39-E13)+G15*(T40-F13))*C13/F15+IF(T37>0,T38/(T37*$S$5),0)>$S$8,0,$S$4+$S$9*(-(-H15*(T39-E13)+G15*(T40-F13))*C13/F15+IF(T37>0,T38/(T37*$S$5),0)-$S$6)),$S$5*(-(-H15*(T39-E13)+G15*(T40-F13))*C13/F15+IF(T37>0,T38/(T37*$S$5),0)))*T37 -> 0.1257549784 | U41: =IF(-(-H15*(U39-E13)+G15*(U40-F13))*C13/F15+IF(U37>0,U38/(U37*$S$5),0)>$S$6,IF(-(-H15*(U39-E13)+G15*(U40-F13))*C13/F15+IF(U37>0,U38/(U37*$S$5),0)>$S$8,0,$S$4+$S$9*(-(-H15*(U39-E13)+G15*(U40-F13))*C13/F15+IF(U37>0,U38/(U37*$S$5),0)-$S$6)),$S$5*(-(-H15*(U39-E13)+G15*(U40-F13))*C13/F15+IF(U37>0,U38/(U37*$S$5),0)))*U37 -> 0.1257549784 | V41: =IF(-(-H15*(V39-E13)+G15*(V40-F13))*C13/F15+IF(V37>0,V38/(V37*$S$5),0)>$S$6,IF(-(-H15*(V39-E13)+G15*(V40-F13))*C13/F15+IF(V37>0,V38/(V37*$S$5),0)>$S$8,0,$S$4+$S$9*(-(-H15*(V39-E13)+G15*(V40-F13))*C13/F15+IF(V37>0,V38/(V37*$S$5),0)-$S$6)),$S$5*(-(-H15*(V39-E13)+G15*(V40-F13))*C13/F15+IF(V37>0,V38/(V37*$S$5),0)))*V37 -> 0.1257549784 | W41: =IF(-(-H15*(W39-E13)+G15*(W40-F13))*C13/F15+IF(W37>0,W38/(W37*$S$5),0)>$S$6,IF(-(-H15*(W39-E13)+G15*(W40-F13))*C13/F15+IF(W37>0,W38/(W37*$S$5),0)>$S$8,0,$S$4+$S$9*(-(-H15*(W39-E13)+G15*(W40-F13))*C13/F15+IF(W37>0,W38/(W37*$S$5),0)-$S$6)),$S$5*(-(-H15*(W39-E13)+G15*(W40-F13))*C13/F15+IF(W37>0,W38/(W37*$S$5),0)))*W37 -> 0.1257549784 | X41: =IF(-(-H15*(X39-E13)+G15*(X40-F13))*C13/F15+IF(X37>0,X38/(X37*$S$5),0)>$S$6,IF(-(-H15*(X39-E13)+G15*(X40-F13))*C13/F15+IF(X37>0,X38/(X37*$S$5),0)>$S$8,0,$S$4+$S$9*(-(-H15*(X39-E13)+G15*(X40-F13))*C13/F15+IF(X37>0,X38/(X37*$S$5),0)-$S$6)),$S$5*(-(-H15*(X39-E13)+G15*(X40-F13))*C13/F15+IF(X37>0,X38/(X37*$S$5),0)))*X37 -> 0.1257549784 | Y41: =IF(-(-H15*(Y39-E13)+G15*(Y40-F13))*C13/F15+IF(Y37>0,Y38/(Y37*$S$5),0)>$S$6,IF(-(-H15*(Y39-E13)+G15*(Y40-F13))*C13/F15+IF(Y37>0,Y38/(Y37*$S$5),0)>$S$8,0,$S$4+$S$9*(-(-H15*(Y39-E13)+G15*(Y40-F13))*C13/F15+IF(Y37>0,Y38/(Y37*$S$5),0)-$S$6)),$S$5*(-(-H15*(Y39-E13)+G15*(Y40-F13))*C13/F15+IF(Y37>0,Y38/(Y37*$S$5),0)))*Y37 -> 0.1257549784 | Z41: =IF(-(-H15*(Z39-E13)+G15*(Z40-F13))*C13/F15+IF(Z37>0,Z38/(Z37*$S$5),0)>$S$6,IF(-(-H15*(Z39-E13)+G15*(Z40-F13))*C13/F15+IF(Z37>0,Z38/(Z37*$S$5),0)>$S$8,0,$S$4+$S$9*(-(-H15*(Z39-E13)+G15*(Z40-F13))*C13/F15+IF(Z37>0,Z38/(Z37*$S$5),0)-$S$6)),$S$5*(-(-H15*(Z39-E13)+G15*(Z40-F13))*C13/F15+IF(Z37>0,Z38/(Z37*$S$5),0)))*Z37 -> 0 | AA41: =IF(-(-H15*(AA39-E13)+G15*(AA40-F13))*C13/F15+IF(AA37>0,AA38/(AA37*$S$5),0)>$S$6,IF(-(-H15*(AA39-E13)+G15*(AA40-F13))*C13/F15+IF(AA37>0,AA38/(AA37*$S$5),0)>$S$8,0,$S$4+$S$9*(-(-H15*(AA39-E13)+G15*(AA40-F13))*C13/F15+IF(AA37>0,AA38/(AA37*$S$5),0)-$S$6)),$S$5*(-(-H15*(AA39-E13)+G15*(AA40-F13))*C13/F15+IF(AA37>0,AA38/(AA37*$S$5),0)))*AA37 -> 0 | AB41: =IF(-(-H15*(AB39-E13)+G15*(AB40-F13))*C13/F15+IF(AB37>0,AB38/(AB37*$S$5),0)>$S$6,IF(-(-H15*(AB39-E13)+G15*(AB40-F13))*C13/F15+IF(AB37>0,AB38/(AB37*$S$5),0)>$S$8,0,$S$4+$S$9*(-(-H15*(AB39-E13)+G15*(AB40-F13))*C13/F15+IF(AB37>0,AB38/(AB37*$S$5),0)-$S$6)),$S$5*(-(-H15*(AB39-E13)+G15*(AB40-F13))*C13/F15+IF(AB37>0,AB38/(AB37*$S$5),0)))*AB37 -> 0 | AQ41: 0.4353853349 | AR41: 0.2371474072
B42: 13' | E42: =IF(F43*F41<0,E41-(E43-E41)*F41/(F43-F41),E41) -> -0.125 | F42: =IF(E43=E41,F41,F41+(F43-F41)*(E42-E41)/(E43-E41)) -> -0.35 | G42: -0.125 | H42: 0 | I42: =IF(ABS((H43-H42)/F15)<0.001,0,(G42*H43-G43*H42)/(H43-H42)) -> 0 | J42: =IF(ABS((H43-H42)/F15)<0.001,0,(G43-G42)/(H43-H42)) -> 0 | K42: =-((C15-D15)*E15/(2*D15^3))*(2*D15*(H43-H42)+D15^2*(H43^2-H42^2)+2*LN((1-D15*H43)/(1-D15*H42))) -> 0 | L42: =-(C15-D15)*E15*(H43^3-H42^3)/(3*D15)+K42/D15 -> 0 | M42: =-(C15-D15)*E15*(H43^4-H42^4)/(4*D15)+L42/D15 -> 0 | N42: =IF(ABS((H43-H42)/F15)<0.001,0,0.5*E15*I42*(H43^2-H42^2)+E15*J42*(H43^3-H42^3)/3-I42*K42-J42*L42) -> 0 | O42: =IF(ABS((H43-H42)/F15)<0.001,0,0.5*E15*(I42^2*(H43^2-H42^2)/2+2*I42*J42*(H43^3-H42^3)/3+J42^2*(H43^4-H42^4)/4)-0.5*I42^2*K42-I42*J42*L42-0.5*J42^2*M42) -> 0 | P42: =IF(ABS((H43-H42)/F15)<0.001,0,E15*(I42*(H43^3-H42^3)/3+J42*(H43^4-H42^4)/4)-I42*L42-J42*M42) -> 0 | S42: =IF(S43>0,S43,1) -> 0.01690010109 | T42: 0.01690010109 | U42: 0.01690010109 | V42: 0.01690010109 | W42: 0.01690010109 | X42: 0.01690010109 | Y42: 0.01690010109 | Z42: 1 | AA42: 1 | AB42: 1 | AQ42: 0.4353853349 | AR42: 0.2371474072
B43: 27 | C43: =C17 -> 0.35 | D43: 0 | E43: =G15*(C43-E13)+H15*(D43-F13) -> 0 | F43: =-H15*(C43-E13)+G15*(D43-F13) -> -0.35 | G43: 0 | H43: 0 | S43: =IF(S37>0,$F15*($S$8-S38/(S37*$S$5))/(-(-$H15*(S39-$E13)+$G15*(S40-$F13))),0) -> 0.01690010109 | T43: =IF(T37>0,$F15*($S$8-T38/(T37*$S$5))/(-(-$H15*(T39-$E13)+$G15*(T40-$F13))),0) -> 0.01690010109 | U43: 0.01690010109 | V43: 0.01690010109 | W43: 0.01690010109 | X43: 0.01690010109 | Y43: 0.01690010109 | Z43: 0 | AA43: 0 | AB43: 0 | AQ43: =$E$781+G811*$G$783-H811*$H$783 -> 0.5053335927 | AR43: =$F$781+G811*$H$783+H811*$G$783 -> 0.1750928066
B44: 1 | C44: e0 | D44: v (rad) | E44: x0 | F44: y0 | G44: z0 | H44: Dy0 | I44: Dz0 | J44: DNy | N44: Nc-Na
B45: A | C45: =C13 -> 0.0035 | D45: =IF($M$10=1,0,ATAN((G45-F45)/($C$11))) -> 0 | E45: =E13 -> 0.35 | F45: =F13+H45 -> 0.42 | G45: =G13+I45 -> 0.42 | H45: =0.1*(MAX(D17:D43)-MIN(D17:D43)) -> 0.07 | I45: =H45 -> 0.07 | J45: =N45-N13 -> -0.4110914606 | N45: =SUM(N49:N75)-R47 -> -0.4633065352
B46: Beton | C46: A | D46: B | E46: D | F46: tmax | G46: cosv | H46: sinv | I46: My | J46: xres | K46: yres | L46: sres | M46: tres | N46: Nc | O46: sNc | P46: tNc | Q46: Armering | R46: Na | S46: x_a | T46: y_a
C47: =$C$13/($C$8*$C$6*F47) -> 3.003317537 | D47: =(2-$C$8)*$C$13/($C$6*F47) -> 1.12556314 | E47: =$C$8*$C$13*$C$5/($C$6*F47) -> 275.1598616 | F47: =MAX(H49:H75) -> 0.28 | G47: =COS(D45) -> 1 | H47: =SIN(D45) -> 0 | I47: =(J47-$G$10)*N47-(S47-$G$10)*R47 -> -0.2330382935 | J47: =E45+L47*G47-M47*H47 -> 0.271273253 | K47: =F45+L47*H47+M47*G47 -> 0.5965987927 | L47: =O47/N47 -> -0.07872674697 | M47: =P47/N47 -> 0.1765987927 | N47: =SUM(N49:N75) -> 2.232443394 | O47: =SUM(O49:O75) -> -0.1757530062 | P47: =SUM(P49:P75) -> 0.3942468082 | R47: =SUM(S53:AB53)+SUM(S58:AB58)+SUM(S63:AB63)+SUM(S68:AB68)+SUM(S73:AB73) -> 2.69574993 | S47: =(SUMPRODUCT(S51:AB51,S53:AB53)+SUMPRODUCT(S56:AB56*S58:AB58)+SUMPRODUCT(S61:AB61,S63:AB63)+SUMPRODUCT(S66:AB66,S68:AB68)+SUMPRODUCT(S71:AB71,S73:AB73))/R47 -> 0.371250223 | T47: =(SUMPRODUCT(S52:AB52,S53:AB53)+SUMPRODUCT(S57:AB57*S58:AB58)+SUMPRODUCT(S62:AB62,S63:AB63)+SUMPRODUCT(S67:AB67,S68:AB68)+SUMPRODUCT(S72:AB72,S73:AB73))/R47 -> 0.1606143301
B48: pkt. | C48: x | D48: y | E48: s1 | F48: t1 | G48: s | H48: t | I48: s' | J48: s'' | K48: I1 | L48: I2 | M48: I3 | N48: DNc | O48: DsNc | P48: DtNc | Q48: lag | R48: line: | S48: 1 | T48: 2 | U48: 3 | V48: 4 | W48: 5 | X48: 6 | Y48: 7 | Z48: 8 | AA48: 9 | AB48: 10
B49: 1 | C49: =C17 -> 0.35 | D49: =D17 -> 0 | E49: =G47*(C49-E45)+H47*(D49-F45) -> 0 | F49: =-H47*(C49-E45)+G47*(D49-F45) -> -0.42 | G49: =E49 -> 0 | H49: =MAX(F49,0) -> 0 | I49: =IF(ABS((H50-H49)/F47)<0.001,0,(G49*H50-G50*H49)/(H50-H49)) -> 0 | J49: =IF(ABS((H50-H49)/F47)<0.001,0,(G50-G49)/(H50-H49)) -> 0 | K49: =IF(H50=H49,0,-((C47-D47)*E47/(2*D47^3))*(2*D47*(H50-H49)+D47^2*(H50^2-H49^2)+2*LN((1-D47*H50)/(1-D47*H49)))) -> 0 | L49: =-(C47-D47)*E47*(H50^3-H49^3)/(3*D47)+K49/D47 -> 0 | M49: =-(C47-D47)*E47*(H50^4-H49^4)/(4*D47)+L49/D47 -> 0 | N49: =IF(ABS((H50-H49)/F47)<0.001,0,0.5*E47*I49*(H50^2-H49^2)+E47*J49*(H50^3-H49^3)/3-I49*K49-J49*L49) -> 0 | O49: =IF(ABS((H50-H49)/F47)<0.001,0,0.5*E47*(I49^2*(H50^2-H49^2)/2+2*I49*J49*(H50^3-H49^3)/3+J49^2*(H50^4-H49^4)/4)-0.5*I49^2*K49-I49*J49*L49-0.5*J49^2*M49) -> 0 | P49: =IF(ABS((H50-H49)/F47)<0.001,0,E47*(I49*(H50^3-H49^3)/3+J49*(H50^4-H49^4)/4)-I49*L49-J49*M49) -> 0 | Q49: 1 | R49: A | S49: =INDEX(Liner,S48+(Q49-1)*10,9)/1000000 -> 9.3e-05 | T49: =INDEX(Liner,T48+(Q49-1)*10,9)/1000000 -> 9.3e-05 | U49: =INDEX(Liner,U48+(Q49-1)*10,9)/1000000 -> 9.3e-05 | V49: =INDEX(Liner,V48+(Q49-1)*10,9)/1000000 -> 9.3e-05 | W49: =INDEX(Liner,W48+(Q49-1)*10,9)/1000000 -> 9.3e-05 | X49: =INDEX(Liner,X48+(Q49-1)*10,9)/1000000 -> 9.3e-05 | Y49: =INDEX(Liner,Y48+(Q49-1)*10,9)/1000000 -> 9.3e-05 | Z49: =INDEX(Liner,Z48+(Q49-1)*10,9)/1000000 -> 9.3e-05 | AA49: =INDEX(Liner,AA48+(Q49-1)*10,9)/1000000 -> 0 | AB49: =INDEX(Liner,AB48+(Q49-1)*10,9)/1000000 -> 0
B50: 1' | E50: =IF(F51*F49<0,E49-(E51-E49)*F49/(F51-F49),E49) -> 0 | F50: =IF(E51=E49,F49,F49+(F51-F49)*(E50-E49)/(E51-E49)) -> -0.42 | G50: 0 | H50: =MAX(F50,0) -> 0 | I50: =IF(ABS((H51-H50)/F47)<0.001,0,(G50*H51-G51*H50)/(H51-H50)) -> 0 | J50: =IF(ABS((H51-H50)/F47)<0.001,0,(G51-G50)/(H51-H50)) -> 0 | K50: =-((C47-D47)*E47/(2*D47^3))*(2*D47*(H51-H50)+D47^2*(H51^2-H50^2)+2*LN((1-D47*H51)/(1-D47*H50))) -> 0 | L50: =-(C47-D47)*E47*(H51^3-H50^3)/(3*D47)+K50/D47 -> 0 | M50: =-(C47-D47)*E47*(H51^4-H50^4)/(4*D47)+L50/D47 -> 0 | N50: =IF(ABS((H51-H50)/F47)<0.001,0,0.5*E47*I50*(H51^2-H50^2)+E47*J50*(H51^3-H50^3)/3-I50*K50-J50*L50) -> 0 | O50: =IF(ABS((H51-H50)/F47)<0.001,0,0.5*E47*(I50^2*(H51^2-H50^2)/2+2*I50*J50*(H51^3-H50^3)/3+J50^2*(H51^4-H50^4)/4)-0.5*I50^2*K50-I50*J50*L50-0.5*J50^2*M50) -> 0 | P50: =IF(ABS((H51-H50)/F47)<0.001,0,E47*(I50*(H51^3-H50^3)/3+J50*(H51^4-H50^4)/4)-I50*L50-J50*M50) -> 0 | Q50: 1 | R50: Nf | S50: =INDEX(Liner,S48+(Q50-1)*10,10)/1000 -> 0.1 | T50: =INDEX(Liner,T48+(Q50-1)*10,10)/1000 -> 0.1 | U50: =INDEX(Liner,U48+(Q50-1)*10,10)/1000 -> 0.1 | V50: =INDEX(Liner,V48+(Q50-1)*10,10)/1000 -> 0.1 | W50: =INDEX(Liner,W48+(Q50-1)*10,10)/1000 -> 0.1 | X50: =INDEX(Liner,X48+(Q50-1)*10,10)/1000 -> 0.1 | Y50: =INDEX(Liner,Y48+(Q50-1)*10,10)/1000 -> 0.1 | Z50: =INDEX(Liner,Z48+(Q50-1)*10,10)/1000 -> 0.1 | AA50: =INDEX(Liner,AA48+(Q50-1)*10,10)/1000 -> 0 | AB50: =INDEX(Liner,AB48+(Q50-1)*10,10)/1000 -> 0
B51: 2 | C51: =C19 -> 0.6 | D51: =D19 -> 0 | E51: =G47*(C51-E45)+H47*(D51-F45) -> 0.25 | F51: =-H47*(C51-E45)+G47*(D51-F45) -> -0.42 | G51: 0.25 | H51: 0 | I51: =IF(ABS((H52-H51)/F47)<0.001,0,(G51*H52-G52*H51)/(H52-H51)) -> 0 | J51: =IF(ABS((H52-H51)/F47)<0.001,0,(G52-G51)/(H52-H51)) -> 0 | K51: =-((C47-D47)*E47/(2*D47^3))*(2*D47*(H52-H51)+D47^2*(H52^2-H51^2)+2*LN((1-D47*H52)/(1-D47*H51))) -> 0 | L51: =-(C47-D47)*E47*(H52^3-H51^3)/(3*D47)+K51/D47 -> 0 | M51: =-(C47-D47)*E47*(H52^4-H51^4)/(4*D47)+L51/D47 -> 0 | N51: =IF(ABS((H52-H51)/F47)<0.001,0,0.5*E47*I51*(H52^2-H51^2)+E47*J51*(H52^3-H51^3)/3-I51*K51-J51*L51) -> 0 | O51: =IF(ABS((H52-H51)/F47)<0.001,0,0.5*E47*(I51^2*(H52^2-H51^2)/2+2*I51*J51*(H52^3-H51^3)/3+J51^2*(H52^4-H51^4)/4)-0.5*I51^2*K51-I51*J51*L51-0.5*J51^2*M51) -> 0 | P51: =IF(ABS((H52-H51)/F47)<0.001,0,E47*(I51*(H52^3-H51^3)/3+J51*(H52^4-H51^4)/4)-I51*L51-J51*M51) -> 0 | Q51: 1 | R51: x | S51: =INDEX(Liner,S48+(Q51-1)*10,2)/1000 -> 0.075 | T51: =INDEX(Liner,T48+(Q51-1)*10,2)/1000 -> 0.147 | U51: =INDEX(Liner,U48+(Q51-1)*10,2)/1000 -> 0.219 | V51: =INDEX(Liner,V48+(Q51-1)*10,2)/1000 -> 0.291 | W51: =INDEX(Liner,W48+(Q51-1)*10,2)/1000 -> 0.363 | X51: =INDEX(Liner,X48+(Q51-1)*10,2)/1000 -> 0.435 | Y51: =INDEX(Liner,Y48+(Q51-1)*10,2)/1000 -> 0.265 | Z51: =INDEX(Liner,Z48+(Q51-1)*10,2)/1000 -> 0.6 | AA51: =INDEX(Liner,AA48+(Q51-1)*10,2)/1000 -> -1.4 | AB51: =INDEX(Liner,AB48+(Q51-1)*10,2)/1000 -> -1.4
B52: 2' | E52: =IF(F53*F51<0,E51-(E53-E51)*F51/(F53-F51),E51) -> 0.25 | F52: =IF(E53=E51,F51,F51+(F53-F51)*(E52-E51)/(E53-E51)) -> -0.42 | G52: 0.25 | H52: 0 | I52: =IF(ABS((H53-H52)/F47)<0.001,0,(G52*H53-G53*H52)/(H53-H52)) -> 0 | J52: =IF(ABS((H53-H52)/F47)<0.001,0,(G53-G52)/(H53-H52)) -> 0 | K52: =-((C47-D47)*E47/(2*D47^3))*(2*D47*(H53-H52)+D47^2*(H53^2-H52^2)+2*LN((1-D47*H53)/(1-D47*H52))) -> 0 | L52: =-(C47-D47)*E47*(H53^3-H52^3)/(3*D47)+K52/D47 -> 0 | M52: =-(C47-D47)*E47*(H53^4-H52^4)/(4*D47)+L52/D47 -> 0 | N52: =IF(ABS((H53-H52)/F47)<0.001,0,0.5*E47*I52*(H53^2-H52^2)+E47*J52*(H53^3-H52^3)/3-I52*K52-J52*L52) -> 0 | O52: =IF(ABS((H53-H52)/F47)<0.001,0,0.5*E47*(I52^2*(H53^2-H52^2)/2+2*I52*J52*(H53^3-H52^3)/3+J52^2*(H53^4-H52^4)/4)-0.5*I52^2*K52-I52*J52*L52-0.5*J52^2*M52) -> 0 | P52: =IF(ABS((H53-H52)/F47)<0.001,0,E47*(I52*(H53^3-H52^3)/3+J52*(H53^4-H52^4)/4)-I52*L52-J52*M52) -> 0 | Q52: 1 | R52: y | S52: =INDEX(Liner,S48+(Q52-1)*10,3)/1000 -> 0.65 | T52: =INDEX(Liner,T48+(Q52-1)*10,3)/1000 -> 0.65 | U52: =INDEX(Liner,U48+(Q52-1)*10,3)/1000 -> 0.65 | V52: =INDEX(Liner,V48+(Q52-1)*10,3)/1000 -> 0.65 | W52: =INDEX(Liner,W48+(Q52-1)*10,3)/1000 -> 0.65 | X52: =INDEX(Liner,X48+(Q52-1)*10,3)/1000 -> 0.65 | Y52: =INDEX(Liner,Y48+(Q52-1)*10,3)/1000 -> 0.25 | Z52: =INDEX(Liner,Z48+(Q52-1)*10,3)/1000 -> 0.25 | AA52: =INDEX(Liner,AA48+(Q52-1)*10,3)/1000 -> 0.25 | AB52: =INDEX(Liner,AB48+(Q52-1)*10,3)/1000 -> 0.25
B53: 3 | C53: =C21 -> 0.65 | D53: =D21 -> 0.3 | E53: =G47*(C53-E45)+H47*(D53-F45) -> 0.3 | F53: =-H47*(C53-E45)+G47*(D53-F45) -> -0.12 | G53: 0.3 | H53: 0 | I53: =IF(ABS((H54-H53)/F47)<0.001,0,(G53*H54-G54*H53)/(H54-H53)) -> 0 | J53: =IF(ABS((H54-H53)/F47)<0.001,0,(G54-G53)/(H54-H53)) -> 0 | K53: =-((C47-D47)*E47/(2*D47^3))*(2*D47*(H54-H53)+D47^2*(H54^2-H53^2)+2*LN((1-D47*H54)/(1-D47*H53))) -> 0 | L53: =-(C47-D47)*E47*(H54^3-H53^3)/(3*D47)+K53/D47 -> 0 | M53: =-(C47-D47)*E47*(H54^4-H53^4)/(4*D47)+L53/D47 -> 0 | N53: =IF(ABS((H54-H53)/F47)<0.001,0,0.5*E47*I53*(H54^2-H53^2)+E47*J53*(H54^3-H53^3)/3-I53*K53-J53*L53) -> 0 | O53: =IF(ABS((H54-H53)/F47)<0.001,0,0.5*E47*(I53^2*(H54^2-H53^2)/2+2*I53*J53*(H54^3-H53^3)/3+J53^2*(H54^4-H53^4)/4)-0.5*I53^2*K53-I53*J53*L53-0.5*J53^2*M53) -> 0 | P53: =IF(ABS((H54-H53)/F47)<0.001,0,E47*(I53*(H54^3-H53^3)/3+J53*(H54^4-H53^4)/4)-I53*L53-J53*M53) -> 0 | Q53: 1 | R53: Na | S53: =IF(-(-H47*(S51-E45)+G47*(S52-F45))*C45/F47+IF(S49>0,S50/(S49*$S$5),0)>$S$6,IF(-(-H47*(S51-E45)+G47*(S52-F45))*C45/F47+IF(S49>0,S50/(S49*$S$5),0)>$S$8,0,$S$4+$S$9*(-(-H47*(S51-E45)+G47*(S52-F45))*C45/F47+IF(S49>0,S50/(S49*$S$5),0)-$S$6)),$S$5*(-(-H47*(S51-E45)+G47*(S52-F45))*C45/F47+IF(S49>0,S50/(S49*$S$5),0)))*S49 -> 0.047861875 | T53: =IF(-(-H47*(T51-E45)+G47*(T52-F45))*C45/F47+IF(T49>0,T50/(T49*$S$5),0)>$S$6,IF(-(-H47*(T51-E45)+G47*(T52-F45))*C45/F47+IF(T49>0,T50/(T49*$S$5),0)>$S$8,0,$S$4+$S$9*(-(-H47*(T51-E45)+G47*(T52-F45))*C45/F47+IF(T49>0,T50/(T49*$S$5),0)-$S$6)),$S$5*(-(-H47*(T51-E45)+G47*(T52-F45))*C45/F47+IF(T49>0,T50/(T49*$S$5),0)))*T49 -> 0.047861875 | U53: =IF(-(-H47*(U51-E45)+G47*(U52-F45))*C45/F47+IF(U49>0,U50/(U49*$S$5),0)>$S$6,IF(-(-H47*(U51-E45)+G47*(U52-F45))*C45/F47+IF(U49>0,U50/(U49*$S$5),0)>$S$8,0,$S$4+$S$9*(-(-H47*(U51-E45)+G47*(U52-F45))*C45/F47+IF(U49>0,U50/(U49*$S$5),0)-$S$6)),$S$5*(-(-H47*(U51-E45)+G47*(U52-F45))*C45/F47+IF(U49>0,U50/(U49*$S$5),0)))*U49 -> 0.047861875 | V53: =IF(-(-H47*(V51-E45)+G47*(V52-F45))*C45/F47+IF(V49>0,V50/(V49*$S$5),0)>$S$6,IF(-(-H47*(V51-E45)+G47*(V52-F45))*C45/F47+IF(V49>0,V50/(V49*$S$5),0)>$S$8,0,$S$4+$S$9*(-(-H47*(V51-E45)+G47*(V52-F45))*C45/F47+IF(V49>0,V50/(V49*$S$5),0)-$S$6)),$S$5*(-(-H47*(V51-E45)+G47*(V52-F45))*C45/F47+IF(V49>0,V50/(V49*$S$5),0)))*V49 -> 0.047861875 | W53: =IF(-(-H47*(W51-E45)+G47*(W52-F45))*C45/F47+IF(W49>0,W50/(W49*$S$5),0)>$S$6,IF(-(-H47*(W51-E45)+G47*(W52-F45))*C45/F47+IF(W49>0,W50/(W49*$S$5),0)>$S$8,0,$S$4+$S$9*(-(-H47*(W51-E45)+G47*(W52-F45))*C45/F47+IF(W49>0,W50/(W49*$S$5),0)-$S$6)),$S$5*(-(-H47*(W51-E45)+G47*(W52-F45))*C45/F47+IF(W49>0,W50/(W49*$S$5),0)))*W49 -> 0.047861875 | X53: =IF(-(-H47*(X51-E45)+G47*(X52-F45))*C45/F47+IF(X49>0,X50/(X49*$S$5),0)>$S$6,IF(-(-H47*(X51-E45)+G47*(X52-F45))*C45/F47+IF(X49>0,X50/(X49*$S$5),0)>$S$8,0,$S$4+$S$9*(-(-H47*(X51-E45)+G47*(X52-F45))*C45/F47+IF(X49>0,X50/(X49*$S$5),0)-$S$6)),$S$5*(-(-H47*(X51-E45)+G47*(X52-F45))*C45/F47+IF(X49>0,X50/(X49*$S$5),0)))*X49 -> 0.047861875 | Y53: =IF(-(-H47*(Y51-E45)+G47*(Y52-F45))*C45/F47+IF(Y49>0,Y50/(Y49*$S$5),0)>$S$6,IF(-(-H47*(Y51-E45)+G47*(Y52-F45))*C45/F47+IF(Y49>0,Y50/(Y49*$S$5),0)>$S$8,0,$S$4+$S$9*(-(-H47*(Y51-E45)+G47*(Y52-F45))*C45/F47+IF(Y49>0,Y50/(Y49*$S$5),0)-$S$6)),$S$5*(-(-H47*(Y51-E45)+G47*(Y52-F45))*C45/F47+IF(Y49>0,Y50/(Y49*$S$5),0)))*Y49 -> 0.1248390693 | Z53: =IF(-(-H47*(Z51-E45)+G47*(Z52-F45))*C45/F47+IF(Z49>0,Z50/(Z49*$S$5),0)>$S$6,IF(-(-H47*(Z51-E45)+G47*(Z52-F45))*C45/F47+IF(Z49>0,Z50/(Z49*$S$5),0)>$S$8,0,$S$4+$S$9*(-(-H47*(Z51-E45)+G47*(Z52-F45))*C45/F47+IF(Z49>0,Z50/(Z49*$S$5),0)-$S$6)),$S$5*(-(-H47*(Z51-E45)+G47*(Z52-F45))*C45/F47+IF(Z49>0,Z50/(Z49*$S$5),0)))*Z49 -> 0.1248390693 | AA53: =IF(-(-H47*(AA51-E45)+G47*(AA52-F45))*C45/F47+IF(AA49>0,AA50/(AA49*$S$5),0)>$S$6,IF(-(-H47*(AA51-E45)+G47*(AA52-F45))*C45/F47+IF(AA49>0,AA50/(AA49*$S$5),0)>$S$8,0,$S$4+$S$9*(-(-H47*(AA51-E45)+G47*(AA52-F45))*C45/F47+IF(AA49>0,AA50/(AA49*$S$5),0)-$S$6)),$S$5*(-(-H47*(AA51-E45)+G47*(AA52-F45))*C45/F47+IF(AA49>0,AA50/(AA49*$S$5),0)))*AA49 -> 0 | AB53: =IF(-(-H47*(AB51-E45)+G47*(AB52-F45))*C45/F47+IF(AB49>0,AB50/(AB49*$S$5),0)>$S$6,IF(-(-H47*(AB51-E45)+G47*(AB52-F45))*C45/F47+IF(AB49>0,AB50/(AB49*$S$5),0)>$S$8,0,$S$4+$S$9*(-(-H47*(AB51-E45)+G47*(AB52-F45))*C45/F47+IF(AB49>0,AB50/(AB49*$S$5),0)-$S$6)),$S$5*(-(-H47*(AB51-E45)+G47*(AB52-F45))*C45/F47+IF(AB49>0,AB50/(AB49*$S$5),0)))*AB49 -> 0
B54: 3' | E54: =IF(F55*F53<0,E53-(E55-E53)*F53/(F55-F53),E53) -> 0.3 | F54: =IF(E55=E53,F53,F53+(F55-F53)*(E54-E53)/(E55-E53)) -> -0.12 | G54: 0.3 | H54: 0 | I54: =IF(ABS((H55-H54)/F47)<0.001,0,(G54*H55-G55*H54)/(H55-H54)) -> 0 | J54: =IF(ABS((H55-H54)/F47)<0.001,0,(G55-G54)/(H55-H54)) -> 0 | K54: =-((C47-D47)*E47/(2*D47^3))*(2*D47*(H55-H54)+D47^2*(H55^2-H54^2)+2*LN((1-D47*H55)/(1-D47*H54))) -> 0 | L54: =-(C47-D47)*E47*(H55^3-H54^3)/(3*D47)+K54/D47 -> 0 | M54: =-(C47-D47)*E47*(H55^4-H54^4)/(4*D47)+L54/D47 -> 0 | N54: =IF(ABS((H55-H54)/F47)<0.001,0,0.5*E47*I54*(H55^2-H54^2)+E47*J54*(H55^3-H54^3)/3-I54*K54-J54*L54) -> 0 | O54: =IF(ABS((H55-H54)/F47)<0.001,0,0.5*E47*(I54^2*(H55^2-H54^2)/2+2*I54*J54*(H55^3-H54^3)/3+J54^2*(H55^4-H54^4)/4)-0.5*I54^2*K54-I54*J54*L54-0.5*J54^2*M54) -> 0 | P54: =IF(ABS((H55-H54)/F47)<0.001,0,E47*(I54*(H55^3-H54^3)/3+J54*(H55^4-H54^4)/4)-I54*L54-J54*M54) -> 0 | Q54: 2 | R54: A | S54: =INDEX(Liner,S48+(Q54-1)*10,9)/1000000 -> 0 | T54: =INDEX(Liner,T48+(Q54-1)*10,9)/1000000 -> 0 | U54: =INDEX(Liner,U48+(Q54-1)*10,9)/1000000 -> 0 | V54: =INDEX(Liner,V48+(Q54-1)*10,9)/1000000 -> 0 | W54: =INDEX(Liner,W48+(Q54-1)*10,9)/1000000 -> 0 | X54: =INDEX(Liner,X48+(Q54-1)*10,9)/1000000 -> 0 | Y54: =INDEX(Liner,Y48+(Q54-1)*10,9)/1000000 -> 0 | Z54: =INDEX(Liner,Z48+(Q54-1)*10,9)/1000000 -> 0 | AA54: =INDEX(Liner,AA48+(Q54-1)*10,9)/1000000 -> 0 | AB54: =INDEX(Liner,AB48+(Q54-1)*10,9)/1000000 -> 0
B55: 4 | C55: =C23 -> 0.475 | D55: =D23 -> 0.3 | E55: =G47*(C55-E45)+H47*(D55-F45) -> 0.125 | F55: =-H47*(C55-E45)+G47*(D55-F45) -> -0.12 | G55: 0.125 | H55: 0 | I55: =IF(ABS((H56-H55)/F47)<0.001,0,(G55*H56-G56*H55)/(H56-H55)) -> 0 | J55: =IF(ABS((H56-H55)/F47)<0.001,0,(G56-G55)/(H56-H55)) -> 0 | K55: =-((C47-D47)*E47/(2*D47^3))*(2*D47*(H56-H55)+D47^2*(H56^2-H55^2)+2*LN((1-D47*H56)/(1-D47*H55))) -> 0 | L55: =-(C47-D47)*E47*(H56^3-H55^3)/(3*D47)+K55/D47 -> 0 | M55: =-(C47-D47)*E47*(H56^4-H55^4)/(4*D47)+L55/D47 -> 0 | N55: =IF(ABS((H56-H55)/F47)<0.001,0,0.5*E47*I55*(H56^2-H55^2)+E47*J55*(H56^3-H55^3)/3-I55*K55-J55*L55) -> 0 | O55: =IF(ABS((H56-H55)/F47)<0.001,0,0.5*E47*(I55^2*(H56^2-H55^2)/2+2*I55*J55*(H56^3-H55^3)/3+J55^2*(H56^4-H55^4)/4)-0.5*I55^2*K55-I55*J55*L55-0.5*J55^2*M55) -> 0 | P55: =IF(ABS((H56-H55)/F47)<0.001,0,E47*(I55*(H56^3-H55^3)/3+J55*(H56^4-H55^4)/4)-I55*L55-J55*M55) -> 0 | Q55: 2 | R55: Nf | S55: =INDEX(Liner,S48+(Q55-1)*10,10)/1000 -> 0 | T55: =INDEX(Liner,T48+(Q55-1)*10,10)/1000 -> 0 | U55: =INDEX(Liner,U48+(Q55-1)*10,10)/1000 -> 0 | V55: =INDEX(Liner,V48+(Q55-1)*10,10)/1000 -> 0 | W55: =INDEX(Liner,W48+(Q55-1)*10,10)/1000 -> 0 | X55: =INDEX(Liner,X48+(Q55-1)*10,10)/1000 -> 0 | Y55: =INDEX(Liner,Y48+(Q55-1)*10,10)/1000 -> 0 | Z55: =INDEX(Liner,Z48+(Q55-1)*10,10)/1000 -> 0 | AA55: =INDEX(Liner,AA48+(Q55-1)*10,10)/1000 -> 0 | AB55: =INDEX(Liner,AB48+(Q55-1)*10,10)/1000 -> 0
B56: 4' | E56: =IF(F57*F55<0,E55-(E57-E55)*F55/(F57-F55),E55) -> 0.125 | F56: =IF(E57=E55,F55,F55+(F57-F55)*(E56-E55)/(E57-E55)) -> -0.12 | G56: 0.125 | H56: 0 | I56: =IF(ABS((H57-H56)/F47)<0.001,0,(G56*H57-G57*H56)/(H57-H56)) -> 0.125 | J56: =IF(ABS((H57-H56)/F47)<0.001,0,(G57-G56)/(H57-H56)) -> 0 | K56: =-((C47-D47)*E47/(2*D47^3))*(2*D47*(H57-H56)+D47^2*(H57^2-H56^2)+2*LN((1-D47*H57)/(1-D47*H56))) -> 4.980990887 | L56: =-(C47-D47)*E47*(H57^3-H56^3)/(3*D47)+K56/D47 -> 1.066356688 | M56: =-(C47-D47)*E47*(H57^4-H56^4)/(4*D47)+L56/D47 -> 0.2420135005 | N56: =IF(ABS((H57-H56)/F47)<0.001,0,0.5*E47*I56*(H57^2-H56^2)+E47*J56*(H57^3-H56^3)/3-I56*K56-J56*L56) -> 0.7256594611 | O56: =IF(ABS((H57-H56)/F47)<0.001,0,0.5*E47*(I56^2*(H57^2-H56^2)/2+2*I56*J56*(H57^3-H56^3)/3+J56^2*(H57^4-H56^4)/4)-0.5*I56^2*K56-I56*J56*L56-0.5*J56^2*M56) -> 0.04535371632 | P56: =IF(ABS((H57-H56)/F47)<0.001,0,E47*(I56*(H57^3-H56^3)/3+J56*(H57^4-H56^4)/4)-I56*L56-J56*M56) -> 0.1183849675 | Q56: 2 | R56: x | S56: =INDEX(Liner,S48+(Q56-1)*10,2)/1000 -> 0.35 | T56: =INDEX(Liner,T48+(Q56-1)*10,2)/1000 -> -1.4 | U56: =INDEX(Liner,U48+(Q56-1)*10,2)/1000 -> -1.4 | V56: =INDEX(Liner,V48+(Q56-1)*10,2)/1000 -> -1.4 | W56: =INDEX(Liner,W48+(Q56-1)*10,2)/1000 -> -1.4 | X56: =INDEX(Liner,X48+(Q56-1)*10,2)/1000 -> -1.4 | Y56: =INDEX(Liner,Y48+(Q56-1)*10,2)/1000 -> -1.4 | Z56: =INDEX(Liner,Z48+(Q56-1)*10,2)/1000 -> -1.4 | AA56: =INDEX(Liner,AA48+(Q56-1)*10,2)/1000 -> -1.4 | AB56: =INDEX(Liner,AB48+(Q56-1)*10,2)/1000 -> -1.4
B57: 5 | C57: =C25 -> 0.475 | D57: =D25 -> 0.7 | E57: =G47*(C57-E45)+H47*(D57-F45) -> 0.125 | F57: =-H47*(C57-E45)+G47*(D57-F45) -> 0.28 | G57: 0.125 | H57: 0.28 | I57: =IF(ABS((H58-H57)/F47)<0.001,0,(G57*H58-G58*H57)/(H58-H57)) -> 0 | J57: =IF(ABS((H58-H57)/F47)<0.001,0,(G58-G57)/(H58-H57)) -> 0 | K57: =-((C47-D47)*E47/(2*D47^3))*(2*D47*(H58-H57)+D47^2*(H58^2-H57^2)+2*LN((1-D47*H58)/(1-D47*H57))) -> 0 | L57: =-(C47-D47)*E47*(H58^3-H57^3)/(3*D47)+K57/D47 -> 0 | M57: =-(C47-D47)*E47*(H58^4-H57^4)/(4*D47)+L57/D47 -> 0 | N57: =IF(ABS((H58-H57)/F47)<0.001,0,0.5*E47*I57*(H58^2-H57^2)+E47*J57*(H58^3-H57^3)/3-I57*K57-J57*L57) -> 0 | O57: =IF(ABS((H58-H57)/F47)<0.001,0,0.5*E47*(I57^2*(H58^2-H57^2)/2+2*I57*J57*(H58^3-H57^3)/3+J57^2*(H58^4-H57^4)/4)-0.5*I57^2*K57-I57*J57*L57-0.5*J57^2*M57) -> 0 | P57: =IF(ABS((H58-H57)/F47)<0.001,0,E47*(I57*(H58^3-H57^3)/3+J57*(H58^4-H57^4)/4)-I57*L57-J57*M57) -> 0 | Q57: 2 | R57: y | S57: =INDEX(Liner,S48+(Q57-1)*10,3)/1000 -> 0 | T57: =INDEX(Liner,T48+(Q57-1)*10,3)/1000 -> 0 | U57: =INDEX(Liner,U48+(Q57-1)*10,3)/1000 -> 0 | V57: =INDEX(Liner,V48+(Q57-1)*10,3)/1000 -> 0 | W57: =INDEX(Liner,W48+(Q57-1)*10,3)/1000 -> 0 | X57: =INDEX(Liner,X48+(Q57-1)*10,3)/1000 -> 0 | Y57: =INDEX(Liner,Y48+(Q57-1)*10,3)/1000 -> 0 | Z57: =INDEX(Liner,Z48+(Q57-1)*10,3)/1000 -> 0 | AA57: =INDEX(Liner,AA48+(Q57-1)*10,3)/1000 -> 0 | AB57: =INDEX(Liner,AB48+(Q57-1)*10,3)/1000 -> 0
B58: 5' | E58: =IF(F59*F57<0,E57-(E59-E57)*F57/(F59-F57),E57) -> 0.125 | F58: =IF(E59=E57,F57,F57+(F59-F57)*(E58-E57)/(E59-E57)) -> 0.28 | G58: 0.125 | H58: 0.28 | I58: =IF(ABS((H59-H58)/F47)<0.001,0,(G58*H59-G59*H58)/(H59-H58)) -> 0 | J58: =IF(ABS((H59-H58)/F47)<0.001,0,(G59-G58)/(H59-H58)) -> 0 | K58: =-((C47-D47)*E47/(2*D47^3))*(2*D47*(H59-H58)+D47^2*(H59^2-H58^2)+2*LN((1-D47*H59)/(1-D47*H58))) -> 0 | L58: =-(C47-D47)*E47*(H59^3-H58^3)/(3*D47)+K58/D47 -> 0 | M58: =-(C47-D47)*E47*(H59^4-H58^4)/(4*D47)+L58/D47 -> 0 | N58: =IF(ABS((H59-H58)/F47)<0.001,0,0.5*E47*I58*(H59^2-H58^2)+E47*J58*(H59^3-H58^3)/3-I58*K58-J58*L58) -> 0 | O58: =IF(ABS((H59-H58)/F47)<0.001,0,0.5*E47*(I58^2*(H59^2-H58^2)/2+2*I58*J58*(H59^3-H58^3)/3+J58^2*(H59^4-H58^4)/4)-0.5*I58^2*K58-I58*J58*L58-0.5*J58^2*M58) -> 0 | P58: =IF(ABS((H59-H58)/F47)<0.001,0,E47*(I58*(H59^3-H58^3)/3+J58*(H59^4-H58^4)/4)-I58*L58-J58*M58) -> 0 | Q58: 2 | R58: Na | S58: =IF(-(-H47*(S56-E45)+G47*(S57-F45))*C45/F47+IF(S54>0,S55/(S54*$S$5),0)>$S$6,IF(-(-H47*(S56-E45)+G47*(S57-F45))*C45/F47+IF(S54>0,S55/(S54*$S$5),0)>$S$8,0,$S$4+$S$9*(-(-H47*(S56-E45)+G47*(S57-F45))*C45/F47+IF(S54>0,S55/(S54*$S$5),0)-$S$6)),$S$5*(-(-H47*(S56-E45)+G47*(S57-F45))*C45/F47+IF(S54>0,S55/(S54*$S$5),0)))*S54 -> 0 | T58: =IF(-(-H47*(T56-E45)+G47*(T57-F45))*C45/F47+IF(T54>0,T55/(T54*$S$5),0)>$S$6,IF(-(-H47*(T56-E45)+G47*(T57-F45))*C45/F47+IF(T54>0,T55/(T54*$S$5),0)>$S$8,0,$S$4+$S$9*(-(-H47*(T56-E45)+G47*(T57-F45))*C45/F47+IF(T54>0,T55/(T54*$S$5),0)-$S$6)),$S$5*(-(-H47*(T56-E45)+G47*(T57-F45))*C45/F47+IF(T54>0,T55/(T54*$S$5),0)))*T54 -> 0 | U58: =IF(-(-H47*(U56-E45)+G47*(U57-F45))*C45/F47+IF(U54>0,U55/(U54*$S$5),0)>$S$6,IF(-(-H47*(U56-E45)+G47*(U57-F45))*C45/F47+IF(U54>0,U55/(U54*$S$5),0)>$S$8,0,$S$4+$S$9*(-(-H47*(U56-E45)+G47*(U57-F45))*C45/F47+IF(U54>0,U55/(U54*$S$5),0)-$S$6)),$S$5*(-(-H47*(U56-E45)+G47*(U57-F45))*C45/F47+IF(U54>0,U55/(U54*$S$5),0)))*U54 -> 0 | V58: =IF(-(-H47*(V56-E45)+G47*(V57-F45))*C45/F47+IF(V54>0,V55/(V54*$S$5),0)>$S$6,IF(-(-H47*(V56-E45)+G47*(V57-F45))*C45/F47+IF(V54>0,V55/(V54*$S$5),0)>$S$8,0,$S$4+$S$9*(-(-H47*(V56-E45)+G47*(V57-F45))*C45/F47+IF(V54>0,V55/(V54*$S$5),0)-$S$6)),$S$5*(-(-H47*(V56-E45)+G47*(V57-F45))*C45/F47+IF(V54>0,V55/(V54*$S$5),0)))*V54 -> 0 | W58: =IF(-(-H47*(W56-E45)+G47*(W57-F45))*C45/F47+IF(W54>0,W55/(W54*$S$5),0)>$S$6,IF(-(-H47*(W56-E45)+G47*(W57-F45))*C45/F47+IF(W54>0,W55/(W54*$S$5),0)>$S$8,0,$S$4+$S$9*(-(-H47*(W56-E45)+G47*(W57-F45))*C45/F47+IF(W54>0,W55/(W54*$S$5),0)-$S$6)),$S$5*(-(-H47*(W56-E45)+G47*(W57-F45))*C45/F47+IF(W54>0,W55/(W54*$S$5),0)))*W54 -> 0 | X58: =IF(-(-H47*(X56-E45)+G47*(X57-F45))*C45/F47+IF(X54>0,X55/(X54*$S$5),0)>$S$6,IF(-(-H47*(X56-E45)+G47*(X57-F45))*C45/F47+IF(X54>0,X55/(X54*$S$5),0)>$S$8,0,$S$4+$S$9*(-(-H47*(X56-E45)+G47*(X57-F45))*C45/F47+IF(X54>0,X55/(X54*$S$5),0)-$S$6)),$S$5*(-(-H47*(X56-E45)+G47*(X57-F45))*C45/F47+IF(X54>0,X55/(X54*$S$5),0)))*X54 -> 0 | Y58: =IF(-(-H47*(Y56-E45)+G47*(Y57-F45))*C45/F47+IF(Y54>0,Y55/(Y54*$S$5),0)>$S$6,IF(-(-H47*(Y56-E45)+G47*(Y57-F45))*C45/F47+IF(Y54>0,Y55/(Y54*$S$5),0)>$S$8,0,$S$4+$S$9*(-(-H47*(Y56-E45)+G47*(Y57-F45))*C45/F47+IF(Y54>0,Y55/(Y54*$S$5),0)-$S$6)),$S$5*(-(-H47*(Y56-E45)+G47*(Y57-F45))*C45/F47+IF(Y54>0,Y55/(Y54*$S$5),0)))*Y54 -> 0 | Z58: =IF(-(-H47*(Z56-E45)+G47*(Z57-F45))*C45/F47+IF(Z54>0,Z55/(Z54*$S$5),0)>$S$6,IF(-(-H47*(Z56-E45)+G47*(Z57-F45))*C45/F47+IF(Z54>0,Z55/(Z54*$S$5),0)>$S$8,0,$S$4+$S$9*(-(-H47*(Z56-E45)+G47*(Z57-F45))*C45/F47+IF(Z54>0,Z55/(Z54*$S$5),0)-$S$6)),$S$5*(-(-H47*(Z56-E45)+G47*(Z57-F45))*C45/F47+IF(Z54>0,Z55/(Z54*$S$5),0)))*Z54 -> 0 | AA58: =IF(-(-H47*(AA56-E45)+G47*(AA57-F45))*C45/F47+IF(AA54>0,AA55/(AA54*$S$5),0)>$S$6,IF(-(-H47*(AA56-E45)+G47*(AA57-F45))*C45/F47+IF(AA54>0,AA55/(AA54*$S$5),0)>$S$8,0,$S$4+$S$9*(-(-H47*(AA56-E45)+G47*(AA57-F45))*C45/F47+IF(AA54>0,AA55/(AA54*$S$5),0)-$S$6)),$S$5*(-(-H47*(AA56-E45)+G47*(AA57-F45))*C45/F47+IF(AA54>0,AA55/(AA54*$S$5),0)))*AA54 -> 0 | AB58: =IF(-(-H47*(AB56-E45)+G47*(AB57-F45))*C45/F47+IF(AB54>0,AB55/(AB54*$S$5),0)>$S$6,IF(-(-H47*(AB56-E45)+G47*(AB57-F45))*C45/F47+IF(AB54>0,AB55/(AB54*$S$5),0)>$S$8,0,$S$4+$S$9*(-(-H47*(AB56-E45)+G47*(AB57-F45))*C45/F47+IF(AB54>0,AB55/(AB54*$S$5),0)-$S$6)),$S$5*(-(-H47*(AB56-E45)+G47*(AB57-F45))*C45/F47+IF(AB54>0,AB55/(AB54*$S$5),0)))*AB54 -> 0
B59: 6 | C59: =C27 -> 0.475 | D59: =D27 -> 0.7 | E59: =G47*(C59-E45)+H47*(D59-F45) -> 0.125 | F59: =-H47*(C59-E45)+G47*(D59-F45) -> 0.28 | G59: 0.125 | H59: 0.28 | I59: =IF(ABS((H60-H59)/F47)<0.001,0,(G59*H60-G60*H59)/(H60-H59)) -> 0 | J59: =IF(ABS((H60-H59)/F47)<0.001,0,(G60-G59)/(H60-H59)) -> 0 | K59: =-((C47-D47)*E47/(2*D47^3))*(2*D47*(H60-H59)+D47^2*(H60^2-H59^2)+2*LN((1-D47*H60)/(1-D47*H59))) -> 0 | L59: =-(C47-D47)*E47*(H60^3-H59^3)/(3*D47)+K59/D47 -> 0 | M59: =-(C47-D47)*E47*(H60^4-H59^4)/(4*D47)+L59/D47 -> 0 | N59: =IF(ABS((H60-H59)/F47)<0.001,0,0.5*E47*I59*(H60^2-H59^2)+E47*J59*(H60^3-H59^3)/3-I59*K59-J59*L59) -> 0 | O59: =IF(ABS((H60-H59)/F47)<0.001,0,0.5*E47*(I59^2*(H60^2-H59^2)/2+2*I59*J59*(H60^3-H59^3)/3+J59^2*(H60^4-H59^4)/4)-0.5*I59^2*K59-I59*J59*L59-0.5*J59^2*M59) -> 0 | P59: =IF(ABS((H60-H59)/F47)<0.001,0,E47*(I59*(H60^3-H59^3)/3+J59*(H60^4-H59^4)/4)-I59*L59-J59*M59) -> 0 | Q59: 3 | R59: A | S59: =INDEX(Liner,S48+(Q59-1)*10,9)/1000000 -> 9.3e-05 | T59: =INDEX(Liner,T48+(Q59-1)*10,9)/1000000 -> 9.3e-05 | U59: =INDEX(Liner,U48+(Q59-1)*10,9)/1000000 -> 9.3e-05 | V59: =INDEX(Liner,V48+(Q59-1)*10,9)/1000000 -> 9.3e-05 | W59: =INDEX(Liner,W48+(Q59-1)*10,9)/1000000 -> 9.3e-05 | X59: =INDEX(Liner,X48+(Q59-1)*10,9)/1000000 -> 0 | Y59: =INDEX(Liner,Y48+(Q59-1)*10,9)/1000000 -> 0 | Z59: =INDEX(Liner,Z48+(Q59-1)*10,9)/1000000 -> 0 | AA59: =INDEX(Liner,AA48+(Q59-1)*10,9)/1000000 -> 0 | AB59: =INDEX(Liner,AB48+(Q59-1)*10,9)/1000000 -> 0
B60: 6' | E60: =IF(F61*F59<0,E59-(E61-E59)*F59/(F61-F59),E59) -> 0.125 | F60: =IF(E61=E59,F59,F59+(F61-F59)*(E60-E59)/(E61-E59)) -> 0.28 | G60: 0.125 | H60: 0.28 | I60: =IF(ABS((H61-H60)/F47)<0.001,0,(G60*H61-G61*H60)/(H61-H60)) -> 0 | J60: =IF(ABS((H61-H60)/F47)<0.001,0,(G61-G60)/(H61-H60)) -> 0 | K60: =-((C47-D47)*E47/(2*D47^3))*(2*D47*(H61-H60)+D47^2*(H61^2-H60^2)+2*LN((1-D47*H61)/(1-D47*H60))) -> 0 | L60: =-(C47-D47)*E47*(H61^3-H60^3)/(3*D47)+K60/D47 -> 0 | M60: =-(C47-D47)*E47*(H61^4-H60^4)/(4*D47)+L60/D47 -> 0 | N60: =IF(ABS((H61-H60)/F47)<0.001,0,0.5*E47*I60*(H61^2-H60^2)+E47*J60*(H61^3-H60^3)/3-I60*K60-J60*L60) -> 0 | O60: =IF(ABS((H61-H60)/F47)<0.001,0,0.5*E47*(I60^2*(H61^2-H60^2)/2+2*I60*J60*(H61^3-H60^3)/3+J60^2*(H61^4-H60^4)/4)-0.5*I60^2*K60-I60*J60*L60-0.5*J60^2*M60) -> 0 | P60: =IF(ABS((H61-H60)/F47)<0.001,0,E47*(I60*(H61^3-H60^3)/3+J60*(H61^4-H60^4)/4)-I60*L60-J60*M60) -> 0 | Q60: 3 | R60: Nf | S60: =INDEX(Liner,S48+(Q60-1)*10,10)/1000 -> 0.1 | T60: =INDEX(Liner,T48+(Q60-1)*10,10)/1000 -> 0.1 | U60: =INDEX(Liner,U48+(Q60-1)*10,10)/1000 -> 0.1 | V60: =INDEX(Liner,V48+(Q60-1)*10,10)/1000 -> 0.1 | W60: =INDEX(Liner,W48+(Q60-1)*10,10)/1000 -> 0.1 | X60: =INDEX(Liner,X48+(Q60-1)*10,10)/1000 -> 0 | Y60: =INDEX(Liner,Y48+(Q60-1)*10,10)/1000 -> 0 | Z60: =INDEX(Liner,Z48+(Q60-1)*10,10)/1000 -> 0 | AA60: =INDEX(Liner,AA48+(Q60-1)*10,10)/1000 -> 0 | AB60: =INDEX(Liner,AB48+(Q60-1)*10,10)/1000 -> 0
B61: 7 | C61: =C29 -> 0.475 | D61: =D29 -> 0.7 | E61: =G47*(C61-E45)+H47*(D61-F45) -> 0.125 | F61: =-H47*(C61-E45)+G47*(D61-F45) -> 0.28 | G61: 0.125 | H61: 0.28 | I61: =IF(ABS((H62-H61)/F47)<0.001,0,(G61*H62-G62*H61)/(H62-H61)) -> 0 | J61: =IF(ABS((H62-H61)/F47)<0.001,0,(G62-G61)/(H62-H61)) -> 0 | K61: =-((C47-D47)*E47/(2*D47^3))*(2*D47*(H62-H61)+D47^2*(H62^2-H61^2)+2*LN((1-D47*H62)/(1-D47*H61))) -> 0 | L61: =-(C47-D47)*E47*(H62^3-H61^3)/(3*D47)+K61/D47 -> 0 | M61: =-(C47-D47)*E47*(H62^4-H61^4)/(4*D47)+L61/D47 -> 0 | N61: =IF(ABS((H62-H61)/F47)<0.001,0,0.5*E47*I61*(H62^2-H61^2)+E47*J61*(H62^3-H61^3)/3-I61*K61-J61*L61) -> 0 | O61: =IF(ABS((H62-H61)/F47)<0.001,0,0.5*E47*(I61^2*(H62^2-H61^2)/2+2*I61*J61*(H62^3-H61^3)/3+J61^2*(H62^4-H61^4)/4)-0.5*I61^2*K61-I61*J61*L61-0.5*J61^2*M61) -> 0 | P61: =IF(ABS((H62-H61)/F47)<0.001,0,E47*(I61*(H62^3-H61^3)/3+J61*(H62^4-H61^4)/4)-I61*L61-J61*M61) -> 0 | Q61: 3 | R61: x | S61: =INDEX(Liner,S48+(Q61-1)*10,2)/1000 -> 0.265 | T61: =INDEX(Liner,T48+(Q61-1)*10,2)/1000 -> 0.3125 | U61: =INDEX(Liner,U48+(Q61-1)*10,2)/1000 -> 0.36 | V61: =INDEX(Liner,V48+(Q61-1)*10,2)/1000 -> 0.4075 | W61: =INDEX(Liner,W48+(Q61-1)*10,2)/1000 -> 0.455 | X61: =INDEX(Liner,X48+(Q61-1)*10,2)/1000 -> -1.4 | Y61: =INDEX(Liner,Y48+(Q61-1)*10,2)/1000 -> -1.4 | Z61: =INDEX(Liner,Z48+(Q61-1)*10,2)/1000 -> -1.4 | AA61: =INDEX(Liner,AA48+(Q61-1)*10,2)/1000 -> -1.4 | AB61: =INDEX(Liner,AB48+(Q61-1)*10,2)/1000 -> -1.4
B62: 7' | E62: =IF(F63*F61<0,E61-(E63-E61)*F61/(F63-F61),E61) -> 0.125 | F62: =IF(E63=E61,F61,F61+(F63-F61)*(E62-E61)/(E63-E61)) -> 0.28 | G62: 0.125 | H62: 0.28 | I62: =IF(ABS((H63-H62)/F47)<0.001,0,(G62*H63-G63*H62)/(H63-H62)) -> 0 | J62: =IF(ABS((H63-H62)/F47)<0.001,0,(G63-G62)/(H63-H62)) -> 0 | K62: =-((C47-D47)*E47/(2*D47^3))*(2*D47*(H63-H62)+D47^2*(H63^2-H62^2)+2*LN((1-D47*H63)/(1-D47*H62))) -> 0 | L62: =-(C47-D47)*E47*(H63^3-H62^3)/(3*D47)+K62/D47 -> 0 | M62: =-(C47-D47)*E47*(H63^4-H62^4)/(4*D47)+L62/D47 -> 0 | N62: =IF(ABS((H63-H62)/F47)<0.001,0,0.5*E47*I62*(H63^2-H62^2)+E47*J62*(H63^3-H62^3)/3-I62*K62-J62*L62) -> 0 | O62: =IF(ABS((H63-H62)/F47)<0.001,0,0.5*E47*(I62^2*(H63^2-H62^2)/2+2*I62*J62*(H63^3-H62^3)/3+J62^2*(H63^4-H62^4)/4)-0.5*I62^2*K62-I62*J62*L62-0.5*J62^2*M62) -> 0 | P62: =IF(ABS((H63-H62)/F47)<0.001,0,E47*(I62*(H63^3-H62^3)/3+J62*(H63^4-H62^4)/4)-I62*L62-J62*M62) -> 0 | Q62: 3 | R62: y | S62: =INDEX(Liner,S48+(Q62-1)*10,3)/1000 -> 0.13 | T62: =INDEX(Liner,T48+(Q62-1)*10,3)/1000 -> 0.13 | U62: =INDEX(Liner,U48+(Q62-1)*10,3)/1000 -> 0.13 | V62: =INDEX(Liner,V48+(Q62-1)*10,3)/1000 -> 0.13 | W62: =INDEX(Liner,W48+(Q62-1)*10,3)/1000 -> 0.13 | X62: =INDEX(Liner,X48+(Q62-1)*10,3)/1000 -> 0.13 | Y62: =INDEX(Liner,Y48+(Q62-1)*10,3)/1000 -> 0.13 | Z62: =INDEX(Liner,Z48+(Q62-1)*10,3)/1000 -> 0.13 | AA62: =INDEX(Liner,AA48+(Q62-1)*10,3)/1000 -> 0.13 | AB62: =INDEX(Liner,AB48+(Q62-1)*10,3)/1000 -> 0.13
B63: 8 | C63: =C31 -> 0.025 | D63: =D31 -> 0.7 | E63: =G47*(C63-E45)+H47*(D63-F45) -> -0.325 | F63: =-H47*(C63-E45)+G47*(D63-F45) -> 0.28 | G63: -0.325 | H63: 0.28 | I63: =IF(ABS((H64-H63)/F47)<0.001,0,(G63*H64-G64*H63)/(H64-H63)) -> 0 | J63: =IF(ABS((H64-H63)/F47)<0.001,0,(G64-G63)/(H64-H63)) -> 0 | K63: =-((C47-D47)*E47/(2*D47^3))*(2*D47*(H64-H63)+D47^2*(H64^2-H63^2)+2*LN((1-D47*H64)/(1-D47*H63))) -> 0 | L63: =-(C47-D47)*E47*(H64^3-H63^3)/(3*D47)+K63/D47 -> 0 | M63: =-(C47-D47)*E47*(H64^4-H63^4)/(4*D47)+L63/D47 -> 0 | N63: =IF(ABS((H64-H63)/F47)<0.001,0,0.5*E47*I63*(H64^2-H63^2)+E47*J63*(H64^3-H63^3)/3-I63*K63-J63*L63) -> 0 | O63: =IF(ABS((H64-H63)/F47)<0.001,0,0.5*E47*(I63^2*(H64^2-H63^2)/2+2*I63*J63*(H64^3-H63^3)/3+J63^2*(H64^4-H63^4)/4)-0.5*I63^2*K63-I63*J63*L63-0.5*J63^2*M63) -> 0 | P63: =IF(ABS((H64-H63)/F47)<0.001,0,E47*(I63*(H64^3-H63^3)/3+J63*(H64^4-H63^4)/4)-I63*L63-J63*M63) -> 0 | Q63: 3 | R63: Na | S63: =IF(-(-H47*(S61-E45)+G47*(S62-F45))*C45/F47+IF(S59>0,S60/(S59*$S$5),0)>$S$6,IF(-(-H47*(S61-E45)+G47*(S62-F45))*C45/F47+IF(S59>0,S60/(S59*$S$5),0)>$S$8,0,$S$4+$S$9*(-(-H47*(S61-E45)+G47*(S62-F45))*C45/F47+IF(S59>0,S60/(S59*$S$5),0)-$S$6)),$S$5*(-(-H47*(S61-E45)+G47*(S62-F45))*C45/F47+IF(S59>0,S60/(S59*$S$5),0)))*S59 -> 0.1264091991 | T63: =IF(-(-H47*(T61-E45)+G47*(T62-F45))*C45/F47+IF(T59>0,T60/(T59*$S$5),0)>$S$6,IF(-(-H47*(T61-E45)+G47*(T62-F45))*C45/F47+IF(T59>0,T60/(T59*$S$5),0)>$S$8,0,$S$4+$S$9*(-(-H47*(T61-E45)+G47*(T62-F45))*C45/F47+IF(T59>0,T60/(T59*$S$5),0)-$S$6)),$S$5*(-(-H47*(T61-E45)+G47*(T62-F45))*C45/F47+IF(T59>0,T60/(T59*$S$5),0)))*T59 -> 0.1264091991 | U63: =IF(-(-H47*(U61-E45)+G47*(U62-F45))*C45/F47+IF(U59>0,U60/(U59*$S$5),0)>$S$6,IF(-(-H47*(U61-E45)+G47*(U62-F45))*C45/F47+IF(U59>0,U60/(U59*$S$5),0)>$S$8,0,$S$4+$S$9*(-(-H47*(U61-E45)+G47*(U62-F45))*C45/F47+IF(U59>0,U60/(U59*$S$5),0)-$S$6)),$S$5*(-(-H47*(U61-E45)+G47*(U62-F45))*C45/F47+IF(U59>0,U60/(U59*$S$5),0)))*U59 -> 0.1264091991 | V63: =IF(-(-H47*(V61-E45)+G47*(V62-F45))*C45/F47+IF(V59>0,V60/(V59*$S$5),0)>$S$6,IF(-(-H47*(V61-E45)+G47*(V62-F45))*C45/F47+IF(V59>0,V60/(V59*$S$5),0)>$S$8,0,$S$4+$S$9*(-(-H47*(V61-E45)+G47*(V62-F45))*C45/F47+IF(V59>0,V60/(V59*$S$5),0)-$S$6)),$S$5*(-(-H47*(V61-E45)+G47*(V62-F45))*C45/F47+IF(V59>0,V60/(V59*$S$5),0)))*V59 -> 0.1264091991 | W63: =IF(-(-H47*(W61-E45)+G47*(W62-F45))*C45/F47+IF(W59>0,W60/(W59*$S$5),0)>$S$6,IF(-(-H47*(W61-E45)+G47*(W62-F45))*C45/F47+IF(W59>0,W60/(W59*$S$5),0)>$S$8,0,$S$4+$S$9*(-(-H47*(W61-E45)+G47*(W62-F45))*C45/F47+IF(W59>0,W60/(W59*$S$5),0)-$S$6)),$S$5*(-(-H47*(W61-E45)+G47*(W62-F45))*C45/F47+IF(W59>0,W60/(W59*$S$5),0)))*W59 -> 0.1264091991 | X63: =IF(-(-H47*(X61-E45)+G47*(X62-F45))*C45/F47+IF(X59>0,X60/(X59*$S$5),0)>$S$6,IF(-(-H47*(X61-E45)+G47*(X62-F45))*C45/F47+IF(X59>0,X60/(X59*$S$5),0)>$S$8,0,$S$4+$S$9*(-(-H47*(X61-E45)+G47*(X62-F45))*C45/F47+IF(X59>0,X60/(X59*$S$5),0)-$S$6)),$S$5*(-(-H47*(X61-E45)+G47*(X62-F45))*C45/F47+IF(X59>0,X60/(X59*$S$5),0)))*X59 -> 0 | Y63: =IF(-(-H47*(Y61-E45)+G47*(Y62-F45))*C45/F47+IF(Y59>0,Y60/(Y59*$S$5),0)>$S$6,IF(-(-H47*(Y61-E45)+G47*(Y62-F45))*C45/F47+IF(Y59>0,Y60/(Y59*$S$5),0)>$S$8,0,$S$4+$S$9*(-(-H47*(Y61-E45)+G47*(Y62-F45))*C45/F47+IF(Y59>0,Y60/(Y59*$S$5),0)-$S$6)),$S$5*(-(-H47*(Y61-E45)+G47*(Y62-F45))*C45/F47+IF(Y59>0,Y60/(Y59*$S$5),0)))*Y59 -> 0 | Z63: =IF(-(-H47*(Z61-E45)+G47*(Z62-F45))*C45/F47+IF(Z59>0,Z60/(Z59*$S$5),0)>$S$6,IF(-(-H47*(Z61-E45)+G47*(Z62-F45))*C45/F47+IF(Z59>0,Z60/(Z59*$S$5),0)>$S$8,0,$S$4+$S$9*(-(-H47*(Z61-E45)+G47*(Z62-F45))*C45/F47+IF(Z59>0,Z60/(Z59*$S$5),0)-$S$6)),$S$5*(-(-H47*(Z61-E45)+G47*(Z62-F45))*C45/F47+IF(Z59>0,Z60/(Z59*$S$5),0)))*Z59 -> 0 | AA63: =IF(-(-H47*(AA61-E45)+G47*(AA62-F45))*C45/F47+IF(AA59>0,AA60/(AA59*$S$5),0)>$S$6,IF(-(-H47*(AA61-E45)+G47*(AA62-F45))*C45/F47+IF(AA59>0,AA60/(AA59*$S$5),0)>$S$8,0,$S$4+$S$9*(-(-H47*(AA61-E45)+G47*(AA62-F45))*C45/F47+IF(AA59>0,AA60/(AA59*$S$5),0)-$S$6)),$S$5*(-(-H47*(AA61-E45)+G47*(AA62-F45))*C45/F47+IF(AA59>0,AA60/(AA59*$S$5),0)))*AA59 -> 0 | AB63: =IF(-(-H47*(AB61-E45)+G47*(AB62-F45))*C45/F47+IF(AB59>0,AB60/(AB59*$S$5),0)>$S$6,IF(-(-H47*(AB61-E45)+G47*(AB62-F45))*C45/F47+IF(AB59>0,AB60/(AB59*$S$5),0)>$S$8,0,$S$4+$S$9*(-(-H47*(AB61-E45)+G47*(AB62-F45))*C45/F47+IF(AB59>0,AB60/(AB59*$S$5),0)-$S$6)),$S$5*(-(-H47*(AB61-E45)+G47*(AB62-F45))*C45/F47+IF(AB59>0,AB60/(AB59*$S$5),0)))*AB59 -> 0
B64: 8' | E64: =IF(F65*F63<0,E63-(E65-E63)*F63/(F65-F63),E63) -> -0.325 | F64: =IF(E65=E63,F63,F63+(F65-F63)*(E64-E63)/(E65-E63)) -> 0.28 | G64: -0.325 | H64: 0.28 | I64: =IF(ABS((H65-H64)/F47)<0.001,0,(G64*H65-G65*H64)/(H65-H64)) -> -0.325 | J64: =IF(ABS((H65-H64)/F47)<0.001,0,(G65-G64)/(H65-H64)) -> 0 | K64: =-((C47-D47)*E47/(2*D47^3))*(2*D47*(H65-H64)+D47^2*(H65^2-H64^2)+2*LN((1-D47*H65)/(1-D47*H64))) -> -4.555543384 | L64: =-(C47-D47)*E47*(H65^3-H64^3)/(3*D47)+K64/D47 -> -1.024543323 | M64: =-(C47-D47)*E47*(H65^4-H64^4)/(4*D47)+L64/D47 -> -0.2376415266 | N64: =IF(ABS((H65-H64)/F47)<0.001,0,0.5*E47*I64*(H65^2-H64^2)+E47*J64*(H65^3-H64^3)/3-I64*K64-J64*L64) -> 1.269327267 | O64: =IF(ABS((H65-H64)/F47)<0.001,0,0.5*E47*(I64^2*(H65^2-H64^2)/2+2*I64*J64*(H65^3-H64^3)/3+J64^2*(H65^4-H64^4)/4)-0.5*I64^2*K64-I64*J64*L64-0.5*J64^2*M64) -> -0.2062656809 | P64: =IF(ABS((H65-H64)/F47)<0.001,0,E47*(I64*(H65^3-H64^3)/3+J64*(H65^4-H64^4)/4)-I64*L64-J64*M64) -> 0.255899919 | Q64: 4 | R64: A | S64: =INDEX(Liner,S48+(Q64-1)*10,9)/1000000 -> 9.3e-05 | T64: =INDEX(Liner,T48+(Q64-1)*10,9)/1000000 -> 9.3e-05 | U64: =INDEX(Liner,U48+(Q64-1)*10,9)/1000000 -> 9.3e-05 | V64: =INDEX(Liner,V48+(Q64-1)*10,9)/1000000 -> 9.3e-05 | W64: =INDEX(Liner,W48+(Q64-1)*10,9)/1000000 -> 9.3e-05 | X64: =INDEX(Liner,X48+(Q64-1)*10,9)/1000000 -> 0 | Y64: =INDEX(Liner,Y48+(Q64-1)*10,9)/1000000 -> 0 | Z64: =INDEX(Liner,Z48+(Q64-1)*10,9)/1000000 -> 0 | AA64: =INDEX(Liner,AA48+(Q64-1)*10,9)/1000000 -> 0 | AB64: =INDEX(Liner,AB48+(Q64-1)*10,9)/1000000 -> 0
B65: 9 | C65: =C33 -> 0.025 | D65: =D33 -> 0.55 | E65: =G47*(C65-E45)+H47*(D65-F45) -> -0.325 | F65: =-H47*(C65-E45)+G47*(D65-F45) -> 0.13 | G65: -0.325 | H65: 0.13 | I65: =IF(ABS((H66-H65)/F47)<0.001,0,(G65*H66-G66*H65)/(H66-H65)) -> 0 | J65: =IF(ABS((H66-H65)/F47)<0.001,0,(G66-G65)/(H66-H65)) -> 0 | K65: =-((C47-D47)*E47/(2*D47^3))*(2*D47*(H66-H65)+D47^2*(H66^2-H65^2)+2*LN((1-D47*H66)/(1-D47*H65))) -> 0 | L65: =-(C47-D47)*E47*(H66^3-H65^3)/(3*D47)+K65/D47 -> 0 | M65: =-(C47-D47)*E47*(H66^4-H65^4)/(4*D47)+L65/D47 -> 0 | N65: =IF(ABS((H66-H65)/F47)<0.001,0,0.5*E47*I65*(H66^2-H65^2)+E47*J65*(H66^3-H65^3)/3-I65*K65-J65*L65) -> 0 | O65: =IF(ABS((H66-H65)/F47)<0.001,0,0.5*E47*(I65^2*(H66^2-H65^2)/2+2*I65*J65*(H66^3-H65^3)/3+J65^2*(H66^4-H65^4)/4)-0.5*I65^2*K65-I65*J65*L65-0.5*J65^2*M65) -> 0 | P65: =IF(ABS((H66-H65)/F47)<0.001,0,E47*(I65*(H66^3-H65^3)/3+J65*(H66^4-H65^4)/4)-I65*L65-J65*M65) -> 0 | Q65: 4 | R65: Nf | S65: =INDEX(Liner,S48+(Q65-1)*10,10)/1000 -> 0.1 | T65: =INDEX(Liner,T48+(Q65-1)*10,10)/1000 -> 0.1 | U65: =INDEX(Liner,U48+(Q65-1)*10,10)/1000 -> 0.1 | V65: =INDEX(Liner,V48+(Q65-1)*10,10)/1000 -> 0.1 | W65: =INDEX(Liner,W48+(Q65-1)*10,10)/1000 -> 0.1 | X65: =INDEX(Liner,X48+(Q65-1)*10,10)/1000 -> 0 | Y65: =INDEX(Liner,Y48+(Q65-1)*10,10)/1000 -> 0 | Z65: =INDEX(Liner,Z48+(Q65-1)*10,10)/1000 -> 0 | AA65: =INDEX(Liner,AA48+(Q65-1)*10,10)/1000 -> 0 | AB65: =INDEX(Liner,AB48+(Q65-1)*10,10)/1000 -> 0
B66: 9' | E66: =IF(F67*F65<0,E65-(E67-E65)*F65/(F67-F65),E65) -> -0.325 | F66: =IF(E67=E65,F65,F65+(F67-F65)*(E66-E65)/(E67-E65)) -> 0.13 | G66: -0.325 | H66: 0.13 | I66: =IF(ABS((H67-H66)/F47)<0.001,0,(G66*H67-G67*H66)/(H67-H66)) -> 0 | J66: =IF(ABS((H67-H66)/F47)<0.001,0,(G67-G66)/(H67-H66)) -> 0 | K66: =-((C47-D47)*E47/(2*D47^3))*(2*D47*(H67-H66)+D47^2*(H67^2-H66^2)+2*LN((1-D47*H67)/(1-D47*H66))) -> 0 | L66: =-(C47-D47)*E47*(H67^3-H66^3)/(3*D47)+K66/D47 -> 0 | M66: =-(C47-D47)*E47*(H67^4-H66^4)/(4*D47)+L66/D47 -> 0 | N66: =IF(ABS((H67-H66)/F47)<0.001,0,0.5*E47*I66*(H67^2-H66^2)+E47*J66*(H67^3-H66^3)/3-I66*K66-J66*L66) -> 0 | O66: =IF(ABS((H67-H66)/F47)<0.001,0,0.5*E47*(I66^2*(H67^2-H66^2)/2+2*I66*J66*(H67^3-H66^3)/3+J66^2*(H67^4-H66^4)/4)-0.5*I66^2*K66-I66*J66*L66-0.5*J66^2*M66) -> 0 | P66: =IF(ABS((H67-H66)/F47)<0.001,0,E47*(I66*(H67^3-H66^3)/3+J66*(H67^4-H66^4)/4)-I66*L66-J66*M66) -> 0 | Q66: 4 | R66: x | S66: =INDEX(Liner,S48+(Q66-1)*10,2)/1000 -> 0.265 | T66: =INDEX(Liner,T48+(Q66-1)*10,2)/1000 -> 0.3125 | U66: =INDEX(Liner,U48+(Q66-1)*10,2)/1000 -> 0.36 | V66: =INDEX(Liner,V48+(Q66-1)*10,2)/1000 -> 0.4075 | W66: =INDEX(Liner,W48+(Q66-1)*10,2)/1000 -> 0.455 | X66: =INDEX(Liner,X48+(Q66-1)*10,2)/1000 -> -1.4 | Y66: =INDEX(Liner,Y48+(Q66-1)*10,2)/1000 -> -1.4 | Z66: =INDEX(Liner,Z48+(Q66-1)*10,2)/1000 -> -1.4 | AA66: =INDEX(Liner,AA48+(Q66-1)*10,2)/1000 -> -1.4 | AB66: =INDEX(Liner,AB48+(Q66-1)*10,2)/1000 -> -1.4
B67: 10 | C67: =C35 -> 0.225 | D67: =D35 -> 0.55 | E67: =G47*(C67-E45)+H47*(D67-F45) -> -0.125 | F67: =-H47*(C67-E45)+G47*(D67-F45) -> 0.13 | G67: -0.125 | H67: 0.13 | I67: =IF(ABS((H68-H67)/F47)<0.001,0,(G67*H68-G68*H67)/(H68-H67)) -> 0 | J67: =IF(ABS((H68-H67)/F47)<0.001,0,(G68-G67)/(H68-H67)) -> 0 | K67: =-((C47-D47)*E47/(2*D47^3))*(2*D47*(H68-H67)+D47^2*(H68^2-H67^2)+2*LN((1-D47*H68)/(1-D47*H67))) -> 0 | L67: =-(C47-D47)*E47*(H68^3-H67^3)/(3*D47)+K67/D47 -> 0 | M67: =-(C47-D47)*E47*(H68^4-H67^4)/(4*D47)+L67/D47 -> 0 | N67: =IF(ABS((H68-H67)/F47)<0.001,0,0.5*E47*I67*(H68^2-H67^2)+E47*J67*(H68^3-H67^3)/3-I67*K67-J67*L67) -> 0 | O67: =IF(ABS((H68-H67)/F47)<0.001,0,0.5*E47*(I67^2*(H68^2-H67^2)/2+2*I67*J67*(H68^3-H67^3)/3+J67^2*(H68^4-H67^4)/4)-0.5*I67^2*K67-I67*J67*L67-0.5*J67^2*M67) -> 0 | P67: =IF(ABS((H68-H67)/F47)<0.001,0,E47*(I67*(H68^3-H67^3)/3+J67*(H68^4-H67^4)/4)-I67*L67-J67*M67) -> 0 | Q67: 4 | R67: y | S67: =INDEX(Liner,S48+(Q67-1)*10,3)/1000 -> 0.09 | T67: =INDEX(Liner,T48+(Q67-1)*10,3)/1000 -> 0.09 | U67: =INDEX(Liner,U48+(Q67-1)*10,3)/1000 -> 0.09 | V67: =INDEX(Liner,V48+(Q67-1)*10,3)/1000 -> 0.09 | W67: =INDEX(Liner,W48+(Q67-1)*10,3)/1000 -> 0.09 | X67: =INDEX(Liner,X48+(Q67-1)*10,3)/1000 -> 0.09 | Y67: =INDEX(Liner,Y48+(Q67-1)*10,3)/1000 -> 0.09 | Z67: =INDEX(Liner,Z48+(Q67-1)*10,3)/1000 -> 0.09 | AA67: =INDEX(Liner,AA48+(Q67-1)*10,3)/1000 -> 0.09 | AB67: =INDEX(Liner,AB48+(Q67-1)*10,3)/1000 -> 0.09
B68: 10' | E68: =IF(F69*F67<0,E67-(E69-E67)*F67/(F69-F67),E67) -> -0.125 | F68: =IF(E69=E67,F67,F67+(F69-F67)*(E68-E67)/(E69-E67)) -> 0.13 | G68: -0.125 | H68: 0.13 | I68: =IF(ABS((H69-H68)/F47)<0.001,0,(G68*H69-G69*H68)/(H69-H68)) -> -0.125 | J68: =IF(ABS((H69-H68)/F47)<0.001,0,(G69-G68)/(H69-H68)) -> 0 | K68: =-((C47-D47)*E47/(2*D47^3))*(2*D47*(H69-H68)+D47^2*(H69^2-H68^2)+2*LN((1-D47*H69)/(1-D47*H68))) -> -0.4254475024 | L68: =-(C47-D47)*E47*(H69^3-H68^3)/(3*D47)+K68/D47 -> -0.04181336491 | M68: =-(C47-D47)*E47*(H69^4-H68^4)/(4*D47)+L68/D47 -> -0.004371973929 | N68: =IF(ABS((H69-H68)/F47)<0.001,0,0.5*E47*I68*(H69^2-H68^2)+E47*J68*(H69^3-H68^3)/3-I68*K68-J68*L68) -> 0.2374566661 | O68: =IF(ABS((H69-H68)/F47)<0.001,0,0.5*E47*(I68^2*(H69^2-H68^2)/2+2*I68*J68*(H69^3-H68^3)/3+J68^2*(H69^4-H68^4)/4)-0.5*I68^2*K68-I68*J68*L68-0.5*J68^2*M68) -> -0.01484104163 | P68: =IF(ABS((H69-H68)/F47)<0.001,0,E47*(I68*(H69^3-H68^3)/3+J68*(H69^4-H68^4)/4)-I68*L68-J68*M68) -> 0.01996192172 | Q68: 4 | R68: Na | S68: =IF(-(-H47*(S66-E45)+G47*(S67-F45))*C45/F47+IF(S64>0,S65/(S64*$S$5),0)>$S$6,IF(-(-H47*(S66-E45)+G47*(S67-F45))*C45/F47+IF(S64>0,S65/(S64*$S$5),0)>$S$8,0,$S$4+$S$9*(-(-H47*(S66-E45)+G47*(S67-F45))*C45/F47+IF(S64>0,S65/(S64*$S$5),0)-$S$6)),$S$5*(-(-H47*(S66-E45)+G47*(S67-F45))*C45/F47+IF(S64>0,S65/(S64*$S$5),0)))*S64 -> 0.1269325758 | T68: =IF(-(-H47*(T66-E45)+G47*(T67-F45))*C45/F47+IF(T64>0,T65/(T64*$S$5),0)>$S$6,IF(-(-H47*(T66-E45)+G47*(T67-F45))*C45/F47+IF(T64>0,T65/(T64*$S$5),0)>$S$8,0,$S$4+$S$9*(-(-H47*(T66-E45)+G47*(T67-F45))*C45/F47+IF(T64>0,T65/(T64*$S$5),0)-$S$6)),$S$5*(-(-H47*(T66-E45)+G47*(T67-F45))*C45/F47+IF(T64>0,T65/(T64*$S$5),0)))*T64 -> 0.1269325758 | U68: =IF(-(-H47*(U66-E45)+G47*(U67-F45))*C45/F47+IF(U64>0,U65/(U64*$S$5),0)>$S$6,IF(-(-H47*(U66-E45)+G47*(U67-F45))*C45/F47+IF(U64>0,U65/(U64*$S$5),0)>$S$8,0,$S$4+$S$9*(-(-H47*(U66-E45)+G47*(U67-F45))*C45/F47+IF(U64>0,U65/(U64*$S$5),0)-$S$6)),$S$5*(-(-H47*(U66-E45)+G47*(U67-F45))*C45/F47+IF(U64>0,U65/(U64*$S$5),0)))*U64 -> 0.1269325758 | V68: =IF(-(-H47*(V66-E45)+G47*(V67-F45))*C45/F47+IF(V64>0,V65/(V64*$S$5),0)>$S$6,IF(-(-H47*(V66-E45)+G47*(V67-F45))*C45/F47+IF(V64>0,V65/(V64*$S$5),0)>$S$8,0,$S$4+$S$9*(-(-H47*(V66-E45)+G47*(V67-F45))*C45/F47+IF(V64>0,V65/(V64*$S$5),0)-$S$6)),$S$5*(-(-H47*(V66-E45)+G47*(V67-F45))*C45/F47+IF(V64>0,V65/(V64*$S$5),0)))*V64 -> 0.1269325758 | W68: =IF(-(-H47*(W66-E45)+G47*(W67-F45))*C45/F47+IF(W64>0,W65/(W64*$S$5),0)>$S$6,IF(-(-H47*(W66-E45)+G47*(W67-F45))*C45/F47+IF(W64>0,W65/(W64*$S$5),0)>$S$8,0,$S$4+$S$9*(-(-H47*(W66-E45)+G47*(W67-F45))*C45/F47+IF(W64>0,W65/(W64*$S$5),0)-$S$6)),$S$5*(-(-H47*(W66-E45)+G47*(W67-F45))*C45/F47+IF(W64>0,W65/(W64*$S$5),0)))*W64 -> 0.1269325758 | X68: =IF(-(-H47*(X66-E45)+G47*(X67-F45))*C45/F47+IF(X64>0,X65/(X64*$S$5),0)>$S$6,IF(-(-H47*(X66-E45)+G47*(X67-F45))*C45/F47+IF(X64>0,X65/(X64*$S$5),0)>$S$8,0,$S$4+$S$9*(-(-H47*(X66-E45)+G47*(X67-F45))*C45/F47+IF(X64>0,X65/(X64*$S$5),0)-$S$6)),$S$5*(-(-H47*(X66-E45)+G47*(X67-F45))*C45/F47+IF(X64>0,X65/(X64*$S$5),0)))*X64 -> 0 | Y68: =IF(-(-H47*(Y66-E45)+G47*(Y67-F45))*C45/F47+IF(Y64>0,Y65/(Y64*$S$5),0)>$S$6,IF(-(-H47*(Y66-E45)+G47*(Y67-F45))*C45/F47+IF(Y64>0,Y65/(Y64*$S$5),0)>$S$8,0,$S$4+$S$9*(-(-H47*(Y66-E45)+G47*(Y67-F45))*C45/F47+IF(Y64>0,Y65/(Y64*$S$5),0)-$S$6)),$S$5*(-(-H47*(Y66-E45)+G47*(Y67-F45))*C45/F47+IF(Y64>0,Y65/(Y64*$S$5),0)))*Y64 -> 0 | Z68: =IF(-(-H47*(Z66-E45)+G47*(Z67-F45))*C45/F47+IF(Z64>0,Z65/(Z64*$S$5),0)>$S$6,IF(-(-H47*(Z66-E45)+G47*(Z67-F45))*C45/F47+IF(Z64>0,Z65/(Z64*$S$5),0)>$S$8,0,$S$4+$S$9*(-(-H47*(Z66-E45)+G47*(Z67-F45))*C45/F47+IF(Z64>0,Z65/(Z64*$S$5),0)-$S$6)),$S$5*(-(-H47*(Z66-E45)+G47*(Z67-F45))*C45/F47+IF(Z64>0,Z65/(Z64*$S$5),0)))*Z64 -> 0 | AA68: =IF(-(-H47*(AA66-E45)+G47*(AA67-F45))*C45/F47+IF(AA64>0,AA65/(AA64*$S$5),0)>$S$6,IF(-(-H47*(AA66-E45)+G47*(AA67-F45))*C45/F47+IF(AA64>0,AA65/(AA64*$S$5),0)>$S$8,0,$S$4+$S$9*(-(-H47*(AA66-E45)+G47*(AA67-F45))*C45/F47+IF(AA64>0,AA65/(AA64*$S$5),0)-$S$6)),$S$5*(-(-H47*(AA66-E45)+G47*(AA67-F45))*C45/F47+IF(AA64>0,AA65/(AA64*$S$5),0)))*AA64 -> 0 | AB68: =IF(-(-H47*(AB66-E45)+G47*(AB67-F45))*C45/F47+IF(AB64>0,AB65/(AB64*$S$5),0)>$S$6,IF(-(-H47*(AB66-E45)+G47*(AB67-F45))*C45/F47+IF(AB64>0,AB65/(AB64*$S$5),0)>$S$8,0,$S$4+$S$9*(-(-H47*(AB66-E45)+G47*(AB67-F45))*C45/F47+IF(AB64>0,AB65/(AB64*$S$5),0)-$S$6)),$S$5*(-(-H47*(AB66-E45)+G47*(AB67-F45))*C45/F47+IF(AB64>0,AB65/(AB64*$S$5),0)))*AB64 -> 0
B69: 11 | C69: =C37 -> 0.225 | D69: =D37 -> 0 | E69: =G47*(C69-E45)+H47*(D69-F45) -> -0.125 | F69: =-H47*(C69-E45)+G47*(D69-F45) -> -0.42 | G69: -0.125 | H69: 0 | I69: =IF(ABS((H70-H69)/F47)<0.001,0,(G69*H70-G70*H69)/(H70-H69)) -> 0 | J69: =IF(ABS((H70-H69)/F47)<0.001,0,(G70-G69)/(H70-H69)) -> 0 | K69: =-((C47-D47)*E47/(2*D47^3))*(2*D47*(H70-H69)+D47^2*(H70^2-H69^2)+2*LN((1-D47*H70)/(1-D47*H69))) -> 0 | L69: =-(C47-D47)*E47*(H70^3-H69^3)/(3*D47)+K69/D47 -> 0 | M69: =-(C47-D47)*E47*(H70^4-H69^4)/(4*D47)+L69/D47 -> 0 | N69: =IF(ABS((H70-H69)/F47)<0.001,0,0.5*E47*I69*(H70^2-H69^2)+E47*J69*(H70^3-H69^3)/3-I69*K69-J69*L69) -> 0 | O69: =IF(ABS((H70-H69)/F47)<0.001,0,0.5*E47*(I69^2*(H70^2-H69^2)/2+2*I69*J69*(H70^3-H69^3)/3+J69^2*(H70^4-H69^4)/4)-0.5*I69^2*K69-I69*J69*L69-0.5*J69^2*M69) -> 0 | P69: =IF(ABS((H70-H69)/F47)<0.001,0,E47*(I69*(H70^3-H69^3)/3+J69*(H70^4-H69^4)/4)-I69*L69-J69*M69) -> 0 | Q69: 5 | R69: A | S69: =INDEX(Liner,S48+(Q69-1)*10,9)/1000000 -> 9.3e-05 | T69: =INDEX(Liner,T48+(Q69-1)*10,9)/1000000 -> 9.3e-05 | U69: =INDEX(Liner,U48+(Q69-1)*10,9)/1000000 -> 9.3e-05 | V69: =INDEX(Liner,V48+(Q69-1)*10,9)/1000000 -> 9.3e-05 | W69: =INDEX(Liner,W48+(Q69-1)*10,9)/1000000 -> 9.3e-05 | X69: =INDEX(Liner,X48+(Q69-1)*10,9)/1000000 -> 9.3e-05 | Y69: =INDEX(Liner,Y48+(Q69-1)*10,9)/1000000 -> 9.3e-05 | Z69: =INDEX(Liner,Z48+(Q69-1)*10,9)/1000000 -> 0 | AA69: =INDEX(Liner,AA48+(Q69-1)*10,9)/1000000 -> 0 | AB69: =INDEX(Liner,AB48+(Q69-1)*10,9)/1000000 -> 0
B70: 11' | E70: =IF(F71*F69<0,E69-(E71-E69)*F69/(F71-F69),E69) -> -0.125 | F70: =IF(E71=E69,F69,F69+(F71-F69)*(E70-E69)/(E71-E69)) -> -0.42 | G70: -0.125 | H70: 0 | I70: =IF(ABS((H71-H70)/F47)<0.001,0,(G70*H71-G71*H70)/(H71-H70)) -> 0 | J70: =IF(ABS((H71-H70)/F47)<0.001,0,(G71-G70)/(H71-H70)) -> 0 | K70: =-((C47-D47)*E47/(2*D47^3))*(2*D47*(H71-H70)+D47^2*(H71^2-H70^2)+2*LN((1-D47*H71)/(1-D47*H70))) -> 0 | L70: =-(C47-D47)*E47*(H71^3-H70^3)/(3*D47)+K70/D47 -> 0 | M70: =-(C47-D47)*E47*(H71^4-H70^4)/(4*D47)+L70/D47 -> 0 | N70: =IF(ABS((H71-H70)/F47)<0.001,0,0.5*E47*I70*(H71^2-H70^2)+E47*J70*(H71^3-H70^3)/3-I70*K70-J70*L70) -> 0 | O70: =IF(ABS((H71-H70)/F47)<0.001,0,0.5*E47*(I70^2*(H71^2-H70^2)/2+2*I70*J70*(H71^3-H70^3)/3+J70^2*(H71^4-H70^4)/4)-0.5*I70^2*K70-I70*J70*L70-0.5*J70^2*M70) -> 0 | P70: =IF(ABS((H71-H70)/F47)<0.001,0,E47*(I70*(H71^3-H70^3)/3+J70*(H71^4-H70^4)/4)-I70*L70-J70*M70) -> 0 | Q70: 5 | R70: Nf | S70: =INDEX(Liner,S48+(Q70-1)*10,10)/1000 -> 0.1 | T70: =INDEX(Liner,T48+(Q70-1)*10,10)/1000 -> 0.1 | U70: =INDEX(Liner,U48+(Q70-1)*10,10)/1000 -> 0.1 | V70: =INDEX(Liner,V48+(Q70-1)*10,10)/1000 -> 0.1 | W70: =INDEX(Liner,W48+(Q70-1)*10,10)/1000 -> 0.1 | X70: =INDEX(Liner,X48+(Q70-1)*10,10)/1000 -> 0.1 | Y70: =INDEX(Liner,Y48+(Q70-1)*10,10)/1000 -> 0.1 | Z70: =INDEX(Liner,Z48+(Q70-1)*10,10)/1000 -> 0 | AA70: =INDEX(Liner,AA48+(Q70-1)*10,10)/1000 -> 0 | AB70: =INDEX(Liner,AB48+(Q70-1)*10,10)/1000 -> 0
B71: 12 | C71: =C39 -> 0.225 | D71: =D39 -> 0 | E71: =G47*(C71-E45)+H47*(D71-F45) -> -0.125 | F71: =-H47*(C71-E45)+G47*(D71-F45) -> -0.42 | G71: -0.125 | H71: 0 | I71: =IF(ABS((H72-H71)/F47)<0.001,0,(G71*H72-G72*H71)/(H72-H71)) -> 0 | J71: =IF(ABS((H72-H71)/F47)<0.001,0,(G72-G71)/(H72-H71)) -> 0 | K71: =-((C47-D47)*E47/(2*D47^3))*(2*D47*(H72-H71)+D47^2*(H72^2-H71^2)+2*LN((1-D47*H72)/(1-D47*H71))) -> 0 | L71: =-(C47-D47)*E47*(H72^3-H71^3)/(3*D47)+K71/D47 -> 0 | M71: =-(C47-D47)*E47*(H72^4-H71^4)/(4*D47)+L71/D47 -> 0 | N71: =IF(ABS((H72-H71)/F47)<0.001,0,0.5*E47*I71*(H72^2-H71^2)+E47*J71*(H72^3-H71^3)/3-I71*K71-J71*L71) -> 0 | O71: =IF(ABS((H72-H71)/F47)<0.001,0,0.5*E47*(I71^2*(H72^2-H71^2)/2+2*I71*J71*(H72^3-H71^3)/3+J71^2*(H72^4-H71^4)/4)-0.5*I71^2*K71-I71*J71*L71-0.5*J71^2*M71) -> 0 | P71: =IF(ABS((H72-H71)/F47)<0.001,0,E47*(I71*(H72^3-H71^3)/3+J71*(H72^4-H71^4)/4)-I71*L71-J71*M71) -> 0 | Q71: 5 | R71: x | S71: =INDEX(Liner,S48+(Q71-1)*10,2)/1000 -> 0.265 | T71: =INDEX(Liner,T48+(Q71-1)*10,2)/1000 -> 0.3125 | U71: =INDEX(Liner,U48+(Q71-1)*10,2)/1000 -> 0.36 | V71: =INDEX(Liner,V48+(Q71-1)*10,2)/1000 -> 0.4075 | W71: =INDEX(Liner,W48+(Q71-1)*10,2)/1000 -> 0.455 | X71: =INDEX(Liner,X48+(Q71-1)*10,2)/1000 -> 0.5025 | Y71: =INDEX(Liner,Y48+(Q71-1)*10,2)/1000 -> 0.55 | Z71: =INDEX(Liner,Z48+(Q71-1)*10,2)/1000 -> -1.4 | AA71: =INDEX(Liner,AA48+(Q71-1)*10,2)/1000 -> -1.4 | AB71: =INDEX(Liner,AB48+(Q71-1)*10,2)/1000 -> -1.4
B72: 12' | E72: =IF(F73*F71<0,E71-(E73-E71)*F71/(F73-F71),E71) -> -0.125 | F72: =IF(E73=E71,F71,F71+(F73-F71)*(E72-E71)/(E73-E71)) -> -0.42 | G72: -0.125 | H72: 0 | I72: =IF(ABS((H73-H72)/F47)<0.001,0,(G72*H73-G73*H72)/(H73-H72)) -> 0 | J72: =IF(ABS((H73-H72)/F47)<0.001,0,(G73-G72)/(H73-H72)) -> 0 | K72: =-((C47-D47)*E47/(2*D47^3))*(2*D47*(H73-H72)+D47^2*(H73^2-H72^2)+2*LN((1-D47*H73)/(1-D47*H72))) -> 0 | L72: =-(C47-D47)*E47*(H73^3-H72^3)/(3*D47)+K72/D47 -> 0 | M72: =-(C47-D47)*E47*(H73^4-H72^4)/(4*D47)+L72/D47 -> 0 | N72: =IF(ABS((H73-H72)/F47)<0.001,0,0.5*E47*I72*(H73^2-H72^2)+E47*J72*(H73^3-H72^3)/3-I72*K72-J72*L72) -> 0 | O72: =IF(ABS((H73-H72)/F47)<0.001,0,0.5*E47*(I72^2*(H73^2-H72^2)/2+2*I72*J72*(H73^3-H72^3)/3+J72^2*(H73^4-H72^4)/4)-0.5*I72^2*K72-I72*J72*L72-0.5*J72^2*M72) -> 0 | P72: =IF(ABS((H73-H72)/F47)<0.001,0,E47*(I72*(H73^3-H72^3)/3+J72*(H73^4-H72^4)/4)-I72*L72-J72*M72) -> 0 | Q72: 5 | R72: y | S72: =INDEX(Liner,S48+(Q72-1)*10,3)/1000 -> 0.05 | T72: =INDEX(Liner,T48+(Q72-1)*10,3)/1000 -> 0.05 | U72: =INDEX(Liner,U48+(Q72-1)*10,3)/1000 -> 0.05 | V72: =INDEX(Liner,V48+(Q72-1)*10,3)/1000 -> 0.05 | W72: =INDEX(Liner,W48+(Q72-1)*10,3)/1000 -> 0.05 | X72: =INDEX(Liner,X48+(Q72-1)*10,3)/1000 -> 0.05 | Y72: =INDEX(Liner,Y48+(Q72-1)*10,3)/1000 -> 0.05 | Z72: =INDEX(Liner,Z48+(Q72-1)*10,3)/1000 -> 0.05 | AA72: =INDEX(Liner,AA48+(Q72-1)*10,3)/1000 -> 0.05 | AB72: =INDEX(Liner,AB48+(Q72-1)*10,3)/1000 -> 0.05
B73: 13 | C73: =C41 -> 0.225 | D73: =D41 -> 0 | E73: =G47*(C73-E45)+H47*(D73-F45) -> -0.125 | F73: =-H47*(C73-E45)+G47*(D73-F45) -> -0.42 | G73: -0.125 | H73: 0 | I73: =IF(ABS((H74-H73)/F47)<0.001,0,(G73*H74-G74*H73)/(H74-H73)) -> 0 | J73: =IF(ABS((H74-H73)/F47)<0.001,0,(G74-G73)/(H74-H73)) -> 0 | K73: =-((C47-D47)*E47/(2*D47^3))*(2*D47*(H74-H73)+D47^2*(H74^2-H73^2)+2*LN((1-D47*H74)/(1-D47*H73))) -> 0 | L73: =-(C47-D47)*E47*(H74^3-H73^3)/(3*D47)+K73/D47 -> 0 | M73: =-(C47-D47)*E47*(H74^4-H73^4)/(4*D47)+L73/D47 -> 0 | N73: =IF(ABS((H74-H73)/F47)<0.001,0,0.5*E47*I73*(H74^2-H73^2)+E47*J73*(H74^3-H73^3)/3-I73*K73-J73*L73) -> 0 | O73: =IF(ABS((H74-H73)/F47)<0.001,0,0.5*E47*(I73^2*(H74^2-H73^2)/2+2*I73*J73*(H74^3-H73^3)/3+J73^2*(H74^4-H73^4)/4)-0.5*I73^2*K73-I73*J73*L73-0.5*J73^2*M73) -> 0 | P73: =IF(ABS((H74-H73)/F47)<0.001,0,E47*(I73*(H74^3-H73^3)/3+J73*(H74^4-H73^4)/4)-I73*L73-J73*M73) -> 0 | Q73: 5 | R73: Na | S73: =IF(-(-H47*(S71-E45)+G47*(S72-F45))*C45/F47+IF(S69>0,S70/(S69*$S$5),0)>$S$6,IF(-(-H47*(S71-E45)+G47*(S72-F45))*C45/F47+IF(S69>0,S70/(S69*$S$5),0)>$S$8,0,$S$4+$S$9*(-(-H47*(S71-E45)+G47*(S72-F45))*C45/F47+IF(S69>0,S70/(S69*$S$5),0)-$S$6)),$S$5*(-(-H47*(S71-E45)+G47*(S72-F45))*C45/F47+IF(S69>0,S70/(S69*$S$5),0)))*S69 -> 0.1274559524 | T73: =IF(-(-H47*(T71-E45)+G47*(T72-F45))*C45/F47+IF(T69>0,T70/(T69*$S$5),0)>$S$6,IF(-(-H47*(T71-E45)+G47*(T72-F45))*C45/F47+IF(T69>0,T70/(T69*$S$5),0)>$S$8,0,$S$4+$S$9*(-(-H47*(T71-E45)+G47*(T72-F45))*C45/F47+IF(T69>0,T70/(T69*$S$5),0)-$S$6)),$S$5*(-(-H47*(T71-E45)+G47*(T72-F45))*C45/F47+IF(T69>0,T70/(T69*$S$5),0)))*T69 -> 0.1274559524 | U73: =IF(-(-H47*(U71-E45)+G47*(U72-F45))*C45/F47+IF(U69>0,U70/(U69*$S$5),0)>$S$6,IF(-(-H47*(U71-E45)+G47*(U72-F45))*C45/F47+IF(U69>0,U70/(U69*$S$5),0)>$S$8,0,$S$4+$S$9*(-(-H47*(U71-E45)+G47*(U72-F45))*C45/F47+IF(U69>0,U70/(U69*$S$5),0)-$S$6)),$S$5*(-(-H47*(U71-E45)+G47*(U72-F45))*C45/F47+IF(U69>0,U70/(U69*$S$5),0)))*U69 -> 0.1274559524 | V73: =IF(-(-H47*(V71-E45)+G47*(V72-F45))*C45/F47+IF(V69>0,V70/(V69*$S$5),0)>$S$6,IF(-(-H47*(V71-E45)+G47*(V72-F45))*C45/F47+IF(V69>0,V70/(V69*$S$5),0)>$S$8,0,$S$4+$S$9*(-(-H47*(V71-E45)+G47*(V72-F45))*C45/F47+IF(V69>0,V70/(V69*$S$5),0)-$S$6)),$S$5*(-(-H47*(V71-E45)+G47*(V72-F45))*C45/F47+IF(V69>0,V70/(V69*$S$5),0)))*V69 -> 0.1274559524 | W73: =IF(-(-H47*(W71-E45)+G47*(W72-F45))*C45/F47+IF(W69>0,W70/(W69*$S$5),0)>$S$6,IF(-(-H47*(W71-E45)+G47*(W72-F45))*C45/F47+IF(W69>0,W70/(W69*$S$5),0)>$S$8,0,$S$4+$S$9*(-(-H47*(W71-E45)+G47*(W72-F45))*C45/F47+IF(W69>0,W70/(W69*$S$5),0)-$S$6)),$S$5*(-(-H47*(W71-E45)+G47*(W72-F45))*C45/F47+IF(W69>0,W70/(W69*$S$5),0)))*W69 -> 0.1274559524 | X73: =IF(-(-H47*(X71-E45)+G47*(X72-F45))*C45/F47+IF(X69>0,X70/(X69*$S$5),0)>$S$6,IF(-(-H47*(X71-E45)+G47*(X72-F45))*C45/F47+IF(X69>0,X70/(X69*$S$5),0)>$S$8,0,$S$4+$S$9*(-(-H47*(X71-E45)+G47*(X72-F45))*C45/F47+IF(X69>0,X70/(X69*$S$5),0)-$S$6)),$S$5*(-(-H47*(X71-E45)+G47*(X72-F45))*C45/F47+IF(X69>0,X70/(X69*$S$5),0)))*X69 -> 0.1274559524 | Y73: =IF(-(-H47*(Y71-E45)+G47*(Y72-F45))*C45/F47+IF(Y69>0,Y70/(Y69*$S$5),0)>$S$6,IF(-(-H47*(Y71-E45)+G47*(Y72-F45))*C45/F47+IF(Y69>0,Y70/(Y69*$S$5),0)>$S$8,0,$S$4+$S$9*(-(-H47*(Y71-E45)+G47*(Y72-F45))*C45/F47+IF(Y69>0,Y70/(Y69*$S$5),0)-$S$6)),$S$5*(-(-H47*(Y71-E45)+G47*(Y72-F45))*C45/F47+IF(Y69>0,Y70/(Y69*$S$5),0)))*Y69 -> 0.1274559524 | Z73: =IF(-(-H47*(Z71-E45)+G47*(Z72-F45))*C45/F47+IF(Z69>0,Z70/(Z69*$S$5),0)>$S$6,IF(-(-H47*(Z71-E45)+G47*(Z72-F45))*C45/F47+IF(Z69>0,Z70/(Z69*$S$5),0)>$S$8,0,$S$4+$S$9*(-(-H47*(Z71-E45)+G47*(Z72-F45))*C45/F47+IF(Z69>0,Z70/(Z69*$S$5),0)-$S$6)),$S$5*(-(-H47*(Z71-E45)+G47*(Z72-F45))*C45/F47+IF(Z69>0,Z70/(Z69*$S$5),0)))*Z69 -> 0 | AA73: =IF(-(-H47*(AA71-E45)+G47*(AA72-F45))*C45/F47+IF(AA69>0,AA70/(AA69*$S$5),0)>$S$6,IF(-(-H47*(AA71-E45)+G47*(AA72-F45))*C45/F47+IF(AA69>0,AA70/(AA69*$S$5),0)>$S$8,0,$S$4+$S$9*(-(-H47*(AA71-E45)+G47*(AA72-F45))*C45/F47+IF(AA69>0,AA70/(AA69*$S$5),0)-$S$6)),$S$5*(-(-H47*(AA71-E45)+G47*(AA72-F45))*C45/F47+IF(AA69>0,AA70/(AA69*$S$5),0)))*AA69 -> 0 | AB73: =IF(-(-H47*(AB71-E45)+G47*(AB72-F45))*C45/F47+IF(AB69>0,AB70/(AB69*$S$5),0)>$S$6,IF(-(-H47*(AB71-E45)+G47*(AB72-F45))*C45/F47+IF(AB69>0,AB70/(AB69*$S$5),0)>$S$8,0,$S$4+$S$9*(-(-H47*(AB71-E45)+G47*(AB72-F45))*C45/F47+IF(AB69>0,AB70/(AB69*$S$5),0)-$S$6)),$S$5*(-(-H47*(AB71-E45)+G47*(AB72-F45))*C45/F47+IF(AB69>0,AB70/(AB69*$S$5),0)))*AB69 -> 0
B74: 13' | E74: =IF(F75*F73<0,E73-(E75-E73)*F73/(F75-F73),E73) -> -0.125 | F74: =IF(E75=E73,F73,F73+(F75-F73)*(E74-E73)/(E75-E73)) -> -0.42 | G74: -0.125 | H74: 0 | I74: =IF(ABS((H75-H74)/F47)<0.001,0,(G74*H75-G75*H74)/(H75-H74)) -> 0 | J74: =IF(ABS((H75-H74)/F47)<0.001,0,(G75-G74)/(H75-H74)) -> 0 | K74: =-((C47-D47)*E47/(2*D47^3))*(2*D47*(H75-H74)+D47^2*(H75^2-H74^2)+2*LN((1-D47*H75)/(1-D47*H74))) -> 0 | L74: =-(C47-D47)*E47*(H75^3-H74^3)/(3*D47)+K74/D47 -> 0 | M74: =-(C47-D47)*E47*(H75^4-H74^4)/(4*D47)+L74/D47 -> 0 | N74: =IF(ABS((H75-H74)/F47)<0.001,0,0.5*E47*I74*(H75^2-H74^2)+E47*J74*(H75^3-H74^3)/3-I74*K74-J74*L74) -> 0 | O74: =IF(ABS((H75-H74)/F47)<0.001,0,0.5*E47*(I74^2*(H75^2-H74^2)/2+2*I74*J74*(H75^3-H74^3)/3+J74^2*(H75^4-H74^4)/4)-0.5*I74^2*K74-I74*J74*L74-0.5*J74^2*M74) -> 0 | P74: =IF(ABS((H75-H74)/F47)<0.001,0,E47*(I74*(H75^3-H74^3)/3+J74*(H75^4-H74^4)/4)-I74*L74-J74*M74) -> 0 | S74: =IF(S75>0,S75,1) -> 0.01096222774 | T74: 0.01096222774 | U74: 0.01096222774 | V74: 0.01096222774 | W74: 0.01096222774 | X74: 0.01096222774 | Y74: 0.01096222774 | Z74: 1 | AA74: 1 | AB74: 1
B75: 27 | C75: =C43 -> 0.35 | D75: =D43 -> 0 | E75: =G47*(C75-E45)+H47*(D75-F45) -> 0 | F75: =-H47*(C75-E45)+G47*(D75-F45) -> -0.42 | G75: 0 | H75: 0 | S75: =IF(S69>0,$F47*($S$8-S70/(S69*$S$5))/(-(-$H47*(S71-$E45)+$G47*(S72-$F45))),0) -> 0.01096222774 | T75: =IF(T69>0,$F47*($S$8-T70/(T69*$S$5))/(-(-$H47*(T71-$E45)+$G47*(T72-$F45))),0) -> 0.01096222774 | U75: 0.01096222774 | V75: 0.01096222774 | W75: 0.01096222774 | X75: 0.01096222774 | Y75: 0.01096222774 | Z75: 0 | AA75: 0 | AB75: 0
B76: =B44 -> 1 | C76: e0 | D76: v (rad) | E76: x0 | F76: y0 | G76: z0 | H76: Dy0 | N76: Nc-Na | P76: Mx
B77: A | C77: =C45 -> 0.0035 | D77: =IF($M$10=1,0,ATAN((G77-F77)/($C$11))) -> 0 | E77: =E45 -> 0.35 | F77: =MIN(1.98*F13,($C$9-N13)*H45/J45+F13) -> 0.3410918723 | G77: =F77 -> 0.3410918723 | H77: =F77-F45 -> -0.07890812769 | N77: =SUM(N81:N107)-R79 -> 0.0004462275822 | P77: =R79*(K79-T79) -> 1.086611949
B78: Beton | C78: A | D78: B | E78: D | F78: tmax | G78: cosv | H78: sinv | I78: My | J78: xres | K78: yres | L78: sres | M78: tres | N78: Nc | O78: sNc | P78: tNc | Q78: Armering | R78: Na | S78: x_a | T78: y_a
C79: =$C$13/($C$8*$C$6*F79) -> 2.34301997 | D79: =(2-$C$8)*$C$13/($C$6*F79) -> 0.8781012604 | E79: =$C$8*$C$13*$C$5/($C$6*F79) -> 214.6642979 | F79: =MAX(H81:H107) -> 0.3589081277 | G79: =COS(D77) -> 1 | H79: =SIN(D77) -> 0 | I79: =(J79-$G$10)*N79-(S79-$G$10)*R79 -> -0.2303584299 | J79: =E77+L79*G79-M79*H79 -> 0.2839279827 | K79: =F77+L79*H79+M79*G79 -> 0.5707695506 | L79: =O79/N79 -> -0.06607201725 | M79: =P79/N79 -> 0.2296776783 | N79: =SUM(N81:N107) -> 2.633724033 | O79: =SUM(O81:O107) -> -0.1740154597 | P79: =SUM(P81:P107) -> 0.6049076212 | R79: =SUM(S85:AB85)+SUM(S90:AB90)+SUM(S95:AB95)+SUM(S100:AB100)+SUM(S105:AB105) -> 2.633277805 | S79: =(SUMPRODUCT(S83:AB83,S85:AB85)+SUMPRODUCT(S88:AB88*S90:AB90)+SUMPRODUCT(S93:AB93,S95:AB95)+SUMPRODUCT(S98:AB98,S100:AB100)+SUMPRODUCT(S103:AB103,S105:AB105))/R79 -> 0.3713965158 | T79: =(SUMPRODUCT(S84:AB84,S85:AB85)+SUMPRODUCT(S89:AB89*S90:AB90)+SUMPRODUCT(S94:AB94,S95:AB95)+SUMPRODUCT(S99:AB99,S100:AB100)+SUMPRODUCT(S104:AB104,S105:AB105))/R79 -> 0.1581234003
B80: pkt. | C80: x | D80: y | E80: s1 | F80: t1 | G80: s | H80: t | I80: s' | J80: s'' | K80: I1 | L80: I2 | M80: I3 | N80: DNc | O80: DsNc | P80: DtNc | Q80: lag | R80: line: | S80: 1 | T80: 2 | U80: 3 | V80: 4 | W80: 5 | X80: 6 | Y80: 7 | Z80: 8 | AA80: 9 | AB80: 10
B81: 1 | C81: =C49 -> 0.35 | D81: =D49 -> 0 | E81: =G79*(C81-E77)+H79*(D81-F77) -> 0 | F81: =-H79*(C81-E77)+G79*(D81-F77) -> -0.3410918723 | G81: =E81 -> 0 | H81: =MAX(F81,0) -> 0 | I81: =IF(ABS((H82-H81)/F79)<0.001,0,(G81*H82-G82*H81)/(H82-H81)) -> 0 | J81: =IF(ABS((H82-H81)/F79)<0.001,0,(G82-G81)/(H82-H81)) -> 0 | K81: =IF(H82=H81,0,-((C79-D79)*E79/(2*D79^3))*(2*D79*(H82-H81)+D79^2*(H82^2-H81^2)+2*LN((1-D79*H82)/(1-D79*H81)))) -> 0 | L81: =-(C79-D79)*E79*(H82^3-H81^3)/(3*D79)+K81/D79 -> 0 | M81: =-(C79-D79)*E79*(H82^4-H81^4)/(4*D79)+L81/D79 -> 0 | N81: =IF(ABS((H82-H81)/F79)<0.001,0,0.5*E79*I81*(H82^2-H81^2)+E79*J81*(H82^3-H81^3)/3-I81*K81-J81*L81) -> 0 | O81: =IF(ABS((H82-H81)/F79)<0.001,0,0.5*E79*(I81^2*(H82^2-H81^2)/2+2*I81*J81*(H82^3-H81^3)/3+J81^2*(H82^4-H81^4)/4)-0.5*I81^2*K81-I81*J81*L81-0.5*J81^2*M81) -> 0 | P81: =IF(ABS((H82-H81)/F79)<0.001,0,E79*(I81*(H82^3-H81^3)/3+J81*(H82^4-H81^4)/4)-I81*L81-J81*M81) -> 0 | Q81: 1 | R81: A | S81: =INDEX(Liner,S80+(Q81-1)*10,9)/1000000 -> 9.3e-05 | T81: =INDEX(Liner,T80+(Q81-1)*10,9)/1000000 -> 9.3e-05 | U81: =INDEX(Liner,U80+(Q81-1)*10,9)/1000000 -> 9.3e-05 | V81: =INDEX(Liner,V80+(Q81-1)*10,9)/1000000 -> 9.3e-05 | W81: =INDEX(Liner,W80+(Q81-1)*10,9)/1000000 -> 9.3e-05 | X81: =INDEX(Liner,X80+(Q81-1)*10,9)/1000000 -> 9.3e-05 | Y81: =INDEX(Liner,Y80+(Q81-1)*10,9)/1000000 -> 9.3e-05 | Z81: =INDEX(Liner,Z80+(Q81-1)*10,9)/1000000 -> 9.3e-05 | AA81: =INDEX(Liner,AA80+(Q81-1)*10,9)/1000000 -> 0 | AB81: =INDEX(Liner,AB80+(Q81-1)*10,9)/1000000 -> 0
B82: 1' | E82: =IF(F83*F81<0,E81-(E83-E81)*F81/(F83-F81),E81) -> 0 | F82: =IF(E83=E81,F81,F81+(F83-F81)*(E82-E81)/(E83-E81)) -> -0.3410918723 | G82: 0 | H82: =MAX(F82,0) -> 0 | I82: =IF(ABS((H83-H82)/F79)<0.001,0,(G82*H83-G83*H82)/(H83-H82)) -> 0 | J82: =IF(ABS((H83-H82)/F79)<0.001,0,(G83-G82)/(H83-H82)) -> 0 | K82: =-((C79-D79)*E79/(2*D79^3))*(2*D79*(H83-H82)+D79^2*(H83^2-H82^2)+2*LN((1-D79*H83)/(1-D79*H82))) -> 0 | L82: =-(C79-D79)*E79*(H83^3-H82^3)/(3*D79)+K82/D79 -> 0 | M82: =-(C79-D79)*E79*(H83^4-H82^4)/(4*D79)+L82/D79 -> 0 | N82: =IF(ABS((H83-H82)/F79)<0.001,0,0.5*E79*I82*(H83^2-H82^2)+E79*J82*(H83^3-H82^3)/3-I82*K82-J82*L82) -> 0 | O82: =IF(ABS((H83-H82)/F79)<0.001,0,0.5*E79*(I82^2*(H83^2-H82^2)/2+2*I82*J82*(H83^3-H82^3)/3+J82^2*(H83^4-H82^4)/4)-0.5*I82^2*K82-I82*J82*L82-0.5*J82^2*M82) -> 0 | P82: =IF(ABS((H83-H82)/F79)<0.001,0,E79*(I82*(H83^3-H82^3)/3+J82*(H83^4-H82^4)/4)-I82*L82-J82*M82) -> 0 | Q82: 1 | R82: Nf | S82: =INDEX(Liner,S80+(Q82-1)*10,10)/1000 -> 0.1 | T82: =INDEX(Liner,T80+(Q82-1)*10,10)/1000 -> 0.1 | U82: =INDEX(Liner,U80+(Q82-1)*10,10)/1000 -> 0.1 | V82: =INDEX(Liner,V80+(Q82-1)*10,10)/1000 -> 0.1 | W82: =INDEX(Liner,W80+(Q82-1)*10,10)/1000 -> 0.1 | X82: =INDEX(Liner,X80+(Q82-1)*10,10)/1000 -> 0.1 | Y82: =INDEX(Liner,Y80+(Q82-1)*10,10)/1000 -> 0.1 | Z82: =INDEX(Liner,Z80+(Q82-1)*10,10)/1000 -> 0.1 | AA82: =INDEX(Liner,AA80+(Q82-1)*10,10)/1000 -> 0 | AB82: =INDEX(Liner,AB80+(Q82-1)*10,10)/1000 -> 0
B83: 2 | C83: =C51 -> 0.6 | D83: =D51 -> 0 | E83: =G79*(C83-E77)+H79*(D83-F77) -> 0.25 | F83: =-H79*(C83-E77)+G79*(D83-F77) -> -0.3410918723 | G83: 0.25 | H83: 0 | I83: =IF(ABS((H84-H83)/F79)<0.001,0,(G83*H84-G84*H83)/(H84-H83)) -> 0 | J83: =IF(ABS((H84-H83)/F79)<0.001,0,(G84-G83)/(H84-H83)) -> 0 | K83: =-((C79-D79)*E79/(2*D79^3))*(2*D79*(H84-H83)+D79^2*(H84^2-H83^2)+2*LN((1-D79*H84)/(1-D79*H83))) -> 0 | L83: =-(C79-D79)*E79*(H84^3-H83^3)/(3*D79)+K83/D79 -> 0 | M83: =-(C79-D79)*E79*(H84^4-H83^4)/(4*D79)+L83/D79 -> 0 | N83: =IF(ABS((H84-H83)/F79)<0.001,0,0.5*E79*I83*(H84^2-H83^2)+E79*J83*(H84^3-H83^3)/3-I83*K83-J83*L83) -> 0 | O83: =IF(ABS((H84-H83)/F79)<0.001,0,0.5*E79*(I83^2*(H84^2-H83^2)/2+2*I83*J83*(H84^3-H83^3)/3+J83^2*(H84^4-H83^4)/4)-0.5*I83^2*K83-I83*J83*L83-0.5*J83^2*M83) -> 0 | P83: =IF(ABS((H84-H83)/F79)<0.001,0,E79*(I83*(H84^3-H83^3)/3+J83*(H84^4-H83^4)/4)-I83*L83-J83*M83) -> 0 | Q83: 1 | R83: x | S83: =INDEX(Liner,S80+(Q83-1)*10,2)/1000 -> 0.075 | T83: =INDEX(Liner,T80+(Q83-1)*10,2)/1000 -> 0.147 | U83: =INDEX(Liner,U80+(Q83-1)*10,2)/1000 -> 0.219 | V83: =INDEX(Liner,V80+(Q83-1)*10,2)/1000 -> 0.291 | W83: =INDEX(Liner,W80+(Q83-1)*10,2)/1000 -> 0.363 | X83: =INDEX(Liner,X80+(Q83-1)*10,2)/1000 -> 0.435 | Y83: =INDEX(Liner,Y80+(Q83-1)*10,2)/1000 -> 0.265 | Z83: =INDEX(Liner,Z80+(Q83-1)*10,2)/1000 -> 0.6 | AA83: =INDEX(Liner,AA80+(Q83-1)*10,2)/1000 -> -1.4 | AB83: =INDEX(Liner,AB80+(Q83-1)*10,2)/1000 -> -1.4
B84: 2' | E84: =IF(F85*F83<0,E83-(E85-E83)*F83/(F85-F83),E83) -> 0.25 | F84: =IF(E85=E83,F83,F83+(F85-F83)*(E84-E83)/(E85-E83)) -> -0.3410918723 | G84: 0.25 | H84: 0 | I84: =IF(ABS((H85-H84)/F79)<0.001,0,(G84*H85-G85*H84)/(H85-H84)) -> 0 | J84: =IF(ABS((H85-H84)/F79)<0.001,0,(G85-G84)/(H85-H84)) -> 0 | K84: =-((C79-D79)*E79/(2*D79^3))*(2*D79*(H85-H84)+D79^2*(H85^2-H84^2)+2*LN((1-D79*H85)/(1-D79*H84))) -> 0 | L84: =-(C79-D79)*E79*(H85^3-H84^3)/(3*D79)+K84/D79 -> 0 | M84: =-(C79-D79)*E79*(H85^4-H84^4)/(4*D79)+L84/D79 -> 0 | N84: =IF(ABS((H85-H84)/F79)<0.001,0,0.5*E79*I84*(H85^2-H84^2)+E79*J84*(H85^3-H84^3)/3-I84*K84-J84*L84) -> 0 | O84: =IF(ABS((H85-H84)/F79)<0.001,0,0.5*E79*(I84^2*(H85^2-H84^2)/2+2*I84*J84*(H85^3-H84^3)/3+J84^2*(H85^4-H84^4)/4)-0.5*I84^2*K84-I84*J84*L84-0.5*J84^2*M84) -> 0 | P84: =IF(ABS((H85-H84)/F79)<0.001,0,E79*(I84*(H85^3-H84^3)/3+J84*(H85^4-H84^4)/4)-I84*L84-J84*M84) -> 0 | Q84: 1 | R84: y | S84: =INDEX(Liner,S80+(Q84-1)*10,3)/1000 -> 0.65 | T84: =INDEX(Liner,T80+(Q84-1)*10,3)/1000 -> 0.65 | U84: =INDEX(Liner,U80+(Q84-1)*10,3)/1000 -> 0.65 | V84: =INDEX(Liner,V80+(Q84-1)*10,3)/1000 -> 0.65 | W84: =INDEX(Liner,W80+(Q84-1)*10,3)/1000 -> 0.65 | X84: =INDEX(Liner,X80+(Q84-1)*10,3)/1000 -> 0.65 | Y84: =INDEX(Liner,Y80+(Q84-1)*10,3)/1000 -> 0.25 | Z84: =INDEX(Liner,Z80+(Q84-1)*10,3)/1000 -> 0.25 | AA84: =INDEX(Liner,AA80+(Q84-1)*10,3)/1000 -> 0.25 | AB84: =INDEX(Liner,AB80+(Q84-1)*10,3)/1000 -> 0.25
B85: 3 | C85: =C53 -> 0.65 | D85: =D53 -> 0.3 | E85: =G79*(C85-E77)+H79*(D85-F77) -> 0.3 | F85: =-H79*(C85-E77)+G79*(D85-F77) -> -0.04109187231 | G85: 0.3 | H85: 0 | I85: =IF(ABS((H86-H85)/F79)<0.001,0,(G85*H86-G86*H85)/(H86-H85)) -> 0 | J85: =IF(ABS((H86-H85)/F79)<0.001,0,(G86-G85)/(H86-H85)) -> 0 | K85: =-((C79-D79)*E79/(2*D79^3))*(2*D79*(H86-H85)+D79^2*(H86^2-H85^2)+2*LN((1-D79*H86)/(1-D79*H85))) -> 0 | L85: =-(C79-D79)*E79*(H86^3-H85^3)/(3*D79)+K85/D79 -> 0 | M85: =-(C79-D79)*E79*(H86^4-H85^4)/(4*D79)+L85/D79 -> 0 | N85: =IF(ABS((H86-H85)/F79)<0.001,0,0.5*E79*I85*(H86^2-H85^2)+E79*J85*(H86^3-H85^3)/3-I85*K85-J85*L85) -> 0 | O85: =IF(ABS((H86-H85)/F79)<0.001,0,0.5*E79*(I85^2*(H86^2-H85^2)/2+2*I85*J85*(H86^3-H85^3)/3+J85^2*(H86^4-H85^4)/4)-0.5*I85^2*K85-I85*J85*L85-0.5*J85^2*M85) -> 0 | P85: =IF(ABS((H86-H85)/F79)<0.001,0,E79*(I85*(H86^3-H85^3)/3+J85*(H86^4-H85^4)/4)-I85*L85-J85*M85) -> 0 | Q85: 1 | R85: Na | S85: =IF(-(-H79*(S83-E77)+G79*(S84-F77))*C77/F79+IF(S81>0,S82/(S81*$S$5),0)>$S$6,IF(-(-H79*(S83-E77)+G79*(S84-F77))*C77/F79+IF(S81>0,S82/(S81*$S$5),0)>$S$8,0,$S$4+$S$9*(-(-H79*(S83-E77)+G79*(S84-F77))*C77/F79+IF(S81>0,S82/(S81*$S$5),0)-$S$6)),$S$5*(-(-H79*(S83-E77)+G79*(S84-F77))*C77/F79+IF(S81>0,S82/(S81*$S$5),0)))*S81 -> 0.04536994394 | T85: =IF(-(-H79*(T83-E77)+G79*(T84-F77))*C77/F79+IF(T81>0,T82/(T81*$S$5),0)>$S$6,IF(-(-H79*(T83-E77)+G79*(T84-F77))*C77/F79+IF(T81>0,T82/(T81*$S$5),0)>$S$8,0,$S$4+$S$9*(-(-H79*(T83-E77)+G79*(T84-F77))*C77/F79+IF(T81>0,T82/(T81*$S$5),0)-$S$6)),$S$5*(-(-H79*(T83-E77)+G79*(T84-F77))*C77/F79+IF(T81>0,T82/(T81*$S$5),0)))*T81 -> 0.04536994394 | U85: =IF(-(-H79*(U83-E77)+G79*(U84-F77))*C77/F79+IF(U81>0,U82/(U81*$S$5),0)>$S$6,IF(-(-H79*(U83-E77)+G79*(U84-F77))*C77/F79+IF(U81>0,U82/(U81*$S$5),0)>$S$8,0,$S$4+$S$9*(-(-H79*(U83-E77)+G79*(U84-F77))*C77/F79+IF(U81>0,U82/(U81*$S$5),0)-$S$6)),$S$5*(-(-H79*(U83-E77)+G79*(U84-F77))*C77/F79+IF(U81>0,U82/(U81*$S$5),0)))*U81 -> 0.04536994394 | V85: =IF(-(-H79*(V83-E77)+G79*(V84-F77))*C77/F79+IF(V81>0,V82/(V81*$S$5),0)>$S$6,IF(-(-H79*(V83-E77)+G79*(V84-F77))*C77/F79+IF(V81>0,V82/(V81*$S$5),0)>$S$8,0,$S$4+$S$9*(-(-H79*(V83-E77)+G79*(V84-F77))*C77/F79+IF(V81>0,V82/(V81*$S$5),0)-$S$6)),$S$5*(-(-H79*(V83-E77)+G79*(V84-F77))*C77/F79+IF(V81>0,V82/(V81*$S$5),0)))*V81 -> 0.04536994394 | W85: =IF(-(-H79*(W83-E77)+G79*(W84-F77))*C77/F79+IF(W81>0,W82/(W81*$S$5),0)>$S$6,IF(-(-H79*(W83-E77)+G79*(W84-F77))*C77/F79+IF(W81>0,W82/(W81*$S$5),0)>$S$8,0,$S$4+$S$9*(-(-H79*(W83-E77)+G79*(W84-F77))*C77/F79+IF(W81>0,W82/(W81*$S$5),0)-$S$6)),$S$5*(-(-H79*(W83-E77)+G79*(W84-F77))*C77/F79+IF(W81>0,W82/(W81*$S$5),0)))*W81 -> 0.04536994394 | X85: =IF(-(-H79*(X83-E77)+G79*(X84-F77))*C77/F79+IF(X81>0,X82/(X81*$S$5),0)>$S$6,IF(-(-H79*(X83-E77)+G79*(X84-F77))*C77/F79+IF(X81>0,X82/(X81*$S$5),0)>$S$8,0,$S$4+$S$9*(-(-H79*(X83-E77)+G79*(X84-F77))*C77/F79+IF(X81>0,X82/(X81*$S$5),0)-$S$6)),$S$5*(-(-H79*(X83-E77)+G79*(X84-F77))*C77/F79+IF(X81>0,X82/(X81*$S$5),0)))*X81 -> 0.04536994394 | Y85: =IF(-(-H79*(Y83-E77)+G79*(Y84-F77))*C77/F79+IF(Y81>0,Y82/(Y81*$S$5),0)>$S$6,IF(-(-H79*(Y83-E77)+G79*(Y84-F77))*C77/F79+IF(Y81>0,Y82/(Y81*$S$5),0)>$S$8,0,$S$4+$S$9*(-(-H79*(Y83-E77)+G79*(Y84-F77))*C77/F79+IF(Y81>0,Y82/(Y81*$S$5),0)-$S$6)),$S$5*(-(-H79*(Y83-E77)+G79*(Y84-F77))*C77/F79+IF(Y81>0,Y82/(Y81*$S$5),0)))*Y81 -> 0.1161094955 | Z85: =IF(-(-H79*(Z83-E77)+G79*(Z84-F77))*C77/F79+IF(Z81>0,Z82/(Z81*$S$5),0)>$S$6,IF(-(-H79*(Z83-E77)+G79*(Z84-F77))*C77/F79+IF(Z81>0,Z82/(Z81*$S$5),0)>$S$8,0,$S$4+$S$9*(-(-H79*(Z83-E77)+G79*(Z84-F77))*C77/F79+IF(Z81>0,Z82/(Z81*$S$5),0)-$S$6)),$S$5*(-(-H79*(Z83-E77)+G79*(Z84-F77))*C77/F79+IF(Z81>0,Z82/(Z81*$S$5),0)))*Z81 -> 0.1161094955 | AA85: =IF(-(-H79*(AA83-E77)+G79*(AA84-F77))*C77/F79+IF(AA81>0,AA82/(AA81*$S$5),0)>$S$6,IF(-(-H79*(AA83-E77)+G79*(AA84-F77))*C77/F79+IF(AA81>0,AA82/(AA81*$S$5),0)>$S$8,0,$S$4+$S$9*(-(-H79*(AA83-E77)+G79*(AA84-F77))*C77/F79+IF(AA81>0,AA82/(AA81*$S$5),0)-$S$6)),$S$5*(-(-H79*(AA83-E77)+G79*(AA84-F77))*C77/F79+IF(AA81>0,AA82/(AA81*$S$5),0)))*AA81 -> 0 | AB85: =IF(-(-H79*(AB83-E77)+G79*(AB84-F77))*C77/F79+IF(AB81>0,AB82/(AB81*$S$5),0)>$S$6,IF(-(-H79*(AB83-E77)+G79*(AB84-F77))*C77/F79+IF(AB81>0,AB82/(AB81*$S$5),0)>$S$8,0,$S$4+$S$9*(-(-H79*(AB83-E77)+G79*(AB84-F77))*C77/F79+IF(AB81>0,AB82/(AB81*$S$5),0)-$S$6)),$S$5*(-(-H79*(AB83-E77)+G79*(AB84-F77))*C77/F79+IF(AB81>0,AB82/(AB81*$S$5),0)))*AB81 -> 0
B86: 3' | E86: =IF(F87*F85<0,E85-(E87-E85)*F85/(F87-F85),E85) -> 0.3 | F86: =IF(E87=E85,F85,F85+(F87-F85)*(E86-E85)/(E87-E85)) -> -0.04109187231 | G86: 0.3 | H86: 0 | I86: =IF(ABS((H87-H86)/F79)<0.001,0,(G86*H87-G87*H86)/(H87-H86)) -> 0 | J86: =IF(ABS((H87-H86)/F79)<0.001,0,(G87-G86)/(H87-H86)) -> 0 | K86: =-((C79-D79)*E79/(2*D79^3))*(2*D79*(H87-H86)+D79^2*(H87^2-H86^2)+2*LN((1-D79*H87)/(1-D79*H86))) -> 0 | L86: =-(C79-D79)*E79*(H87^3-H86^3)/(3*D79)+K86/D79 -> 0 | M86: =-(C79-D79)*E79*(H87^4-H86^4)/(4*D79)+L86/D79 -> 0 | N86: =IF(ABS((H87-H86)/F79)<0.001,0,0.5*E79*I86*(H87^2-H86^2)+E79*J86*(H87^3-H86^3)/3-I86*K86-J86*L86) -> 0 | O86: =IF(ABS((H87-H86)/F79)<0.001,0,0.5*E79*(I86^2*(H87^2-H86^2)/2+2*I86*J86*(H87^3-H86^3)/3+J86^2*(H87^4-H86^4)/4)-0.5*I86^2*K86-I86*J86*L86-0.5*J86^2*M86) -> 0 | P86: =IF(ABS((H87-H86)/F79)<0.001,0,E79*(I86*(H87^3-H86^3)/3+J86*(H87^4-H86^4)/4)-I86*L86-J86*M86) -> 0 | Q86: 2 | R86: A | S86: =INDEX(Liner,S80+(Q86-1)*10,9)/1000000 -> 0 | T86: =INDEX(Liner,T80+(Q86-1)*10,9)/1000000 -> 0 | U86: =INDEX(Liner,U80+(Q86-1)*10,9)/1000000 -> 0 | V86: =INDEX(Liner,V80+(Q86-1)*10,9)/1000000 -> 0 | W86: =INDEX(Liner,W80+(Q86-1)*10,9)/1000000 -> 0 | X86: =INDEX(Liner,X80+(Q86-1)*10,9)/1000000 -> 0 | Y86: =INDEX(Liner,Y80+(Q86-1)*10,9)/1000000 -> 0 | Z86: =INDEX(Liner,Z80+(Q86-1)*10,9)/1000000 -> 0 | AA86: =INDEX(Liner,AA80+(Q86-1)*10,9)/1000000 -> 0 | AB86: =INDEX(Liner,AB80+(Q86-1)*10,9)/1000000 -> 0
B87: 4 | C87: =C55 -> 0.475 | D87: =D55 -> 0.3 | E87: =G79*(C87-E77)+H79*(D87-F77) -> 0.125 | F87: =-H79*(C87-E77)+G79*(D87-F77) -> -0.04109187231 | G87: 0.125 | H87: 0 | I87: =IF(ABS((H88-H87)/F79)<0.001,0,(G87*H88-G88*H87)/(H88-H87)) -> 0 | J87: =IF(ABS((H88-H87)/F79)<0.001,0,(G88-G87)/(H88-H87)) -> 0 | K87: =-((C79-D79)*E79/(2*D79^3))*(2*D79*(H88-H87)+D79^2*(H88^2-H87^2)+2*LN((1-D79*H88)/(1-D79*H87))) -> 0 | L87: =-(C79-D79)*E79*(H88^3-H87^3)/(3*D79)+K87/D79 -> 0 | M87: =-(C79-D79)*E79*(H88^4-H87^4)/(4*D79)+L87/D79 -> 0 | N87: =IF(ABS((H88-H87)/F79)<0.001,0,0.5*E79*I87*(H88^2-H87^2)+E79*J87*(H88^3-H87^3)/3-I87*K87-J87*L87) -> 0 | O87: =IF(ABS((H88-H87)/F79)<0.001,0,0.5*E79*(I87^2*(H88^2-H87^2)/2+2*I87*J87*(H88^3-H87^3)/3+J87^2*(H88^4-H87^4)/4)-0.5*I87^2*K87-I87*J87*L87-0.5*J87^2*M87) -> 0 | P87: =IF(ABS((H88-H87)/F79)<0.001,0,E79*(I87*(H88^3-H87^3)/3+J87*(H88^4-H87^4)/4)-I87*L87-J87*M87) -> 0 | Q87: 2 | R87: Nf | S87: =INDEX(Liner,S80+(Q87-1)*10,10)/1000 -> 0 | T87: =INDEX(Liner,T80+(Q87-1)*10,10)/1000 -> 0 | U87: =INDEX(Liner,U80+(Q87-1)*10,10)/1000 -> 0 | V87: =INDEX(Liner,V80+(Q87-1)*10,10)/1000 -> 0 | W87: =INDEX(Liner,W80+(Q87-1)*10,10)/1000 -> 0 | X87: =INDEX(Liner,X80+(Q87-1)*10,10)/1000 -> 0 | Y87: =INDEX(Liner,Y80+(Q87-1)*10,10)/1000 -> 0 | Z87: =INDEX(Liner,Z80+(Q87-1)*10,10)/1000 -> 0 | AA87: =INDEX(Liner,AA80+(Q87-1)*10,10)/1000 -> 0 | AB87: =INDEX(Liner,AB80+(Q87-1)*10,10)/1000 -> 0
B88: 4' | E88: =IF(F89*F87<0,E87-(E89-E87)*F87/(F89-F87),E87) -> 0.125 | F88: =IF(E89=E87,F87,F87+(F89-F87)*(E88-E87)/(E89-E87)) -> -0.04109187231 | G88: 0.125 | H88: 0 | I88: =IF(ABS((H89-H88)/F79)<0.001,0,(G88*H89-G89*H88)/(H89-H88)) -> 0.125 | J88: =IF(ABS((H89-H88)/F79)<0.001,0,(G89-G88)/(H89-H88)) -> 0 | K88: =-((C79-D79)*E79/(2*D79^3))*(2*D79*(H89-H88)+D79^2*(H89^2-H88^2)+2*LN((1-D79*H89)/(1-D79*H88))) -> 6.384707547 | L88: =-(C79-D79)*E79*(H89^3-H88^3)/(3*D79)+K88/D79 -> 1.752076324 | M88: =-(C79-D79)*E79*(H89^4-H88^4)/(4*D79)+L88/D79 -> 0.5097008751 | N88: =IF(ABS((H89-H88)/F79)<0.001,0,0.5*E79*I88*(H89^2-H88^2)+E79*J88*(H89^3-H88^3)/3-I88*K88-J88*L88) -> 0.9301609948 | O88: =IF(ABS((H89-H88)/F79)<0.001,0,0.5*E79*(I88^2*(H89^2-H88^2)/2+2*I88*J88*(H89^3-H88^3)/3+J88^2*(H89^4-H88^4)/4)-0.5*I88^2*K88-I88*J88*L88-0.5*J88^2*M88) -> 0.05813506217 | P88: =IF(ABS((H89-H88)/F79)<0.001,0,E79*(I88*(H89^3-H88^3)/3+J88*(H89^4-H88^4)/4)-I88*L88-J88*M88) -> 0.1945123063 | Q88: 2 | R88: x | S88: =INDEX(Liner,S80+(Q88-1)*10,2)/1000 -> 0.35 | T88: =INDEX(Liner,T80+(Q88-1)*10,2)/1000 -> -1.4 | U88: =INDEX(Liner,U80+(Q88-1)*10,2)/1000 -> -1.4 | V88: =INDEX(Liner,V80+(Q88-1)*10,2)/1000 -> -1.4 | W88: =INDEX(Liner,W80+(Q88-1)*10,2)/1000 -> -1.4 | X88: =INDEX(Liner,X80+(Q88-1)*10,2)/1000 -> -1.4 | Y88: =INDEX(Liner,Y80+(Q88-1)*10,2)/1000 -> -1.4 | Z88: =INDEX(Liner,Z80+(Q88-1)*10,2)/1000 -> -1.4 | AA88: =INDEX(Liner,AA80+(Q88-1)*10,2)/1000 -> -1.4 | AB88: =INDEX(Liner,AB80+(Q88-1)*10,2)/1000 -> -1.4
B89: 5 | C89: =C57 -> 0.475 | D89: =D57 -> 0.7 | E89: =G79*(C89-E77)+H79*(D89-F77) -> 0.125 | F89: =-H79*(C89-E77)+G79*(D89-F77) -> 0.3589081277 | G89: 0.125 | H89: 0.3589081277 | I89: =IF(ABS((H90-H89)/F79)<0.001,0,(G89*H90-G90*H89)/(H90-H89)) -> 0 | J89: =IF(ABS((H90-H89)/F79)<0.001,0,(G90-G89)/(H90-H89)) -> 0 | K89: =-((C79-D79)*E79/(2*D79^3))*(2*D79*(H90-H89)+D79^2*(H90^2-H89^2)+2*LN((1-D79*H90)/(1-D79*H89))) -> 0 | L89: =-(C79-D79)*E79*(H90^3-H89^3)/(3*D79)+K89/D79 -> 0 | M89: =-(C79-D79)*E79*(H90^4-H89^4)/(4*D79)+L89/D79 -> 0 | N89: =IF(ABS((H90-H89)/F79)<0.001,0,0.5*E79*I89*(H90^2-H89^2)+E79*J89*(H90^3-H89^3)/3-I89*K89-J89*L89) -> 0 | O89: =IF(ABS((H90-H89)/F79)<0.001,0,0.5*E79*(I89^2*(H90^2-H89^2)/2+2*I89*J89*(H90^3-H89^3)/3+J89^2*(H90^4-H89^4)/4)-0.5*I89^2*K89-I89*J89*L89-0.5*J89^2*M89) -> 0 | P89: =IF(ABS((H90-H89)/F79)<0.001,0,E79*(I89*(H90^3-H89^3)/3+J89*(H90^4-H89^4)/4)-I89*L89-J89*M89) -> 0 | Q89: 2 | R89: y | S89: =INDEX(Liner,S80+(Q89-1)*10,3)/1000 -> 0 | T89: =INDEX(Liner,T80+(Q89-1)*10,3)/1000 -> 0 | U89: =INDEX(Liner,U80+(Q89-1)*10,3)/1000 -> 0 | V89: =INDEX(Liner,V80+(Q89-1)*10,3)/1000 -> 0 | W89: =INDEX(Liner,W80+(Q89-1)*10,3)/1000 -> 0 | X89: =INDEX(Liner,X80+(Q89-1)*10,3)/1000 -> 0 | Y89: =INDEX(Liner,Y80+(Q89-1)*10,3)/1000 -> 0 | Z89: =INDEX(Liner,Z80+(Q89-1)*10,3)/1000 -> 0 | AA89: =INDEX(Liner,AA80+(Q89-1)*10,3)/1000 -> 0 | AB89: =INDEX(Liner,AB80+(Q89-1)*10,3)/1000 -> 0
B90: 5' | E90: =IF(F91*F89<0,E89-(E91-E89)*F89/(F91-F89),E89) -> 0.125 | F90: =IF(E91=E89,F89,F89+(F91-F89)*(E90-E89)/(E91-E89)) -> 0.3589081277 | G90: 0.125 | H90: 0.3589081277 | I90: =IF(ABS((H91-H90)/F79)<0.001,0,(G90*H91-G91*H90)/(H91-H90)) -> 0 | J90: =IF(ABS((H91-H90)/F79)<0.001,0,(G91-G90)/(H91-H90)) -> 0 | K90: =-((C79-D79)*E79/(2*D79^3))*(2*D79*(H91-H90)+D79^2*(H91^2-H90^2)+2*LN((1-D79*H91)/(1-D79*H90))) -> 0 | L90: =-(C79-D79)*E79*(H91^3-H90^3)/(3*D79)+K90/D79 -> 0 | M90: =-(C79-D79)*E79*(H91^4-H90^4)/(4*D79)+L90/D79 -> 0 | N90: =IF(ABS((H91-H90)/F79)<0.001,0,0.5*E79*I90*(H91^2-H90^2)+E79*J90*(H91^3-H90^3)/3-I90*K90-J90*L90) -> 0 | O90: =IF(ABS((H91-H90)/F79)<0.001,0,0.5*E79*(I90^2*(H91^2-H90^2)/2+2*I90*J90*(H91^3-H90^3)/3+J90^2*(H91^4-H90^4)/4)-0.5*I90^2*K90-I90*J90*L90-0.5*J90^2*M90) -> 0 | P90: =IF(ABS((H91-H90)/F79)<0.001,0,E79*(I90*(H91^3-H90^3)/3+J90*(H91^4-H90^4)/4)-I90*L90-J90*M90) -> 0 | Q90: 2 | R90: Na | S90: =IF(-(-H79*(S88-E77)+G79*(S89-F77))*C77/F79+IF(S86>0,S87/(S86*$S$5),0)>$S$6,IF(-(-H79*(S88-E77)+G79*(S89-F77))*C77/F79+IF(S86>0,S87/(S86*$S$5),0)>$S$8,0,$S$4+$S$9*(-(-H79*(S88-E77)+G79*(S89-F77))*C77/F79+IF(S86>0,S87/(S86*$S$5),0)-$S$6)),$S$5*(-(-H79*(S88-E77)+G79*(S89-F77))*C77/F79+IF(S86>0,S87/(S86*$S$5),0)))*S86 -> 0 | T90: =IF(-(-H79*(T88-E77)+G79*(T89-F77))*C77/F79+IF(T86>0,T87/(T86*$S$5),0)>$S$6,IF(-(-H79*(T88-E77)+G79*(T89-F77))*C77/F79+IF(T86>0,T87/(T86*$S$5),0)>$S$8,0,$S$4+$S$9*(-(-H79*(T88-E77)+G79*(T89-F77))*C77/F79+IF(T86>0,T87/(T86*$S$5),0)-$S$6)),$S$5*(-(-H79*(T88-E77)+G79*(T89-F77))*C77/F79+IF(T86>0,T87/(T86*$S$5),0)))*T86 -> 0 | U90: =IF(-(-H79*(U88-E77)+G79*(U89-F77))*C77/F79+IF(U86>0,U87/(U86*$S$5),0)>$S$6,IF(-(-H79*(U88-E77)+G79*(U89-F77))*C77/F79+IF(U86>0,U87/(U86*$S$5),0)>$S$8,0,$S$4+$S$9*(-(-H79*(U88-E77)+G79*(U89-F77))*C77/F79+IF(U86>0,U87/(U86*$S$5),0)-$S$6)),$S$5*(-(-H79*(U88-E77)+G79*(U89-F77))*C77/F79+IF(U86>0,U87/(U86*$S$5),0)))*U86 -> 0 | V90: =IF(-(-H79*(V88-E77)+G79*(V89-F77))*C77/F79+IF(V86>0,V87/(V86*$S$5),0)>$S$6,IF(-(-H79*(V88-E77)+G79*(V89-F77))*C77/F79+IF(V86>0,V87/(V86*$S$5),0)>$S$8,0,$S$4+$S$9*(-(-H79*(V88-E77)+G79*(V89-F77))*C77/F79+IF(V86>0,V87/(V86*$S$5),0)-$S$6)),$S$5*(-(-H79*(V88-E77)+G79*(V89-F77))*C77/F79+IF(V86>0,V87/(V86*$S$5),0)))*V86 -> 0 | W90: =IF(-(-H79*(W88-E77)+G79*(W89-F77))*C77/F79+IF(W86>0,W87/(W86*$S$5),0)>$S$6,IF(-(-H79*(W88-E77)+G79*(W89-F77))*C77/F79+IF(W86>0,W87/(W86*$S$5),0)>$S$8,0,$S$4+$S$9*(-(-H79*(W88-E77)+G79*(W89-F77))*C77/F79+IF(W86>0,W87/(W86*$S$5),0)-$S$6)),$S$5*(-(-H79*(W88-E77)+G79*(W89-F77))*C77/F79+IF(W86>0,W87/(W86*$S$5),0)))*W86 -> 0 | X90: =IF(-(-H79*(X88-E77)+G79*(X89-F77))*C77/F79+IF(X86>0,X87/(X86*$S$5),0)>$S$6,IF(-(-H79*(X88-E77)+G79*(X89-F77))*C77/F79+IF(X86>0,X87/(X86*$S$5),0)>$S$8,0,$S$4+$S$9*(-(-H79*(X88-E77)+G79*(X89-F77))*C77/F79+IF(X86>0,X87/(X86*$S$5),0)-$S$6)),$S$5*(-(-H79*(X88-E77)+G79*(X89-F77))*C77/F79+IF(X86>0,X87/(X86*$S$5),0)))*X86 -> 0 | Y90: =IF(-(-H79*(Y88-E77)+G79*(Y89-F77))*C77/F79+IF(Y86>0,Y87/(Y86*$S$5),0)>$S$6,IF(-(-H79*(Y88-E77)+G79*(Y89-F77))*C77/F79+IF(Y86>0,Y87/(Y86*$S$5),0)>$S$8,0,$S$4+$S$9*(-(-H79*(Y88-E77)+G79*(Y89-F77))*C77/F79+IF(Y86>0,Y87/(Y86*$S$5),0)-$S$6)),$S$5*(-(-H79*(Y88-E77)+G79*(Y89-F77))*C77/F79+IF(Y86>0,Y87/(Y86*$S$5),0)))*Y86 -> 0 | Z90: =IF(-(-H79*(Z88-E77)+G79*(Z89-F77))*C77/F79+IF(Z86>0,Z87/(Z86*$S$5),0)>$S$6,IF(-(-H79*(Z88-E77)+G79*(Z89-F77))*C77/F79+IF(Z86>0,Z87/(Z86*$S$5),0)>$S$8,0,$S$4+$S$9*(-(-H79*(Z88-E77)+G79*(Z89-F77))*C77/F79+IF(Z86>0,Z87/(Z86*$S$5),0)-$S$6)),$S$5*(-(-H79*(Z88-E77)+G79*(Z89-F77))*C77/F79+IF(Z86>0,Z87/(Z86*$S$5),0)))*Z86 -> 0 | AA90: =IF(-(-H79*(AA88-E77)+G79*(AA89-F77))*C77/F79+IF(AA86>0,AA87/(AA86*$S$5),0)>$S$6,IF(-(-H79*(AA88-E77)+G79*(AA89-F77))*C77/F79+IF(AA86>0,AA87/(AA86*$S$5),0)>$S$8,0,$S$4+$S$9*(-(-H79*(AA88-E77)+G79*(AA89-F77))*C77/F79+IF(AA86>0,AA87/(AA86*$S$5),0)-$S$6)),$S$5*(-(-H79*(AA88-E77)+G79*(AA89-F77))*C77/F79+IF(AA86>0,AA87/(AA86*$S$5),0)))*AA86 -> 0 | AB90: =IF(-(-H79*(AB88-E77)+G79*(AB89-F77))*C77/F79+IF(AB86>0,AB87/(AB86*$S$5),0)>$S$6,IF(-(-H79*(AB88-E77)+G79*(AB89-F77))*C77/F79+IF(AB86>0,AB87/(AB86*$S$5),0)>$S$8,0,$S$4+$S$9*(-(-H79*(AB88-E77)+G79*(AB89-F77))*C77/F79+IF(AB86>0,AB87/(AB86*$S$5),0)-$S$6)),$S$5*(-(-H79*(AB88-E77)+G79*(AB89-F77))*C77/F79+IF(AB86>0,AB87/(AB86*$S$5),0)))*AB86 -> 0
B91: 6 | C91: =C59 -> 0.475 | D91: =D59 -> 0.7 | E91: =G79*(C91-E77)+H79*(D91-F77) -> 0.125 | F91: =-H79*(C91-E77)+G79*(D91-F77) -> 0.3589081277 | G91: 0.125 | H91: 0.3589081277 | I91: =IF(ABS((H92-H91)/F79)<0.001,0,(G91*H92-G92*H91)/(H92-H91)) -> 0 | J91: =IF(ABS((H92-H91)/F79)<0.001,0,(G92-G91)/(H92-H91)) -> 0 | K91: =-((C79-D79)*E79/(2*D79^3))*(2*D79*(H92-H91)+D79^2*(H92^2-H91^2)+2*LN((1-D79*H92)/(1-D79*H91))) -> 0 | L91: =-(C79-D79)*E79*(H92^3-H91^3)/(3*D79)+K91/D79 -> 0 | M91: =-(C79-D79)*E79*(H92^4-H91^4)/(4*D79)+L91/D79 -> 0 | N91: =IF(ABS((H92-H91)/F79)<0.001,0,0.5*E79*I91*(H92^2-H91^2)+E79*J91*(H92^3-H91^3)/3-I91*K91-J91*L91) -> 0 | O91: =IF(ABS((H92-H91)/F79)<0.001,0,0.5*E79*(I91^2*(H92^2-H91^2)/2+2*I91*J91*(H92^3-H91^3)/3+J91^2*(H92^4-H91^4)/4)-0.5*I91^2*K91-I91*J91*L91-0.5*J91^2*M91) -> 0 | P91: =IF(ABS((H92-H91)/F79)<0.001,0,E79*(I91*(H92^3-H91^3)/3+J91*(H92^4-H91^4)/4)-I91*L91-J91*M91) -> 0 | Q91: 3 | R91: A | S91: =INDEX(Liner,S80+(Q91-1)*10,9)/1000000 -> 9.3e-05 | T91: =INDEX(Liner,T80+(Q91-1)*10,9)/1000000 -> 9.3e-05 | U91: =INDEX(Liner,U80+(Q91-1)*10,9)/1000000 -> 9.3e-05 | V91: =INDEX(Liner,V80+(Q91-1)*10,9)/1000000 -> 9.3e-05 | W91: =INDEX(Liner,W80+(Q91-1)*10,9)/1000000 -> 9.3e-05 | X91: =INDEX(Liner,X80+(Q91-1)*10,9)/1000000 -> 0 | Y91: =INDEX(Liner,Y80+(Q91-1)*10,9)/1000000 -> 0 | Z91: =INDEX(Liner,Z80+(Q91-1)*10,9)/1000000 -> 0 | AA91: =INDEX(Liner,AA80+(Q91-1)*10,9)/1000000 -> 0 | AB91: =INDEX(Liner,AB80+(Q91-1)*10,9)/1000000 -> 0
B92: 6' | E92: =IF(F93*F91<0,E91-(E93-E91)*F91/(F93-F91),E91) -> 0.125 | F92: =IF(E93=E91,F91,F91+(F93-F91)*(E92-E91)/(E93-E91)) -> 0.3589081277 | G92: 0.125 | H92: 0.3589081277 | I92: =IF(ABS((H93-H92)/F79)<0.001,0,(G92*H93-G93*H92)/(H93-H92)) -> 0 | J92: =IF(ABS((H93-H92)/F79)<0.001,0,(G93-G92)/(H93-H92)) -> 0 | K92: =-((C79-D79)*E79/(2*D79^3))*(2*D79*(H93-H92)+D79^2*(H93^2-H92^2)+2*LN((1-D79*H93)/(1-D79*H92))) -> 0 | L92: =-(C79-D79)*E79*(H93^3-H92^3)/(3*D79)+K92/D79 -> 0 | M92: =-(C79-D79)*E79*(H93^4-H92^4)/(4*D79)+L92/D79 -> 0 | N92: =IF(ABS((H93-H92)/F79)<0.001,0,0.5*E79*I92*(H93^2-H92^2)+E79*J92*(H93^3-H92^3)/3-I92*K92-J92*L92) -> 0 | O92: =IF(ABS((H93-H92)/F79)<0.001,0,0.5*E79*(I92^2*(H93^2-H92^2)/2+2*I92*J92*(H93^3-H92^3)/3+J92^2*(H93^4-H92^4)/4)-0.5*I92^2*K92-I92*J92*L92-0.5*J92^2*M92) -> 0 | P92: =IF(ABS((H93-H92)/F79)<0.001,0,E79*(I92*(H93^3-H92^3)/3+J92*(H93^4-H92^4)/4)-I92*L92-J92*M92) -> 0 | Q92: 3 | R92: Nf | S92: =INDEX(Liner,S80+(Q92-1)*10,10)/1000 -> 0.1 | T92: =INDEX(Liner,T80+(Q92-1)*10,10)/1000 -> 0.1 | U92: =INDEX(Liner,U80+(Q92-1)*10,10)/1000 -> 0.1 | V92: =INDEX(Liner,V80+(Q92-1)*10,10)/1000 -> 0.1 | W92: =INDEX(Liner,W80+(Q92-1)*10,10)/1000 -> 0.1 | X92: =INDEX(Liner,X80+(Q92-1)*10,10)/1000 -> 0 | Y92: =INDEX(Liner,Y80+(Q92-1)*10,10)/1000 -> 0 | Z92: =INDEX(Liner,Z80+(Q92-1)*10,10)/1000 -> 0 | AA92: =INDEX(Liner,AA80+(Q92-1)*10,10)/1000 -> 0 | AB92: =INDEX(Liner,AB80+(Q92-1)*10,10)/1000 -> 0
B93: 7 | C93: =C61 -> 0.475 | D93: =D61 -> 0.7 | E93: =G79*(C93-E77)+H79*(D93-F77) -> 0.125 | F93: =-H79*(C93-E77)+G79*(D93-F77) -> 0.3589081277 | G93: 0.125 | H93: 0.3589081277 | I93: =IF(ABS((H94-H93)/F79)<0.001,0,(G93*H94-G94*H93)/(H94-H93)) -> 0 | J93: =IF(ABS((H94-H93)/F79)<0.001,0,(G94-G93)/(H94-H93)) -> 0 | K93: =-((C79-D79)*E79/(2*D79^3))*(2*D79*(H94-H93)+D79^2*(H94^2-H93^2)+2*LN((1-D79*H94)/(1-D79*H93))) -> 0 | L93: =-(C79-D79)*E79*(H94^3-H93^3)/(3*D79)+K93/D79 -> 0 | M93: =-(C79-D79)*E79*(H94^4-H93^4)/(4*D79)+L93/D79 -> 0 | N93: =IF(ABS((H94-H93)/F79)<0.001,0,0.5*E79*I93*(H94^2-H93^2)+E79*J93*(H94^3-H93^3)/3-I93*K93-J93*L93) -> 0 | O93: =IF(ABS((H94-H93)/F79)<0.001,0,0.5*E79*(I93^2*(H94^2-H93^2)/2+2*I93*J93*(H94^3-H93^3)/3+J93^2*(H94^4-H93^4)/4)-0.5*I93^2*K93-I93*J93*L93-0.5*J93^2*M93) -> 0 | P93: =IF(ABS((H94-H93)/F79)<0.001,0,E79*(I93*(H94^3-H93^3)/3+J93*(H94^4-H93^4)/4)-I93*L93-J93*M93) -> 0 | Q93: 3 | R93: x | S93: =INDEX(Liner,S80+(Q93-1)*10,2)/1000 -> 0.265 | T93: =INDEX(Liner,T80+(Q93-1)*10,2)/1000 -> 0.3125 | U93: =INDEX(Liner,U80+(Q93-1)*10,2)/1000 -> 0.36 | V93: =INDEX(Liner,V80+(Q93-1)*10,2)/1000 -> 0.4075 | W93: =INDEX(Liner,W80+(Q93-1)*10,2)/1000 -> 0.455 | X93: =INDEX(Liner,X80+(Q93-1)*10,2)/1000 -> -1.4 | Y93: =INDEX(Liner,Y80+(Q93-1)*10,2)/1000 -> -1.4 | Z93: =INDEX(Liner,Z80+(Q93-1)*10,2)/1000 -> -1.4 | AA93: =INDEX(Liner,AA80+(Q93-1)*10,2)/1000 -> -1.4 | AB93: =INDEX(Liner,AB80+(Q93-1)*10,2)/1000 -> -1.4
B94: 7' | E94: =IF(F95*F93<0,E93-(E95-E93)*F93/(F95-F93),E93) -> 0.125 | F94: =IF(E95=E93,F93,F93+(F95-F93)*(E94-E93)/(E95-E93)) -> 0.3589081277 | G94: 0.125 | H94: 0.3589081277 | I94: =IF(ABS((H95-H94)/F79)<0.001,0,(G94*H95-G95*H94)/(H95-H94)) -> 0 | J94: =IF(ABS((H95-H94)/F79)<0.001,0,(G95-G94)/(H95-H94)) -> 0 | K94: =-((C79-D79)*E79/(2*D79^3))*(2*D79*(H95-H94)+D79^2*(H95^2-H94^2)+2*LN((1-D79*H95)/(1-D79*H94))) -> 0 | L94: =-(C79-D79)*E79*(H95^3-H94^3)/(3*D79)+K94/D79 -> 0 | M94: =-(C79-D79)*E79*(H95^4-H94^4)/(4*D79)+L94/D79 -> 0 | N94: =IF(ABS((H95-H94)/F79)<0.001,0,0.5*E79*I94*(H95^2-H94^2)+E79*J94*(H95^3-H94^3)/3-I94*K94-J94*L94) -> 0 | O94: =IF(ABS((H95-H94)/F79)<0.001,0,0.5*E79*(I94^2*(H95^2-H94^2)/2+2*I94*J94*(H95^3-H94^3)/3+J94^2*(H95^4-H94^4)/4)-0.5*I94^2*K94-I94*J94*L94-0.5*J94^2*M94) -> 0 | P94: =IF(ABS((H95-H94)/F79)<0.001,0,E79*(I94*(H95^3-H94^3)/3+J94*(H95^4-H94^4)/4)-I94*L94-J94*M94) -> 0 | Q94: 3 | R94: y | S94: =INDEX(Liner,S80+(Q94-1)*10,3)/1000 -> 0.13 | T94: =INDEX(Liner,T80+(Q94-1)*10,3)/1000 -> 0.13 | U94: =INDEX(Liner,U80+(Q94-1)*10,3)/1000 -> 0.13 | V94: =INDEX(Liner,V80+(Q94-1)*10,3)/1000 -> 0.13 | W94: =INDEX(Liner,W80+(Q94-1)*10,3)/1000 -> 0.13 | X94: =INDEX(Liner,X80+(Q94-1)*10,3)/1000 -> 0.13 | Y94: =INDEX(Liner,Y80+(Q94-1)*10,3)/1000 -> 0.13 | Z94: =INDEX(Liner,Z80+(Q94-1)*10,3)/1000 -> 0.13 | AA94: =INDEX(Liner,AA80+(Q94-1)*10,3)/1000 -> 0.13 | AB94: =INDEX(Liner,AB80+(Q94-1)*10,3)/1000 -> 0.13
B95: 8 | C95: =C63 -> 0.025 | D95: =D63 -> 0.7 | E95: =G79*(C95-E77)+H79*(D95-F77) -> -0.325 | F95: =-H79*(C95-E77)+G79*(D95-F77) -> 0.3589081277 | G95: -0.325 | H95: 0.3589081277 | I95: =IF(ABS((H96-H95)/F79)<0.001,0,(G95*H96-G96*H95)/(H96-H95)) -> 0 | J95: =IF(ABS((H96-H95)/F79)<0.001,0,(G96-G95)/(H96-H95)) -> 0 | K95: =-((C79-D79)*E79/(2*D79^3))*(2*D79*(H96-H95)+D79^2*(H96^2-H95^2)+2*LN((1-D79*H96)/(1-D79*H95))) -> 0 | L95: =-(C79-D79)*E79*(H96^3-H95^3)/(3*D79)+K95/D79 -> 0 | M95: =-(C79-D79)*E79*(H96^4-H95^4)/(4*D79)+L95/D79 -> 0 | N95: =IF(ABS((H96-H95)/F79)<0.001,0,0.5*E79*I95*(H96^2-H95^2)+E79*J95*(H96^3-H95^3)/3-I95*K95-J95*L95) -> 0 | O95: =IF(ABS((H96-H95)/F79)<0.001,0,0.5*E79*(I95^2*(H96^2-H95^2)/2+2*I95*J95*(H96^3-H95^3)/3+J95^2*(H96^4-H95^4)/4)-0.5*I95^2*K95-I95*J95*L95-0.5*J95^2*M95) -> 0 | P95: =IF(ABS((H96-H95)/F79)<0.001,0,E79*(I95*(H96^3-H95^3)/3+J95*(H96^4-H95^4)/4)-I95*L95-J95*M95) -> 0 | Q95: 3 | R95: Na | S95: =IF(-(-H79*(S93-E77)+G79*(S94-F77))*C77/F79+IF(S91>0,S92/(S91*$S$5),0)>$S$6,IF(-(-H79*(S93-E77)+G79*(S94-F77))*C77/F79+IF(S91>0,S92/(S91*$S$5),0)>$S$8,0,$S$4+$S$9*(-(-H79*(S93-E77)+G79*(S94-F77))*C77/F79+IF(S91>0,S92/(S91*$S$5),0)-$S$6)),$S$5*(-(-H79*(S93-E77)+G79*(S94-F77))*C77/F79+IF(S91>0,S92/(S91*$S$5),0)))*S91 -> 0.1247694869 | T95: =IF(-(-H79*(T93-E77)+G79*(T94-F77))*C77/F79+IF(T91>0,T92/(T91*$S$5),0)>$S$6,IF(-(-H79*(T93-E77)+G79*(T94-F77))*C77/F79+IF(T91>0,T92/(T91*$S$5),0)>$S$8,0,$S$4+$S$9*(-(-H79*(T93-E77)+G79*(T94-F77))*C77/F79+IF(T91>0,T92/(T91*$S$5),0)-$S$6)),$S$5*(-(-H79*(T93-E77)+G79*(T94-F77))*C77/F79+IF(T91>0,T92/(T91*$S$5),0)))*T91 -> 0.1247694869 | U95: =IF(-(-H79*(U93-E77)+G79*(U94-F77))*C77/F79+IF(U91>0,U92/(U91*$S$5),0)>$S$6,IF(-(-H79*(U93-E77)+G79*(U94-F77))*C77/F79+IF(U91>0,U92/(U91*$S$5),0)>$S$8,0,$S$4+$S$9*(-(-H79*(U93-E77)+G79*(U94-F77))*C77/F79+IF(U91>0,U92/(U91*$S$5),0)-$S$6)),$S$5*(-(-H79*(U93-E77)+G79*(U94-F77))*C77/F79+IF(U91>0,U92/(U91*$S$5),0)))*U91 -> 0.1247694869 | V95: =IF(-(-H79*(V93-E77)+G79*(V94-F77))*C77/F79+IF(V91>0,V92/(V91*$S$5),0)>$S$6,IF(-(-H79*(V93-E77)+G79*(V94-F77))*C77/F79+IF(V91>0,V92/(V91*$S$5),0)>$S$8,0,$S$4+$S$9*(-(-H79*(V93-E77)+G79*(V94-F77))*C77/F79+IF(V91>0,V92/(V91*$S$5),0)-$S$6)),$S$5*(-(-H79*(V93-E77)+G79*(V94-F77))*C77/F79+IF(V91>0,V92/(V91*$S$5),0)))*V91 -> 0.1247694869 | W95: =IF(-(-H79*(W93-E77)+G79*(W94-F77))*C77/F79+IF(W91>0,W92/(W91*$S$5),0)>$S$6,IF(-(-H79*(W93-E77)+G79*(W94-F77))*C77/F79+IF(W91>0,W92/(W91*$S$5),0)>$S$8,0,$S$4+$S$9*(-(-H79*(W93-E77)+G79*(W94-F77))*C77/F79+IF(W91>0,W92/(W91*$S$5),0)-$S$6)),$S$5*(-(-H79*(W93-E77)+G79*(W94-F77))*C77/F79+IF(W91>0,W92/(W91*$S$5),0)))*W91 -> 0.1247694869 | X95: =IF(-(-H79*(X93-E77)+G79*(X94-F77))*C77/F79+IF(X91>0,X92/(X91*$S$5),0)>$S$6,IF(-(-H79*(X93-E77)+G79*(X94-F77))*C77/F79+IF(X91>0,X92/(X91*$S$5),0)>$S$8,0,$S$4+$S$9*(-(-H79*(X93-E77)+G79*(X94-F77))*C77/F79+IF(X91>0,X92/(X91*$S$5),0)-$S$6)),$S$5*(-(-H79*(X93-E77)+G79*(X94-F77))*C77/F79+IF(X91>0,X92/(X91*$S$5),0)))*X91 -> 0 | Y95: =IF(-(-H79*(Y93-E77)+G79*(Y94-F77))*C77/F79+IF(Y91>0,Y92/(Y91*$S$5),0)>$S$6,IF(-(-H79*(Y93-E77)+G79*(Y94-F77))*C77/F79+IF(Y91>0,Y92/(Y91*$S$5),0)>$S$8,0,$S$4+$S$9*(-(-H79*(Y93-E77)+G79*(Y94-F77))*C77/F79+IF(Y91>0,Y92/(Y91*$S$5),0)-$S$6)),$S$5*(-(-H79*(Y93-E77)+G79*(Y94-F77))*C77/F79+IF(Y91>0,Y92/(Y91*$S$5),0)))*Y91 -> 0 | Z95: =IF(-(-H79*(Z93-E77)+G79*(Z94-F77))*C77/F79+IF(Z91>0,Z92/(Z91*$S$5),0)>$S$6,IF(-(-H79*(Z93-E77)+G79*(Z94-F77))*C77/F79+IF(Z91>0,Z92/(Z91*$S$5),0)>$S$8,0,$S$4+$S$9*(-(-H79*(Z93-E77)+G79*(Z94-F77))*C77/F79+IF(Z91>0,Z92/(Z91*$S$5),0)-$S$6)),$S$5*(-(-H79*(Z93-E77)+G79*(Z94-F77))*C77/F79+IF(Z91>0,Z92/(Z91*$S$5),0)))*Z91 -> 0 | AA95: =IF(-(-H79*(AA93-E77)+G79*(AA94-F77))*C77/F79+IF(AA91>0,AA92/(AA91*$S$5),0)>$S$6,IF(-(-H79*(AA93-E77)+G79*(AA94-F77))*C77/F79+IF(AA91>0,AA92/(AA91*$S$5),0)>$S$8,0,$S$4+$S$9*(-(-H79*(AA93-E77)+G79*(AA94-F77))*C77/F79+IF(AA91>0,AA92/(AA91*$S$5),0)-$S$6)),$S$5*(-(-H79*(AA93-E77)+G79*(AA94-F77))*C77/F79+IF(AA91>0,AA92/(AA91*$S$5),0)))*AA91 -> 0 | AB95: =IF(-(-H79*(AB93-E77)+G79*(AB94-F77))*C77/F79+IF(AB91>0,AB92/(AB91*$S$5),0)>$S$6,IF(-(-H79*(AB93-E77)+G79*(AB94-F77))*C77/F79+IF(AB91>0,AB92/(AB91*$S$5),0)>$S$8,0,$S$4+$S$9*(-(-H79*(AB93-E77)+G79*(AB94-F77))*C77/F79+IF(AB91>0,AB92/(AB91*$S$5),0)-$S$6)),$S$5*(-(-H79*(AB93-E77)+G79*(AB94-F77))*C77/F79+IF(AB91>0,AB92/(AB91*$S$5),0)))*AB91 -> 0
B96: 8' | E96: =IF(F97*F95<0,E95-(E97-E95)*F95/(F97-F95),E95) -> -0.325 | F96: =IF(E97=E95,F95,F95+(F97-F95)*(E96-E95)/(E97-E95)) -> 0.3589081277 | G96: -0.325 | H96: 0.3589081277 | I96: =IF(ABS((H97-H96)/F79)<0.001,0,(G96*H97-G97*H96)/(H97-H96)) -> -0.325 | J96: =IF(ABS((H97-H96)/F79)<0.001,0,(G97-G96)/(H97-H96)) -> 0 | K96: =-((C79-D79)*E79/(2*D79^3))*(2*D79*(H97-H96)+D79^2*(H97^2-H96^2)+2*LN((1-D79*H97)/(1-D79*H96))) -> -5.27473062 | L96: =-(C79-D79)*E79*(H97^3-H96^3)/(3*D79)+K96/D79 -> -1.576373815 | M96: =-(C79-D79)*E79*(H97^4-H96^4)/(4*D79)+L96/D79 -> -0.4801330019 | N96: =IF(ABS((H97-H96)/F79)<0.001,0,0.5*E79*I96*(H97^2-H96^2)+E79*J96*(H97^3-H96^3)/3-I96*K96-J96*L96) -> 1.25677832 | O96: =IF(ABS((H97-H96)/F79)<0.001,0,0.5*E79*(I96^2*(H97^2-H96^2)/2+2*I96*J96*(H97^3-H96^3)/3+J96^2*(H97^4-H96^4)/4)-0.5*I96^2*K96-I96*J96*L96-0.5*J96^2*M96) -> -0.204226477 | P96: =IF(ABS((H97-H96)/F79)<0.001,0,E79*(I96*(H97^3-H96^3)/3+J96*(H97^4-H96^4)/4)-I96*L96-J96*M96) -> 0.3508098892 | Q96: 4 | R96: A | S96: =INDEX(Liner,S80+(Q96-1)*10,9)/1000000 -> 9.3e-05 | T96: =INDEX(Liner,T80+(Q96-1)*10,9)/1000000 -> 9.3e-05 | U96: =INDEX(Liner,U80+(Q96-1)*10,9)/1000000 -> 9.3e-05 | V96: =INDEX(Liner,V80+(Q96-1)*10,9)/1000000 -> 9.3e-05 | W96: =INDEX(Liner,W80+(Q96-1)*10,9)/1000000 -> 9.3e-05 | X96: =INDEX(Liner,X80+(Q96-1)*10,9)/1000000 -> 0 | Y96: =INDEX(Liner,Y80+(Q96-1)*10,9)/1000000 -> 0 | Z96: =INDEX(Liner,Z80+(Q96-1)*10,9)/1000000 -> 0 | AA96: =INDEX(Liner,AA80+(Q96-1)*10,9)/1000000 -> 0 | AB96: =INDEX(Liner,AB80+(Q96-1)*10,9)/1000000 -> 0
B97: 9 | C97: =C65 -> 0.025 | D97: =D65 -> 0.55 | E97: =G79*(C97-E77)+H79*(D97-F77) -> -0.325 | F97: =-H79*(C97-E77)+G79*(D97-F77) -> 0.2089081277 | G97: -0.325 | H97: 0.2089081277 | I97: =IF(ABS((H98-H97)/F79)<0.001,0,(G97*H98-G98*H97)/(H98-H97)) -> 0 | J97: =IF(ABS((H98-H97)/F79)<0.001,0,(G98-G97)/(H98-H97)) -> 0 | K97: =-((C79-D79)*E79/(2*D79^3))*(2*D79*(H98-H97)+D79^2*(H98^2-H97^2)+2*LN((1-D79*H98)/(1-D79*H97))) -> 0 | L97: =-(C79-D79)*E79*(H98^3-H97^3)/(3*D79)+K97/D79 -> 0 | M97: =-(C79-D79)*E79*(H98^4-H97^4)/(4*D79)+L97/D79 -> 0 | N97: =IF(ABS((H98-H97)/F79)<0.001,0,0.5*E79*I97*(H98^2-H97^2)+E79*J97*(H98^3-H97^3)/3-I97*K97-J97*L97) -> 0 | O97: =IF(ABS((H98-H97)/F79)<0.001,0,0.5*E79*(I97^2*(H98^2-H97^2)/2+2*I97*J97*(H98^3-H97^3)/3+J97^2*(H98^4-H97^4)/4)-0.5*I97^2*K97-I97*J97*L97-0.5*J97^2*M97) -> 0 | P97: =IF(ABS((H98-H97)/F79)<0.001,0,E79*(I97*(H98^3-H97^3)/3+J97*(H98^4-H97^4)/4)-I97*L97-J97*M97) -> 0 | Q97: 4 | R97: Nf | S97: =INDEX(Liner,S80+(Q97-1)*10,10)/1000 -> 0.1 | T97: =INDEX(Liner,T80+(Q97-1)*10,10)/1000 -> 0.1 | U97: =INDEX(Liner,U80+(Q97-1)*10,10)/1000 -> 0.1 | V97: =INDEX(Liner,V80+(Q97-1)*10,10)/1000 -> 0.1 | W97: =INDEX(Liner,W80+(Q97-1)*10,10)/1000 -> 0.1 | X97: =INDEX(Liner,X80+(Q97-1)*10,10)/1000 -> 0 | Y97: =INDEX(Liner,Y80+(Q97-1)*10,10)/1000 -> 0 | Z97: =INDEX(Liner,Z80+(Q97-1)*10,10)/1000 -> 0 | AA97: =INDEX(Liner,AA80+(Q97-1)*10,10)/1000 -> 0 | AB97: =INDEX(Liner,AB80+(Q97-1)*10,10)/1000 -> 0
B98: 9' | E98: =IF(F99*F97<0,E97-(E99-E97)*F97/(F99-F97),E97) -> -0.325 | F98: =IF(E99=E97,F97,F97+(F99-F97)*(E98-E97)/(E99-E97)) -> 0.2089081277 | G98: -0.325 | H98: 0.2089081277 | I98: =IF(ABS((H99-H98)/F79)<0.001,0,(G98*H99-G99*H98)/(H99-H98)) -> 0 | J98: =IF(ABS((H99-H98)/F79)<0.001,0,(G99-G98)/(H99-H98)) -> 0 | K98: =-((C79-D79)*E79/(2*D79^3))*(2*D79*(H99-H98)+D79^2*(H99^2-H98^2)+2*LN((1-D79*H99)/(1-D79*H98))) -> 0 | L98: =-(C79-D79)*E79*(H99^3-H98^3)/(3*D79)+K98/D79 -> 0 | M98: =-(C79-D79)*E79*(H99^4-H98^4)/(4*D79)+L98/D79 -> 0 | N98: =IF(ABS((H99-H98)/F79)<0.001,0,0.5*E79*I98*(H99^2-H98^2)+E79*J98*(H99^3-H98^3)/3-I98*K98-J98*L98) -> 0 | O98: =IF(ABS((H99-H98)/F79)<0.001,0,0.5*E79*(I98^2*(H99^2-H98^2)/2+2*I98*J98*(H99^3-H98^3)/3+J98^2*(H99^4-H98^4)/4)-0.5*I98^2*K98-I98*J98*L98-0.5*J98^2*M98) -> 0 | P98: =IF(ABS((H99-H98)/F79)<0.001,0,E79*(I98*(H99^3-H98^3)/3+J98*(H99^4-H98^4)/4)-I98*L98-J98*M98) -> 0 | Q98: 4 | R98: x | S98: =INDEX(Liner,S80+(Q98-1)*10,2)/1000 -> 0.265 | T98: =INDEX(Liner,T80+(Q98-1)*10,2)/1000 -> 0.3125 | U98: =INDEX(Liner,U80+(Q98-1)*10,2)/1000 -> 0.36 | V98: =INDEX(Liner,V80+(Q98-1)*10,2)/1000 -> 0.4075 | W98: =INDEX(Liner,W80+(Q98-1)*10,2)/1000 -> 0.455 | X98: =INDEX(Liner,X80+(Q98-1)*10,2)/1000 -> -1.4 | Y98: =INDEX(Liner,Y80+(Q98-1)*10,2)/1000 -> -1.4 | Z98: =INDEX(Liner,Z80+(Q98-1)*10,2)/1000 -> -1.4 | AA98: =INDEX(Liner,AA80+(Q98-1)*10,2)/1000 -> -1.4 | AB98: =INDEX(Liner,AB80+(Q98-1)*10,2)/1000 -> -1.4
B99: 10 | C99: =C67 -> 0.225 | D99: =D67 -> 0.55 | E99: =G79*(C99-E77)+H79*(D99-F77) -> -0.125 | F99: =-H79*(C99-E77)+G79*(D99-F77) -> 0.2089081277 | G99: -0.125 | H99: 0.2089081277 | I99: =IF(ABS((H100-H99)/F79)<0.001,0,(G99*H100-G100*H99)/(H100-H99)) -> 0 | J99: =IF(ABS((H100-H99)/F79)<0.001,0,(G100-G99)/(H100-H99)) -> 0 | K99: =-((C79-D79)*E79/(2*D79^3))*(2*D79*(H100-H99)+D79^2*(H100^2-H99^2)+2*LN((1-D79*H100)/(1-D79*H99))) -> 0 | L99: =-(C79-D79)*E79*(H100^3-H99^3)/(3*D79)+K99/D79 -> 0 | M99: =-(C79-D79)*E79*(H100^4-H99^4)/(4*D79)+L99/D79 -> 0 | N99: =IF(ABS((H100-H99)/F79)<0.001,0,0.5*E79*I99*(H100^2-H99^2)+E79*J99*(H100^3-H99^3)/3-I99*K99-J99*L99) -> 0 | O99: =IF(ABS((H100-H99)/F79)<0.001,0,0.5*E79*(I99^2*(H100^2-H99^2)/2+2*I99*J99*(H100^3-H99^3)/3+J99^2*(H100^4-H99^4)/4)-0.5*I99^2*K99-I99*J99*L99-0.5*J99^2*M99) -> 0 | P99: =IF(ABS((H100-H99)/F79)<0.001,0,E79*(I99*(H100^3-H99^3)/3+J99*(H100^4-H99^4)/4)-I99*L99-J99*M99) -> 0 | Q99: 4 | R99: y | S99: =INDEX(Liner,S80+(Q99-1)*10,3)/1000 -> 0.09 | T99: =INDEX(Liner,T80+(Q99-1)*10,3)/1000 -> 0.09 | U99: =INDEX(Liner,U80+(Q99-1)*10,3)/1000 -> 0.09 | V99: =INDEX(Liner,V80+(Q99-1)*10,3)/1000 -> 0.09 | W99: =INDEX(Liner,W80+(Q99-1)*10,3)/1000 -> 0.09 | X99: =INDEX(Liner,X80+(Q99-1)*10,3)/1000 -> 0.09 | Y99: =INDEX(Liner,Y80+(Q99-1)*10,3)/1000 -> 0.09 | Z99: =INDEX(Liner,Z80+(Q99-1)*10,3)/1000 -> 0.09 | AA99: =INDEX(Liner,AA80+(Q99-1)*10,3)/1000 -> 0.09 | AB99: =INDEX(Liner,AB80+(Q99-1)*10,3)/1000 -> 0.09
B100: 10' | E100: =IF(F101*F99<0,E99-(E101-E99)*F99/(F101-F99),E99) -> -0.125 | F100: =IF(E101=E99,F99,F99+(F101-F99)*(E100-E99)/(E101-E99)) -> 0.2089081277 | G100: -0.125 | H100: 0.2089081277 | I100: =IF(ABS((H101-H100)/F79)<0.001,0,(G100*H101-G101*H100)/(H101-H100)) -> -0.125 | J100: =IF(ABS((H101-H100)/F79)<0.001,0,(G101-G100)/(H101-H100)) -> 0 | K100: =-((C79-D79)*E79/(2*D79^3))*(2*D79*(H101-H100)+D79^2*(H101^2-H100^2)+2*LN((1-D79*H101)/(1-D79*H100))) -> -1.109976927 | L100: =-(C79-D79)*E79*(H101^3-H100^3)/(3*D79)+K100/D79 -> -0.1757025086 | M100: =-(C79-D79)*E79*(H101^4-H100^4)/(4*D79)+L100/D79 -> -0.02956787322 | N100: =IF(ABS((H101-H100)/F79)<0.001,0,0.5*E79*I100*(H101^2-H100^2)+E79*J100*(H101^3-H100^3)/3-I100*K100-J100*L100) -> 0.4467847178 | O100: =IF(ABS((H101-H100)/F79)<0.001,0,0.5*E79*(I100^2*(H101^2-H100^2)/2+2*I100*J100*(H101^3-H100^3)/3+J100^2*(H101^4-H100^4)/4)-0.5*I100^2*K100-I100*J100*L100-0.5*J100^2*M100) -> -0.02792404486 | P100: =IF(ABS((H101-H100)/F79)<0.001,0,E79*(I100*(H101^3-H100^3)/3+J100*(H101^4-H100^4)/4)-I100*L100-J100*M100) -> 0.0595854258 | Q100: 4 | R100: Na | S100: =IF(-(-H79*(S98-E77)+G79*(S99-F77))*C77/F79+IF(S96>0,S97/(S96*$S$5),0)>$S$6,IF(-(-H79*(S98-E77)+G79*(S99-F77))*C77/F79+IF(S96>0,S97/(S96*$S$5),0)>$S$8,0,$S$4+$S$9*(-(-H79*(S98-E77)+G79*(S99-F77))*C77/F79+IF(S96>0,S97/(S96*$S$5),0)-$S$6)),$S$5*(-(-H79*(S98-E77)+G79*(S99-F77))*C77/F79+IF(S96>0,S97/(S96*$S$5),0)))*S96 -> 0.125177796 | T100: =IF(-(-H79*(T98-E77)+G79*(T99-F77))*C77/F79+IF(T96>0,T97/(T96*$S$5),0)>$S$6,IF(-(-H79*(T98-E77)+G79*(T99-F77))*C77/F79+IF(T96>0,T97/(T96*$S$5),0)>$S$8,0,$S$4+$S$9*(-(-H79*(T98-E77)+G79*(T99-F77))*C77/F79+IF(T96>0,T97/(T96*$S$5),0)-$S$6)),$S$5*(-(-H79*(T98-E77)+G79*(T99-F77))*C77/F79+IF(T96>0,T97/(T96*$S$5),0)))*T96 -> 0.125177796 | U100: =IF(-(-H79*(U98-E77)+G79*(U99-F77))*C77/F79+IF(U96>0,U97/(U96*$S$5),0)>$S$6,IF(-(-H79*(U98-E77)+G79*(U99-F77))*C77/F79+IF(U96>0,U97/(U96*$S$5),0)>$S$8,0,$S$4+$S$9*(-(-H79*(U98-E77)+G79*(U99-F77))*C77/F79+IF(U96>0,U97/(U96*$S$5),0)-$S$6)),$S$5*(-(-H79*(U98-E77)+G79*(U99-F77))*C77/F79+IF(U96>0,U97/(U96*$S$5),0)))*U96 -> 0.125177796 | V100: =IF(-(-H79*(V98-E77)+G79*(V99-F77))*C77/F79+IF(V96>0,V97/(V96*$S$5),0)>$S$6,IF(-(-H79*(V98-E77)+G79*(V99-F77))*C77/F79+IF(V96>0,V97/(V96*$S$5),0)>$S$8,0,$S$4+$S$9*(-(-H79*(V98-E77)+G79*(V99-F77))*C77/F79+IF(V96>0,V97/(V96*$S$5),0)-$S$6)),$S$5*(-(-H79*(V98-E77)+G79*(V99-F77))*C77/F79+IF(V96>0,V97/(V96*$S$5),0)))*V96 -> 0.125177796 | W100: =IF(-(-H79*(W98-E77)+G79*(W99-F77))*C77/F79+IF(W96>0,W97/(W96*$S$5),0)>$S$6,IF(-(-H79*(W98-E77)+G79*(W99-F77))*C77/F79+IF(W96>0,W97/(W96*$S$5),0)>$S$8,0,$S$4+$S$9*(-(-H79*(W98-E77)+G79*(W99-F77))*C77/F79+IF(W96>0,W97/(W96*$S$5),0)-$S$6)),$S$5*(-(-H79*(W98-E77)+G79*(W99-F77))*C77/F79+IF(W96>0,W97/(W96*$S$5),0)))*W96 -> 0.125177796 | X100: =IF(-(-H79*(X98-E77)+G79*(X99-F77))*C77/F79+IF(X96>0,X97/(X96*$S$5),0)>$S$6,IF(-(-H79*(X98-E77)+G79*(X99-F77))*C77/F79+IF(X96>0,X97/(X96*$S$5),0)>$S$8,0,$S$4+$S$9*(-(-H79*(X98-E77)+G79*(X99-F77))*C77/F79+IF(X96>0,X97/(X96*$S$5),0)-$S$6)),$S$5*(-(-H79*(X98-E77)+G79*(X99-F77))*C77/F79+IF(X96>0,X97/(X96*$S$5),0)))*X96 -> 0 | Y100: =IF(-(-H79*(Y98-E77)+G79*(Y99-F77))*C77/F79+IF(Y96>0,Y97/(Y96*$S$5),0)>$S$6,IF(-(-H79*(Y98-E77)+G79*(Y99-F77))*C77/F79+IF(Y96>0,Y97/(Y96*$S$5),0)>$S$8,0,$S$4+$S$9*(-(-H79*(Y98-E77)+G79*(Y99-F77))*C77/F79+IF(Y96>0,Y97/(Y96*$S$5),0)-$S$6)),$S$5*(-(-H79*(Y98-E77)+G79*(Y99-F77))*C77/F79+IF(Y96>0,Y97/(Y96*$S$5),0)))*Y96 -> 0 | Z100: =IF(-(-H79*(Z98-E77)+G79*(Z99-F77))*C77/F79+IF(Z96>0,Z97/(Z96*$S$5),0)>$S$6,IF(-(-H79*(Z98-E77)+G79*(Z99-F77))*C77/F79+IF(Z96>0,Z97/(Z96*$S$5),0)>$S$8,0,$S$4+$S$9*(-(-H79*(Z98-E77)+G79*(Z99-F77))*C77/F79+IF(Z96>0,Z97/(Z96*$S$5),0)-$S$6)),$S$5*(-(-H79*(Z98-E77)+G79*(Z99-F77))*C77/F79+IF(Z96>0,Z97/(Z96*$S$5),0)))*Z96 -> 0 | AA100: =IF(-(-H79*(AA98-E77)+G79*(AA99-F77))*C77/F79+IF(AA96>0,AA97/(AA96*$S$5),0)>$S$6,IF(-(-H79*(AA98-E77)+G79*(AA99-F77))*C77/F79+IF(AA96>0,AA97/(AA96*$S$5),0)>$S$8,0,$S$4+$S$9*(-(-H79*(AA98-E77)+G79*(AA99-F77))*C77/F79+IF(AA96>0,AA97/(AA96*$S$5),0)-$S$6)),$S$5*(-(-H79*(AA98-E77)+G79*(AA99-F77))*C77/F79+IF(AA96>0,AA97/(AA96*$S$5),0)))*AA96 -> 0 | AB100: =IF(-(-H79*(AB98-E77)+G79*(AB99-F77))*C77/F79+IF(AB96>0,AB97/(AB96*$S$5),0)>$S$6,IF(-(-H79*(AB98-E77)+G79*(AB99-F77))*C77/F79+IF(AB96>0,AB97/(AB96*$S$5),0)>$S$8,0,$S$4+$S$9*(-(-H79*(AB98-E77)+G79*(AB99-F77))*C77/F79+IF(AB96>0,AB97/(AB96*$S$5),0)-$S$6)),$S$5*(-(-H79*(AB98-E77)+G79*(AB99-F77))*C77/F79+IF(AB96>0,AB97/(AB96*$S$5),0)))*AB96 -> 0
B101: 11 | C101: =C69 -> 0.225 | D101: =D69 -> 0 | E101: =G79*(C101-E77)+H79*(D101-F77) -> -0.125 | F101: =-H79*(C101-E77)+G79*(D101-F77) -> -0.3410918723 | G101: -0.125 | H101: 0 | I101: =IF(ABS((H102-H101)/F79)<0.001,0,(G101*H102-G102*H101)/(H102-H101)) -> 0 | J101: =IF(ABS((H102-H101)/F79)<0.001,0,(G102-G101)/(H102-H101)) -> 0 | K101: =-((C79-D79)*E79/(2*D79^3))*(2*D79*(H102-H101)+D79^2*(H102^2-H101^2)+2*LN((1-D79*H102)/(1-D79*H101))) -> 0 | L101: =-(C79-D79)*E79*(H102^3-H101^3)/(3*D79)+K101/D79 -> 0 | M101: =-(C79-D79)*E79*(H102^4-H101^4)/(4*D79)+L101/D79 -> 0 | N101: =IF(ABS((H102-H101)/F79)<0.001,0,0.5*E79*I101*(H102^2-H101^2)+E79*J101*(H102^3-H101^3)/3-I101*K101-J101*L101) -> 0 | O101: =IF(ABS((H102-H101)/F79)<0.001,0,0.5*E79*(I101^2*(H102^2-H101^2)/2+2*I101*J101*(H102^3-H101^3)/3+J101^2*(H102^4-H101^4)/4)-0.5*I101^2*K101-I101*J101*L101-0.5*J101^2*M101) -> 0 | P101: =IF(ABS((H102-H101)/F79)<0.001,0,E79*(I101*(H102^3-H101^3)/3+J101*(H102^4-H101^4)/4)-I101*L101-J101*M101) -> 0 | Q101: 5 | R101: A | S101: =INDEX(Liner,S80+(Q101-1)*10,9)/1000000 -> 9.3e-05 | T101: =INDEX(Liner,T80+(Q101-1)*10,9)/1000000 -> 9.3e-05 | U101: =INDEX(Liner,U80+(Q101-1)*10,9)/1000000 -> 9.3e-05 | V101: =INDEX(Liner,V80+(Q101-1)*10,9)/1000000 -> 9.3e-05 | W101: =INDEX(Liner,W80+(Q101-1)*10,9)/1000000 -> 9.3e-05 | X101: =INDEX(Liner,X80+(Q101-1)*10,9)/1000000 -> 9.3e-05 | Y101: =INDEX(Liner,Y80+(Q101-1)*10,9)/1000000 -> 9.3e-05 | Z101: =INDEX(Liner,Z80+(Q101-1)*10,9)/1000000 -> 0 | AA101: =INDEX(Liner,AA80+(Q101-1)*10,9)/1000000 -> 0 | AB101: =INDEX(Liner,AB80+(Q101-1)*10,9)/1000000 -> 0
B102: 11' | E102: =IF(F103*F101<0,E101-(E103-E101)*F101/(F103-F101),E101) -> -0.125 | F102: =IF(E103=E101,F101,F101+(F103-F101)*(E102-E101)/(E103-E101)) -> -0.3410918723 | G102: -0.125 | H102: 0 | I102: =IF(ABS((H103-H102)/F79)<0.001,0,(G102*H103-G103*H102)/(H103-H102)) -> 0 | J102: =IF(ABS((H103-H102)/F79)<0.001,0,(G103-G102)/(H103-H102)) -> 0 | K102: =-((C79-D79)*E79/(2*D79^3))*(2*D79*(H103-H102)+D79^2*(H103^2-H102^2)+2*LN((1-D79*H103)/(1-D79*H102))) -> 0 | L102: =-(C79-D79)*E79*(H103^3-H102^3)/(3*D79)+K102/D79 -> 0 | M102: =-(C79-D79)*E79*(H103^4-H102^4)/(4*D79)+L102/D79 -> 0 | N102: =IF(ABS((H103-H102)/F79)<0.001,0,0.5*E79*I102*(H103^2-H102^2)+E79*J102*(H103^3-H102^3)/3-I102*K102-J102*L102) -> 0 | O102: =IF(ABS((H103-H102)/F79)<0.001,0,0.5*E79*(I102^2*(H103^2-H102^2)/2+2*I102*J102*(H103^3-H102^3)/3+J102^2*(H103^4-H102^4)/4)-0.5*I102^2*K102-I102*J102*L102-0.5*J102^2*M102) -> 0 | P102: =IF(ABS((H103-H102)/F79)<0.001,0,E79*(I102*(H103^3-H102^3)/3+J102*(H103^4-H102^4)/4)-I102*L102-J102*M102) -> 0 | Q102: 5 | R102: Nf | S102: =INDEX(Liner,S80+(Q102-1)*10,10)/1000 -> 0.1 | T102: =INDEX(Liner,T80+(Q102-1)*10,10)/1000 -> 0.1 | U102: =INDEX(Liner,U80+(Q102-1)*10,10)/1000 -> 0.1 | V102: =INDEX(Liner,V80+(Q102-1)*10,10)/1000 -> 0.1 | W102: =INDEX(Liner,W80+(Q102-1)*10,10)/1000 -> 0.1 | X102: =INDEX(Liner,X80+(Q102-1)*10,10)/1000 -> 0.1 | Y102: =INDEX(Liner,Y80+(Q102-1)*10,10)/1000 -> 0.1 | Z102: =INDEX(Liner,Z80+(Q102-1)*10,10)/1000 -> 0 | AA102: =INDEX(Liner,AA80+(Q102-1)*10,10)/1000 -> 0 | AB102: =INDEX(Liner,AB80+(Q102-1)*10,10)/1000 -> 0
B103: 12 | C103: =C71 -> 0.225 | D103: =D71 -> 0 | E103: =G79*(C103-E77)+H79*(D103-F77) -> -0.125 | F103: =-H79*(C103-E77)+G79*(D103-F77) -> -0.3410918723 | G103: -0.125 | H103: 0 | I103: =IF(ABS((H104-H103)/F79)<0.001,0,(G103*H104-G104*H103)/(H104-H103)) -> 0 | J103: =IF(ABS((H104-H103)/F79)<0.001,0,(G104-G103)/(H104-H103)) -> 0 | K103: =-((C79-D79)*E79/(2*D79^3))*(2*D79*(H104-H103)+D79^2*(H104^2-H103^2)+2*LN((1-D79*H104)/(1-D79*H103))) -> 0 | L103: =-(C79-D79)*E79*(H104^3-H103^3)/(3*D79)+K103/D79 -> 0 | M103: =-(C79-D79)*E79*(H104^4-H103^4)/(4*D79)+L103/D79 -> 0 | N103: =IF(ABS((H104-H103)/F79)<0.001,0,0.5*E79*I103*(H104^2-H103^2)+E79*J103*(H104^3-H103^3)/3-I103*K103-J103*L103) -> 0 | O103: =IF(ABS((H104-H103)/F79)<0.001,0,0.5*E79*(I103^2*(H104^2-H103^2)/2+2*I103*J103*(H104^3-H103^3)/3+J103^2*(H104^4-H103^4)/4)-0.5*I103^2*K103-I103*J103*L103-0.5*J103^2*M103) -> 0 | P103: =IF(ABS((H104-H103)/F79)<0.001,0,E79*(I103*(H104^3-H103^3)/3+J103*(H104^4-H103^4)/4)-I103*L103-J103*M103) -> 0 | Q103: 5 | R103: x | S103: =INDEX(Liner,S80+(Q103-1)*10,2)/1000 -> 0.265 | T103: =INDEX(Liner,T80+(Q103-1)*10,2)/1000 -> 0.3125 | U103: =INDEX(Liner,U80+(Q103-1)*10,2)/1000 -> 0.36 | V103: =INDEX(Liner,V80+(Q103-1)*10,2)/1000 -> 0.4075 | W103: =INDEX(Liner,W80+(Q103-1)*10,2)/1000 -> 0.455 | X103: =INDEX(Liner,X80+(Q103-1)*10,2)/1000 -> 0.5025 | Y103: =INDEX(Liner,Y80+(Q103-1)*10,2)/1000 -> 0.55 | Z103: =INDEX(Liner,Z80+(Q103-1)*10,2)/1000 -> -1.4 | AA103: =INDEX(Liner,AA80+(Q103-1)*10,2)/1000 -> -1.4 | AB103: =INDEX(Liner,AB80+(Q103-1)*10,2)/1000 -> -1.4
B104: 12' | E104: =IF(F105*F103<0,E103-(E105-E103)*F103/(F105-F103),E103) -> -0.125 | F104: =IF(E105=E103,F103,F103+(F105-F103)*(E104-E103)/(E105-E103)) -> -0.3410918723 | G104: -0.125 | H104: 0 | I104: =IF(ABS((H105-H104)/F79)<0.001,0,(G104*H105-G105*H104)/(H105-H104)) -> 0 | J104: =IF(ABS((H105-H104)/F79)<0.001,0,(G105-G104)/(H105-H104)) -> 0 | K104: =-((C79-D79)*E79/(2*D79^3))*(2*D79*(H105-H104)+D79^2*(H105^2-H104^2)+2*LN((1-D79*H105)/(1-D79*H104))) -> 0 | L104: =-(C79-D79)*E79*(H105^3-H104^3)/(3*D79)+K104/D79 -> 0 | M104: =-(C79-D79)*E79*(H105^4-H104^4)/(4*D79)+L104/D79 -> 0 | N104: =IF(ABS((H105-H104)/F79)<0.001,0,0.5*E79*I104*(H105^2-H104^2)+E79*J104*(H105^3-H104^3)/3-I104*K104-J104*L104) -> 0 | O104: =IF(ABS((H105-H104)/F79)<0.001,0,0.5*E79*(I104^2*(H105^2-H104^2)/2+2*I104*J104*(H105^3-H104^3)/3+J104^2*(H105^4-H104^4)/4)-0.5*I104^2*K104-I104*J104*L104-0.5*J104^2*M104) -> 0 | P104: =IF(ABS((H105-H104)/F79)<0.001,0,E79*(I104*(H105^3-H104^3)/3+J104*(H105^4-H104^4)/4)-I104*L104-J104*M104) -> 0 | Q104: 5 | R104: y | S104: =INDEX(Liner,S80+(Q104-1)*10,3)/1000 -> 0.05 | T104: =INDEX(Liner,T80+(Q104-1)*10,3)/1000 -> 0.05 | U104: =INDEX(Liner,U80+(Q104-1)*10,3)/1000 -> 0.05 | V104: =INDEX(Liner,V80+(Q104-1)*10,3)/1000 -> 0.05 | W104: =INDEX(Liner,W80+(Q104-1)*10,3)/1000 -> 0.05 | X104: =INDEX(Liner,X80+(Q104-1)*10,3)/1000 -> 0.05 | Y104: =INDEX(Liner,Y80+(Q104-1)*10,3)/1000 -> 0.05 | Z104: =INDEX(Liner,Z80+(Q104-1)*10,3)/1000 -> 0.05 | AA104: =INDEX(Liner,AA80+(Q104-1)*10,3)/1000 -> 0.05 | AB104: =INDEX(Liner,AB80+(Q104-1)*10,3)/1000 -> 0.05
B105: 13 | C105: =C73 -> 0.225 | D105: =D73 -> 0 | E105: =G79*(C105-E77)+H79*(D105-F77) -> -0.125 | F105: =-H79*(C105-E77)+G79*(D105-F77) -> -0.3410918723 | G105: -0.125 | H105: 0 | I105: =IF(ABS((H106-H105)/F79)<0.001,0,(G105*H106-G106*H105)/(H106-H105)) -> 0 | J105: =IF(ABS((H106-H105)/F79)<0.001,0,(G106-G105)/(H106-H105)) -> 0 | K105: =-((C79-D79)*E79/(2*D79^3))*(2*D79*(H106-H105)+D79^2*(H106^2-H105^2)+2*LN((1-D79*H106)/(1-D79*H105))) -> 0 | L105: =-(C79-D79)*E79*(H106^3-H105^3)/(3*D79)+K105/D79 -> 0 | M105: =-(C79-D79)*E79*(H106^4-H105^4)/(4*D79)+L105/D79 -> 0 | N105: =IF(ABS((H106-H105)/F79)<0.001,0,0.5*E79*I105*(H106^2-H105^2)+E79*J105*(H106^3-H105^3)/3-I105*K105-J105*L105) -> 0 | O105: =IF(ABS((H106-H105)/F79)<0.001,0,0.5*E79*(I105^2*(H106^2-H105^2)/2+2*I105*J105*(H106^3-H105^3)/3+J105^2*(H106^4-H105^4)/4)-0.5*I105^2*K105-I105*J105*L105-0.5*J105^2*M105) -> 0 | P105: =IF(ABS((H106-H105)/F79)<0.001,0,E79*(I105*(H106^3-H105^3)/3+J105*(H106^4-H105^4)/4)-I105*L105-J105*M105) -> 0 | Q105: 5 | R105: Na | S105: =IF(-(-H79*(S103-E77)+G79*(S104-F77))*C77/F79+IF(S101>0,S102/(S101*$S$5),0)>$S$6,IF(-(-H79*(S103-E77)+G79*(S104-F77))*C77/F79+IF(S101>0,S102/(S101*$S$5),0)>$S$8,0,$S$4+$S$9*(-(-H79*(S103-E77)+G79*(S104-F77))*C77/F79+IF(S101>0,S102/(S101*$S$5),0)-$S$6)),$S$5*(-(-H79*(S103-E77)+G79*(S104-F77))*C77/F79+IF(S101>0,S102/(S101*$S$5),0)))*S101 -> 0.1255861051 | T105: =IF(-(-H79*(T103-E77)+G79*(T104-F77))*C77/F79+IF(T101>0,T102/(T101*$S$5),0)>$S$6,IF(-(-H79*(T103-E77)+G79*(T104-F77))*C77/F79+IF(T101>0,T102/(T101*$S$5),0)>$S$8,0,$S$4+$S$9*(-(-H79*(T103-E77)+G79*(T104-F77))*C77/F79+IF(T101>0,T102/(T101*$S$5),0)-$S$6)),$S$5*(-(-H79*(T103-E77)+G79*(T104-F77))*C77/F79+IF(T101>0,T102/(T101*$S$5),0)))*T101 -> 0.1255861051 | U105: =IF(-(-H79*(U103-E77)+G79*(U104-F77))*C77/F79+IF(U101>0,U102/(U101*$S$5),0)>$S$6,IF(-(-H79*(U103-E77)+G79*(U104-F77))*C77/F79+IF(U101>0,U102/(U101*$S$5),0)>$S$8,0,$S$4+$S$9*(-(-H79*(U103-E77)+G79*(U104-F77))*C77/F79+IF(U101>0,U102/(U101*$S$5),0)-$S$6)),$S$5*(-(-H79*(U103-E77)+G79*(U104-F77))*C77/F79+IF(U101>0,U102/(U101*$S$5),0)))*U101 -> 0.1255861051 | V105: =IF(-(-H79*(V103-E77)+G79*(V104-F77))*C77/F79+IF(V101>0,V102/(V101*$S$5),0)>$S$6,IF(-(-H79*(V103-E77)+G79*(V104-F77))*C77/F79+IF(V101>0,V102/(V101*$S$5),0)>$S$8,0,$S$4+$S$9*(-(-H79*(V103-E77)+G79*(V104-F77))*C77/F79+IF(V101>0,V102/(V101*$S$5),0)-$S$6)),$S$5*(-(-H79*(V103-E77)+G79*(V104-F77))*C77/F79+IF(V101>0,V102/(V101*$S$5),0)))*V101 -> 0.1255861051 | W105: =IF(-(-H79*(W103-E77)+G79*(W104-F77))*C77/F79+IF(W101>0,W102/(W101*$S$5),0)>$S$6,IF(-(-H79*(W103-E77)+G79*(W104-F77))*C77/F79+IF(W101>0,W102/(W101*$S$5),0)>$S$8,0,$S$4+$S$9*(-(-H79*(W103-E77)+G79*(W104-F77))*C77/F79+IF(W101>0,W102/(W101*$S$5),0)-$S$6)),$S$5*(-(-H79*(W103-E77)+G79*(W104-F77))*C77/F79+IF(W101>0,W102/(W101*$S$5),0)))*W101 -> 0.1255861051 | X105: =IF(-(-H79*(X103-E77)+G79*(X104-F77))*C77/F79+IF(X101>0,X102/(X101*$S$5),0)>$S$6,IF(-(-H79*(X103-E77)+G79*(X104-F77))*C77/F79+IF(X101>0,X102/(X101*$S$5),0)>$S$8,0,$S$4+$S$9*(-(-H79*(X103-E77)+G79*(X104-F77))*C77/F79+IF(X101>0,X102/(X101*$S$5),0)-$S$6)),$S$5*(-(-H79*(X103-E77)+G79*(X104-F77))*C77/F79+IF(X101>0,X102/(X101*$S$5),0)))*X101 -> 0.1255861051 | Y105: =IF(-(-H79*(Y103-E77)+G79*(Y104-F77))*C77/F79+IF(Y101>0,Y102/(Y101*$S$5),0)>$S$6,IF(-(-H79*(Y103-E77)+G79*(Y104-F77))*C77/F79+IF(Y101>0,Y102/(Y101*$S$5),0)>$S$8,0,$S$4+$S$9*(-(-H79*(Y103-E77)+G79*(Y104-F77))*C77/F79+IF(Y101>0,Y102/(Y101*$S$5),0)-$S$6)),$S$5*(-(-H79*(Y103-E77)+G79*(Y104-F77))*C77/F79+IF(Y101>0,Y102/(Y101*$S$5),0)))*Y101 -> 0.1255861051 | Z105: =IF(-(-H79*(Z103-E77)+G79*(Z104-F77))*C77/F79+IF(Z101>0,Z102/(Z101*$S$5),0)>$S$6,IF(-(-H79*(Z103-E77)+G79*(Z104-F77))*C77/F79+IF(Z101>0,Z102/(Z101*$S$5),0)>$S$8,0,$S$4+$S$9*(-(-H79*(Z103-E77)+G79*(Z104-F77))*C77/F79+IF(Z101>0,Z102/(Z101*$S$5),0)-$S$6)),$S$5*(-(-H79*(Z103-E77)+G79*(Z104-F77))*C77/F79+IF(Z101>0,Z102/(Z101*$S$5),0)))*Z101 -> 0 | AA105: =IF(-(-H79*(AA103-E77)+G79*(AA104-F77))*C77/F79+IF(AA101>0,AA102/(AA101*$S$5),0)>$S$6,IF(-(-H79*(AA103-E77)+G79*(AA104-F77))*C77/F79+IF(AA101>0,AA102/(AA101*$S$5),0)>$S$8,0,$S$4+$S$9*(-(-H79*(AA103-E77)+G79*(AA104-F77))*C77/F79+IF(AA101>0,AA102/(AA101*$S$5),0)-$S$6)),$S$5*(-(-H79*(AA103-E77)+G79*(AA104-F77))*C77/F79+IF(AA101>0,AA102/(AA101*$S$5),0)))*AA101 -> 0 | AB105: =IF(-(-H79*(AB103-E77)+G79*(AB104-F77))*C77/F79+IF(AB101>0,AB102/(AB101*$S$5),0)>$S$6,IF(-(-H79*(AB103-E77)+G79*(AB104-F77))*C77/F79+IF(AB101>0,AB102/(AB101*$S$5),0)>$S$8,0,$S$4+$S$9*(-(-H79*(AB103-E77)+G79*(AB104-F77))*C77/F79+IF(AB101>0,AB102/(AB101*$S$5),0)-$S$6)),$S$5*(-(-H79*(AB103-E77)+G79*(AB104-F77))*C77/F79+IF(AB101>0,AB102/(AB101*$S$5),0)))*AB101 -> 0
B106: 13' | E106: =IF(F107*F105<0,E105-(E107-E105)*F105/(F107-F105),E105) -> -0.125 | F106: =IF(E107=E105,F105,F105+(F107-F105)*(E106-E105)/(E107-E105)) -> -0.3410918723 | G106: -0.125 | H106: 0 | I106: =IF(ABS((H107-H106)/F79)<0.001,0,(G106*H107-G107*H106)/(H107-H106)) -> 0 | J106: =IF(ABS((H107-H106)/F79)<0.001,0,(G107-G106)/(H107-H106)) -> 0 | K106: =-((C79-D79)*E79/(2*D79^3))*(2*D79*(H107-H106)+D79^2*(H107^2-H106^2)+2*LN((1-D79*H107)/(1-D79*H106))) -> 0 | L106: =-(C79-D79)*E79*(H107^3-H106^3)/(3*D79)+K106/D79 -> 0 | M106: =-(C79-D79)*E79*(H107^4-H106^4)/(4*D79)+L106/D79 -> 0 | N106: =IF(ABS((H107-H106)/F79)<0.001,0,0.5*E79*I106*(H107^2-H106^2)+E79*J106*(H107^3-H106^3)/3-I106*K106-J106*L106) -> 0 | O106: =IF(ABS((H107-H106)/F79)<0.001,0,0.5*E79*(I106^2*(H107^2-H106^2)/2+2*I106*J106*(H107^3-H106^3)/3+J106^2*(H107^4-H106^4)/4)-0.5*I106^2*K106-I106*J106*L106-0.5*J106^2*M106) -> 0 | P106: =IF(ABS((H107-H106)/F79)<0.001,0,E79*(I106*(H107^3-H106^3)/3+J106*(H107^4-H106^4)/4)-I106*L106-J106*M106) -> 0 | S106: =IF(S107>0,S107,1) -> 0.01786058694 | T106: =IF(T107>0,T107,1) -> 0.01786058694 | U106: 0.01786058694 | V106: 0.01786058694 | W106: 0.01786058694 | X106: 0.01786058694 | Y106: 0.01786058694 | Z106: 1 | AA106: 1 | AB106: 1
B107: 27 | C107: =C75 -> 0.35 | D107: =D75 -> 0 | E107: =G79*(C107-E77)+H79*(D107-F77) -> 0 | F107: =-H79*(C107-E77)+G79*(D107-F77) -> -0.3410918723 | G107: 0 | H107: 0 | S107: =IF(S101>0,$F79*($S$8-S102/(S101*$S$5))/(-(-$H79*(S103-$E77)+$G79*(S104-$F77))),0) -> 0.01786058694 | T107: =IF(T101>0,$F79*($S$8-T102/(T101*$S$5))/(-(-$H79*(T103-$E77)+$G79*(T104-$F77))),0) -> 0.01786058694 | U107: 0.01786058694 | V107: 0.01786058694 | W107: 0.01786058694 | X107: 0.01786058694 | Y107: 0.01786058694 | Z107: 0 | AA107: 0 | AB107: 0
B108: =B76 -> 1 | C108: e0 | D108: v (rad) | E108: x0 | F108: y0 | G108: z0 | I108: Dz0 | J108: DNy | K108: DMy | N108: Nc-Na
B109: A | C109: =MIN($C$13,0.99*MIN(S106:AB106)) -> 0.0035 | D109: =IF($M$10=1,0,ATAN((G109-F109)/($C$11))) -> -0.3024265172 | E109: =E77 -> 0.35 | F109: =F77+H109 -> 0.3410918723 | G109: =G77+I109 -> 0.1460937723 | H109: 0 | I109: =MIN(0.2*(MAX(D113:D139)-MIN(D113:D139)),$C$11*(I79-0.1*P77)/P77) -> -0.1949981 | J109: =N111-N79 -> 0.02168240253 | K109: =I111-I79 -> 0.02519390668 | N109: =SUM(N113:N139)-R111 -> -0.02120190651
B110: Beton | C110: A | D110: B | E110: D | F110: tmax | G110: cosv | H110: sinv | I110: My | J110: xres | K110: yres | L110: sres | M110: tres | N110: Nc | O110: sNc | P110: tNc | Q110: Armering | R110: Na | S110: x_a | T110: y_a
C111: =$C$13/($C$8*$C$6*F111) -> 2.21384856 | D111: =(2-$C$8)*$C$13/($C$6*F111) -> 0.8296912686 | E111: =$C$8*$C$13*$C$5/($C$6*F111) -> 202.8297894 | F111: =MAX(H113:H139) -> 0.3798493382 | G111: =COS(D109) -> 0.9546165925 | H111: =SIN(D109) -> -0.2978374748 | I111: =(J111-$G$10)*N111-(S111-$G$10)*R111 -> -0.2051645232 | J111: =E109+L111*G111-M111*H111 -> 0.2884896706 | K111: =F109+L111*H111+M111*G111 -> 0.5758694605 | L111: =O111/N111 -> -0.1286443451 | M111: =P111/N111 -> 0.2058025001 | N111: =SUM(N113:N139) -> 2.655406435 | O111: =SUM(O113:O139) -> -0.3416030218 | P111: =SUM(P113:P139) -> 0.5464892831 | R111: =SUM(S117:AB117)+SUM(S122:AB122)+SUM(S127:AB127)+SUM(S132:AB132)+SUM(S137:AB137) -> 2.676608342 | S111: =(SUMPRODUCT(S115:AB115,S117:AB117)+SUMPRODUCT(S120:AB120*S122:AB122)+SUMPRODUCT(S125:AB125,S127:AB127)+SUMPRODUCT(S130:AB130,S132:AB132)+SUMPRODUCT(S135:AB135,S137:AB137))/R111 -> 0.3656278369 | T111: =(SUMPRODUCT(S116:AB116,S117:AB117)+SUMPRODUCT(S121:AB121*S122:AB122)+SUMPRODUCT(S126:AB126,S127:AB127)+SUMPRODUCT(S131:AB131,S132:AB132)+SUMPRODUCT(S136:AB136,S137:AB137))/R111 -> 0.1690273682
B112: pkt. | C112: x | D112: y | E112: s1 | F112: t1 | G112: s | H112: t | I112: s' | J112: s'' | K112: I1 | L112: I2 | M112: I3 | N112: DNc | O112: DsNc | P112: DtNc | Q112: lag | R112: line: | S112: 1 | T112: 2 | U112: 3 | V112: 4 | W112: 5 | X112: 6 | Y112: 7 | Z112: 8 | AA112: 9 | AB112: 10
B113: 1 | C113: =C81 -> 0.35 | D113: =D81 -> 0 | E113: =G111*(C113-E109)+H111*(D113-F109) -> 0.1015899419 | F113: =-H111*(C113-E109)+G111*(D113-F109) -> -0.3256119609 | G113: =E113 -> 0.1015899419 | H113: =MAX(F113,0) -> 0 | I113: =IF(ABS((H114-H113)/F111)<0.001,0,(G113*H114-G114*H113)/(H114-H113)) -> 0 | J113: =IF(ABS((H114-H113)/F111)<0.001,0,(G114-G113)/(H114-H113)) -> 0 | K113: =IF(H114=H113,0,-((C111-D111)*E111/(2*D111^3))*(2*D111*(H114-H113)+D111^2*(H114^2-H113^2)+2*LN((1-D111*H114)/(1-D111*H113)))) -> 0 | L113: =-(C111-D111)*E111*(H114^3-H113^3)/(3*D111)+K113/D111 -> 0 | M113: =-(C111-D111)*E111*(H114^4-H113^4)/(4*D111)+L113/D111 -> 0 | N113: =IF(ABS((H114-H113)/F111)<0.001,0,0.5*E111*I113*(H114^2-H113^2)+E111*J113*(H114^3-H113^3)/3-I113*K113-J113*L113) -> 0 | O113: =IF(ABS((H114-H113)/F111)<0.001,0,0.5*E111*(I113^2*(H114^2-H113^2)/2+2*I113*J113*(H114^3-H113^3)/3+J113^2*(H114^4-H113^4)/4)-0.5*I113^2*K113-I113*J113*L113-0.5*J113^2*M113) -> 0 | P113: =IF(ABS((H114-H113)/F111)<0.001,0,E111*(I113*(H114^3-H113^3)/3+J113*(H114^4-H113^4)/4)-I113*L113-J113*M113) -> 0 | Q113: 1 | R113: A | S113: =INDEX(Liner,S112+(Q113-1)*10,9)/1000000 -> 9.3e-05 | T113: =INDEX(Liner,T112+(Q113-1)*10,9)/1000000 -> 9.3e-05 | U113: =INDEX(Liner,U112+(Q113-1)*10,9)/1000000 -> 9.3e-05 | V113: =INDEX(Liner,V112+(Q113-1)*10,9)/1000000 -> 9.3e-05 | W113: =INDEX(Liner,W112+(Q113-1)*10,9)/1000000 -> 9.3e-05 | X113: =INDEX(Liner,X112+(Q113-1)*10,9)/1000000 -> 9.3e-05 | Y113: =INDEX(Liner,Y112+(Q113-1)*10,9)/1000000 -> 9.3e-05 | Z113: =INDEX(Liner,Z112+(Q113-1)*10,9)/1000000 -> 9.3e-05 | AA113: =INDEX(Liner,AA112+(Q113-1)*10,9)/1000000 -> 0 | AB113: =INDEX(Liner,AB112+(Q113-1)*10,9)/1000000 -> 0
B114: 1' | E114: =IF(F115*F113<0,E113-(E115-E113)*F113/(F115-F113),E113) -> 0.1015899419 | F114: =IF(E115=E113,F113,F113+(F115-F113)*(E114-E113)/(E115-E113)) -> -0.3256119609 | G114: 0.1015899419 | H114: =MAX(F114,0) -> 0 | I114: =IF(ABS((H115-H114)/F111)<0.001,0,(G114*H115-G115*H114)/(H115-H114)) -> 0 | J114: =IF(ABS((H115-H114)/F111)<0.001,0,(G115-G114)/(H115-H114)) -> 0 | K114: =-((C111-D111)*E111/(2*D111^3))*(2*D111*(H115-H114)+D111^2*(H115^2-H114^2)+2*LN((1-D111*H115)/(1-D111*H114))) -> 0 | L114: =-(C111-D111)*E111*(H115^3-H114^3)/(3*D111)+K114/D111 -> 0 | M114: =-(C111-D111)*E111*(H115^4-H114^4)/(4*D111)+L114/D111 -> 0 | N114: =IF(ABS((H115-H114)/F111)<0.001,0,0.5*E111*I114*(H115^2-H114^2)+E111*J114*(H115^3-H114^3)/3-I114*K114-J114*L114) -> 0 | O114: =IF(ABS((H115-H114)/F111)<0.001,0,0.5*E111*(I114^2*(H115^2-H114^2)/2+2*I114*J114*(H115^3-H114^3)/3+J114^2*(H115^4-H114^4)/4)-0.5*I114^2*K114-I114*J114*L114-0.5*J114^2*M114) -> 0 | P114: =IF(ABS((H115-H114)/F111)<0.001,0,E111*(I114*(H115^3-H114^3)/3+J114*(H115^4-H114^4)/4)-I114*L114-J114*M114) -> 0 | Q114: 1 | R114: Nf | S114: =INDEX(Liner,S112+(Q114-1)*10,10)/1000 -> 0.1 | T114: =INDEX(Liner,T112+(Q114-1)*10,10)/1000 -> 0.1 | U114: =INDEX(Liner,U112+(Q114-1)*10,10)/1000 -> 0.1 | V114: =INDEX(Liner,V112+(Q114-1)*10,10)/1000 -> 0.1 | W114: =INDEX(Liner,W112+(Q114-1)*10,10)/1000 -> 0.1 | X114: =INDEX(Liner,X112+(Q114-1)*10,10)/1000 -> 0.1 | Y114: =INDEX(Liner,Y112+(Q114-1)*10,10)/1000 -> 0.1 | Z114: =INDEX(Liner,Z112+(Q114-1)*10,10)/1000 -> 0.1 | AA114: =INDEX(Liner,AA112+(Q114-1)*10,10)/1000 -> 0 | AB114: =INDEX(Liner,AB112+(Q114-1)*10,10)/1000 -> 0
B115: 2 | C115: =C83 -> 0.6 | D115: =D83 -> 0 | E115: =G111*(C115-E109)+H111*(D115-F109) -> 0.34024409 | F115: =-H111*(C115-E109)+G111*(D115-F109) -> -0.2511525922 | G115: 0.34024409 | H115: 0 | I115: =IF(ABS((H116-H115)/F111)<0.001,0,(G115*H116-G116*H115)/(H116-H115)) -> 0 | J115: =IF(ABS((H116-H115)/F111)<0.001,0,(G116-G115)/(H116-H115)) -> 0 | K115: =-((C111-D111)*E111/(2*D111^3))*(2*D111*(H116-H115)+D111^2*(H116^2-H115^2)+2*LN((1-D111*H116)/(1-D111*H115))) -> 1.858851794e-14 | L115: =-(C111-D111)*E111*(H116^3-H115^3)/(3*D111)+K115/D111 -> 2.240413831e-14 | M115: =-(C111-D111)*E111*(H116^4-H115^4)/(4*D111)+L115/D111 -> 2.700298191e-14 | N115: =IF(ABS((H116-H115)/F111)<0.001,0,0.5*E111*I115*(H116^2-H115^2)+E111*J115*(H116^3-H115^3)/3-I115*K115-J115*L115) -> 0 | O115: =IF(ABS((H116-H115)/F111)<0.001,0,0.5*E111*(I115^2*(H116^2-H115^2)/2+2*I115*J115*(H116^3-H115^3)/3+J115^2*(H116^4-H115^4)/4)-0.5*I115^2*K115-I115*J115*L115-0.5*J115^2*M115) -> 0 | P115: =IF(ABS((H116-H115)/F111)<0.001,0,E111*(I115*(H116^3-H115^3)/3+J115*(H116^4-H115^4)/4)-I115*L115-J115*M115) -> 0 | Q115: 1 | R115: x | S115: =INDEX(Liner,S112+(Q115-1)*10,2)/1000 -> 0.075 | T115: =INDEX(Liner,T112+(Q115-1)*10,2)/1000 -> 0.147 | U115: =INDEX(Liner,U112+(Q115-1)*10,2)/1000 -> 0.219 | V115: =INDEX(Liner,V112+(Q115-1)*10,2)/1000 -> 0.291 | W115: =INDEX(Liner,W112+(Q115-1)*10,2)/1000 -> 0.363 | X115: =INDEX(Liner,X112+(Q115-1)*10,2)/1000 -> 0.435 | Y115: =INDEX(Liner,Y112+(Q115-1)*10,2)/1000 -> 0.265 | Z115: =INDEX(Liner,Z112+(Q115-1)*10,2)/1000 -> 0.6 | AA115: =INDEX(Liner,AA112+(Q115-1)*10,2)/1000 -> -1.4 | AB115: =INDEX(Liner,AB112+(Q115-1)*10,2)/1000 -> -1.4
B116: 2' | E116: =IF(F117*F115<0,E115-(E117-E115)*F115/(F117-F115),E115) -> 0.3055481799 | F116: =IF(E117=E115,F115,F115+(F117-F115)*(E116-E115)/(E117-E115)) -> 2.220446049e-16 | G116: 0.3055481799 | H116: 2.220446049e-16 | I116: =IF(ABS((H117-H116)/F111)<0.001,0,(G116*H117-G117*H116)/(H117-H116)) -> 0.3055481799 | J116: =IF(ABS((H117-H116)/F111)<0.001,0,(G117-G116)/(H117-H116)) -> -0.1381467332 | K116: =-((C111-D111)*E111/(2*D111^3))*(2*D111*(H117-H116)+D111^2*(H117^2-H116^2)+2*LN((1-D111*H117)/(1-D111*H116))) -> 0.01216553903 | L116: =-(C111-D111)*E111*(H117^3-H116^3)/(3*D111)+K116/D111 -> 0.0004583161967 | M116: =-(C111-D111)*E111*(H117^4-H116^4)/(4*D111)+L116/D111 -> 1.840437068e-05 | N116: =IF(ABS((H117-H116)/F111)<0.001,0,0.5*E111*I116*(H117^2-H116^2)+E111*J116*(H117^3-H116^3)/3-I116*K116-J116*L116) -> 0.07302328284 | O116: =IF(ABS((H117-H116)/F111)<0.001,0,0.5*E111*(I116^2*(H117^2-H116^2)/2+2*I116*J116*(H117^3-H116^3)/3+J116^2*(H117^4-H116^4)/4)-0.5*I116^2*K116-I116*J116*L116-0.5*J116^2*M116) -> 0.01098891855 | P116: =IF(ABS((H117-H116)/F111)<0.001,0,E111*(I116*(H117^3-H116^3)/3+J116*(H117^4-H116^4)/4)-I116*L116-J116*M116) -> 0.002419847762 | Q116: 1 | R116: y | S116: =INDEX(Liner,S112+(Q116-1)*10,3)/1000 -> 0.65 | T116: =INDEX(Liner,T112+(Q116-1)*10,3)/1000 -> 0.65 | U116: =INDEX(Liner,U112+(Q116-1)*10,3)/1000 -> 0.65 | V116: =INDEX(Liner,V112+(Q116-1)*10,3)/1000 -> 0.65 | W116: =INDEX(Liner,W112+(Q116-1)*10,3)/1000 -> 0.65 | X116: =INDEX(Liner,X112+(Q116-1)*10,3)/1000 -> 0.65 | Y116: =INDEX(Liner,Y112+(Q116-1)*10,3)/1000 -> 0.25 | Z116: =INDEX(Liner,Z112+(Q116-1)*10,3)/1000 -> 0.25 | AA116: =INDEX(Liner,AA112+(Q116-1)*10,3)/1000 -> 0.25 | AB116: =INDEX(Liner,AB112+(Q116-1)*10,3)/1000 -> 0.25
